Workbook

Sheet notes (hidden)
H2: =SUM(H3:H8) -> 0
C3: 600 | D3: 24 | E3: 600 | F3: 1000 | G3: =IF(Form!$D$4=D3,1,0) -> 0 | H3: =IF(G3=1,IF(OR(E3>Form!M$5,F3<Form!M$5),1,0),0) -> 0
C4: 800 | D4: 30 | E4: 800 | F4: 1200 | G4: =IF(Form!$D$4=D4,1,0) -> 0 | H4: =IF(G4=1,IF(OR(E4>Form!M$5,F4<Form!M$5),1,0),0) -> 0
C5: 1000 | D5: 36 | E5: 1000 | F5: 1400 | G5: =IF(Form!$D$4=D5,1,0) -> 0 | H5: =IF(G5=1,IF(OR(E5>Form!M$5,F5<Form!M$5),1,0),0) -> 0
C6: 1200 | D6: 42 | E6: 1200 | F6: 1600 | G6: =IF(Form!$D$4=D6,1,0) -> 0 | H6: =IF(G6=1,IF(OR(E6>Form!M$5,F6<Form!M$5),1,0),0) -> 0
C7: 1400 | D7: 48 | E7: 1400 | F7: 1800 | G7: =IF(Form!$D$4=D7,1,0) -> 0 | H7: =IF(G7=1,IF(OR(E7>Form!M$5,F7<Form!M$5),1,0),0) -> 0
C8: 1600 | D8: 60 | E8: 1600 | F8: 2000 | G8: =IF(Form!$D$4=D8,1,0) -> 0 | H8: =IF(G8=1,IF(OR(E8>Form!M$5,F8<Form!M$5),1,0),0) -> 0
C9: 1800
C10: 2000
D13: Total
B14: =Form!M5+Form!M6 -> 0 | E14: =E31 -> 0 | F14: =F31 -> 0 | G14: 0 | H14: 0 | I14: 0 | J14: 0 | K14: 0 | L14: =SUM(E14:K14) -> 0 | P14: 58
E15: =Form!C27 -> 85 | F15: =Form!E27 -> 90 | G15: =Form!G27 -> 95 | H15: =Form!I27 -> 100 | I15: =Form!K27 -> 105 | J15: =Form!M27 -> 110 | K15: =Form!O27 -> 115
A16: =C16+D16 -> 0 | B16: =P16 -> 0 | C16: =Form!A31 -> 0 | D16: =Form!B31 -> 0 | E16: =Form!C31 -> 0 | F16: =Form!E31 -> 0 | G16: =Form!G31 -> 0 | H16: =Form!I31 -> 0 | I16: =Form!K31 -> 0 | J16: =Form!M31 -> 0 | K16: =Form!O31 -> 0 | L16: =Form!$M$5+Form!M$6 -> 0 | M16: =IF(C16+D16=Form!M$5+Form!M$6,1,0) -> 1 | N16: =IF(A16<L16,1,0) -> 0 | O16: =IF(A16>L16,2,0) -> 0 | P16: =IF(AND(N16=1,N17=0),1,0)+IF(AND(O15=0,O16=2),2,0) -> 0
A17: =C17+D17 -> 0 | B17: =P17 -> 0 | C17: =C16 -> 0 | D17: =Form!B32 -> 0 | E17: =Form!C32 -> 0 | F17: =Form!E32 -> 0 | G17: =Form!G32 -> 0 | H17: =Form!I32 -> 0 | I17: =Form!K32 -> 0 | J17: =Form!M32 -> 0 | K17: =Form!O32 -> 0 | L17: =Form!$M$5+Form!M$6 -> 0 | M17: =IF(C17+D17=Form!M$5+Form!M$6,1,0) -> 1 | N17: =IF(A17<L17,1,0) -> 0 | O17: =IF(A17>L17,2,0) -> 0 | P17: =IF(AND(N17=1,N18=0),1,0)+IF(AND(O16=0,O17=2),2,0) -> 0
A18: 0 | B18: 0 | C18: =C17 -> 0 | D18: =Form!B33 -> 0 | E18: =Form!C33 -> 0 | F18: =Form!E33 -> 0 | G18: =Form!G33 -> 0 | H18: =Form!I33 -> 0 | I18: =Form!K33 -> 0 | J18: =Form!M33 -> 0 | K18: =Form!O33 -> 0 | L18: =Form!$M$5+Form!M$6 -> 0 | M18: =IF(C18+D18=Form!M$5+Form!M$6,1,0) -> 1 | N18: 0 | O18: =IF(A18>L18,2,0) -> 0 | P18: =IF(AND(N18=1,N19=0),1,0)+IF(AND(O17=0,O18=2),2,0) -> 0
A19: 0 | B19: 0 | C19: =C18 -> 0 | D19: =Form!B34 -> 0 | E19: =Form!C34 -> 0 | F19: =Form!E34 -> 0 | G19: =Form!G34 -> 0 | H19: =Form!I34 -> 0 | I19: =Form!K34 -> 0 | J19: =Form!M34 -> 0 | K19: =Form!O34 -> 0 | L19: =Form!$M$5+Form!M$6 -> 0 | M19: =IF(C19+D19=Form!M$5+Form!M$6,1,0) -> 1 | N19: 0 | O19: =IF(A19>L19,2,0) -> 0 | P19: =IF(AND(N19=1,N20=0),1,0)+IF(AND(O18=0,O19=2),2,0) -> 0
A20: 0 | B20: 0 | C20: =Form!A35 -> 0 | D20: =Form!B35 -> 0 | E20: =Form!C35 -> 0 | F20: =Form!E35 -> 0 | G20: =Form!G35 -> 0 | H20: =Form!I35 -> 0 | I20: =Form!K35 -> 0 | J20: =Form!M35 -> 0 | K20: =Form!O35 -> 0 | L20: =Form!$M$5+Form!M$6 -> 0 | M20: =IF(C20+D20=Form!M$5+Form!M$6,1,0) -> 1 | N20: 0 | O20: =IF(A20>L20,2,0) -> 0 | P20: =IF(AND(N20=1,N21=0),1,0)+IF(AND(O19=0,O20=2),2,0) -> 0
A21: 0 | B21: 0 | C21: =C20 -> 0 | D21: =Form!B36 -> 0 | E21: =Form!C36 -> 0 | F21: =Form!E36 -> 0 | G21: =Form!G36 -> 0 | H21: =Form!I36 -> 0 | I21: =Form!K36 -> 0 | J21: =Form!M36 -> 0 | K21: =Form!O36 -> 0 | L21: =Form!$M$5+Form!M$6 -> 0 | M21: =IF(C21+D21=Form!M$5+Form!M$6,1,0) -> 1 | N21: 0 | O21: =IF(A21>L21,2,0) -> 0 | P21: =IF(AND(N21=1,N22=0),1,0)+IF(AND(O20=0,O21=2),2,0) -> 0
A22: 0 | B22: 0 | C22: =C21 -> 0 | D22: =Form!B37 -> 0 | E22: =Form!C37 -> 0 | F22: =Form!E37 -> 0 | G22: =Form!G37 -> 0 | H22: =Form!I37 -> 0 | I22: =Form!K37 -> 0 | J22: =Form!M37 -> 0 | K22: =Form!O37 -> 0 | L22: =Form!$M$5+Form!M$6 -> 0 | M22: =IF(C22+D22=Form!M$5+Form!M$6,1,0) -> 1 | N22: 0 | O22: 0 | P22: 0
A23: 0 | B23: 0 | C23: =C22 -> 0 | D23: =Form!B38 -> 0 | E23: =Form!C38 -> 0 | F23: =Form!E38 -> 0 | G23: =Form!G38 -> 0 | H23: =Form!I38 -> 0 | I23: =Form!K38 -> 0 | J23: =Form!M38 -> 0 | K23: =Form!O38 -> 0 | L23: =Form!$M$5+Form!M$6 -> 0 | M23: =IF(C23+D23=Form!M$5+Form!M$6,1,0) -> 1 | N23: 0 | O23: 0 | P23: 0
A24: 0 | B24: 0 | C24: =Form!A39 -> 0 | D24: =Form!B39 -> 0 | E24: =Form!C39 -> 0 | F24: =Form!E39 -> 0 | G24: =Form!G39 -> 0 | H24: =Form!I39 -> 0 | I24: =Form!K39 -> 0 | J24: =Form!M39 -> 0 | K24: =Form!O39 -> 0 | L24: =Form!$M$5+Form!M$6 -> 0 | M24: =IF(C24+D24=Form!M$5+Form!M$6,1,0) -> 1 | N24: 0 | O24: 0 | P24: 0
A25: 0 | B25: 0 | C25: =C24 -> 0 | D25: =Form!B40 -> 0 | E25: =Form!C40 -> 0 | F25: =Form!E40 -> 0 | G25: =Form!G40 -> 0 | H25: =Form!I40 -> 0 | I25: =Form!K40 -> 0 | J25: =Form!M40 -> 0 | K25: =Form!O40 -> 0 | L25: =Form!$M$5+Form!M$6 -> 0 | M25: =IF(C25+D25=Form!M$5+Form!M$6,1,0) -> 1 | N25: 0 | O25: 0 | P25: 0
A26: 0 | B26: 0 | C26: =C25 -> 0 | D26: =Form!B41 -> 0 | E26: =Form!C41 -> 0 | F26: =Form!E41 -> 0 | G26: =Form!G41 -> 0 | H26: =Form!I41 -> 0 | I26: =Form!K41 -> 0 | J26: =Form!M41 -> 0 | K26: =Form!O41 -> 0 | L26: =Form!$M$5+Form!M$6 -> 0 | M26: =IF(C26+D26=Form!M$5+Form!M$6,1,0) -> 1 | N26: 0 | O26: 0 | P26: 0
A27: 0 | B27: 0 | C27: =C26 -> 0 | D27: =Form!B42 -> 0 | E27: =Form!C42 -> 0 | F27: =Form!E42 -> 0 | G27: =Form!G42 -> 0 | H27: =Form!I42 -> 0 | I27: =Form!K42 -> 0 | J27: =Form!M42 -> 0 | K27: =Form!O42 -> 0 | L27: =Form!$M$5+Form!M$6 -> 0 | M27: =IF(C27+D27=Form!M$5+Form!M$6,1,0) -> 1 | N27: 0 | O27: 0 | P27: 0
A28: 0 | B28: =SUM(B16:B27) -> 0
F29: =IF(AND(F15>Form!$M$4,E15<Form!$M$4),2,0) -> 0 | G29: =IF(AND(G15>Form!$M$4,F15<Form!$M$4),2,0) -> 0 | H29: =IF(AND(H15>Form!$M$4,G15<Form!$M$4),2,0) -> 0 | I29: =IF(AND(I15>Form!$M$4,H15<Form!$M$4),2,0) -> 0 | J29: =IF(AND(J15>Form!$M$4,I15<Form!$M$4),2,0) -> 0 | K29: =IF(AND(K15>Form!$M$4,J15<Form!$M$4),2,0) -> 0
C30: =HLOOKUP(1,E14:K15,2,FALSE) ->  | E30: =IF(F29=2,1,0) -> 0 | F30: =IF(G29=2,1,0) -> 0 | G30: 0 | H30: 0 | I30: 0 | J30: 0 | K30: 0
C31: =HLOOKUP(2,E14:K15,2,FALSE) ->  | E31: =SUM(E29:E30) -> 0 | F31: 0 | G31: 0 | H31: 0 | I31: 0 | J31: 0 | K31: 0
B32: =(VLOOKUP(1,B14:K27,3,FALSE)) ->  | C32: =IF(ISERROR(B32),0,B32) -> 0 | E32: =(C34-C35)/(C32-C33)*(Form!$M$6-C33)+C35 ->  | F32: =(C36-C37)/(C32-C33)*(Form!M6-C33)+C37 -> 
B33: =VLOOKUP(2,B14:K27,3,FALSE) ->  | C33: =IF(ISERROR(B33),0,B33) -> 0 | E33: =IF(AND(B28=0,L14=3),VLOOKUP(Form!$M$5+Form!$M$6,notes!A14:K27,MATCH(1,notes!A14:K14,FALSE),FALSE),0) -> 0 | F33: =IF(AND(B28=0,L14=3),VLOOKUP(Form!$M$5+Form!$M$6,notes!A14:K27,MATCH(2,notes!A14:K14,FALSE),FALSE),0) -> 0 | I33: exactly
B34: =VLOOKUP(1,B14:K27,MATCH(1,B14:K14,FALSE),FALSE) ->  | C34: =MIN(B34,B36) ->  | E34: =IF(ISERROR(E32),E33,E32) -> 0 | F34: =IF(ISERROR(F32),F33,F32) -> 0 | I34: x | J34: y | K34: err1 | L34: err2 | M34: err3 | N34: ans
B35: =VLOOKUP(2,B14:K27,MATCH(1,B14:K14,FALSE),FALSE) ->  | C35: =MAX(B35,B37) ->  | E35: =MIN(E34:F34) -> 0 | F35: =MAX(E34:F34) -> 0 | I35: y | J35: y | K35: =IF(ISERROR(VLOOKUP(Form!$M$5+Form!$M$6,notes!A15:K27,MATCH(Form!$M$4,notes!A15:K15,FALSE),FALSE)),0,VLOOKUP(Form!$M$5+Form!$M$6,notes!A15:K27,MATCH(Form!$M$4,notes!A15:K15,FALSE),FALSE)) -> 0 | N35: =SUM(K35:M35) -> 0
B36: =VLOOKUP(1,B14:K27,MATCH(2,B14:K14,FALSE),FALSE) ->  | C36: =MAX(B36,B34) ->  | E36: =(E35-F35)/(C31-C30)*(Form!$M$4-C30)+F35 ->  | I36: y | J36: n | N36: =SUM(K36:M36) -> 0
B37: =VLOOKUP(2,B14:K27,MATCH(2,B14:K14,FALSE),FALSE) ->  | C37: =MIN(B35,B37) ->  | I37: n | J37: n | K37: =IF(OR(E36>100000,E36<=0),0,E36) ->  | L37: =IF(K37<>0,0,MIN(E32:F32)) ->  | M37: =IF(AND(L37=0,K37=0),C34,0) ->  | N37: =SUM(K37:M37) -> 
N38: =IF(ISERROR(N37),N35,N37) -> 0
A41: sens | E41: =E58 -> 0 | F41: =F58 -> 0 | G41: 0 | H41: 0 | I41: 0 | J41: 0 | K41: 0 | L41: =SUM(E41:K41) -> 0
E42: =E15 -> 85 | F42: =F15 -> 90 | G42: 95 | H42: 100 | I42: 105 | J42: 110 | K42: 115
A43: =C43+D43 -> 0 | B43: =P43 -> 0 | C43: =C16 -> 0 | D43: =D16 -> 0 | E43: =Form!D31 -> 0 | F43: =Form!F31 -> 0 | G43: =Form!H31 -> 0 | H43: =Form!J31 -> 0 | I43: =Form!L31 -> 0 | J43: =Form!N31 -> 0 | K43: =Form!P31 -> 0 | L43: =Form!$M$5+Form!M$6 -> 0 | M43: =IF(C43+D43=Form!M$5+Form!M$6,1,0) -> 1 | N43: =IF(A43<L43,1,0) -> 0 | O43: =IF(A43>L43,2,0) -> 0 | P43: =IF(AND(N43=1,N44=0),1,0)+IF(AND(O42=0,O43=2),2,0) -> 0
A44: =C44+D44 -> 0 | B44: =P44 -> 0 | C44: =C17 -> 0 | D44: =D17 -> 0 | E44: =Form!D32 -> 0 | F44: =Form!F32 -> 0 | G44: =Form!H32 -> 0 | H44: =Form!J32 -> 0 | I44: =Form!L32 -> 0 | J44: =Form!N32 -> 0 | K44: =Form!P32 -> 0 | L44: =Form!$M$5+Form!M$6 -> 0 | M44: =IF(C44+D44=Form!M$5+Form!M$6,1,0) -> 1 | N44: =IF(A44<L44,1,0) -> 0 | O44: =IF(A44>L44,2,0) -> 0 | P44: =IF(AND(N44=1,N45=0),1,0)+IF(AND(O43=0,O44=2),2,0) -> 0
A45: =C45+D45 -> 0 | B45: 0 | C45: 0 | D45: 0 | E45: =Form!D33 -> 0 | F45: =Form!F33 -> 0 | G45: =Form!H33 -> 0 | H45: =Form!J33 -> 0 | I45: =Form!L33 -> 0 | J45: =Form!N33 -> 0 | K45: =Form!P33 -> 0 | L45: =Form!$M$5+Form!M$6 -> 0 | M45: =IF(C45+D45=Form!M$5+Form!M$6,1,0) -> 1 | N45: 0 | O45: =IF(A45>L45,2,0) -> 0 | P45: =IF(AND(N45=1,N46=0),1,0)+IF(AND(O44=0,O45=2),2,0) -> 0
A46: 0 | B46: 0 | C46: 0 | D46: 0 | E46: =Form!D34 -> 0 | F46: =Form!F34 -> 0 | G46: =Form!H34 -> 0 | H46: =Form!J34 -> 0 | I46: =Form!L34 -> 0 | J46: =Form!N34 -> 0 | K46: =Form!P34 -> 0 | L46: =Form!$M$5+Form!M$6 -> 0 | M46: =IF(C46+D46=Form!M$5+Form!M$6,1,0) -> 1 | N46: 0 | O46: =IF(A46>L46,2,0) -> 0 | P46: =IF(AND(N46=1,N47=0),1,0)+IF(AND(O45=0,O46=2),2,0) -> 0
A47: 0 | B47: 0 | C47: 0 | D47: 0 | E47: =Form!D35 -> 0 | F47: =Form!F35 -> 0 | G47: =Form!H35 -> 0 | H47: =Form!J35 -> 0 | I47: =Form!L35 -> 0 | J47: =Form!N35 -> 0 | K47: =Form!P35 -> 0 | L47: =Form!$M$5+Form!M$6 -> 0 | M47: =IF(C47+D47=Form!M$5+Form!M$6,1,0) -> 1 | N47: 0 | O47: =IF(A47>L47,2,0) -> 0 | P47: =IF(AND(N47=1,N48=0),1,0)+IF(AND(O46=0,O47=2),2,0) -> 0
A48: 0 | B48: 0 | C48: 0 | D48: 0 | E48: =Form!D36 -> 0 | F48: =Form!F36 -> 0 | G48: =Form!H36 -> 0 | H48: =Form!J36 -> 0 | I48: =Form!L36 -> 0 | J48: =Form!N36 -> 0 | K48: =Form!P36 -> 0 | L48: =Form!$M$5+Form!M$6 -> 0 | M48: =IF(C48+D48=Form!M$5+Form!M$6,1,0) -> 1 | N48: 0 | O48: =IF(A48>L48,2,0) -> 0 | P48: =IF(AND(N48=1,N49=0),1,0)+IF(AND(O47=0,O48=2),2,0) -> 0
A49: 0 | B49: 0 | C49: 0 | D49: 0 | E49: =Form!D37 -> 0 | F49: =Form!F37 -> 0 | G49: =Form!H37 -> 0 | H49: =Form!J37 -> 0 | I49: =Form!L37 -> 0 | J49: =Form!N37 -> 0 | K49: =Form!P37 -> 0 | L49: =Form!$M$5+Form!M$6 -> 0 | M49: =IF(C49+D49=Form!M$5+Form!M$6,1,0) -> 1 | N49: 0 | O49: 0 | P49: 0
A50: 0 | B50: 0 | C50: 0 | D50: 0 | E50: =Form!D38 -> 0 | F50: =Form!F38 -> 0 | G50: =Form!H38 -> 0 | H50: =Form!J38 -> 0 | I50: =Form!L38 -> 0 | J50: =Form!N38 -> 0 | K50: =Form!P38 -> 0 | L50: =Form!$M$5+Form!M$6 -> 0 | M50: =IF(C50+D50=Form!M$5+Form!M$6,1,0) -> 1 | N50: 0 | O50: 0 | P50: 0
A51: 0 | B51: 0 | C51: 0 | D51: 0 | E51: =Form!D39 -> 0 | F51: =Form!F39 -> 0 | G51: =Form!H39 -> 0 | H51: =Form!J39 -> 0 | I51: =Form!L39 -> 0 | J51: =Form!N39 -> 0 | K51: =Form!P39 -> 0 | L51: =Form!$M$5+Form!M$6 -> 0 | M51: =IF(C51+D51=Form!M$5+Form!M$6,1,0) -> 1 | N51: 0 | O51: 0 | P51: 0
A52: 0 | B52: 0 | C52: 0 | D52: 0 | E52: =Form!D40 -> 0 | F52: =Form!F40 -> 0 | G52: =Form!H40 -> 0 | H52: =Form!J40 -> 0 | I52: =Form!L40 -> 0 | J52: =Form!N40 -> 0 | K52: =Form!P40 -> 0 | L52: =Form!$M$5+Form!M$6 -> 0 | M52: =IF(C52+D52=Form!M$5+Form!M$6,1,0) -> 1 | N52: 0 | O52: 0 | P52: 0
A53: 0 | B53: 0 | C53: 0 | D53: 0 | E53: =Form!D41 -> 0 | F53: =Form!F41 -> 0 | G53: =Form!H41 -> 0 | H53: =Form!J41 -> 0 | I53: =Form!L41 -> 0 | J53: =Form!N41 -> 0 | K53: =Form!P41 -> 0 | L53: =Form!$M$5+Form!M$6 -> 0 | M53: =IF(C53+D53=Form!M$5+Form!M$6,1,0) -> 1 | N53: 0 | O53: 0 | P53: 0
A54: 0 | B54: 0 | C54: 0 | D54: 0 | E54: =Form!D42 -> 0 | F54: =Form!F42 -> 0 | G54: =Form!H42 -> 0 | H54: =Form!J42 -> 0 | I54: =Form!L42 -> 0 | J54: =Form!N42 -> 0 | K54: =Form!P42 -> 0 | L54: =Form!$M$5+Form!M$6 -> 0 | M54: =IF(C54+D54=Form!M$5+Form!M$6,1,0) -> 1 | N54: 0 | O54: 0 | P54: 0
A55: 0 | B55: =SUM(B43:B54) -> 0
F56: =IF(AND(F42>Form!$M$4,E42<Form!$M$4),2,0) -> 0 | G56: =IF(AND(G42>Form!$M$4,F42<Form!$M$4),2,0) -> 0 | H56: =IF(AND(H42>Form!$M$4,G42<Form!$M$4),2,0) -> 0 | I56: =IF(AND(I42>Form!$M$4,H42<Form!$M$4),2,0) -> 0 | J56: =IF(AND(J42>Form!$M$4,I42<Form!$M$4),2,0) -> 0 | K56: =IF(AND(K42>Form!$M$4,J42<Form!$M$4),2,0) -> 0
C57: =HLOOKUP(1,E41:K42,2,FALSE) ->  | E57: =IF(F56=2,1,0) -> 0 | F57: =IF(G56=2,1,0) -> 0 | G57: 0 | H57: 0 | I57: 0 | J57: 0 | K57: 0
C58: =HLOOKUP(2,E41:K42,2,FALSE) ->  | E58: =SUM(E56:E57) -> 0 | F58: 0 | G58: 0 | H58: 0 | I58: 0 | J58: 0 | K58: 0
B59: =(VLOOKUP(1,B41:K54,3,FALSE)) ->  | C59: =IF(ISERROR(B59),0,B59) -> 0 | E59: =(C61-C62)/(C59-C60)*(Form!$M$6-C60)+C62 ->  | F59: =(C63-C64)/(C59-C60)*(Form!M6-C60)+C64 -> 
B60: =VLOOKUP(2,B41:K54,3,FALSE) ->  | C60: =IF(ISERROR(B60),0,B60) -> 0 | E60: =IF(AND(B55=0,L41=3),VLOOKUP(Form!$M$5+Form!$M$6,notes!A41:K54,MATCH(1,notes!A41:K41,FALSE),FALSE),0) -> 0 | F60: =IF(AND(B55=0,L41=3),VLOOKUP(Form!$M$5+Form!$M$6,notes!A41:K54,MATCH(2,notes!A41:K41,FALSE),FALSE),0) -> 0 | I60: exactly
B61: =VLOOKUP(1,B41:K54,MATCH(1,B41:K41,FALSE),FALSE) ->  | C61: =MIN(B61,B63) ->  | E61: =IF(ISERROR(E59),E60,E59) -> 0 | F61: =IF(ISERROR(F59),F60,F59) -> 0 | I61: x | J61: y | K61: err1 | L61: err2 | M61: err3 | N61: ans
B62: =VLOOKUP(2,B41:K54,MATCH(1,B41:K41,FALSE),FALSE) ->  | C62: =MAX(B62,B64) ->  | E62: =MIN(E61:F61) -> 0 | F62: =MAX(E61:F61) -> 0 | I62: y | J62: y | K62: =IF(ISERROR(VLOOKUP(Form!$M$5+Form!$M$6,notes!A42:K54,MATCH(Form!$M$4,notes!A42:K42,FALSE),FALSE)),0,VLOOKUP(Form!$M$5+Form!$M$6,notes!A42:K54,MATCH(Form!$M$4,notes!A42:K42,FALSE),FALSE)) -> 0 | N62: =SUM(K62:M62) -> 0
B63: =VLOOKUP(1,B41:K54,MATCH(2,B41:K41,FALSE),FALSE) ->  | C63: =MAX(B63,B61) ->  | E63: =(E62-F62)/(C58-C57)*(Form!$M$4-C57)+F62 ->  | I63: y | J63: n | N63: =SUM(K63:M63) -> 0
B64: =VLOOKUP(2,B41:K54,MATCH(2,B41:K41,FALSE),FALSE) ->  | C64: =MIN(B62,B64) ->  | I64: n | J64: n | K64: =IF(OR(E63>100000,E63<=0),0,E63) ->  | L64: =IF(K64<>0,0,MIN(E59:F59)) ->  | M64: =IF(AND(L64=0,K64=0),C61,0) ->  | N64: =SUM(K64:M64) -> 
B65: =VLOOKUP(Form!M32+Form!M33,A41:K54,MATCH(2,A41:K41,FALSE),FALSE) ->  | N65: =IF(ISERROR(N64),N62,N64) -> 0

Sheet Options (hidden)
A1: 4A7A30
A2: 4A7A40
A3: 4A7A60
A4: 4A7A70
A5: 4A7V00
A6: 4A7V80
A7: 4A7Z00
A8: 4TTA30
A9: 4TTB30
A10: 4TTB60
A11: 4TTM30

Sheet Calcs (hidden)
D1: Condenser :
D2: ADP Evaporator:
D3: Condenser Entering Air Temperature: | E3: 100 | F3: (°F) Dry Bulb, 85°F to 115°F
D4: Evaporator Air Flow: | E4: 1265 | F4: CFM
D5: Entering Evaporator Air (DB): | E5: 77.5 | F5: (°F) Dry Bulb
D6: Entering Evaporator Air (WB): | E6: 60.6 | F6: (°F) Wet Bulb, 63°F to 71°F
A9: Total
A10: 28.55 | B10: 1200 60.6
B12: Diff 200 | C12: =A10-A14 -> 0.308 | D12: Diff 1 cfm | E12: =C12/200 -> 0.00154 | F12: 1265 total | G12: =A10-(65*E12) -> 28.4499
A14: 28.242 | B14: 1400 60.6
A16: Sens
A17: 25.32 | B17: 1200 60.6
B19: Diff 200 | C19: =A17-A21 -> 0.5544 | D19: Diff 1 cfm | E19: =C19/200 -> 0.002772 | F19: 1265 Sens | G19: =A17-(65*E19) -> 25.13982
A21: 24.7656 | B21: 1400 60.6

Sheet 4A7A30_18 (hidden)
A2: 4A7A30_18 | B2: 18.2
A3: Evaporator Air | C3: Condenser Entering Air Temperature ˚F
A4: 80 | B4: °F DB | C4: 85 | E4: 90 | G4: 95 | I4: 100 | K4: 105 | M4: 110 | O4: 115
A5: CFM | B5: EWB† ˚F | C5: Capacity Mbtuh | E5: Capacity Mbtuh | G5: Capacity Mbtuh | I5: Capacity Mbtuh | K5: Capacity Mbtuh | M5: Capacity Mbtuh | O5: Capacity Mbtuh
C6: Total | D6: Sens. | E6: Total | F6: Sens. | G6: Total | H6: Sens. | I6: Total | J6: Sens. | K6: Total | L6: Sens. | M6: Total | N6: Sens. | O6: Total | P6: Sens.
R7: Total Factors | Y7: Sens. % | AF7: IDB Adj | AM7: Sens Calc
A8: 525 | B8: 71 | C8: =R8*$B$2 -> 20.286 | D8: =IF(AM8>C8,C8,AM8) -> 10.78 | E8: =S8*$B$2 -> 19.796 | F8: =IF(AN8>E8,E8,AN8) -> 10.58563417 | G8: =T8*$B$2 -> 19.306 | H8: =IF(AO8>G8,G8,AO8) -> 10.388 | I8: =U8*$B$2 -> 18.865 | J8: =IF(AP8>I8,I8,AP8) -> 10.24316118 | K8: =V8*$B$2 -> 18.424 | L8: =IF(AQ8>K8,K8,AQ8) -> 10.094 | M8: =W8*$B$2 -> 17.983 | N8: =IF(AR8>M8,M8,AR8) -> 9.949378506 | O8: =X8*$B$2 -> 17.542 | P8: =IF(AS8>O8,O8,AS8) -> 9.8 | R8: 1.114615385 | S8: 1.087692308 | T8: 1.060769231 | U8: 1.036538462 | V8: 1.012307692 | W8: 0.9880769231 | X8: 0.9638461538 | Y8: 0.5314009662 | Z8: 0.5347360161 | AA8: 0.538071066 | AB8: 0.5429717032 | AC8: 0.5478723404 | AD8: 0.5532657792 | AE8: 0.5586592179 | AF8: 0.9375 | AG8: 0.9375 | AH8: 0.9375 | AI8: 0.9375 | AJ8: 0.9375 | AK8: 0.9375 | AL8: 0.9375 | AM8: =Y8*C8+($A$4-80)*AF8*$A$8/1000 -> 10.78 | AN8: =Z8*E8+($A$4-80)*AG8*$A$8/1000 -> 10.58563417 | AO8: =AA8*G8+($A$4-80)*AH8*$A$8/1000 -> 10.388 | AP8: =AB8*I8+($A$4-80)*AI8*$A$8/1000 -> 10.24316118 | AQ8: =AC8*K8+($A$4-80)*AJ8*$A$8/1000 -> 10.094 | AR8: =AD8*M8+($A$4-80)*AK8*$A$8/1000 -> 9.949378506 | AS8: =AE8*O8+($A$4-80)*AL8*$A$8/1000 -> 9.8
B9: 67 | C9: =R9*$B$2 -> 18.62 | D9: 12.936 | E9: 18.228 | F9: =IF(AN9>E9,E9,AN9) -> 12.79175466 | G9: 17.836 | H9: =IF(AO9>G9,G9,AO9) -> 12.642 | I9: 17.444 | J9: =IF(AP9>I9,I9,AP9) -> 12.49800796 | K9: 17.052 | L9: =IF(AQ9>K9,K9,AQ9) -> 12.348 | M9: 16.611 | N9: =IF(AR9>M9,M9,AR9) -> 12.20570031 | O9: 16.17 | P9: =IF(AS9>O9,O9,AS9) -> 12.054 | R9: 1.023076923 | S9: 1.001538462 | T9: 0.98 | U9: 0.9584615385 | V9: 0.9369230769 | W9: 0.9126923077 | X9: 0.8884615385 | Y9: 0.6947368421 | Z9: 0.7017640254 | AA9: 0.7087912088 | AB9: 0.7164645699 | AC9: 0.724137931 | AD9: 0.7347962382 | AE9: 0.7454545455 | AF9: 0.9166666667 | AG9: 0.9166666667 | AH9: 0.9166666667 | AI9: 0.9166666667 | AJ9: 0.9166666667 | AK9: 0.9270833333 | AL9: 0.9375 | AM9: =Y9*C9+($A$4-80)*AF9*$A$8/1000 -> 12.936 | AN9: =Z9*E9+($A$4-80)*AG9*$A$8/1000 -> 12.79175466 | AO9: =AA9*G9+($A$4-80)*AH9*$A$8/1000 -> 12.642 | AP9: =AB9*I9+($A$4-80)*AI9*$A$8/1000 -> 12.49800796 | AQ9: =AC9*K9+($A$4-80)*AJ9*$A$8/1000 -> 12.348 | AR9: =AD9*M9+($A$4-80)*AK9*$A$8/1000 -> 12.20570031 | AS9: =AE9*O9+($A$4-80)*AL9*$A$8/1000 -> 12.054
B10: 63 | C10: 17.444 | D10: 15.288 | E10: 17.052 | F10: 15.14562472 | G10: 16.66 | H10: 14.994 | I10: 16.268 | J10: 14.85208148 | K10: 15.876 | L10: 14.7 | M10: 15.533 | N10: 14.55685209 | O10: 15.19 | P10: 14.406 | R10: 0.9584615385 | S10: 0.9369230769 | T10: 0.9153846154 | U10: 0.8938461538 | V10: 0.8723076923 | W10: 0.8534615385 | X10: 0.8346153846 | Y10: 0.8764044944 | Z10: 0.8882022472 | AA10: 0.9 | AB10: 0.912962963 | AC10: 0.9259259259 | AD10: 0.9371565114 | AE10: 0.9483870968 | AF10: 0.9166666667 | AG10: 0.9270833333 | AH10: 0.9375 | AI10: 0.9375 | AJ10: 0.9375 | AK10: 0.9375 | AL10: 0.9375 | AM10: 15.288 | AN10: =Z10*E10+($A$4-80)*AG10*$A$8/1000 -> 15.14562472 | AO10: =AA10*G10+($A$4-80)*AH10*$A$8/1000 -> 14.994 | AP10: 14.85208148 | AQ10: 14.7 | AR10: 14.55685209 | AS10: 14.406
B11: 59 | C11: 16.66 | D11: 16.66 | E11: 16.268 | F11: 16.268 | G11: 15.876 | H11: 15.876 | I11: 15.533 | J11: 15.533 | K11: 15.19 | L11: 15.19 | M11: 14.798 | N11: 14.798 | O11: 14.406 | P11: 14.406 | R11: 0.9153846154 | S11: 0.8938461538 | T11: 0.8723076923 | U11: 0.8534615385 | V11: 0.8346153846 | W11: 0.8130769231 | X11: 0.7915384615 | Y11: 1 | Z11: 1 | AA11: 1 | AB11: 1 | AC11: 1 | AD11: 1 | AE11: 1 | AF11: 0.6875 | AG11: 0.6458333333 | AH11: 0.6041666667 | AI11: 0.5625 | AJ11: 0.5208333333 | AK11: 0.46875 | AL11: 0.4166666667 | AM11: 16.66 | AN11: =Z11*E11+($A$4-80)*AG11*$A$8/1000 -> 16.268 | AO11: =AA11*G11+($A$4-80)*AH11*$A$8/1000 -> 15.876 | AP11: =AB11*I11+($A$4-80)*AI11*$A$8/1000 -> 15.533 | AQ11: 15.19 | AR11: 14.798 | AS11: 14.406
A12: 600 | B12: 71 | C12: 20.7 | D12: 11 | E12: 20.2 | F12: 10.80166752 | G12: 19.7 | H12: 10.6 | I12: 19.25 | J12: 10.45220529 | K12: 18.8 | L12: 10.3 | M12: 18.35 | N12: 10.15242705 | O12: 17.9 | P12: 10 | R12: 1.137362637 | S12: 1.10989011 | T12: 1.082417582 | U12: 1.057692308 | V12: 1.032967033 | W12: 1.008241758 | X12: 0.9835164835 | Y12: 0.5314009662 | Z12: 0.5347360161 | AA12: 0.538071066 | AB12: 0.5429717032 | AC12: 0.5478723404 | AD12: 0.5532657792 | AE12: 0.5586592179 | AF12: 0.9375 | AG12: 0.9375 | AH12: 0.9375 | AI12: 0.9375 | AJ12: 0.9375 | AK12: 0.9375 | AL12: 0.9375 | AM12: =Y12*C12+($A$4-80)*AF12*$A$12/1000 -> 11 | AN12: =Z12*E12+($A$4-80)*AG12*$A$12/1000 -> 10.80166752 | AO12: =AA12*G12+($A$4-80)*AH12*$A$12/1000 -> 10.6 | AP12: =AB12*I12+($A$4-80)*AI12*$A$12/1000 -> 10.45220529 | AQ12: =AC12*K12+($A$4-80)*AJ12*$A$12/1000 -> 10.3 | AR12: =AD12*M12+($A$4-80)*AK12*$A$12/1000 -> 10.15242705 | AS12: =AE12*O12+($A$4-80)*AL12*$A$12/1000 -> 10
B13: 67 | C13: 19 | D13: 13.2 | E13: 18.6 | F13: 13.05281087 | G13: 18.2 | H13: 12.9 | I13: 17.8 | J13: 12.75306934 | K13: 17.4 | L13: 12.6 | M13: 16.95 | N13: 12.45479624 | O13: 16.5 | P13: 12.3 | R13: 1.043956044 | S13: 1.021978022 | T13: 1 | U13: 0.978021978 | V13: 0.956043956 | W13: 0.9313186813 | X13: 0.9065934066 | Y13: 0.6947368421 | Z13: 0.7017640254 | AA13: 0.7087912088 | AB13: 0.7164645699 | AC13: 0.724137931 | AD13: 0.7347962382 | AE13: 0.7454545455 | AF13: 0.9166666667 | AG13: 0.9166666667 | AH13: 0.9166666667 | AI13: 0.9166666667 | AJ13: 0.9166666667 | AK13: 0.9270833333 | AL13: 0.9375 | AM13: =Y13*C13+($A$4-80)*AF13*$A$12/1000 -> 13.2 | AN13: =Z13*E13+($A$4-80)*AG13*$A$12/1000 -> 13.05281087 | AO13: =AA13*G13+($A$4-80)*AH13*$A$12/1000 -> 12.9 | AP13: =AB13*I13+($A$4-80)*AI13*$A$12/1000 -> 12.75306934 | AQ13: =AC13*K13+($A$4-80)*AJ13*$A$12/1000 -> 12.6 | AR13: =AD13*M13+($A$4-80)*AK13*$A$12/1000 -> 12.45479624 | AS13: =AE13*O13+($A$4-80)*AL13*$A$12/1000 -> 12.3
B14: 63 | C14: 17.8 | D14: 15.6 | E14: 17.4 | F14: 15.4547191 | G14: 17 | H14: 15.3 | I14: 16.6 | J14: 15.15518519 | K14: 16.2 | L14: 15 | M14: 15.85 | N14: 14.8539307 | O14: 15.5 | P14: 14.7 | R14: 0.978021978 | S14: 0.956043956 | T14: 0.9340659341 | U14: 0.9120879121 | V14: 0.8901098901 | W14: 0.8708791209 | X14: 0.8516483516 | Y14: 0.8764044944 | Z14: 0.8882022472 | AA14: 0.9 | AB14: 0.912962963 | AC14: 0.9259259259 | AD14: 0.9371565114 | AE14: 0.9483870968 | AF14: 0.9166666667 | AG14: 0.9270833333 | AH14: 0.9375 | AI14: 0.9375 | AJ14: 0.9375 | AK14: 0.9375 | AL14: 0.9375 | AM14: 15.6 | AN14: =Z14*E14+($A$4-80)*AG14*$A$12/1000 -> 15.4547191 | AO14: =AA14*G14+($A$4-80)*AH14*$A$12/1000 -> 15.3 | AP14: 15.15518519 | AQ14: 15 | AR14: 14.8539307 | AS14: 14.7
B15: 59 | C15: 17 | D15: 17 | E15: 16.6 | F15: 16.6 | G15: 16.2 | H15: 16.2 | I15: 15.85 | J15: 15.85 | K15: 15.5 | L15: 15.5 | M15: 15.1 | N15: 15.1 | O15: 14.7 | P15: 14.7 | R15: 0.9340659341 | S15: 0.9120879121 | T15: 0.8901098901 | U15: 0.8708791209 | V15: 0.8516483516 | W15: 0.8296703297 | X15: 0.8076923077 | Y15: 1 | Z15: 1 | AA15: 1 | AB15: 1 | AC15: 1 | AD15: 1 | AE15: 1 | AF15: 0.6875 | AG15: 0.6458333333 | AH15: 0.6041666667 | AI15: 0.5625 | AJ15: 0.5208333333 | AK15: 0.46875 | AL15: 0.4166666667 | AM15: 17 | AN15: =Z15*E15+($A$4-80)*AG15*$A$12/1000 -> 16.6 | AO15: =AA15*G15+($A$4-80)*AH15*$A$12/1000 -> 16.2 | AP15: 15.85 | AQ15: 15.5 | AR15: 15.1 | AS15: 14.7
A16: 675 | B16: 71 | C16: 21.114 | D16: 11.22 | E16: 20.604 | F16: 11.01770088 | G16: 20.094 | H16: 10.812 | I16: 19.635 | J16: 10.66124939 | K16: 19.176 | L16: 10.506 | M16: 18.717 | N16: 10.35547559 | O16: 18.258 | P16: 10.2 | R16: 1.16010989 | S16: 1.132087912 | T16: 1.104065934 | U16: 1.078846154 | V16: 1.053626374 | W16: 1.028406593 | X16: 1.003186813 | Y16: 0.5314009662 | Z16: 0.5347360161 | AA16: 0.538071066 | AB16: 0.5429717032 | AC16: 0.5478723404 | AD16: 0.5532657792 | AE16: 0.5586592179 | AF16: 0.9375 | AG16: 0.9375 | AH16: 0.9375 | AI16: 0.9375 | AJ16: 0.9375 | AK16: 0.9375 | AL16: 0.9375 | AM16: =Y16*C16+($A$4-80)*AF16*$A$16/1000 -> 11.22 | AN16: =Z16*E16+($A$4-80)*AG16*$A$16/1000 -> 11.01770088 | AO16: =AA16*G16+($A$4-80)*AH16*$A$16/1000 -> 10.812 | AP16: =AB16*I16+($A$4-80)*AI16*$A$16/1000 -> 10.66124939 | AQ16: =AC16*K16+($A$4-80)*AJ16*$A$16/1000 -> 10.506 | AR16: =AD16*M16+($A$4-80)*AK16*$A$16/1000 -> 10.35547559 | AS16: =AE16*O16+($A$4-80)*AL16*$A$16/1000 -> 10.2
B17: 67 | C17: 19.38 | D17: 13.464 | E17: 18.972 | F17: 13.31386709 | G17: 18.564 | H17: 13.158 | I17: 18.156 | J17: 13.00813073 | K17: 17.748 | L17: 12.852 | M17: 17.289 | N17: 12.70389216 | O17: 16.83 | P17: 12.546 | R17: 1.064835165 | S17: 1.042417582 | T17: 1.02 | U17: 0.9975824176 | V17: 0.9751648352 | W17: 0.9499450549 | X17: 0.9247252747 | Y17: 0.6947368421 | Z17: 0.7017640254 | AA17: 0.7087912088 | AB17: 0.7164645699 | AC17: 0.724137931 | AD17: 0.7347962382 | AE17: 0.7454545455 | AF17: 0.9166666667 | AG17: 0.9166666667 | AH17: 0.9166666667 | AI17: 0.9166666667 | AJ17: 0.9166666667 | AK17: 0.9270833333 | AL17: 0.9375 | AM17: =Y17*C17+($A$4-80)*AF17*$A$16/1000 -> 13.464 | AN17: =Z17*E17+($A$4-80)*AG17*$A$16/1000 -> 13.31386709 | AO17: =AA17*G17+($A$4-80)*AH17*$A$16/1000 -> 13.158 | AP17: =AB17*I17+($A$4-80)*AI17*$A$16/1000 -> 13.00813073 | AQ17: =AC17*K17+($A$4-80)*AJ17*$A$16/1000 -> 12.852 | AR17: =AD17*M17+($A$4-80)*AK17*$A$16/1000 -> 12.70389216 | AS17: =AE17*O17+($A$4-80)*AL17*$A$16/1000 -> 12.546
B18: 63 | C18: 18.156 | D18: 15.912 | E18: 17.748 | F18: 15.76381348 | G18: 17.34 | H18: 15.606 | I18: 16.932 | J18: 15.45828889 | K18: 16.524 | L18: 15.3 | M18: 16.167 | N18: 15.15100932 | O18: 15.81 | P18: 14.994 | R18: 0.9975824176 | S18: 0.9751648352 | T18: 0.9527472527 | U18: 0.9303296703 | V18: 0.9079120879 | W18: 0.8882967033 | X18: 0.8686813187 | Y18: 0.8764044944 | Z18: 0.8882022472 | AA18: 0.9 | AB18: 0.912962963 | AC18: 0.9259259259 | AD18: 0.9371565114 | AE18: 0.9483870968 | AF18: 0.9166666667 | AG18: 0.9270833333 | AH18: 0.9375 | AI18: 0.9375 | AJ18: 0.9375 | AK18: 0.9375 | AL18: 0.9375 | AM18: 15.912 | AN18: =Z18*E18+($A$4-80)*AG18*$A$16/1000 -> 15.76381348 | AO18: =AA18*G18+($A$4-80)*AH18*$A$16/1000 -> 15.606 | AP18: 15.45828889 | AQ18: 15.3 | AR18: 15.15100932 | AS18: 14.994
B19: 59 | C19: 17.34 | D19: 17.34 | E19: 16.932 | F19: 16.932 | G19: 16.524 | H19: 16.524 | I19: 16.167 | J19: 16.167 | K19: 15.81 | L19: 15.81 | M19: 15.402 | N19: 15.402 | O19: 14.994 | P19: 14.994 | R19: 0.9527472527 | S19: 0.9303296703 | T19: 0.9079120879 | U19: 0.8882967033 | V19: 0.8686813187 | W19: 0.8462637363 | X19: 0.8238461538 | Y19: 1 | Z19: 1 | AA19: 1 | AB19: 1 | AC19: 1 | AD19: 1 | AE19: 1 | AF19: 0.6875 | AG19: 0.6458333333 | AH19: 0.6041666667 | AI19: 0.5625 | AJ19: 0.5208333333 | AK19: 0.46875 | AL19: 0.4166666667 | AM19: 17.34 | AN19: =Z19*E19+($A$4-80)*AG19*$A$16/1000 -> 16.932 | AO19: =AA19*G19+($A$4-80)*AH19*$A$16/1000 -> 16.524 | AP19: 16.167 | AQ19: 15.81 | AR19: 15.402 | AS19: 14.994

Sheet 4A7A30_24 (hidden)
A2: 4A7A30_24 | B2: 18.2
A3: Evaporator Air | C3: Condenser Entering Air Temperature ˚F
A4: 80 | B4: °F DB | C4: 85 | E4: 90 | G4: 95 | I4: 100 | K4: 105 | M4: 110 | O4: 115
A5: CFM | B5: EWB† ˚F | C5: Capacity Mbtuh | E5: Capacity Mbtuh | G5: Capacity Mbtuh | I5: Capacity Mbtuh | K5: Capacity Mbtuh | M5: Capacity Mbtuh | O5: Capacity Mbtuh
C6: Total | D6: Sens. | E6: Total | F6: Sens. | G6: Total | H6: Sens. | I6: Total | J6: Sens. | K6: Total | L6: Sens. | M6: Total | N6: Sens. | O6: Total | P6: Sens.
R7: Total Factors | Y7: Sens. % | AF7: IDB Adj | AM7: Sens Calc
A8: 700 | B8: 71 | C8: =R8*$B$2 -> 20.62772174 | D8: =IF(AM8>C8,C8,AM8) -> 10.7016 | E8: =S8*$B$2 -> 20.00733913 | F8: =IF(AN8>E8,E8,AN8) -> 10.51182589 | G8: =T8*$B$2 -> 19.38695652 | H8: =IF(AO8>G8,G8,AO8) -> 10.31386087 | I8: =U8*$B$2 -> 18.7278 | J8: =IF(AP8>I8,I8,AP8) -> 10.08552313 | K8: =V8*$B$2 -> 18.06864348 | L8: =IF(AQ8>K8,K8,AQ8) -> 9.848573913 | M8: =W8*$B$2 -> 17.40948696 | N8: =IF(AR8>M8,M8,AR8) -> 9.620913924 | O8: =X8*$B$2 -> 16.75033043 | P8: =IF(AS8>O8,O8,AS8) -> 9.383286957 | R8: 1.133391304 | S8: 1.099304348 | T8: 1.065217391 | U8: 1.029 | V8: 0.9927826087 | W8: 0.9565652174 | X8: 0.9203478261 | Y8: 0.5187969925 | Z8: 0.5253984962 | AA8: 0.532 | AB8: 0.5385321888 | AC8: 0.5450643777 | AD8: 0.5526247814 | AE8: 0.5601851852 | AF8: 0.859375 | AG8: 0.8671875 | AH8: 0.875 | AI8: 0.875 | AJ8: 0.875 | AK8: 0.8671875 | AL8: 0.859375 | AM8: =Y8*C8+($A$4-80)*AF8*$A$8/1000 -> 10.7016 | AN8: =Z8*E8+($A$4-80)*AG8*$A$8/1000 -> 10.51182589 | AO8: =AA8*G8+($A$4-80)*AH8*$A$8/1000 -> 10.31386087 | AP8: =AB8*I8+($A$4-80)*AI8*$A$8/1000 -> 10.08552313 | AQ8: =AC8*K8+($A$4-80)*AJ8*$A$8/1000 -> 9.848573913 | AR8: =AD8*M8+($A$4-80)*AK8*$A$8/1000 -> 9.620913924 | AS8: =AE8*O8+($A$4-80)*AL8*$A$8/1000 -> 9.383286957
B9: 67 | C9: =R9*$B$2 -> 18.99921739 | D9: 12.95048696 | E9: 18.4176087 | F9: =IF(AN9>E9,E9,AN9) -> 12.72318478 | G9: 17.836 | H9: =IF(AO9>G9,G9,AO9) -> 12.4852 | I9: 17.2543913 | J9: =IF(AP9>I9,I9,AP9) -> 12.29876962 | K9: 16.67278261 | L9: =IF(AQ9>K9,K9,AQ9) -> 12.09746087 | M9: 16.0524 | N9: =IF(AR9>M9,M9,AR9) -> 11.87356089 | O9: 15.43201739 | P9: =IF(AS9>O9,O9,AS9) -> 11.63217391 | R9: 1.043913043 | S9: 1.011956522 | T9: 0.98 | U9: 0.9480434783 | V9: 0.9160869565 | W9: 0.882 | X9: 0.8479130435 | Y9: 0.6816326531 | Z9: 0.6908163265 | AA9: 0.7 | AB9: 0.7127906977 | AC9: 0.7255813953 | AD9: 0.7396751198 | AE9: 0.7537688442 | AF9: 0.875 | AG9: 0.8671875 | AH9: 0.859375 | AI9: 0.8671875 | AJ9: 0.875 | AK9: 0.875 | AL9: 0.875 | AM9: =Y9*C9+($A$4-80)*AF9*$A$8/1000 -> 12.95048696 | AN9: =Z9*E9+($A$4-80)*AG9*$A$8/1000 -> 12.72318478 | AO9: =AA9*G9+($A$4-80)*AH9*$A$8/1000 -> 12.4852 | AP9: =AB9*I9+($A$4-80)*AI9*$A$8/1000 -> 12.29876962 | AQ9: =AC9*K9+($A$4-80)*AJ9*$A$8/1000 -> 12.09746087 | AR9: =AD9*M9+($A$4-80)*AK9*$A$8/1000 -> 11.87356089 | AS9: =AE9*O9+($A$4-80)*AL9*$A$8/1000 -> 11.63217391
B10: 63 | C10: 17.836 | D10: 15.27692174 | E10: 17.2543913 | F10: 15.05354048 | G10: 16.67278261 | H10: 14.81163478 | I10: 16.12994783 | J10: 14.5876837 | K10: 15.58711304 | L10: 14.34634783 | M10: 15.00550435 | N10: 14.1259087 | O10: 14.42389565 | P10: 13.88106087 | R10: 0.98 | S10: 0.9480434783 | T10: 0.9160869565 | U10: 0.8862608696 | V10: 0.8564347826 | W10: 0.8244782609 | X10: 0.7925217391 | Y10: 0.8565217391 | Z10: 0.8724469161 | AA10: 0.888372093 | AB10: 0.9043850515 | AC10: 0.92039801 | AD10: 0.9413818007 | AE10: 0.9623655914 | AF10: 0.875 | AG10: 0.875 | AH10: 0.875 | AI10: 0.8671875 | AJ10: 0.859375 | AK10: 0.859375 | AL10: 0.859375 | AM10: 15.27692174 | AN10: =Z10*E10+($A$4-80)*AG10*$A$8/1000 -> 15.05354048 | AO10: =AA10*G10+($A$4-80)*AH10*$A$8/1000 -> 14.81163478 | AP10: 14.5876837 | AQ10: 14.34634783 | AR10: 14.1259087 | AS10: 13.88106087
B11: 59 | C11: 16.98297391 | D11: 16.98297391 | E11: 16.44013913 | F11: 16.44013913 | G11: 15.89730435 | H11: 15.89730435 | I11: 15.39324348 | J11: 15.39324348 | K11: 14.88918261 | L11: 14.88918261 | M11: 14.34634783 | N11: 14.34634783 | O11: 13.80351304 | P11: 13.80351304 | R11: 0.9331304348 | S11: 0.9033043478 | T11: 0.8734782609 | U11: 0.8457826087 | V11: 0.8180869565 | W11: 0.7882608696 | X11: 0.7584347826 | Y11: 1 | Z11: 1 | AA11: 1 | AB11: 1 | AC11: 1 | AD11: 1 | AE11: 1 | AF11: 0.71875 | AG11: 0.6640625 | AH11: 0.609375 | AI11: 0.546875 | AJ11: 0.484375 | AK11: 0.421875 | AL11: 0.359375 | AM11: 16.98297391 | AN11: =Z11*E11+($A$4-80)*AG11*$A$8/1000 -> 16.44013913 | AO11: =AA11*G11+($A$4-80)*AH11*$A$8/1000 -> 15.89730435 | AP11: =AB11*I11+($A$4-80)*AI11*$A$8/1000 -> 15.39324348 | AQ11: 14.88918261 | AR11: 14.34634783 | AS11: 13.80351304
A12: 800 | B12: 71 | C12: 21.04869565 | D12: 10.92 | E12: 20.41565217 | F12: 10.72635295 | G12: 19.7826087 | H12: 10.52434783 | I12: 19.11 | J12: 10.29135013 | K12: 18.4373913 | L12: 10.04956522 | M12: 17.76478261 | N12: 9.817259106 | O12: 17.09217391 | P12: 9.574782609 | R12: 1.156521739 | S12: 1.12173913 | T12: 1.086956522 | U12: 1.05 | V12: 1.013043478 | W12: 0.9760869565 | X12: 0.9391304348 | Y12: 0.5187969925 | Z12: 0.5253984962 | AA12: 0.532 | AB12: 0.5385321888 | AC12: 0.5450643777 | AD12: 0.5526247814 | AE12: 0.5601851852 | AF12: 0.859375 | AG12: 0.8671875 | AH12: 0.875 | AI12: 0.875 | AJ12: 0.875 | AK12: 0.8671875 | AL12: 0.859375 | AM12: =Y12*C12+($A$4-80)*AF12*$A$12/1000 -> 10.92 | AN12: =Z12*E12+($A$4-80)*AG12*$A$12/1000 -> 10.72635295 | AO12: =AA12*G12+($A$4-80)*AH12*$A$12/1000 -> 10.52434783 | AP12: =AB12*I12+($A$4-80)*AI12*$A$12/1000 -> 10.29135013 | AQ12: =AC12*K12+($A$4-80)*AJ12*$A$12/1000 -> 10.04956522 | AR12: =AD12*M12+($A$4-80)*AK12*$A$12/1000 -> 9.817259106 | AS12: =AE12*O12+($A$4-80)*AL12*$A$12/1000 -> 9.574782609
B13: 67 | C13: 19.38695652 | D13: 13.21478261 | E13: 18.79347826 | F13: 12.98284161 | G13: 18.2 | H13: 12.74 | I13: 17.60652174 | J13: 12.54976491 | K13: 17.01304348 | L13: 12.34434783 | M13: 16.38 | N13: 12.11587846 | O13: 15.74695652 | P13: 11.86956522 | R13: 1.065217391 | S13: 1.032608696 | T13: 1 | U13: 0.9673913043 | V13: 0.9347826087 | W13: 0.9 | X13: 0.8652173913 | Y13: 0.6816326531 | Z13: 0.6908163265 | AA13: 0.7 | AB13: 0.7127906977 | AC13: 0.7255813953 | AD13: 0.7396751198 | AE13: 0.7537688442 | AF13: 0.875 | AG13: 0.8671875 | AH13: 0.859375 | AI13: 0.8671875 | AJ13: 0.875 | AK13: 0.875 | AL13: 0.875 | AM13: =Y13*C13+($A$4-80)*AF13*$A$12/1000 -> 13.21478261 | AN13: =Z13*E13+($A$4-80)*AG13*$A$12/1000 -> 12.98284161 | AO13: =AA13*G13+($A$4-80)*AH13*$A$12/1000 -> 12.74 | AP13: =AB13*I13+($A$4-80)*AI13*$A$12/1000 -> 12.54976491 | AQ13: =AC13*K13+($A$4-80)*AJ13*$A$12/1000 -> 12.34434783 | AR13: =AD13*M13+($A$4-80)*AK13*$A$12/1000 -> 12.11587846 | AS13: =AE13*O13+($A$4-80)*AL13*$A$12/1000 -> 11.86956522
B14: 63 | C14: 18.2 | D14: 15.58869565 | E14: 17.60652174 | F14: 15.36075559 | G14: 17.01304348 | H14: 15.11391304 | I14: 16.45913043 | J14: 14.88539153 | K14: 15.90521739 | L14: 14.63913043 | M14: 15.31173913 | N14: 14.41419255 | O14: 14.71826087 | P14: 14.16434783 | R14: 1 | S14: 0.9673913043 | T14: 0.9347826087 | U14: 0.9043478261 | V14: 0.8739130435 | W14: 0.8413043478 | X14: 0.8086956522 | Y14: 0.8565217391 | Z14: 0.8724469161 | AA14: 0.888372093 | AB14: 0.9043850515 | AC14: 0.92039801 | AD14: 0.9413818007 | AE14: 0.9623655914 | AF14: 0.875 | AG14: 0.875 | AH14: 0.875 | AI14: 0.8671875 | AJ14: 0.859375 | AK14: 0.859375 | AL14: 0.859375 | AM14: 15.58869565 | AN14: =Z14*E14+($A$4-80)*AG14*$A$12/1000 -> 15.36075559 | AO14: =AA14*G14+($A$4-80)*AH14*$A$12/1000 -> 15.11391304 | AP14: 14.88539153 | AQ14: 14.63913043 | AR14: 14.41419255 | AS14: 14.16434783
B15: 59 | C15: 17.32956522 | D15: 17.32956522 | E15: 16.77565217 | F15: 16.77565217 | G15: 16.22173913 | H15: 16.22173913 | I15: 15.7073913 | J15: 15.7073913 | K15: 15.19304348 | L15: 15.19304348 | M15: 14.63913043 | N15: 14.63913043 | O15: 14.08521739 | P15: 14.08521739 | R15: 0.952173913 | S15: 0.9217391304 | T15: 0.8913043478 | U15: 0.8630434783 | V15: 0.8347826087 | W15: 0.8043478261 | X15: 0.7739130435 | Y15: 1 | Z15: 1 | AA15: 1 | AB15: 1 | AC15: 1 | AD15: 1 | AE15: 1 | AF15: 0.71875 | AG15: 0.6640625 | AH15: 0.609375 | AI15: 0.546875 | AJ15: 0.484375 | AK15: 0.421875 | AL15: 0.359375 | AM15: 17.32956522 | AN15: =Z15*E15+($A$4-80)*AG15*$A$12/1000 -> 16.77565217 | AO15: =AA15*G15+($A$4-80)*AH15*$A$12/1000 -> 16.22173913 | AP15: 15.7073913 | AQ15: 15.19304348 | AR15: 14.63913043 | AS15: 14.08521739
A16: 900 | B16: 71 | C16: 21.46966957 | D16: 11.1384 | E16: 20.82396522 | F16: 10.94088001 | G16: 20.17826087 | H16: 10.73483478 | I16: 19.4922 | J16: 10.49717713 | K16: 18.80613913 | L16: 10.25055652 | M16: 18.12007826 | N16: 10.01360429 | O16: 17.43401739 | P16: 9.766278261 | R16: 1.179652174 | S16: 1.144173913 | T16: 1.108695652 | U16: 1.071 | V16: 1.033304348 | W16: 0.9956086957 | X16: 0.9579130435 | Y16: 0.5187969925 | Z16: 0.5253984962 | AA16: 0.532 | AB16: 0.5385321888 | AC16: 0.5450643777 | AD16: 0.5526247814 | AE16: 0.5601851852 | AF16: 0.859375 | AG16: 0.8671875 | AH16: 0.875 | AI16: 0.875 | AJ16: 0.875 | AK16: 0.8671875 | AL16: 0.859375 | AM16: =Y16*C16+($A$4-80)*AF16*$A$16/1000 -> 11.1384 | AN16: =Z16*E16+($A$4-80)*AG16*$A$16/1000 -> 10.94088001 | AO16: =AA16*G16+($A$4-80)*AH16*$A$16/1000 -> 10.73483478 | AP16: =AB16*I16+($A$4-80)*AI16*$A$16/1000 -> 10.49717713 | AQ16: =AC16*K16+($A$4-80)*AJ16*$A$16/1000 -> 10.25055652 | AR16: =AD16*M16+($A$4-80)*AK16*$A$16/1000 -> 10.01360429 | AS16: =AE16*O16+($A$4-80)*AL16*$A$16/1000 -> 9.766278261
B17: 67 | C17: 19.77469565 | D17: 13.47907826 | E17: 19.16934783 | F17: 13.24249845 | G17: 18.564 | H17: 12.9948 | I17: 17.95865217 | J17: 12.80076021 | K17: 17.35330435 | L17: 12.59123478 | M17: 16.7076 | N17: 12.35819603 | O17: 16.06189565 | P17: 12.10695652 | R17: 1.086521739 | S17: 1.05326087 | T17: 1.02 | U17: 0.9867391304 | V17: 0.9534782609 | W17: 0.918 | X17: 0.8825217391 | Y17: 0.6816326531 | Z17: 0.6908163265 | AA17: 0.7 | AB17: 0.7127906977 | AC17: 0.7255813953 | AD17: 0.7396751198 | AE17: 0.7537688442 | AF17: 0.875 | AG17: 0.8671875 | AH17: 0.859375 | AI17: 0.8671875 | AJ17: 0.875 | AK17: 0.875 | AL17: 0.875 | AM17: =Y17*C17+($A$4-80)*AF17*$A$16/1000 -> 13.47907826 | AN17: =Z17*E17+($A$4-80)*AG17*$A$16/1000 -> 13.24249845 | AO17: =AA17*G17+($A$4-80)*AH17*$A$16/1000 -> 12.9948 | AP17: =AB17*I17+($A$4-80)*AI17*$A$16/1000 -> 12.80076021 | AQ17: =AC17*K17+($A$4-80)*AJ17*$A$16/1000 -> 12.59123478 | AR17: =AD17*M17+($A$4-80)*AK17*$A$16/1000 -> 12.35819603 | AS17: =AE17*O17+($A$4-80)*AL17*$A$16/1000 -> 12.10695652
B18: 63 | C18: 18.564 | D18: 15.90046957 | E18: 17.95865217 | F18: 15.66797071 | G18: 17.35330435 | H18: 15.4161913 | I18: 16.78831304 | J18: 15.18309936 | K18: 16.22332174 | L18: 14.93191304 | M18: 15.61797391 | N18: 14.70247641 | O18: 15.01262609 | P18: 14.44763478 | R18: 1.02 | S18: 0.9867391304 | T18: 0.9534782609 | U18: 0.9224347826 | V18: 0.8913913043 | W18: 0.8581304348 | X18: 0.8248695652 | Y18: 0.8565217391 | Z18: 0.8724469161 | AA18: 0.888372093 | AB18: 0.9043850515 | AC18: 0.92039801 | AD18: 0.9413818007 | AE18: 0.9623655914 | AF18: 0.875 | AG18: 0.875 | AH18: 0.875 | AI18: 0.8671875 | AJ18: 0.859375 | AK18: 0.859375 | AL18: 0.859375 | AM18: 15.90046957 | AN18: =Z18*E18+($A$4-80)*AG18*$A$16/1000 -> 15.66797071 | AO18: =AA18*G18+($A$4-80)*AH18*$A$16/1000 -> 15.4161913 | AP18: 15.18309936 | AQ18: 14.93191304 | AR18: 14.70247641 | AS18: 14.44763478
B19: 59 | C19: 17.67615652 | D19: 17.67615652 | E19: 17.11116522 | F19: 17.11116522 | G19: 16.54617391 | H19: 16.54617391 | I19: 16.02153913 | J19: 16.02153913 | K19: 15.49690435 | L19: 15.49690435 | M19: 14.93191304 | N19: 14.93191304 | O19: 14.36692174 | P19: 14.36692174 | R19: 0.9712173913 | S19: 0.940173913 | T19: 0.9091304348 | U19: 0.8803043478 | V19: 0.8514782609 | W19: 0.8204347826 | X19: 0.7893913043 | Y19: 1 | Z19: 1 | AA19: 1 | AB19: 1 | AC19: 1 | AD19: 1 | AE19: 1 | AF19: 0.71875 | AG19: 0.6640625 | AH19: 0.609375 | AI19: 0.546875 | AJ19: 0.484375 | AK19: 0.421875 | AL19: 0.359375 | AM19: 17.67615652 | AN19: =Z19*E19+($A$4-80)*AG19*$A$16/1000 -> 17.11116522 | AO19: =AA19*G19+($A$4-80)*AH19*$A$16/1000 -> 16.54617391 | AP19: 16.02153913 | AQ19: 15.49690435 | AR19: 14.93191304 | AS19: 14.36692174

Sheet 4A7A30_30 (hidden)
A2: 4A7A30_30 | B2: 18.2
A3: Evaporator Air | C3: Condenser Entering Air Temperature ˚F
A4: 80 | B4: °F DB | C4: 85 | E4: 90 | G4: 95 | I4: 100 | K4: 105 | M4: 110 | O4: 115
A5: CFM | B5: EWB† ˚F | C5: Capacity Mbtuh | E5: Capacity Mbtuh | G5: Capacity Mbtuh | I5: Capacity Mbtuh | K5: Capacity Mbtuh | M5: Capacity Mbtuh | O5: Capacity Mbtuh
C6: Total | D6: Sens. | E6: Total | F6: Sens. | G6: Total | H6: Sens. | I6: Total | J6: Sens. | K6: Total | L6: Sens. | M6: Total | N6: Sens. | O6: Total | P6: Sens.
R7: Total Factors | Y7: Sens. % | AF7: IDB Adj | AM7: Sens Calc
A8: 875 | B8: 71 | C8: =R8*$B$2 -> 20.47156014 | D8: =IF(AM8>C8,C8,AM8) -> 10.66482474 | E8: =S8*$B$2 -> 19.91993127 | F8: =IF(AN8>E8,E8,AN8) -> 10.48389622 | G8: =T8*$B$2 -> 19.36830241 | H8: =IF(AO8>G8,G8,AO8) -> 10.29707216 | I8: =U8*$B$2 -> 18.78602749 | J8: =IF(AP8>I8,I8,AP8) -> 10.11721619 | K8: =V8*$B$2 -> 18.20375258 | L8: =IF(AQ8>K8,K8,AQ8) -> 9.929319588 | M8: =W8*$B$2 -> 17.65212371 | N8: =IF(AR8>M8,M8,AR8) -> 9.749217886 | O8: =X8*$B$2 -> 17.10049485 | P8: =IF(AS8>O8,O8,AS8) -> 9.56156701 | R8: 1.124810997 | S8: 1.094501718 | T8: 1.06419244 | U8: 1.032199313 | V8: 1.000206186 | W8: 0.9698969072 | X8: 0.9395876289 | Y8: 0.5209580838 | Z8: 0.5263018267 | AA8: 0.5316455696 | AB8: 0.5385500575 | AC8: 0.5454545455 | AD8: 0.5522971652 | AE8: 0.5591397849 | AF8: 0.875 | AG8: 0.875 | AH8: 0.875 | AI8: 0.875 | AJ8: 0.875 | AK8: 0.875 | AL8: 0.875 | AM8: =Y8*C8+($A$4-80)*AF8*$A$8/1000 -> 10.66482474 | AN8: =Z8*E8+($A$4-80)*AG8*$A$8/1000 -> 10.48389622 | AO8: =AA8*G8+($A$4-80)*AH8*$A$8/1000 -> 10.29707216 | AP8: =AB8*I8+($A$4-80)*AI8*$A$8/1000 -> 10.11721619 | AQ8: =AC8*K8+($A$4-80)*AJ8*$A$8/1000 -> 9.929319588 | AR8: =AD8*M8+($A$4-80)*AK8*$A$8/1000 -> 9.749217886 | AS8: =AE8*O8+($A$4-80)*AL8*$A$8/1000 -> 9.56156701
B9: 67 | C9: =R9*$B$2 -> 18.87796564 | D9: 12.9326323 | E9: 18.35698282 | F9: =IF(AN9>E9,E9,AN9) -> 12.72226897 | G9: 17.836 | H9: =IF(AO9>G9,G9,AO9) -> 12.50358763 | I9: 17.31501718 | J9: =IF(AP9>I9,I9,AP9) -> 12.32533712 | K9: 16.79403436 | L9: =IF(AQ9>K9,K9,AQ9) -> 12.13583505 | M9: 16.27305155 | N9: =IF(AR9>M9,M9,AR9) -> 11.95832881 | O9: 15.75206873 | P9: =IF(AS9>O9,O9,AS9) -> 11.76808247 | R9: 1.037250859 | S9: 1.00862543 | T9: 0.98 | U9: 0.9513745704 | V9: 0.9227491409 | W9: 0.8941237113 | X9: 0.8654982818 | Y9: 0.6850649351 | Z9: 0.6930479314 | AA9: 0.7010309278 | AB9: 0.7118293325 | AC9: 0.7226277372 | AD9: 0.7348547246 | AE9: 0.7470817121 | AF9: 0.8875 | AG9: 0.88125 | AH9: 0.875 | AI9: 0.875 | AJ9: 0.875 | AK9: 0.875 | AL9: 0.875 | AM9: =Y9*C9+($A$4-80)*AF9*$A$8/1000 -> 12.9326323 | AN9: =Z9*E9+($A$4-80)*AG9*$A$8/1000 -> 12.72226897 | AO9: =AA9*G9+($A$4-80)*AH9*$A$8/1000 -> 12.50358763 | AP9: =AB9*I9+($A$4-80)*AI9*$A$8/1000 -> 12.32533712 | AQ9: =AC9*K9+($A$4-80)*AJ9*$A$8/1000 -> 12.13583505 | AR9: =AD9*M9+($A$4-80)*AK9*$A$8/1000 -> 11.95832881 | AS9: =AE9*O9+($A$4-80)*AL9*$A$8/1000 -> 11.76808247
B10: 63 | C10: 17.65212371 | D10: 15.20043986 | E10: 17.16178694 | F10: 14.99202671 | G10: 16.67145017 | H10: 14.77139519 | I10: 16.21175945 | J10: 14.59403903 | K10: 15.75206873 | L10: 14.40364261 | M10: 15.26173196 | N10: 14.22854595 | O10: 14.77139519 | P10: 14.03589003 | R10: 0.9698969072 | S10: 0.9429553265 | T10: 0.9160137457 | U10: 0.8907560137 | V10: 0.8654982818 | W10: 0.838556701 | X10: 0.8116151203 | Y10: 0.8611111111 | Z10: 0.8735702614 | AA10: 0.8860294118 | AB10: 0.9002131495 | AC10: 0.9143968872 | AD10: 0.932302178 | AE10: 0.9502074689 | AF10: 0.875 | AG10: 0.875 | AH10: 0.875 | AI10: 0.875 | AJ10: 0.875 | AK10: 0.875 | AL10: 0.875 | AM10: 15.20043986 | AN10: =Z10*E10+($A$4-80)*AG10*$A$8/1000 -> 14.99202671 | AO10: =AA10*G10+($A$4-80)*AH10*$A$8/1000 -> 14.77139519 | AP10: 14.59403903 | AQ10: 14.40364261 | AR10: 14.22854595 | AS10: 14.03589003
B11: 59 | C11: 16.85532646 | D11: 16.85532646 | E11: 16.39563574 | F11: 16.39563574 | G11: 15.93594502 | H11: 15.93594502 | I11: 15.4762543 | J11: 15.4762543 | K11: 15.01656357 | L11: 15.01656357 | M11: 14.55687285 | N11: 14.55687285 | O11: 14.09718213 | P11: 14.09718213 | R11: 0.9261168385 | S11: 0.9008591065 | T11: 0.8756013746 | U11: 0.8503436426 | V11: 0.8250859107 | W11: 0.7998281787 | X11: 0.7745704467 | Y11: 1 | Z11: 1 | AA11: 1 | AB11: 1 | AC11: 1 | AD11: 1 | AE11: 1 | AF11: 0.7125 | AG11: 0.6625 | AH11: 0.6125 | AI11: 0.5625 | AJ11: 0.5125 | AK11: 0.45625 | AL11: 0.4 | AM11: 16.85532646 | AN11: =Z11*E11+($A$4-80)*AG11*$A$8/1000 -> 16.39563574 | AO11: =AA11*G11+($A$4-80)*AH11*$A$8/1000 -> 15.93594502 | AP11: =AB11*I11+($A$4-80)*AI11*$A$8/1000 -> 15.4762543 | AQ11: 15.01656357 | AR11: 14.55687285 | AS11: 14.09718213
A12: 1000 | B12: 71 | C12: 20.88934708 | D12: 10.88247423 | E12: 20.32646048 | F12: 10.69785328 | G12: 19.76357388 | H12: 10.50721649 | I12: 19.16941581 | J12: 10.32368999 | K12: 18.57525773 | L12: 10.13195876 | M12: 18.01237113 | N12: 9.948181516 | O12: 17.44948454 | P12: 9.756701031 | R12: 1.147766323 | S12: 1.116838488 | T12: 1.085910653 | U12: 1.053264605 | V12: 1.020618557 | W12: 0.9896907216 | X12: 0.9587628866 | Y12: 0.5209580838 | Z12: 0.5263018267 | AA12: 0.5316455696 | AB12: 0.5385500575 | AC12: 0.5454545455 | AD12: 0.5522971652 | AE12: 0.5591397849 | AF12: 0.875 | AG12: 0.875 | AH12: 0.875 | AI12: 0.875 | AJ12: 0.875 | AK12: 0.875 | AL12: 0.875 | AM12: =Y12*C12+($A$4-80)*AF12*$A$12/1000 -> 10.88247423 | AN12: =Z12*E12+($A$4-80)*AG12*$A$12/1000 -> 10.69785328 | AO12: =AA12*G12+($A$4-80)*AH12*$A$12/1000 -> 10.50721649 | AP12: =AB12*I12+($A$4-80)*AI12*$A$12/1000 -> 10.32368999 | AQ12: =AC12*K12+($A$4-80)*AJ12*$A$12/1000 -> 10.13195876 | AR12: =AD12*M12+($A$4-80)*AK12*$A$12/1000 -> 9.948181516 | AS12: =AE12*O12+($A$4-80)*AL12*$A$12/1000 -> 9.756701031
B13: 67 | C13: 19.26323024 | D13: 13.19656357 | E13: 18.73161512 | F13: 12.98190711 | G13: 18.2 | H13: 12.75876289 | I13: 17.66838488 | J13: 12.57687462 | K13: 17.13676976 | L13: 12.38350515 | M13: 16.60515464 | N13: 12.20237634 | O13: 16.07353952 | P13: 12.00824742 | R13: 1.058419244 | S13: 1.029209622 | T13: 1 | U13: 0.970790378 | V13: 0.941580756 | W13: 0.912371134 | X13: 0.883161512 | Y13: 0.6850649351 | Z13: 0.6930479314 | AA13: 0.7010309278 | AB13: 0.7118293325 | AC13: 0.7226277372 | AD13: 0.7348547246 | AE13: 0.7470817121 | AF13: 0.8875 | AG13: 0.88125 | AH13: 0.875 | AI13: 0.875 | AJ13: 0.875 | AK13: 0.875 | AL13: 0.875 | AM13: =Y13*C13+($A$4-80)*AF13*$A$12/1000 -> 13.19656357 | AN13: =Z13*E13+($A$4-80)*AG13*$A$12/1000 -> 12.98190711 | AO13: =AA13*G13+($A$4-80)*AH13*$A$12/1000 -> 12.75876289 | AP13: =AB13*I13+($A$4-80)*AI13*$A$12/1000 -> 12.57687462 | AQ13: =AC13*K13+($A$4-80)*AJ13*$A$12/1000 -> 12.38350515 | AR13: =AD13*M13+($A$4-80)*AK13*$A$12/1000 -> 12.20237634 | AS13: =AE13*O13+($A$4-80)*AL13*$A$12/1000 -> 12.00824742
B14: 63 | C14: 18.01237113 | D14: 15.51065292 | E14: 17.51202749 | F14: 15.29798643 | G14: 17.01168385 | H14: 15.07285223 | I14: 16.54261168 | J14: 14.89187656 | K14: 16.07353952 | L14: 14.6975945 | M14: 15.57319588 | N14: 14.51892443 | O14: 15.07285223 | P14: 14.32233677 | R14: 0.9896907216 | S14: 0.9621993127 | T14: 0.9347079038 | U14: 0.9089347079 | V14: 0.883161512 | W14: 0.8556701031 | X14: 0.8281786942 | Y14: 0.8611111111 | Z14: 0.8735702614 | AA14: 0.8860294118 | AB14: 0.9002131495 | AC14: 0.9143968872 | AD14: 0.932302178 | AE14: 0.9502074689 | AF14: 0.875 | AG14: 0.875 | AH14: 0.875 | AI14: 0.875 | AJ14: 0.875 | AK14: 0.875 | AL14: 0.875 | AM14: 15.51065292 | AN14: =Z14*E14+($A$4-80)*AG14*$A$12/1000 -> 15.29798643 | AO14: =AA14*G14+($A$4-80)*AH14*$A$12/1000 -> 15.07285223 | AP14: 14.89187656 | AQ14: 14.6975945 | AR14: 14.51892443 | AS14: 14.32233677
B15: 59 | C15: 17.19931271 | D15: 17.19931271 | E15: 16.73024055 | F15: 16.73024055 | G15: 16.26116838 | H15: 16.26116838 | I15: 15.79209622 | J15: 15.79209622 | K15: 15.32302405 | L15: 15.32302405 | M15: 14.85395189 | N15: 14.85395189 | O15: 14.38487973 | P15: 14.38487973 | R15: 0.9450171821 | S15: 0.9192439863 | T15: 0.8934707904 | U15: 0.8676975945 | V15: 0.8419243986 | W15: 0.8161512027 | X15: 0.7903780069 | Y15: 1 | Z15: 1 | AA15: 1 | AB15: 1 | AC15: 1 | AD15: 1 | AE15: 1 | AF15: 0.7125 | AG15: 0.6625 | AH15: 0.6125 | AI15: 0.5625 | AJ15: 0.5125 | AK15: 0.45625 | AL15: 0.4 | AM15: 17.19931271 | AN15: =Z15*E15+($A$4-80)*AG15*$A$12/1000 -> 16.73024055 | AO15: =AA15*G15+($A$4-80)*AH15*$A$12/1000 -> 16.26116838 | AP15: 15.79209622 | AQ15: 15.32302405 | AR15: 14.85395189 | AS15: 14.38487973
A16: 1125 | B16: 71 | C16: 21.30713402 | D16: 11.10012371 | E16: 20.73298969 | F16: 10.91181035 | G16: 20.15884536 | H16: 10.71736082 | I16: 19.55280412 | J16: 10.53016379 | K16: 18.94676289 | L16: 10.33459794 | M16: 18.37261856 | N16: 10.14714515 | O16: 17.79847423 | P16: 9.951835052 | R16: 1.170721649 | S16: 1.139175258 | T16: 1.107628866 | U16: 1.074329897 | V16: 1.041030928 | W16: 1.009484536 | X16: 0.9779381443 | Y16: 0.5209580838 | Z16: 0.5263018267 | AA16: 0.5316455696 | AB16: 0.5385500575 | AC16: 0.5454545455 | AD16: 0.5522971652 | AE16: 0.5591397849 | AF16: 0.875 | AG16: 0.875 | AH16: 0.875 | AI16: 0.875 | AJ16: 0.875 | AK16: 0.875 | AL16: 0.875 | AM16: =Y16*C16+($A$4-80)*AF16*$A$16/1000 -> 11.10012371 | AN16: =Z16*E16+($A$4-80)*AG16*$A$16/1000 -> 10.91181035 | AO16: =AA16*G16+($A$4-80)*AH16*$A$16/1000 -> 10.71736082 | AP16: =AB16*I16+($A$4-80)*AI16*$A$16/1000 -> 10.53016379 | AQ16: =AC16*K16+($A$4-80)*AJ16*$A$16/1000 -> 10.33459794 | AR16: =AD16*M16+($A$4-80)*AK16*$A$16/1000 -> 10.14714515 | AS16: =AE16*O16+($A$4-80)*AL16*$A$16/1000 -> 9.951835052
B17: 67 | C17: 19.64849485 | D17: 13.46049485 | E17: 19.10624742 | F17: 13.24154525 | G17: 18.564 | H17: 13.01393814 | I17: 18.02175258 | J17: 12.82841211 | K17: 17.47950515 | L17: 12.63117526 | M17: 16.93725773 | N17: 12.44642387 | O17: 16.39501031 | P17: 12.24841237 | R17: 1.079587629 | S17: 1.049793814 | T17: 1.02 | U17: 0.9902061856 | V17: 0.9604123711 | W17: 0.9306185567 | X17: 0.9008247423 | Y17: 0.6850649351 | Z17: 0.6930479314 | AA17: 0.7010309278 | AB17: 0.7118293325 | AC17: 0.7226277372 | AD17: 0.7348547246 | AE17: 0.7470817121 | AF17: 0.8875 | AG17: 0.88125 | AH17: 0.875 | AI17: 0.875 | AJ17: 0.875 | AK17: 0.875 | AL17: 0.875 | AM17: =Y17*C17+($A$4-80)*AF17*$A$16/1000 -> 13.46049485 | AN17: =Z17*E17+($A$4-80)*AG17*$A$16/1000 -> 13.24154525 | AO17: =AA17*G17+($A$4-80)*AH17*$A$16/1000 -> 13.01393814 | AP17: =AB17*I17+($A$4-80)*AI17*$A$16/1000 -> 12.82841211 | AQ17: =AC17*K17+($A$4-80)*AJ17*$A$16/1000 -> 12.63117526 | AR17: =AD17*M17+($A$4-80)*AK17*$A$16/1000 -> 12.44642387 | AS17: =AE17*O17+($A$4-80)*AL17*$A$16/1000 -> 12.24841237
B18: 63 | C18: 18.37261856 | D18: 15.82086598 | E18: 17.86226804 | F18: 15.60394616 | G18: 17.35191753 | H18: 15.37430928 | I18: 16.87346392 | J18: 15.1897141 | K18: 16.39501031 | L18: 14.99154639 | M18: 15.88465979 | N18: 14.80930292 | O18: 15.37430928 | P18: 14.60878351 | R18: 1.009484536 | S18: 0.981443299 | T18: 0.9534020619 | U18: 0.9271134021 | V18: 0.9008247423 | W18: 0.8727835052 | X18: 0.844742268 | Y18: 0.8611111111 | Z18: 0.8735702614 | AA18: 0.8860294118 | AB18: 0.9002131495 | AC18: 0.9143968872 | AD18: 0.932302178 | AE18: 0.9502074689 | AF18: 0.875 | AG18: 0.875 | AH18: 0.875 | AI18: 0.875 | AJ18: 0.875 | AK18: 0.875 | AL18: 0.875 | AM18: 15.82086598 | AN18: =Z18*E18+($A$4-80)*AG18*$A$16/1000 -> 15.60394616 | AO18: =AA18*G18+($A$4-80)*AH18*$A$16/1000 -> 15.37430928 | AP18: 15.1897141 | AQ18: 14.99154639 | AR18: 14.80930292 | AS18: 14.60878351
B19: 59 | C19: 17.54329897 | D19: 17.54329897 | E19: 17.06484536 | F19: 17.06484536 | G19: 16.58639175 | H19: 16.58639175 | I19: 16.10793814 | J19: 16.10793814 | K19: 15.62948454 | L19: 15.62948454 | M19: 15.15103093 | N19: 15.15103093 | O19: 14.67257732 | P19: 14.67257732 | R19: 0.9639175258 | S19: 0.937628866 | T19: 0.9113402062 | U19: 0.8850515464 | V19: 0.8587628866 | W19: 0.8324742268 | X19: 0.806185567 | Y19: 1 | Z19: 1 | AA19: 1 | AB19: 1 | AC19: 1 | AD19: 1 | AE19: 1 | AF19: 0.7125 | AG19: 0.6625 | AH19: 0.6125 | AI19: 0.5625 | AJ19: 0.5125 | AK19: 0.45625 | AL19: 0.4 | AM19: 17.54329897 | AN19: =Z19*E19+($A$4-80)*AG19*$A$16/1000 -> 17.06484536 | AO19: =AA19*G19+($A$4-80)*AH19*$A$16/1000 -> 16.58639175 | AP19: 16.10793814 | AQ19: 15.62948454 | AR19: 15.15103093 | AS19: 14.67257732

Sheet 4A7A30_36 (hidden)
A2: 4A7A30_36 | B2: 18.2
A3: Evaporator Air | C3: Condenser Entering Air Temperature ˚F
A4: 80 | B4: °F DB | C4: 85 | E4: 90 | G4: 95 | I4: 100 | K4: 105 | M4: 110 | O4: 115
A5: CFM | B5: EWB† ˚F | C5: Capacity Mbtuh | E5: Capacity Mbtuh | G5: Capacity Mbtuh | I5: Capacity Mbtuh | K5: Capacity Mbtuh | M5: Capacity Mbtuh | O5: Capacity Mbtuh
C6: Total | D6: Sens. | E6: Total | F6: Sens. | G6: Total | H6: Sens. | I6: Total | J6: Sens. | K6: Total | L6: Sens. | M6: Total | N6: Sens. | O6: Total | P6: Sens.
R7: Total Factors | Y7: Sens. % | AF7: IDB Adj | AM7: Sens Calc
A8: 1050 | B8: 71 | C8: =R8*$B$2 -> 20.14418824 | D8: =IF(AM8>C8,C8,AM8) -> 10.43930588 | E8: =S8*$B$2 -> 19.75074706 | F8: =IF(AN8>E8,E8,AN8) -> 10.30963739 | G8: =T8*$B$2 -> 19.35730588 | H8: =IF(AO8>G8,G8,AO8) -> 10.17701176 | I8: =U8*$B$2 -> 18.96386471 | J8: =IF(AP8>I8,I8,AP8) -> 10.04746858 | K8: =V8*$B$2 -> 18.57042353 | L8: =IF(AQ8>K8,K8,AQ8) -> 9.914717647 | M8: =W8*$B$2 -> 18.15075294 | N8: =IF(AR8>M8,M8,AR8) -> 9.758919518 | O8: =X8*$B$2 -> 17.73108235 | P8: =IF(AS8>O8,O8,AS8) -> 9.599964706 | R8: 1.106823529 | S8: 1.085205882 | T8: 1.063588235 | U8: 1.041970588 | V8: 1.020352941 | W8: 0.9972941176 | X8: 0.9742352941 | Y8: 0.5182291667 | Z8: 0.5219872121 | AA8: 0.5257452575 | AB8: 0.5298217813 | AC8: 0.5338983051 | AD8: 0.5376592117 | AE8: 0.5414201183 | AF8: 0.8541666667 | AG8: 0.8541666667 | AH8: 0.8541666667 | AI8: 0.8541666667 | AJ8: 0.8541666667 | AK8: 0.8489583333 | AL8: 0.84375 | AM8: =Y8*C8+($A$4-80)*AF8*$A$8/1000 -> 10.43930588 | AN8: =Z8*E8+($A$4-80)*AG8*$A$8/1000 -> 10.30963739 | AO8: =AA8*G8+($A$4-80)*AH8*$A$8/1000 -> 10.17701176 | AP8: =AB8*I8+($A$4-80)*AI8*$A$8/1000 -> 10.04746858 | AQ8: =AC8*K8+($A$4-80)*AJ8*$A$8/1000 -> 9.914717647 | AR8: =AD8*M8+($A$4-80)*AK8*$A$8/1000 -> 9.758919518 | AS8: =AE8*O8+($A$4-80)*AL8*$A$8/1000 -> 9.599964706
B9: 67 | C9: =R9*$B$2 -> 18.57042353 | D9: 12.64257647 | E9: 18.20321176 | F9: =IF(AN9>E9,E9,AN9) -> 12.51387627 | G9: 17.836 | H9: =IF(AO9>G9,G9,AO9) -> 12.38028235 | I9: 17.46878824 | J9: =IF(AP9>I9,I9,AP9) -> 12.25179231 | K9: 17.10157647 | L9: =IF(AQ9>K9,K9,AQ9) -> 12.11798824 | M9: 16.73436471 | N9: =IF(AR9>M9,M9,AR9) -> 11.98973664 | O9: 16.36715294 | P9: =IF(AS9>O9,O9,AS9) -> 11.85569412 | R9: 1.020352941 | S9: 1.000176471 | T9: 0.98 | U9: 0.9598235294 | V9: 0.9396470588 | W9: 0.9194705882 | X9: 0.8992941176 | Y9: 0.6807909605 | Z9: 0.6874543038 | AA9: 0.6941176471 | AB9: 0.7013533021 | AC9: 0.7085889571 | AD9: 0.7164739657 | AE9: 0.7243589744 | AF9: 0.84375 | AG9: 0.8489583333 | AH9: 0.8541666667 | AI9: 0.8541666667 | AJ9: 0.8541666667 | AK9: 0.8541666667 | AL9: 0.8541666667 | AM9: =Y9*C9+($A$4-80)*AF9*$A$8/1000 -> 12.64257647 | AN9: =Z9*E9+($A$4-80)*AG9*$A$8/1000 -> 12.51387627 | AO9: =AA9*G9+($A$4-80)*AH9*$A$8/1000 -> 12.38028235 | AP9: =AB9*I9+($A$4-80)*AI9*$A$8/1000 -> 12.25179231 | AQ9: =AC9*K9+($A$4-80)*AJ9*$A$8/1000 -> 12.11798824 | AR9: =AD9*M9+($A$4-80)*AK9*$A$8/1000 -> 11.98973664 | AS9: =AE9*O9+($A$4-80)*AL9*$A$8/1000 -> 11.85569412
B10: 63 | C10: 17.36387059 | D10: 14.95076471 | E10: 17.02288824 | F10: 14.82293813 | G10: 16.68190588 | H10: 14.68847059 | I10: 16.34092353 | J10: 14.53413867 | K10: 15.99994118 | L10: 14.37371765 | M10: 15.65895882 | N10: 14.2464701 | O10: 15.31797647 | P10: 14.11142353 | R10: 0.9540588235 | S10: 0.9353235294 | T10: 0.9165882353 | U10: 0.8978529412 | V10: 0.8791176471 | W10: 0.8603823529 | X10: 0.8416470588 | Y10: 0.8610271903 | Z10: 0.8707651675 | AA10: 0.8805031447 | AB10: 0.8894319002 | AC10: 0.8983606557 | AD10: 0.9097967662 | AE10: 0.9212328767 | AF10: 0.8541666667 | AG10: 0.8541666667 | AH10: 0.8541666667 | AI10: 0.8489583333 | AJ10: 0.84375 | AK10: 0.84375 | AL10: 0.84375 | AM10: 14.95076471 | AN10: =Z10*E10+($A$4-80)*AG10*$A$8/1000 -> 14.82293813 | AO10: =AA10*G10+($A$4-80)*AH10*$A$8/1000 -> 14.68847059 | AP10: 14.53413867 | AQ10: 14.37371765 | AR10: 14.2464701 | AS10: 14.11142353
B11: 59 | C11: 16.57698824 | D11: 16.57698824 | E11: 16.23600588 | F11: 16.23600588 | G11: 15.89502353 | H11: 15.89502353 | I11: 15.58027059 | J11: 15.58027059 | K11: 15.26551765 | L11: 15.26551765 | M11: 14.95076471 | N11: 14.95076471 | O11: 14.63601176 | P11: 14.63601176 | R11: 0.9108235294 | S11: 0.8920882353 | T11: 0.8733529412 | U11: 0.8560588235 | V11: 0.8387647059 | W11: 0.8214705882 | X11: 0.8041764706 | Y11: 1 | Z11: 1 | AA11: 1 | AB11: 1 | AC11: 1 | AD11: 1 | AE11: 1 | AF11: 0.6875 | AG11: 0.6510416667 | AH11: 0.6145833333 | AI11: 0.578125 | AJ11: 0.5416666667 | AK11: 0.5104166667 | AL11: 0.4791666667 | AM11: 16.57698824 | AN11: =Z11*E11+($A$4-80)*AG11*$A$8/1000 -> 16.23600588 | AO11: =AA11*G11+($A$4-80)*AH11*$A$8/1000 -> 15.89502353 | AP11: =AB11*I11+($A$4-80)*AI11*$A$8/1000 -> 15.58027059 | AQ11: 15.26551765 | AR11: 14.95076471 | AS11: 14.63601176
A12: 1200 | B12: 71 | C12: 20.55529412 | D12: 10.65235294 | E12: 20.15382353 | F12: 10.52003816 | G12: 19.75235294 | H12: 10.38470588 | I12: 19.35088235 | J12: 10.25251896 | K12: 18.94941176 | L12: 10.11705882 | M12: 18.52117647 | N12: 9.958081141 | O12: 18.09294118 | P12: 9.795882353 | R12: 1.129411765 | S12: 1.107352941 | T12: 1.085294118 | U12: 1.063235294 | V12: 1.041176471 | W12: 1.017647059 | X12: 0.9941176471 | Y12: 0.5182291667 | Z12: 0.5219872121 | AA12: 0.5257452575 | AB12: 0.5298217813 | AC12: 0.5338983051 | AD12: 0.5376592117 | AE12: 0.5414201183 | AF12: 0.8541666667 | AG12: 0.8541666667 | AH12: 0.8541666667 | AI12: 0.8541666667 | AJ12: 0.8541666667 | AK12: 0.8489583333 | AL12: 0.84375 | AM12: =Y12*C12+($A$4-80)*AF12*$A$12/1000 -> 10.65235294 | AN12: =Z12*E12+($A$4-80)*AG12*$A$12/1000 -> 10.52003816 | AO12: =AA12*G12+($A$4-80)*AH12*$A$12/1000 -> 10.38470588 | AP12: =AB12*I12+($A$4-80)*AI12*$A$12/1000 -> 10.25251896 | AQ12: =AC12*K12+($A$4-80)*AJ12*$A$12/1000 -> 10.11705882 | AR12: =AD12*M12+($A$4-80)*AK12*$A$12/1000 -> 9.958081141 | AS12: =AE12*O12+($A$4-80)*AL12*$A$12/1000 -> 9.795882353
B13: 67 | C13: 18.94941176 | D13: 12.90058824 | E13: 18.57470588 | F13: 12.7692615 | G13: 18.2 | H13: 12.63294118 | I13: 17.82529412 | J13: 12.50182889 | K13: 17.45058824 | L13: 12.36529412 | M13: 17.07588235 | N13: 12.23442515 | O13: 16.70117647 | P13: 12.09764706 | R13: 1.041176471 | S13: 1.020588235 | T13: 1 | U13: 0.9794117647 | V13: 0.9588235294 | W13: 0.9382352941 | X13: 0.9176470588 | Y13: 0.6807909605 | Z13: 0.6874543038 | AA13: 0.6941176471 | AB13: 0.7013533021 | AC13: 0.7085889571 | AD13: 0.7164739657 | AE13: 0.7243589744 | AF13: 0.84375 | AG13: 0.8489583333 | AH13: 0.8541666667 | AI13: 0.8541666667 | AJ13: 0.8541666667 | AK13: 0.8541666667 | AL13: 0.8541666667 | AM13: =Y13*C13+($A$4-80)*AF13*$A$12/1000 -> 12.90058824 | AN13: =Z13*E13+($A$4-80)*AG13*$A$12/1000 -> 12.7692615 | AO13: =AA13*G13+($A$4-80)*AH13*$A$12/1000 -> 12.63294118 | AP13: =AB13*I13+($A$4-80)*AI13*$A$12/1000 -> 12.50182889 | AQ13: =AC13*K13+($A$4-80)*AJ13*$A$12/1000 -> 12.36529412 | AR13: =AD13*M13+($A$4-80)*AK13*$A$12/1000 -> 12.23442515 | AS13: =AE13*O13+($A$4-80)*AL13*$A$12/1000 -> 12.09764706
B14: 63 | C14: 17.71823529 | D14: 15.25588235 | E14: 17.37029412 | F14: 15.12544707 | G14: 17.02235294 | H14: 14.98823529 | I14: 16.67441176 | J14: 14.83075374 | K14: 16.32647059 | L14: 14.66705882 | M14: 15.97852941 | N14: 14.53721439 | O14: 15.63058824 | P14: 14.39941176 | R14: 0.9735294118 | S14: 0.9544117647 | T14: 0.9352941176 | U14: 0.9161764706 | V14: 0.8970588235 | W14: 0.8779411765 | X14: 0.8588235294 | Y14: 0.8610271903 | Z14: 0.8707651675 | AA14: 0.8805031447 | AB14: 0.8894319002 | AC14: 0.8983606557 | AD14: 0.9097967662 | AE14: 0.9212328767 | AF14: 0.8541666667 | AG14: 0.8541666667 | AH14: 0.8541666667 | AI14: 0.8489583333 | AJ14: 0.84375 | AK14: 0.84375 | AL14: 0.84375 | AM14: 15.25588235 | AN14: =Z14*E14+($A$4-80)*AG14*$A$12/1000 -> 15.12544707 | AO14: =AA14*G14+($A$4-80)*AH14*$A$12/1000 -> 14.98823529 | AP14: 14.83075374 | AQ14: 14.66705882 | AR14: 14.53721439 | AS14: 14.39941176
B15: 59 | C15: 16.91529412 | D15: 16.91529412 | E15: 16.56735294 | F15: 16.56735294 | G15: 16.21941176 | H15: 16.21941176 | I15: 15.89823529 | J15: 15.89823529 | K15: 15.57705882 | L15: 15.57705882 | M15: 15.25588235 | N15: 15.25588235 | O15: 14.93470588 | P15: 14.93470588 | R15: 0.9294117647 | S15: 0.9102941176 | T15: 0.8911764706 | U15: 0.8735294118 | V15: 0.8558823529 | W15: 0.8382352941 | X15: 0.8205882353 | Y15: 1 | Z15: 1 | AA15: 1 | AB15: 1 | AC15: 1 | AD15: 1 | AE15: 1 | AF15: 0.6875 | AG15: 0.6510416667 | AH15: 0.6145833333 | AI15: 0.578125 | AJ15: 0.5416666667 | AK15: 0.5104166667 | AL15: 0.4791666667 | AM15: 16.91529412 | AN15: =Z15*E15+($A$4-80)*AG15*$A$12/1000 -> 16.56735294 | AO15: =AA15*G15+($A$4-80)*AH15*$A$12/1000 -> 16.21941176 | AP15: 15.89823529 | AQ15: 15.57705882 | AR15: 15.25588235 | AS15: 14.93470588
A16: 1350 | B16: 71 | C16: 20.9664 | D16: 10.8654 | E16: 20.5569 | F16: 10.73043892 | G16: 20.1474 | H16: 10.5924 | I16: 19.7379 | J16: 10.45756934 | K16: 19.3284 | L16: 10.3194 | M16: 18.8916 | N16: 10.15724276 | O16: 18.4548 | P16: 9.9918 | R16: 1.152 | S16: 1.1295 | T16: 1.107 | U16: 1.0845 | V16: 1.062 | W16: 1.038 | X16: 1.014 | Y16: 0.5182291667 | Z16: 0.5219872121 | AA16: 0.5257452575 | AB16: 0.5298217813 | AC16: 0.5338983051 | AD16: 0.5376592117 | AE16: 0.5414201183 | AF16: 0.8541666667 | AG16: 0.8541666667 | AH16: 0.8541666667 | AI16: 0.8541666667 | AJ16: 0.8541666667 | AK16: 0.8489583333 | AL16: 0.84375 | AM16: =Y16*C16+($A$4-80)*AF16*$A$16/1000 -> 10.8654 | AN16: =Z16*E16+($A$4-80)*AG16*$A$16/1000 -> 10.73043892 | AO16: =AA16*G16+($A$4-80)*AH16*$A$16/1000 -> 10.5924 | AP16: =AB16*I16+($A$4-80)*AI16*$A$16/1000 -> 10.45756934 | AQ16: =AC16*K16+($A$4-80)*AJ16*$A$16/1000 -> 10.3194 | AR16: =AD16*M16+($A$4-80)*AK16*$A$16/1000 -> 10.15724276 | AS16: =AE16*O16+($A$4-80)*AL16*$A$16/1000 -> 9.9918
B17: 67 | C17: 19.3284 | D17: 13.1586 | E17: 18.9462 | F17: 13.02464673 | G17: 18.564 | H17: 12.8856 | I17: 18.1818 | J17: 12.75186547 | K17: 17.7996 | L17: 12.6126 | M17: 17.4174 | N17: 12.47911365 | O17: 17.0352 | P17: 12.3396 | R17: 1.062 | S17: 1.041 | T17: 1.02 | U17: 0.999 | V17: 0.978 | W17: 0.957 | X17: 0.936 | Y17: 0.6807909605 | Z17: 0.6874543038 | AA17: 0.6941176471 | AB17: 0.7013533021 | AC17: 0.7085889571 | AD17: 0.7164739657 | AE17: 0.7243589744 | AF17: 0.84375 | AG17: 0.8489583333 | AH17: 0.8541666667 | AI17: 0.8541666667 | AJ17: 0.8541666667 | AK17: 0.8541666667 | AL17: 0.8541666667 | AM17: =Y17*C17+($A$4-80)*AF17*$A$16/1000 -> 13.1586 | AN17: =Z17*E17+($A$4-80)*AG17*$A$16/1000 -> 13.02464673 | AO17: =AA17*G17+($A$4-80)*AH17*$A$16/1000 -> 12.8856 | AP17: =AB17*I17+($A$4-80)*AI17*$A$16/1000 -> 12.75186547 | AQ17: =AC17*K17+($A$4-80)*AJ17*$A$16/1000 -> 12.6126 | AR17: =AD17*M17+($A$4-80)*AK17*$A$16/1000 -> 12.47911365 | AS17: =AE17*O17+($A$4-80)*AL17*$A$16/1000 -> 12.3396
B18: 63 | C18: 18.0726 | D18: 15.561 | E18: 17.7177 | F18: 15.42795601 | G18: 17.3628 | H18: 15.288 | I18: 17.0079 | J18: 15.12736882 | K18: 16.653 | L18: 14.9604 | M18: 16.2981 | N18: 14.82795868 | O18: 15.9432 | P18: 14.6874 | R18: 0.993 | S18: 0.9735 | T18: 0.954 | U18: 0.9345 | V18: 0.915 | W18: 0.8955 | X18: 0.876 | Y18: 0.8610271903 | Z18: 0.8707651675 | AA18: 0.8805031447 | AB18: 0.8894319002 | AC18: 0.8983606557 | AD18: 0.9097967662 | AE18: 0.9212328767 | AF18: 0.8541666667 | AG18: 0.8541666667 | AH18: 0.8541666667 | AI18: 0.8489583333 | AJ18: 0.84375 | AK18: 0.84375 | AL18: 0.84375 | AM18: 15.561 | AN18: =Z18*E18+($A$4-80)*AG18*$A$16/1000 -> 15.42795601 | AO18: =AA18*G18+($A$4-80)*AH18*$A$16/1000 -> 15.288 | AP18: 15.12736882 | AQ18: 14.9604 | AR18: 14.82795868 | AS18: 14.6874
B19: 59 | C19: 17.2536 | D19: 17.2536 | E19: 16.8987 | F19: 16.8987 | G19: 16.5438 | H19: 16.5438 | I19: 16.2162 | J19: 16.2162 | K19: 15.8886 | L19: 15.8886 | M19: 15.561 | N19: 15.561 | O19: 15.2334 | P19: 15.2334 | R19: 0.948 | S19: 0.9285 | T19: 0.909 | U19: 0.891 | V19: 0.873 | W19: 0.855 | X19: 0.837 | Y19: 1 | Z19: 1 | AA19: 1 | AB19: 1 | AC19: 1 | AD19: 1 | AE19: 1 | AF19: 0.6875 | AG19: 0.6510416667 | AH19: 0.6145833333 | AI19: 0.578125 | AJ19: 0.5416666667 | AK19: 0.5104166667 | AL19: 0.4791666667 | AM19: 17.2536 | AN19: =Z19*E19+($A$4-80)*AG19*$A$16/1000 -> 16.8987 | AO19: =AA19*G19+($A$4-80)*AH19*$A$16/1000 -> 16.5438 | AP19: 16.2162 | AQ19: 15.8886 | AR19: 15.561 | AS19: 15.2334

Sheet 4A7A30_42 (hidden)
A2: 4A7A30_42 | B2: 18.2
A3: Evaporator Air | C3: Condenser Entering Air Temperature ˚F
A4: 80 | B4: °F DB | C4: 85 | E4: 90 | G4: 95 | I4: 100 | K4: 105 | M4: 110 | O4: 115
A5: CFM | B5: EWB† ˚F | C5: Capacity Mbtuh | E5: Capacity Mbtuh | G5: Capacity Mbtuh | I5: Capacity Mbtuh | K5: Capacity Mbtuh | M5: Capacity Mbtuh | O5: Capacity Mbtuh
C6: Total | D6: Sens. | E6: Total | F6: Sens. | G6: Total | H6: Sens. | I6: Total | J6: Sens. | K6: Total | L6: Sens. | M6: Total | N6: Sens. | O6: Total | P6: Sens.
R7: Total Factors | Y7: Sens. % | AF7: IDB Adj | AM7: Sens Calc
A8: 1225 | B8: 71 | C8: =R8*$B$2 -> 20.21413333 | D8: =IF(AM8>C8,C8,AM8) -> 10.65913333 | E8: =S8*$B$2 -> 19.76823333 | F8: =IF(AN8>E8,E8,AN8) -> 10.4907727 | G8: =T8*$B$2 -> 19.32233333 | H8: =IF(AO8>G8,G8,AO8) -> 10.3194 | I8: =U8*$B$2 -> 18.89766667 | J8: =IF(AP8>I8,I8,AP8) -> 10.19428506 | K8: =V8*$B$2 -> 18.473 | L8: =IF(AQ8>K8,K8,AQ8) -> 10.0646 | M8: =W8*$B$2 -> 18.0271 | N8: =IF(AR8>M8,M8,AR8) -> 9.896586608 | O8: =X8*$B$2 -> 17.5812 | P8: =IF(AS8>O8,O8,AS8) -> 9.724866667 | R8: 1.110666667 | S8: 1.086166667 | T8: 1.061666667 | U8: 1.038333333 | V8: 1.015 | W8: 0.9905 | X8: 0.966 | Y8: 0.5273109244 | Z8: 0.5306884292 | AA8: 0.5340659341 | AB8: 0.5394467601 | AC8: 0.5448275862 | AD8: 0.5489838414 | AE8: 0.5531400966 | AF8: 0.9107142857 | AG8: 0.90625 | AH8: 0.9017857143 | AI8: 0.90625 | AJ8: 0.9107142857 | AK8: 0.90625 | AL8: 0.9017857143 | AM8: =Y8*C8+($A$4-80)*AF8*$A$8/1000 -> 10.65913333 | AN8: =Z8*E8+($A$4-80)*AG8*$A$8/1000 -> 10.4907727 | AO8: =AA8*G8+($A$4-80)*AH8*$A$8/1000 -> 10.3194 | AP8: =AB8*I8+($A$4-80)*AI8*$A$8/1000 -> 10.19428506 | AQ8: =AC8*K8+($A$4-80)*AJ8*$A$8/1000 -> 10.0646 | AR8: =AD8*M8+($A$4-80)*AK8*$A$8/1000 -> 9.896586608 | AS8: =AE8*O8+($A$4-80)*AL8*$A$8/1000 -> 9.724866667
B9: 67 | C9: =R9*$B$2 -> 18.64286667 | D9: 12.8674 | E9: 18.23943333 | F9: =IF(AN9>E9,E9,AN9) -> 12.72170303 | G9: 17.836 | H9: =IF(AO9>G9,G9,AO9) -> 12.57013333 | I9: 17.43256667 | J9: =IF(AP9>I9,I9,AP9) -> 12.42471463 | K9: 17.02913333 | L9: =IF(AQ9>K9,K9,AQ9) -> 12.27286667 | M9: 16.60446667 | N9: =IF(AR9>M9,M9,AR9) -> 12.12836518 | O9: 16.1798 | P9: =IF(AS9>O9,O9,AS9) -> 11.9756 | R9: 1.024333333 | S9: 1.002166667 | T9: 0.98 | U9: 0.9578333333 | V9: 0.9356666667 | W9: 0.9123333333 | X9: 0.889 | Y9: 0.6902050114 | Z9: 0.6974834581 | AA9: 0.7047619048 | AB9: 0.7127300796 | AC9: 0.7206982544 | AD9: 0.7304278673 | AE9: 0.7401574803 | AF9: 0.9107142857 | AG9: 0.9107142857 | AH9: 0.9107142857 | AI9: 0.9107142857 | AJ9: 0.9107142857 | AK9: 0.9107142857 | AL9: 0.9107142857 | AM9: =Y9*C9+($A$4-80)*AF9*$A$8/1000 -> 12.8674 | AN9: =Z9*E9+($A$4-80)*AG9*$A$8/1000 -> 12.72170303 | AO9: =AA9*G9+($A$4-80)*AH9*$A$8/1000 -> 12.57013333 | AP9: =AB9*I9+($A$4-80)*AI9*$A$8/1000 -> 12.42471463 | AQ9: =AC9*K9+($A$4-80)*AJ9*$A$8/1000 -> 12.27286667 | AR9: =AD9*M9+($A$4-80)*AK9*$A$8/1000 -> 12.12836518 | AS9: =AE9*O9+($A$4-80)*AL9*$A$8/1000 -> 11.9756
B10: 63 | C10: 17.4538 | D10: 15.20306667 | E10: 17.0716 | F10: 15.03693391 | G10: 16.6894 | H10: 14.86333333 | I10: 16.3072 | J10: 14.71930196 | K10: 15.925 | L10: 14.56606667 | M10: 15.5428 | N10: 14.42249936 | O10: 15.1606 | P10: 14.2688 | R10: 0.959 | S10: 0.938 | T10: 0.917 | U10: 0.896 | V10: 0.875 | W10: 0.854 | X10: 0.833 | Y10: 0.8710462287 | Z10: 0.8808157352 | AA10: 0.8905852417 | AB10: 0.9026259542 | AC10: 0.9146666667 | AD10: 0.9279215686 | AE10: 0.9411764706 | AF10: 0.9107142857 | AG10: 0.90625 | AH10: 0.9017857143 | AI10: 0.90625 | AJ10: 0.9107142857 | AK10: 0.9107142857 | AL10: 0.9107142857 | AM10: 15.20306667 | AN10: =Z10*E10+($A$4-80)*AG10*$A$8/1000 -> 15.03693391 | AO10: =AA10*G10+($A$4-80)*AH10*$A$8/1000 -> 14.86333333 | AP10: 14.71930196 | AQ10: 14.56606667 | AR10: 14.42249936 | AS10: 14.2688
B11: 59 | C11: 16.64693333 | D11: 16.64693333 | E11: 16.28596667 | F11: 16.28596667 | G11: 15.925 | H11: 15.925 | I11: 15.56403333 | J11: 15.56403333 | K11: 15.20306667 | L11: 15.20306667 | M11: 14.82086667 | N11: 14.82086667 | O11: 14.43866667 | P11: 14.43866667 | R11: 0.9146666667 | S11: 0.8948333333 | T11: 0.875 | U11: 0.8551666667 | V11: 0.8353333333 | W11: 0.8143333333 | X11: 0.7933333333 | Y11: 1 | Z11: 1 | AA11: 1 | AB11: 1 | AC11: 1 | AD11: 1 | AE11: 1 | AF11: 0.6964285714 | AG11: 0.65625 | AH11: 0.6160714286 | AI11: 0.5758928571 | AJ11: 0.5357142857 | AK11: 0.4910714286 | AL11: 0.4464285714 | AM11: 16.64693333 | AN11: =Z11*E11+($A$4-80)*AG11*$A$8/1000 -> 16.28596667 | AO11: =AA11*G11+($A$4-80)*AH11*$A$8/1000 -> 15.925 | AP11: =AB11*I11+($A$4-80)*AI11*$A$8/1000 -> 15.56403333 | AQ11: 15.20306667 | AR11: 14.82086667 | AS11: 14.43866667
A12: 1400 | B12: 71 | C12: 20.62666667 | D12: 10.87666667 | E12: 20.17166667 | F12: 10.7048701 | G12: 19.71666667 | H12: 10.53 | I12: 19.28333333 | J12: 10.40233169 | K12: 18.85 | L12: 10.27 | M12: 18.395 | N12: 10.09855776 | O12: 17.94 | P12: 9.923333333 | R12: 1.133333333 | S12: 1.108333333 | T12: 1.083333333 | U12: 1.05952381 | V12: 1.035714286 | W12: 1.010714286 | X12: 0.9857142857 | Y12: 0.5273109244 | Z12: 0.5306884292 | AA12: 0.5340659341 | AB12: 0.5394467601 | AC12: 0.5448275862 | AD12: 0.5489838414 | AE12: 0.5531400966 | AF12: 0.9107142857 | AG12: 0.90625 | AH12: 0.9017857143 | AI12: 0.90625 | AJ12: 0.9107142857 | AK12: 0.90625 | AL12: 0.9017857143 | AM12: =Y12*C12+($A$4-80)*AF12*$A$12/1000 -> 10.87666667 | AN12: =Z12*E12+($A$4-80)*AG12*$A$12/1000 -> 10.7048701 | AO12: =AA12*G12+($A$4-80)*AH12*$A$12/1000 -> 10.53 | AP12: =AB12*I12+($A$4-80)*AI12*$A$12/1000 -> 10.40233169 | AQ12: =AC12*K12+($A$4-80)*AJ12*$A$12/1000 -> 10.27 | AR12: =AD12*M12+($A$4-80)*AK12*$A$12/1000 -> 10.09855776 | AS12: =AE12*O12+($A$4-80)*AL12*$A$12/1000 -> 9.923333333
B13: 67 | C13: 19.02333333 | D13: 13.13 | E13: 18.61166667 | F13: 12.98132963 | G13: 18.2 | H13: 12.82666667 | I13: 17.78833333 | J13: 12.67828023 | K13: 17.37666667 | L13: 12.52333333 | M13: 16.94333333 | N13: 12.37588283 | O13: 16.51 | P13: 12.22 | R13: 1.045238095 | S13: 1.022619048 | T13: 1 | U13: 0.9773809524 | V13: 0.9547619048 | W13: 0.930952381 | X13: 0.9071428571 | Y13: 0.6902050114 | Z13: 0.6974834581 | AA13: 0.7047619048 | AB13: 0.7127300796 | AC13: 0.7206982544 | AD13: 0.7304278673 | AE13: 0.7401574803 | AF13: 0.9107142857 | AG13: 0.9107142857 | AH13: 0.9107142857 | AI13: 0.9107142857 | AJ13: 0.9107142857 | AK13: 0.9107142857 | AL13: 0.9107142857 | AM13: =Y13*C13+($A$4-80)*AF13*$A$12/1000 -> 13.13 | AN13: =Z13*E13+($A$4-80)*AG13*$A$12/1000 -> 12.98132963 | AO13: =AA13*G13+($A$4-80)*AH13*$A$12/1000 -> 12.82666667 | AP13: =AB13*I13+($A$4-80)*AI13*$A$12/1000 -> 12.67828023 | AQ13: =AC13*K13+($A$4-80)*AJ13*$A$12/1000 -> 12.52333333 | AR13: =AD13*M13+($A$4-80)*AK13*$A$12/1000 -> 12.37588283 | AS13: =AE13*O13+($A$4-80)*AL13*$A$12/1000 -> 12.22
B14: 63 | C14: 17.81 | D14: 15.51333333 | E14: 17.42 | F14: 15.34381011 | G14: 17.03 | H14: 15.16666667 | I14: 16.64 | J14: 15.01969588 | K14: 16.25 | L14: 14.86333333 | M14: 15.86 | N14: 14.71683608 | O14: 15.47 | P14: 14.56 | R14: 0.9785714286 | S14: 0.9571428571 | T14: 0.9357142857 | U14: 0.9142857143 | V14: 0.8928571429 | W14: 0.8714285714 | X14: 0.85 | Y14: 0.8710462287 | Z14: 0.8808157352 | AA14: 0.8905852417 | AB14: 0.9026259542 | AC14: 0.9146666667 | AD14: 0.9279215686 | AE14: 0.9411764706 | AF14: 0.9107142857 | AG14: 0.90625 | AH14: 0.9017857143 | AI14: 0.90625 | AJ14: 0.9107142857 | AK14: 0.9107142857 | AL14: 0.9107142857 | AM14: 15.51333333 | AN14: =Z14*E14+($A$4-80)*AG14*$A$12/1000 -> 15.34381011 | AO14: =AA14*G14+($A$4-80)*AH14*$A$12/1000 -> 15.16666667 | AP14: 15.01969588 | AQ14: 14.86333333 | AR14: 14.71683608 | AS14: 14.56
B15: 59 | C15: 16.98666667 | D15: 16.98666667 | E15: 16.61833333 | F15: 16.61833333 | G15: 16.25 | H15: 16.25 | I15: 15.88166667 | J15: 15.88166667 | K15: 15.51333333 | L15: 15.51333333 | M15: 15.12333333 | N15: 15.12333333 | O15: 14.73333333 | P15: 14.73333333 | R15: 0.9333333333 | S15: 0.9130952381 | T15: 0.8928571429 | U15: 0.8726190476 | V15: 0.8523809524 | W15: 0.830952381 | X15: 0.8095238095 | Y15: 1 | Z15: 1 | AA15: 1 | AB15: 1 | AC15: 1 | AD15: 1 | AE15: 1 | AF15: 0.6964285714 | AG15: 0.65625 | AH15: 0.6160714286 | AI15: 0.5758928571 | AJ15: 0.5357142857 | AK15: 0.4910714286 | AL15: 0.4464285714 | AM15: 16.98666667 | AN15: =Z15*E15+($A$4-80)*AG15*$A$12/1000 -> 16.61833333 | AO15: =AA15*G15+($A$4-80)*AH15*$A$12/1000 -> 16.25 | AP15: 15.88166667 | AQ15: 15.51333333 | AR15: 15.12333333 | AS15: 14.73333333
A16: 1575 | B16: 71 | C16: 21.0392 | D16: 11.0942 | E16: 20.5751 | F16: 10.9189675 | G16: 20.111 | H16: 10.7406 | I16: 19.669 | J16: 10.61037833 | K16: 19.227 | L16: 10.4754 | M16: 18.7629 | N16: 10.30052892 | O16: 18.2988 | P16: 10.1218 | R16: 1.156 | S16: 1.1305 | T16: 1.105 | U16: 1.080714286 | V16: 1.056428571 | W16: 1.030928571 | X16: 1.005428571 | Y16: 0.5273109244 | Z16: 0.5306884292 | AA16: 0.5340659341 | AB16: 0.5394467601 | AC16: 0.5448275862 | AD16: 0.5489838414 | AE16: 0.5531400966 | AF16: 0.9107142857 | AG16: 0.90625 | AH16: 0.9017857143 | AI16: 0.90625 | AJ16: 0.9107142857 | AK16: 0.90625 | AL16: 0.9017857143 | AM16: =Y16*C16+($A$4-80)*AF16*$A$16/1000 -> 11.0942 | AN16: =Z16*E16+($A$4-80)*AG16*$A$16/1000 -> 10.9189675 | AO16: =AA16*G16+($A$4-80)*AH16*$A$16/1000 -> 10.7406 | AP16: =AB16*I16+($A$4-80)*AI16*$A$16/1000 -> 10.61037833 | AQ16: =AC16*K16+($A$4-80)*AJ16*$A$16/1000 -> 10.4754 | AR16: =AD16*M16+($A$4-80)*AK16*$A$16/1000 -> 10.30052892 | AS16: =AE16*O16+($A$4-80)*AL16*$A$16/1000 -> 10.1218
B17: 67 | C17: 19.4038 | D17: 13.3926 | E17: 18.9839 | F17: 13.24095622 | G17: 18.564 | H17: 13.0832 | I17: 18.1441 | J17: 12.93184584 | K17: 17.7242 | L17: 12.7738 | M17: 17.2822 | N17: 12.62340049 | O17: 16.8402 | P17: 12.4644 | R17: 1.066142857 | S17: 1.043071429 | T17: 1.02 | U17: 0.9969285714 | V17: 0.9738571429 | W17: 0.9495714286 | X17: 0.9252857143 | Y17: 0.6902050114 | Z17: 0.6974834581 | AA17: 0.7047619048 | AB17: 0.7127300796 | AC17: 0.7206982544 | AD17: 0.7304278673 | AE17: 0.7401574803 | AF17: 0.9107142857 | AG17: 0.9107142857 | AH17: 0.9107142857 | AI17: 0.9107142857 | AJ17: 0.9107142857 | AK17: 0.9107142857 | AL17: 0.9107142857 | AM17: =Y17*C17+($A$4-80)*AF17*$A$16/1000 -> 13.3926 | AN17: =Z17*E17+($A$4-80)*AG17*$A$16/1000 -> 13.24095622 | AO17: =AA17*G17+($A$4-80)*AH17*$A$16/1000 -> 13.0832 | AP17: =AB17*I17+($A$4-80)*AI17*$A$16/1000 -> 12.93184584 | AQ17: =AC17*K17+($A$4-80)*AJ17*$A$16/1000 -> 12.7738 | AR17: =AD17*M17+($A$4-80)*AK17*$A$16/1000 -> 12.62340049 | AS17: =AE17*O17+($A$4-80)*AL17*$A$16/1000 -> 12.4644
B18: 63 | C18: 18.1662 | D18: 15.8236 | E18: 17.7684 | F18: 15.65068631 | G18: 17.3706 | H18: 15.47 | I18: 16.9728 | J18: 15.3200898 | K18: 16.575 | L18: 15.1606 | M18: 16.1772 | N18: 15.0111728 | O18: 15.7794 | P18: 14.8512 | R18: 0.9981428571 | S18: 0.9762857143 | T18: 0.9544285714 | U18: 0.9325714286 | V18: 0.9107142857 | W18: 0.8888571429 | X18: 0.867 | Y18: 0.8710462287 | Z18: 0.8808157352 | AA18: 0.8905852417 | AB18: 0.9026259542 | AC18: 0.9146666667 | AD18: 0.9279215686 | AE18: 0.9411764706 | AF18: 0.9107142857 | AG18: 0.90625 | AH18: 0.9017857143 | AI18: 0.90625 | AJ18: 0.9107142857 | AK18: 0.9107142857 | AL18: 0.9107142857 | AM18: 15.8236 | AN18: =Z18*E18+($A$4-80)*AG18*$A$16/1000 -> 15.65068631 | AO18: =AA18*G18+($A$4-80)*AH18*$A$16/1000 -> 15.47 | AP18: 15.3200898 | AQ18: 15.1606 | AR18: 15.0111728 | AS18: 14.8512
B19: 59 | C19: 17.3264 | D19: 17.3264 | E19: 16.9507 | F19: 16.9507 | G19: 16.575 | H19: 16.575 | I19: 16.1993 | J19: 16.1993 | K19: 15.8236 | L19: 15.8236 | M19: 15.4258 | N19: 15.4258 | O19: 15.028 | P19: 15.028 | R19: 0.952 | S19: 0.9313571429 | T19: 0.9107142857 | U19: 0.8900714286 | V19: 0.8694285714 | W19: 0.8475714286 | X19: 0.8257142857 | Y19: 1 | Z19: 1 | AA19: 1 | AB19: 1 | AC19: 1 | AD19: 1 | AE19: 1 | AF19: 0.6964285714 | AG19: 0.65625 | AH19: 0.6160714286 | AI19: 0.5758928571 | AJ19: 0.5357142857 | AK19: 0.4910714286 | AL19: 0.4464285714 | AM19: 17.3264 | AN19: =Z19*E19+($A$4-80)*AG19*$A$16/1000 -> 16.9507 | AO19: =AA19*G19+($A$4-80)*AH19*$A$16/1000 -> 16.575 | AP19: 16.1993 | AQ19: 15.8236 | AR19: 15.4258 | AS19: 15.028

Sheet 4A7A30_48 (hidden)
A2: 4A7A30_48 | B2: 18.2
A3: Evaporator Air | C3: Condenser Entering Air Temperature ˚F
A4: 80 | B4: °F DB | C4: 85 | E4: 90 | G4: 95 | I4: 100 | K4: 105 | M4: 110 | O4: 115
A5: CFM | B5: EWB† ˚F | C5: Capacity Mbtuh | E5: Capacity Mbtuh | G5: Capacity Mbtuh | I5: Capacity Mbtuh | K5: Capacity Mbtuh | M5: Capacity Mbtuh | O5: Capacity Mbtuh
C6: Total | D6: Sens. | E6: Total | F6: Sens. | G6: Total | H6: Sens. | I6: Total | J6: Sens. | K6: Total | L6: Sens. | M6: Total | N6: Sens. | O6: Total | P6: Sens.
R7: Total Factors | Y7: Sens. % | AF7: IDB Adj | AM7: Sens Calc
A8: 1400 | B8: 71 | C8: =R8*$B$2 -> 20.30387421 | D8: =IF(AM8>C8,C8,AM8) -> 10.61933753 | E8: =S8*$B$2 -> 19.81777778 | F8: =IF(AN8>E8,E8,AN8) -> 10.4532352 | G8: =T8*$B$2 -> 19.33168134 | H8: =IF(AO8>G8,G8,AO8) -> 10.28280922 | I8: =U8*$B$2 -> 18.86428092 | J8: =IF(AP8>I8,I8,AP8) -> 10.11658656 | K8: =V8*$B$2 -> 18.3968805 | L8: =IF(AQ8>K8,K8,AQ8) -> 9.946280922 | M8: =W8*$B$2 -> 17.92948008 | N8: =IF(AR8>M8,M8,AR8) -> 9.799473283 | O8: =X8*$B$2 -> 17.46207966 | P8: =IF(AS8>O8,O8,AS8) -> 9.647144654 | R8: 1.115597484 | S8: 1.088888889 | T8: 1.062180294 | U8: 1.036498952 | V8: 1.01081761 | W8: 0.9851362683 | X8: 0.9594549266 | Y8: 0.5230202578 | Z8: 0.5274675757 | AA8: 0.5319148936 | AB8: 0.5362826501 | AC8: 0.5406504065 | AD8: 0.5465564666 | AE8: 0.5524625268 | AF8: 0.890625 | AG8: 0.890625 | AH8: 0.890625 | AI8: 0.88671875 | AJ8: 0.8828125 | AK8: 0.88671875 | AL8: 0.890625 | AM8: =Y8*C8+($A$4-80)*AF8*$A$8/1000 -> 10.61933753 | AN8: =Z8*E8+($A$4-80)*AG8*$A$8/1000 -> 10.4532352 | AO8: =AA8*G8+($A$4-80)*AH8*$A$8/1000 -> 10.28280922 | AP8: =AB8*I8+($A$4-80)*AI8*$A$8/1000 -> 10.11658656 | AQ8: =AC8*K8+($A$4-80)*AJ8*$A$8/1000 -> 9.946280922 | AR8: =AD8*M8+($A$4-80)*AK8*$A$8/1000 -> 9.799473283 | AS8: =AE8*O8+($A$4-80)*AL8*$A$8/1000 -> 9.647144654
B9: 67 | C9: =R9*$B$2 -> 18.69601677 | D9: 12.78807547 | E9: 18.26600839 | F9: =IF(AN9>E9,E9,AN9) -> 12.62284572 | G9: 17.836 | H9: =IF(AO9>G9,G9,AO9) -> 12.45154717 | I9: 17.40599161 | J9: =IF(AP9>I9,I9,AP9) -> 12.30579446 | K9: 16.97598323 | L9: =IF(AQ9>K9,K9,AQ9) -> 12.1524109 | M9: 16.54597484 | N9: =IF(AR9>M9,M9,AR9) -> 11.98787054 | O9: 16.11596646 | P9: =IF(AS9>O9,O9,AS9) -> 11.8158826 | R9: 1.027253669 | S9: 1.003626834 | T9: 0.98 | U9: 0.9563731656 | V9: 0.9327463312 | W9: 0.9091194969 | X9: 0.8854926625 | Y9: 0.684 | Z9: 0.6910566038 | AA9: 0.6981132075 | AB9: 0.7069861192 | AC9: 0.7158590308 | AD9: 0.7245188426 | AE9: 0.7331786543 | AF9: 0.8828125 | AG9: 0.8828125 | AH9: 0.8828125 | AI9: 0.88671875 | AJ9: 0.890625 | AK9: 0.88671875 | AL9: 0.8828125 | AM9: =Y9*C9+($A$4-80)*AF9*$A$8/1000 -> 12.78807547 | AN9: =Z9*E9+($A$4-80)*AG9*$A$8/1000 -> 12.62284572 | AO9: =AA9*G9+($A$4-80)*AH9*$A$8/1000 -> 12.45154717 | AP9: =AB9*I9+($A$4-80)*AI9*$A$8/1000 -> 12.30579446 | AQ9: =AC9*K9+($A$4-80)*AJ9*$A$8/1000 -> 12.1524109 | AR9: =AD9*M9+($A$4-80)*AK9*$A$8/1000 -> 11.98787054 | AS9: =AE9*O9+($A$4-80)*AL9*$A$8/1000 -> 11.8158826
B10: 63 | C10: 17.4994717 | D10: 15.06898952 | E10: 17.08815933 | F10: 14.90531087 | G10: 16.67684696 | H10: 14.73246122 | I10: 16.28423061 | J10: 14.56860895 | K10: 15.89161426 | L10: 14.39593291 | M10: 15.48030189 | N10: 14.25245252 | O10: 15.06898952 | P10: 14.09679665 | R10: 0.961509434 | S10: 0.9389098532 | T10: 0.9163102725 | U10: 0.8947379455 | V10: 0.8731656184 | W10: 0.8505660377 | X10: 0.827966457 | Y10: 0.8611111111 | Z10: 0.8722595914 | AA10: 0.8834080717 | AB10: 0.8946452123 | AC10: 0.9058823529 | AD10: 0.920683112 | AE10: 0.935483871 | AF10: 0.8828125 | AG10: 0.8828125 | AH10: 0.8828125 | AI10: 0.8828125 | AJ10: 0.8828125 | AK10: 0.88671875 | AL10: 0.890625 | AM10: 15.06898952 | AN10: =Z10*E10+($A$4-80)*AG10*$A$8/1000 -> 14.90531087 | AO10: =AA10*G10+($A$4-80)*AH10*$A$8/1000 -> 14.73246122 | AP10: 14.56860895 | AQ10: 14.39593291 | AR10: 14.25245252 | AS10: 14.09679665
B11: 59 | C11: 16.67684696 | D11: 16.67684696 | E11: 16.30292662 | F11: 16.30292662 | G11: 15.92900629 | H11: 15.92900629 | I11: 15.53638994 | J11: 15.53638994 | K11: 15.14377358 | L11: 15.14377358 | M11: 14.76985325 | N11: 14.76985325 | O11: 14.39593291 | P11: 14.39593291 | R11: 0.9163102725 | S11: 0.8957651992 | T11: 0.8752201258 | U11: 0.8536477987 | V11: 0.8320754717 | W11: 0.8115303983 | X11: 0.7909853249 | Y11: 1 | Z11: 1 | AA11: 1 | AB11: 1 | AC11: 1 | AD11: 1 | AE11: 1 | AF11: 0.7265625 | AG11: 0.6796875 | AH11: 0.6328125 | AI11: 0.58984375 | AJ11: 0.546875 | AK11: 0.50390625 | AL11: 0.4609375 | AM11: 16.67684696 | AN11: =Z11*E11+($A$4-80)*AG11*$A$8/1000 -> 16.30292662 | AO11: =AA11*G11+($A$4-80)*AH11*$A$8/1000 -> 15.92900629 | AP11: =AB11*I11+($A$4-80)*AI11*$A$8/1000 -> 15.53638994 | AQ11: 15.14377358 | AR11: 14.76985325 | AS11: 14.39593291
A12: 1600 | B12: 71 | C12: 20.71823899 | D12: 10.8360587 | E12: 20.22222222 | F12: 10.66656653 | G12: 19.72620545 | H12: 10.49266247 | I12: 19.24926625 | J12: 10.32304751 | K12: 18.77232704 | L12: 10.14926625 | M12: 18.29538784 | N12: 9.999462534 | O12: 17.81844864 | P12: 9.844025157 | R12: 1.13836478 | S12: 1.111111111 | T12: 1.083857442 | U12: 1.057651992 | V12: 1.031446541 | W12: 1.00524109 | X12: 0.9790356394 | Y12: 0.5230202578 | Z12: 0.5274675757 | AA12: 0.5319148936 | AB12: 0.5362826501 | AC12: 0.5406504065 | AD12: 0.5465564666 | AE12: 0.5524625268 | AF12: 0.890625 | AG12: 0.890625 | AH12: 0.890625 | AI12: 0.88671875 | AJ12: 0.8828125 | AK12: 0.88671875 | AL12: 0.890625 | AM12: =Y12*C12+($A$4-80)*AF12*$A$12/1000 -> 10.8360587 | AN12: =Z12*E12+($A$4-80)*AG12*$A$12/1000 -> 10.66656653 | AO12: =AA12*G12+($A$4-80)*AH12*$A$12/1000 -> 10.49266247 | AP12: =AB12*I12+($A$4-80)*AI12*$A$12/1000 -> 10.32304751 | AQ12: =AC12*K12+($A$4-80)*AJ12*$A$12/1000 -> 10.14926625 | AR12: =AD12*M12+($A$4-80)*AK12*$A$12/1000 -> 9.999462534 | AS12: =AE12*O12+($A$4-80)*AL12*$A$12/1000 -> 9.844025157
B13: 67 | C13: 19.07756813 | D13: 13.0490566 | E13: 18.63878407 | F13: 12.88045482 | G13: 18.2 | H13: 12.70566038 | I13: 17.76121593 | J13: 12.55693312 | K13: 17.32243187 | L13: 12.40041929 | M13: 16.8836478 | N13: 12.23252096 | O13: 16.44486373 | P13: 12.05702306 | R13: 1.048218029 | S13: 1.024109015 | T13: 1 | U13: 0.9758909853 | V13: 0.9517819706 | W13: 0.927672956 | X13: 0.9035639413 | Y13: 0.684 | Z13: 0.6910566038 | AA13: 0.6981132075 | AB13: 0.7069861192 | AC13: 0.7158590308 | AD13: 0.7245188426 | AE13: 0.7331786543 | AF13: 0.8828125 | AG13: 0.8828125 | AH13: 0.8828125 | AI13: 0.88671875 | AJ13: 0.890625 | AK13: 0.88671875 | AL13: 0.8828125 | AM13: =Y13*C13+($A$4-80)*AF13*$A$12/1000 -> 13.0490566 | AN13: =Z13*E13+($A$4-80)*AG13*$A$12/1000 -> 12.88045482 | AO13: =AA13*G13+($A$4-80)*AH13*$A$12/1000 -> 12.70566038 | AP13: =AB13*I13+($A$4-80)*AI13*$A$12/1000 -> 12.55693312 | AQ13: =AC13*K13+($A$4-80)*AJ13*$A$12/1000 -> 12.40041929 | AR13: =AD13*M13+($A$4-80)*AK13*$A$12/1000 -> 12.23252096 | AS13: =AE13*O13+($A$4-80)*AL13*$A$12/1000 -> 12.05702306
B14: 63 | C14: 17.85660377 | D14: 15.37651992 | E14: 17.43689727 | F14: 15.20950089 | G14: 17.01719078 | H14: 15.03312369 | I14: 16.61656184 | J14: 14.8659275 | K14: 16.21593291 | L14: 14.68972746 | M14: 15.79622642 | N14: 14.54331889 | O14: 15.37651992 | P14: 14.38448637 | R14: 0.9811320755 | S14: 0.9580712788 | T14: 0.9350104822 | U14: 0.9129979036 | V14: 0.8909853249 | W14: 0.8679245283 | X14: 0.8448637317 | Y14: 0.8611111111 | Z14: 0.8722595914 | AA14: 0.8834080717 | AB14: 0.8946452123 | AC14: 0.9058823529 | AD14: 0.920683112 | AE14: 0.935483871 | AF14: 0.8828125 | AG14: 0.8828125 | AH14: 0.8828125 | AI14: 0.8828125 | AJ14: 0.8828125 | AK14: 0.88671875 | AL14: 0.890625 | AM14: 15.37651992 | AN14: =Z14*E14+($A$4-80)*AG14*$A$12/1000 -> 15.20950089 | AO14: =AA14*G14+($A$4-80)*AH14*$A$12/1000 -> 15.03312369 | AP14: 14.8659275 | AQ14: 14.68972746 | AR14: 14.54331889 | AS14: 14.38448637
B15: 59 | C15: 17.01719078 | D15: 17.01719078 | E15: 16.63563941 | F15: 16.63563941 | G15: 16.25408805 | H15: 16.25408805 | I15: 15.85345912 | J15: 15.85345912 | K15: 15.45283019 | L15: 15.45283019 | M15: 15.07127883 | N15: 15.07127883 | O15: 14.68972746 | P15: 14.68972746 | R15: 0.9350104822 | S15: 0.9140461216 | T15: 0.893081761 | U15: 0.8710691824 | V15: 0.8490566038 | W15: 0.8280922432 | X15: 0.8071278826 | Y15: 1 | Z15: 1 | AA15: 1 | AB15: 1 | AC15: 1 | AD15: 1 | AE15: 1 | AF15: 0.7265625 | AG15: 0.6796875 | AH15: 0.6328125 | AI15: 0.58984375 | AJ15: 0.546875 | AK15: 0.50390625 | AL15: 0.4609375 | AM15: 17.01719078 | AN15: =Z15*E15+($A$4-80)*AG15*$A$12/1000 -> 16.63563941 | AO15: =AA15*G15+($A$4-80)*AH15*$A$12/1000 -> 16.25408805 | AP15: 15.85345912 | AQ15: 15.45283019 | AR15: 15.07127883 | AS15: 14.68972746
A16: 1800 | B16: 71 | C16: 21.13260377 | D16: 11.05277987 | E16: 20.62666667 | F16: 10.87989786 | G16: 20.12072956 | H16: 10.70251572 | I16: 19.63425157 | J16: 10.52950847 | K16: 19.14777358 | L16: 10.35225157 | M16: 18.6612956 | N16: 10.19945178 | O16: 18.17481761 | P16: 10.04090566 | R16: 1.161132075 | S16: 1.133333333 | T16: 1.105534591 | U16: 1.078805031 | V16: 1.052075472 | W16: 1.025345912 | X16: 0.9986163522 | Y16: 0.5230202578 | Z16: 0.5274675757 | AA16: 0.5319148936 | AB16: 0.5362826501 | AC16: 0.5406504065 | AD16: 0.5465564666 | AE16: 0.5524625268 | AF16: 0.890625 | AG16: 0.890625 | AH16: 0.890625 | AI16: 0.88671875 | AJ16: 0.8828125 | AK16: 0.88671875 | AL16: 0.890625 | AM16: =Y16*C16+($A$4-80)*AF16*$A$16/1000 -> 11.05277987 | AN16: =Z16*E16+($A$4-80)*AG16*$A$16/1000 -> 10.87989786 | AO16: =AA16*G16+($A$4-80)*AH16*$A$16/1000 -> 10.70251572 | AP16: =AB16*I16+($A$4-80)*AI16*$A$16/1000 -> 10.52950847 | AQ16: =AC16*K16+($A$4-80)*AJ16*$A$16/1000 -> 10.35225157 | AR16: =AD16*M16+($A$4-80)*AK16*$A$16/1000 -> 10.19945178 | AS16: =AE16*O16+($A$4-80)*AL16*$A$16/1000 -> 10.04090566
B17: 67 | C17: 19.4591195 | D17: 13.31003774 | E17: 19.01155975 | F17: 13.13806391 | G17: 18.564 | H17: 12.95977358 | I17: 18.11644025 | J17: 12.80807179 | K17: 17.6688805 | L17: 12.64842767 | M17: 17.22132075 | N17: 12.47717138 | O17: 16.77376101 | P17: 12.29816352 | R17: 1.06918239 | S17: 1.044591195 | T17: 1.02 | U17: 0.995408805 | V17: 0.9708176101 | W17: 0.9462264151 | X17: 0.9216352201 | Y17: 0.684 | Z17: 0.6910566038 | AA17: 0.6981132075 | AB17: 0.7069861192 | AC17: 0.7158590308 | AD17: 0.7245188426 | AE17: 0.7331786543 | AF17: 0.8828125 | AG17: 0.8828125 | AH17: 0.8828125 | AI17: 0.88671875 | AJ17: 0.890625 | AK17: 0.88671875 | AL17: 0.8828125 | AM17: =Y17*C17+($A$4-80)*AF17*$A$16/1000 -> 13.31003774 | AN17: =Z17*E17+($A$4-80)*AG17*$A$16/1000 -> 13.13806391 | AO17: =AA17*G17+($A$4-80)*AH17*$A$16/1000 -> 12.95977358 | AP17: =AB17*I17+($A$4-80)*AI17*$A$16/1000 -> 12.80807179 | AQ17: =AC17*K17+($A$4-80)*AJ17*$A$16/1000 -> 12.64842767 | AR17: =AD17*M17+($A$4-80)*AK17*$A$16/1000 -> 12.47717138 | AS17: =AE17*O17+($A$4-80)*AL17*$A$16/1000 -> 12.29816352
B18: 63 | C18: 18.21373585 | D18: 15.68405031 | E18: 17.78563522 | F18: 15.51369091 | G18: 17.35753459 | H18: 15.33378616 | I18: 16.94889308 | J18: 15.16324605 | K18: 16.54025157 | L18: 14.98352201 | M18: 16.11215094 | N18: 14.83418527 | O18: 15.68405031 | P18: 14.6721761 | R18: 1.000754717 | S18: 0.9772327044 | T18: 0.9537106918 | U18: 0.9312578616 | V18: 0.9088050314 | W18: 0.8852830189 | X18: 0.8617610063 | Y18: 0.8611111111 | Z18: 0.8722595914 | AA18: 0.8834080717 | AB18: 0.8946452123 | AC18: 0.9058823529 | AD18: 0.920683112 | AE18: 0.935483871 | AF18: 0.8828125 | AG18: 0.8828125 | AH18: 0.8828125 | AI18: 0.8828125 | AJ18: 0.8828125 | AK18: 0.88671875 | AL18: 0.890625 | AM18: 15.68405031 | AN18: =Z18*E18+($A$4-80)*AG18*$A$16/1000 -> 15.51369091 | AO18: =AA18*G18+($A$4-80)*AH18*$A$16/1000 -> 15.33378616 | AP18: 15.16324605 | AQ18: 14.98352201 | AR18: 14.83418527 | AS18: 14.6721761
B19: 59 | C19: 17.35753459 | D19: 17.35753459 | E19: 16.9683522 | F19: 16.9683522 | G19: 16.57916981 | H19: 16.57916981 | I19: 16.1705283 | J19: 16.1705283 | K19: 15.76188679 | L19: 15.76188679 | M19: 15.3727044 | N19: 15.3727044 | O19: 14.98352201 | P19: 14.98352201 | R19: 0.9537106918 | S19: 0.932327044 | T19: 0.9109433962 | U19: 0.888490566 | V19: 0.8660377358 | W19: 0.8446540881 | X19: 0.8232704403 | Y19: 1 | Z19: 1 | AA19: 1 | AB19: 1 | AC19: 1 | AD19: 1 | AE19: 1 | AF19: 0.7265625 | AG19: 0.6796875 | AH19: 0.6328125 | AI19: 0.58984375 | AJ19: 0.546875 | AK19: 0.50390625 | AL19: 0.4609375 | AM19: 17.35753459 | AN19: =Z19*E19+($A$4-80)*AG19*$A$16/1000 -> 16.9683522 | AO19: =AA19*G19+($A$4-80)*AH19*$A$16/1000 -> 16.57916981 | AP19: 16.1705283 | AQ19: 15.76188679 | AR19: 15.3727044 | AS19: 14.98352201

Sheet 4A7A30_60 (hidden)
A2: 4A7A30_60 | B2: 18.2
A3: Evaporator Air | C3: Condenser Entering Air Temperature ˚F
A4: 80 | B4: °F DB | C4: 85 | E4: 90 | G4: 95 | I4: 100 | K4: 105 | M4: 110 | O4: 115
A5: CFM | B5: EWB† ˚F | C5: Capacity Mbtuh | E5: Capacity Mbtuh | G5: Capacity Mbtuh | I5: Capacity Mbtuh | K5: Capacity Mbtuh | M5: Capacity Mbtuh | O5: Capacity Mbtuh
C6: Total | D6: Sens. | E6: Total | F6: Sens. | G6: Total | H6: Sens. | I6: Total | J6: Sens. | K6: Total | L6: Sens. | M6: Total | N6: Sens. | O6: Total | P6: Sens.
R7: Total Factors | Y7: Sens. % | AF7: IDB Adj | AM7: Sens Calc
A8: 1600 | B8: 71 | C8: =R8*$B$2 -> 20.09181788 | D8: =IF(AM8>C8,C8,AM8) -> 10.37676223 | E8: =S8*$B$2 -> 19.71584823 | F8: =IF(AN8>E8,E8,AN8) -> 10.24255676 | G8: =T8*$B$2 -> 19.33987858 | H8: =IF(AO8>G8,G8,AO8) -> 10.10606408 | I8: =U8*$B$2 -> 18.96390894 | J8: =IF(AP8>I8,I8,AP8) -> 9.987294103 | K8: =V8*$B$2 -> 18.58793929 | L8: =IF(AQ8>K8,K8,AQ8) -> 9.865443508 | M8: =W8*$B$2 -> 18.21196965 | N8: =IF(AR8>M8,M8,AR8) -> 9.731447611 | O8: =X8*$B$2 -> 17.836 | P8: =IF(AS8>O8,O8,AS8) -> 9.594745363 | R8: 1.103946037 | S8: 1.083288364 | T8: 1.062630691 | U8: 1.041973019 | V8: 1.021315346 | W8: 1.000657673 | X8: 0.98 | Y8: 0.5164670659 | Z8: 0.5195088051 | AA8: 0.5225505443 | AB8: 0.5266474404 | AC8: 0.5307443366 | AD8: 0.5343435005 | AE8: 0.5379426644 | AF8: 0.9203296703 | AG8: 0.9168956044 | AH8: 0.9134615385 | AI8: 0.9168956044 | AJ8: 0.9203296703 | AK8: 0.9203296703 | AL8: 0.9203296703 | AM8: =Y8*C8+($A$4-80)*AF8*$A$8/1000 -> 10.37676223 | AN8: =Z8*E8+($A$4-80)*AG8*$A$8/1000 -> 10.24255676 | AO8: =AA8*G8+($A$4-80)*AH8*$A$8/1000 -> 10.10606408 | AP8: =AB8*I8+($A$4-80)*AI8*$A$8/1000 -> 9.987294103 | AQ8: =AC8*K8+($A$4-80)*AJ8*$A$8/1000 -> 9.865443508 | AR8: =AD8*M8+($A$4-80)*AK8*$A$8/1000 -> 9.731447611 | AS8: =AE8*O8+($A$4-80)*AL8*$A$8/1000 -> 9.594745363
B9: 67 | C9: =R9*$B$2 -> 18.52778415 | D9: 12.45211467 | E9: 18.18189207 | F9: =IF(AN9>E9,E9,AN9) -> 12.31864899 | G9: 17.836 | H9: =IF(AO9>G9,G9,AO9) -> 12.18141653 | I9: 17.47506914 | J9: =IF(AP9>I9,I9,AP9) -> 12.04841167 | K9: 17.11413828 | L9: =IF(AQ9>K9,K9,AQ9) -> 11.91071838 | M9: 16.76824621 | N9: =IF(AR9>M9,M9,AR9) -> 11.77758879 | O9: 16.42235413 | P9: =IF(AS9>O9,O9,AS9) -> 11.64002024 | R9: 1.018010118 | S9: 0.999005059 | T9: 0.98 | U9: 0.9601686341 | V9: 0.9403372681 | W9: 0.9213322091 | X9: 0.9023271501 | Y9: 0.6720779221 | Z9: 0.6775229408 | AA9: 0.6829679595 | AB9: 0.6894628901 | AC9: 0.6959578207 | AD9: 0.7023745148 | AE9: 0.7087912088 | AF9: 0.9134615385 | AG9: 0.9134615385 | AH9: 0.9134615385 | AI9: 0.9134615385 | AJ9: 0.9134615385 | AK9: 0.9134615385 | AL9: 0.9134615385 | AM9: =Y9*C9+($A$4-80)*AF9*$A$8/1000 -> 12.45211467 | AN9: =Z9*E9+($A$4-80)*AG9*$A$8/1000 -> 12.31864899 | AO9: =AA9*G9+($A$4-80)*AH9*$A$8/1000 -> 12.18141653 | AP9: =AB9*I9+($A$4-80)*AI9*$A$8/1000 -> 12.04841167 | AQ9: =AC9*K9+($A$4-80)*AJ9*$A$8/1000 -> 11.91071838 | AR9: =AD9*M9+($A$4-80)*AK9*$A$8/1000 -> 11.77758879 | AS9: =AE9*O9+($A$4-80)*AL9*$A$8/1000 -> 11.64002024
B10: 63 | C10: 17.32468128 | D10: 14.61769983 | E10: 17.00886678 | F10: 14.4848314 | G10: 16.69305228 | H10: 14.34700169 | I10: 16.36219899 | J10: 14.21472778 | K10: 16.0313457 | L10: 14.07630354 | M10: 15.70049241 | N10: 13.94429443 | O10: 15.36963912 | P10: 13.8056054 | R10: 0.9519055649 | S10: 0.9345531197 | T10: 0.9172006745 | U10: 0.8990219224 | V10: 0.8808431703 | W10: 0.8626644182 | X10: 0.8444856661 | Y10: 0.84375 | Z10: 0.8516047297 | AA10: 0.8594594595 | AB10: 0.86875412 | AC10: 0.8780487805 | AD10: 0.888143764 | AE10: 0.8982387476 | AF10: 0.9203296703 | AG10: 0.9203296703 | AH10: 0.9203296703 | AI10: 0.9203296703 | AJ10: 0.9203296703 | AK10: 0.9203296703 | AL10: 0.9203296703 | AM10: 14.61769983 | AN10: =Z10*E10+($A$4-80)*AG10*$A$8/1000 -> 14.4848314 | AO10: =AA10*G10+($A$4-80)*AH10*$A$8/1000 -> 14.34700169 | AP10: 14.21472778 | AQ10: 14.07630354 | AR10: 13.94429443 | AS10: 13.8056054
B11: 59 | C11: 16.54266442 | D11: 15.70049241 | E11: 16.22684992 | F11: 15.70644182 | G11: 15.91103541 | H11: 15.70049241 | I11: 15.59522091 | J11: 15.49203892 | K11: 15.27940641 | L11: 15.27940641 | M11: 14.97863069 | N11: 14.97863069 | O11: 14.67785497 | P11: 14.67785497 | R11: 0.9089376054 | S11: 0.8915851602 | T11: 0.874232715 | U11: 0.8568802698 | V11: 0.8395278246 | W11: 0.8230016863 | X11: 0.8064755481 | Y11: 0.9490909091 | Z11: 0.9679291975 | AA11: 0.9867674858 | AB11: 0.9933837429 | AC11: 1 | AD11: 1 | AE11: 1 | AF11: 0.6456043956 | AG11: 0.676510989 | AH11: 0.7074175824 | AI11: 0.6936813187 | AJ11: 0.6799450549 | AK11: 0.6421703297 | AL11: 0.6043956044 | AM11: 15.70049241 | AN11: =Z11*E11+($A$4-80)*AG11*$A$8/1000 -> 15.70644182 | AO11: =AA11*G11+($A$4-80)*AH11*$A$8/1000 -> 15.70049241 | AP11: =AB11*I11+($A$4-80)*AI11*$A$8/1000 -> 15.49203892 | AQ11: 15.27940641 | AR11: 14.97863069 | AS11: 14.67785497
A12: 1820 | B12: 71 | C12: 20.50185497 | D12: 10.58853288 | E12: 20.11821248 | F12: 10.45158853 | G12: 19.73456998 | H12: 10.31231029 | I12: 19.35092749 | J12: 10.19111643 | K12: 18.96728499 | L12: 10.06677909 | M12: 18.5836425 | N12: 9.930048583 | O12: 18.2 | P12: 9.790556492 | R12: 1.126475548 | S12: 1.10539629 | T12: 1.084317032 | U12: 1.063237774 | V12: 1.042158516 | W12: 1.021079258 | X12: 1 | Y12: 0.5164670659 | Z12: 0.5195088051 | AA12: 0.5225505443 | AB12: 0.5266474404 | AC12: 0.5307443366 | AD12: 0.5343435005 | AE12: 0.5379426644 | AF12: 0.9203296703 | AG12: 0.9168956044 | AH12: 0.9134615385 | AI12: 0.9168956044 | AJ12: 0.9203296703 | AK12: 0.9203296703 | AL12: 0.9203296703 | AM12: =Y12*C12+($A$4-80)*AF12*$A$12/1000 -> 10.58853288 | AN12: =Z12*E12+($A$4-80)*AG12*$A$12/1000 -> 10.45158853 | AO12: =AA12*G12+($A$4-80)*AH12*$A$12/1000 -> 10.31231029 | AP12: =AB12*I12+($A$4-80)*AI12*$A$12/1000 -> 10.19111643 | AQ12: =AC12*K12+($A$4-80)*AJ12*$A$12/1000 -> 10.06677909 | AR12: =AD12*M12+($A$4-80)*AK12*$A$12/1000 -> 9.930048583 | AS12: =AE12*O12+($A$4-80)*AL12*$A$12/1000 -> 9.790556492
B13: 67 | C13: 18.90590219 | D13: 12.70623946 | E13: 18.5529511 | F13: 12.57004999 | G13: 18.2 | H13: 12.43001686 | I13: 17.8317032 | J13: 12.29429763 | K13: 17.46340641 | L13: 12.15379427 | M13: 17.11045531 | N13: 12.01794775 | O13: 16.75750422 | P13: 11.87757167 | R13: 1.038785835 | S13: 1.019392917 | T13: 1 | U13: 0.9797639123 | V13: 0.9595278246 | W13: 0.9401349073 | X13: 0.9207419899 | Y13: 0.6720779221 | Z13: 0.6775229408 | AA13: 0.6829679595 | AB13: 0.6894628901 | AC13: 0.6959578207 | AD13: 0.7023745148 | AE13: 0.7087912088 | AF13: 0.9134615385 | AG13: 0.9134615385 | AH13: 0.9134615385 | AI13: 0.9134615385 | AJ13: 0.9134615385 | AK13: 0.9134615385 | AL13: 0.9134615385 | AM13: =Y13*C13+($A$4-80)*AF13*$A$12/1000 -> 12.70623946 | AN13: =Z13*E13+($A$4-80)*AG13*$A$12/1000 -> 12.57004999 | AO13: =AA13*G13+($A$4-80)*AH13*$A$12/1000 -> 12.43001686 | AP13: =AB13*I13+($A$4-80)*AI13*$A$12/1000 -> 12.29429763 | AQ13: =AC13*K13+($A$4-80)*AJ13*$A$12/1000 -> 12.15379427 | AR13: =AD13*M13+($A$4-80)*AK13*$A$12/1000 -> 12.01794775 | AS13: =AE13*O13+($A$4-80)*AL13*$A$12/1000 -> 11.87757167
B14: 63 | C14: 17.67824621 | D14: 14.91602024 | E14: 17.35598651 | F14: 14.7804402 | G14: 17.03372681 | H14: 14.63979764 | I14: 16.69612142 | J14: 14.50482427 | K14: 16.35851602 | L14: 14.36357504 | M14: 16.02091062 | N14: 14.22887186 | O14: 15.68330523 | P14: 14.08735245 | R14: 0.9713322091 | S14: 0.9536256324 | T14: 0.9359190556 | U14: 0.9173693086 | V14: 0.8988195616 | W14: 0.8802698145 | X14: 0.8617200675 | Y14: 0.84375 | Z14: 0.8516047297 | AA14: 0.8594594595 | AB14: 0.86875412 | AC14: 0.8780487805 | AD14: 0.888143764 | AE14: 0.8982387476 | AF14: 0.9203296703 | AG14: 0.9203296703 | AH14: 0.9203296703 | AI14: 0.9203296703 | AJ14: 0.9203296703 | AK14: 0.9203296703 | AL14: 0.9203296703 | AM14: 14.91602024 | AN14: =Z14*E14+($A$4-80)*AG14*$A$12/1000 -> 14.7804402 | AO14: =AA14*G14+($A$4-80)*AH14*$A$12/1000 -> 14.63979764 | AP14: 14.50482427 | AQ14: 14.36357504 | AR14: 14.22887186 | AS14: 14.08735245
B15: 59 | C15: 16.88026981 | D15: 16.02091062 | E15: 16.55801012 | F15: 16.02698145 | G15: 16.23575042 | H15: 16.02091062 | I15: 15.91349073 | J15: 15.80820298 | K15: 15.59123103 | L15: 15.59123103 | M15: 15.28431703 | N15: 15.28431703 | O15: 14.97740304 | P15: 14.97740304 | R15: 0.9274873524 | S15: 0.9097807757 | T15: 0.892074199 | U15: 0.8743676223 | V15: 0.8566610455 | W15: 0.8397976391 | X15: 0.8229342327 | Y15: 0.9490909091 | Z15: 0.9679291975 | AA15: 0.9867674858 | AB15: 0.9933837429 | AC15: 1 | AD15: 1 | AE15: 1 | AF15: 0.6456043956 | AG15: 0.676510989 | AH15: 0.7074175824 | AI15: 0.6936813187 | AJ15: 0.6799450549 | AK15: 0.6421703297 | AL15: 0.6043956044 | AM15: 16.02091062 | AN15: =Z15*E15+($A$4-80)*AG15*$A$12/1000 -> 16.02698145 | AO15: =AA15*G15+($A$4-80)*AH15*$A$12/1000 -> 16.02091062 | AP15: 15.80820298 | AQ15: 15.59123103 | AR15: 15.28431703 | AS15: 14.97740304
A16: 2050 | B16: 71 | C16: 20.91189207 | D16: 10.80030354 | E16: 20.52057673 | F16: 10.6606203 | G16: 20.12926138 | H16: 10.51855649 | I16: 19.73794604 | J16: 10.39493876 | K16: 19.34663069 | L16: 10.26811467 | M16: 18.95531535 | N16: 10.12864955 | O16: 18.564 | P16: 9.986367622 | R16: 1.149005059 | S16: 1.127504216 | T16: 1.106003373 | U16: 1.08450253 | V16: 1.063001686 | W16: 1.041500843 | X16: 1.02 | Y16: 0.5164670659 | Z16: 0.5195088051 | AA16: 0.5225505443 | AB16: 0.5266474404 | AC16: 0.5307443366 | AD16: 0.5343435005 | AE16: 0.5379426644 | AF16: 0.9203296703 | AG16: 0.9168956044 | AH16: 0.9134615385 | AI16: 0.9168956044 | AJ16: 0.9203296703 | AK16: 0.9203296703 | AL16: 0.9203296703 | AM16: =Y16*C16+($A$4-80)*AF16*$A$16/1000 -> 10.80030354 | AN16: =Z16*E16+($A$4-80)*AG16*$A$16/1000 -> 10.6606203 | AO16: =AA16*G16+($A$4-80)*AH16*$A$16/1000 -> 10.51855649 | AP16: =AB16*I16+($A$4-80)*AI16*$A$16/1000 -> 10.39493876 | AQ16: =AC16*K16+($A$4-80)*AJ16*$A$16/1000 -> 10.26811467 | AR16: =AD16*M16+($A$4-80)*AK16*$A$16/1000 -> 10.12864955 | AS16: =AE16*O16+($A$4-80)*AL16*$A$16/1000 -> 9.986367622
B17: 67 | C17: 19.28402024 | D17: 12.96036425 | E17: 18.92401012 | F17: 12.82145099 | G17: 18.564 | H17: 12.6786172 | I17: 18.18833727 | J17: 12.54018358 | K17: 17.81267454 | L17: 12.39687015 | M17: 17.45266442 | N17: 12.2583067 | O17: 17.0926543 | P17: 12.1151231 | R17: 1.059561551 | S17: 1.039780776 | T17: 1.02 | U17: 0.9993591906 | V17: 0.9787183811 | W17: 0.9589376054 | X17: 0.9391568297 | Y17: 0.6720779221 | Z17: 0.6775229408 | AA17: 0.6829679595 | AB17: 0.6894628901 | AC17: 0.6959578207 | AD17: 0.7023745148 | AE17: 0.7087912088 | AF17: 0.9134615385 | AG17: 0.9134615385 | AH17: 0.9134615385 | AI17: 0.9134615385 | AJ17: 0.9134615385 | AK17: 0.9134615385 | AL17: 0.9134615385 | AM17: =Y17*C17+($A$4-80)*AF17*$A$16/1000 -> 12.96036425 | AN17: =Z17*E17+($A$4-80)*AG17*$A$16/1000 -> 12.82145099 | AO17: =AA17*G17+($A$4-80)*AH17*$A$16/1000 -> 12.6786172 | AP17: =AB17*I17+($A$4-80)*AI17*$A$16/1000 -> 12.54018358 | AQ17: =AC17*K17+($A$4-80)*AJ17*$A$16/1000 -> 12.39687015 | AR17: =AD17*M17+($A$4-80)*AK17*$A$16/1000 -> 12.2583067 | AS17: =AE17*O17+($A$4-80)*AL17*$A$16/1000 -> 12.1151231
B18: 63 | C18: 18.03181113 | D18: 15.21434064 | E18: 17.70310624 | F18: 15.076049 | G18: 17.37440135 | H18: 14.93259359 | I18: 17.03004384 | J18: 14.79492075 | K18: 16.68568634 | L18: 14.65084654 | M18: 16.34132884 | N18: 14.5134493 | O18: 15.99697133 | P18: 14.36909949 | R18: 0.9907588533 | S18: 0.972698145 | T18: 0.9546374368 | U18: 0.9357166948 | V18: 0.9167959528 | W18: 0.8978752108 | X18: 0.8789544688 | Y18: 0.84375 | Z18: 0.8516047297 | AA18: 0.8594594595 | AB18: 0.86875412 | AC18: 0.8780487805 | AD18: 0.888143764 | AE18: 0.8982387476 | AF18: 0.9203296703 | AG18: 0.9203296703 | AH18: 0.9203296703 | AI18: 0.9203296703 | AJ18: 0.9203296703 | AK18: 0.9203296703 | AL18: 0.9203296703 | AM18: 15.21434064 | AN18: =Z18*E18+($A$4-80)*AG18*$A$16/1000 -> 15.076049 | AO18: =AA18*G18+($A$4-80)*AH18*$A$16/1000 -> 14.93259359 | AP18: 14.79492075 | AQ18: 14.65084654 | AR18: 14.5134493 | AS18: 14.36909949
B19: 59 | C19: 17.21787521 | D19: 16.34132884 | E19: 16.88917032 | F19: 16.34752107 | G19: 16.56046543 | H19: 16.34132884 | I19: 16.23176054 | J19: 16.12436704 | K19: 15.90305565 | L19: 15.90305565 | M19: 15.59000337 | N19: 15.59000337 | O19: 15.2769511 | P19: 15.2769511 | R19: 0.9460370995 | S19: 0.9279763912 | T19: 0.909915683 | U19: 0.8918549747 | V19: 0.8737942664 | W19: 0.8565935919 | X19: 0.8393929174 | Y19: 0.9490909091 | Z19: 0.9679291975 | AA19: 0.9867674858 | AB19: 0.9933837429 | AC19: 1 | AD19: 1 | AE19: 1 | AF19: 0.6456043956 | AG19: 0.676510989 | AH19: 0.7074175824 | AI19: 0.6936813187 | AJ19: 0.6799450549 | AK19: 0.6421703297 | AL19: 0.6043956044 | AM19: 16.34132884 | AN19: =Z19*E19+($A$4-80)*AG19*$A$16/1000 -> 16.34752107 | AO19: =AA19*G19+($A$4-80)*AH19*$A$16/1000 -> 16.34132884 | AP19: 16.12436704 | AQ19: 15.90305565 | AR19: 15.59000337 | AS19: 15.2769511

Sheet 4A7A40_18 (hidden)
A2: 4A7A40_18 | B2: 18.2
A3: Evaporator Air | C3: Condenser Entering Air Temperature ˚F
A4: 80 | B4: °F DB | C4: 85 | E4: 90 | G4: 95 | I4: 100 | K4: 105 | M4: 110 | O4: 115
A5: CFM | B5: EWB† ˚F | C5: Capacity Mbtuh | E5: Capacity Mbtuh | G5: Capacity Mbtuh | I5: Capacity Mbtuh | K5: Capacity Mbtuh | M5: Capacity Mbtuh | O5: Capacity Mbtuh
C6: Total | D6: Sens. | E6: Total | F6: Sens. | G6: Total | H6: Sens. | I6: Total | J6: Sens. | K6: Total | L6: Sens. | M6: Total | N6: Sens. | O6: Total | P6: Sens.
R7: Total Factors | Y7: Sens. % | AF7: IDB Adj | AM7: Sens Calc
A8: 525 | B8: 71 | C8: =R8*$B$2 -> 20.286 | D8: =IF(AM8>C8,C8,AM8) -> 10.78 | E8: =S8*$B$2 -> 19.796 | F8: =IF(AN8>E8,E8,AN8) -> 10.58563417 | G8: =T8*$B$2 -> 19.306 | H8: =IF(AO8>G8,G8,AO8) -> 10.388 | I8: =U8*$B$2 -> 18.865 | J8: =IF(AP8>I8,I8,AP8) -> 10.24316118 | K8: =V8*$B$2 -> 18.424 | L8: =IF(AQ8>K8,K8,AQ8) -> 10.094 | M8: =W8*$B$2 -> 17.983 | N8: =IF(AR8>M8,M8,AR8) -> 9.949378506 | O8: =X8*$B$2 -> 17.542 | P8: =IF(AS8>O8,O8,AS8) -> 9.8 | R8: 1.114615385 | S8: 1.087692308 | T8: 1.060769231 | U8: 1.036538462 | V8: 1.012307692 | W8: 0.9880769231 | X8: 0.9638461538 | Y8: 0.5314009662 | Z8: 0.5347360161 | AA8: 0.538071066 | AB8: 0.5429717032 | AC8: 0.5478723404 | AD8: 0.5532657792 | AE8: 0.5586592179 | AF8: 0.9375 | AG8: 0.9375 | AH8: 0.9375 | AI8: 0.9375 | AJ8: 0.9375 | AK8: 0.9375 | AL8: 0.9375 | AM8: =Y8*C8+($A$4-80)*AF8*$A$8/1000 -> 10.78 | AN8: =Z8*E8+($A$4-80)*AG8*$A$8/1000 -> 10.58563417 | AO8: =AA8*G8+($A$4-80)*AH8*$A$8/1000 -> 10.388 | AP8: =AB8*I8+($A$4-80)*AI8*$A$8/1000 -> 10.24316118 | AQ8: =AC8*K8+($A$4-80)*AJ8*$A$8/1000 -> 10.094 | AR8: =AD8*M8+($A$4-80)*AK8*$A$8/1000 -> 9.949378506 | AS8: =AE8*O8+($A$4-80)*AL8*$A$8/1000 -> 9.8
B9: 67 | C9: =R9*$B$2 -> 18.62 | D9: 12.936 | E9: 18.228 | F9: =IF(AN9>E9,E9,AN9) -> 12.79175466 | G9: 17.836 | H9: =IF(AO9>G9,G9,AO9) -> 12.642 | I9: 17.444 | J9: =IF(AP9>I9,I9,AP9) -> 12.49800796 | K9: 17.052 | L9: =IF(AQ9>K9,K9,AQ9) -> 12.348 | M9: 16.611 | N9: =IF(AR9>M9,M9,AR9) -> 12.20570031 | O9: 16.17 | P9: =IF(AS9>O9,O9,AS9) -> 12.054 | R9: 1.023076923 | S9: 1.001538462 | T9: 0.98 | U9: 0.9584615385 | V9: 0.9369230769 | W9: 0.9126923077 | X9: 0.8884615385 | Y9: 0.6947368421 | Z9: 0.7017640254 | AA9: 0.7087912088 | AB9: 0.7164645699 | AC9: 0.724137931 | AD9: 0.7347962382 | AE9: 0.7454545455 | AF9: 0.9166666667 | AG9: 0.9166666667 | AH9: 0.9166666667 | AI9: 0.9166666667 | AJ9: 0.9166666667 | AK9: 0.9270833333 | AL9: 0.9375 | AM9: =Y9*C9+($A$4-80)*AF9*$A$8/1000 -> 12.936 | AN9: =Z9*E9+($A$4-80)*AG9*$A$8/1000 -> 12.79175466 | AO9: =AA9*G9+($A$4-80)*AH9*$A$8/1000 -> 12.642 | AP9: =AB9*I9+($A$4-80)*AI9*$A$8/1000 -> 12.49800796 | AQ9: =AC9*K9+($A$4-80)*AJ9*$A$8/1000 -> 12.348 | AR9: =AD9*M9+($A$4-80)*AK9*$A$8/1000 -> 12.20570031 | AS9: =AE9*O9+($A$4-80)*AL9*$A$8/1000 -> 12.054
B10: 63 | C10: 17.444 | D10: 15.288 | E10: 17.052 | F10: 15.14562472 | G10: 16.66 | H10: 14.994 | I10: 16.268 | J10: 14.85208148 | K10: 15.876 | L10: 14.7 | M10: 15.533 | N10: 14.55685209 | O10: 15.19 | P10: 14.406 | R10: 0.9584615385 | S10: 0.9369230769 | T10: 0.9153846154 | U10: 0.8938461538 | V10: 0.8723076923 | W10: 0.8534615385 | X10: 0.8346153846 | Y10: 0.8764044944 | Z10: 0.8882022472 | AA10: 0.9 | AB10: 0.912962963 | AC10: 0.9259259259 | AD10: 0.9371565114 | AE10: 0.9483870968 | AF10: 0.9166666667 | AG10: 0.9270833333 | AH10: 0.9375 | AI10: 0.9375 | AJ10: 0.9375 | AK10: 0.9375 | AL10: 0.9375 | AM10: 15.288 | AN10: =Z10*E10+($A$4-80)*AG10*$A$8/1000 -> 15.14562472 | AO10: =AA10*G10+($A$4-80)*AH10*$A$8/1000 -> 14.994 | AP10: 14.85208148 | AQ10: 14.7 | AR10: 14.55685209 | AS10: 14.406
B11: 59 | C11: 16.66 | D11: 16.66 | E11: 16.268 | F11: 16.268 | G11: 15.876 | H11: 15.876 | I11: 15.533 | J11: 15.533 | K11: 15.19 | L11: 15.19 | M11: 14.798 | N11: 14.798 | O11: 14.406 | P11: 14.406 | R11: 0.9153846154 | S11: 0.8938461538 | T11: 0.8723076923 | U11: 0.8534615385 | V11: 0.8346153846 | W11: 0.8130769231 | X11: 0.7915384615 | Y11: 1 | Z11: 1 | AA11: 1 | AB11: 1 | AC11: 1 | AD11: 1 | AE11: 1 | AF11: 0.6875 | AG11: 0.6458333333 | AH11: 0.6041666667 | AI11: 0.5625 | AJ11: 0.5208333333 | AK11: 0.46875 | AL11: 0.4166666667 | AM11: 16.66 | AN11: =Z11*E11+($A$4-80)*AG11*$A$8/1000 -> 16.268 | AO11: =AA11*G11+($A$4-80)*AH11*$A$8/1000 -> 15.876 | AP11: =AB11*I11+($A$4-80)*AI11*$A$8/1000 -> 15.533 | AQ11: 15.19 | AR11: 14.798 | AS11: 14.406
A12: 600 | B12: 71 | C12: 20.7 | D12: 11 | E12: 20.2 | F12: 10.80166752 | G12: 19.7 | H12: 10.6 | I12: 19.25 | J12: 10.45220529 | K12: 18.8 | L12: 10.3 | M12: 18.35 | N12: 10.15242705 | O12: 17.9 | P12: 10 | R12: 1.137362637 | S12: 1.10989011 | T12: 1.082417582 | U12: 1.057692308 | V12: 1.032967033 | W12: 1.008241758 | X12: 0.9835164835 | Y12: 0.5314009662 | Z12: 0.5347360161 | AA12: 0.538071066 | AB12: 0.5429717032 | AC12: 0.5478723404 | AD12: 0.5532657792 | AE12: 0.5586592179 | AF12: 0.9375 | AG12: 0.9375 | AH12: 0.9375 | AI12: 0.9375 | AJ12: 0.9375 | AK12: 0.9375 | AL12: 0.9375 | AM12: =Y12*C12+($A$4-80)*AF12*$A$12/1000 -> 11 | AN12: =Z12*E12+($A$4-80)*AG12*$A$12/1000 -> 10.80166752 | AO12: =AA12*G12+($A$4-80)*AH12*$A$12/1000 -> 10.6 | AP12: =AB12*I12+($A$4-80)*AI12*$A$12/1000 -> 10.45220529 | AQ12: =AC12*K12+($A$4-80)*AJ12*$A$12/1000 -> 10.3 | AR12: =AD12*M12+($A$4-80)*AK12*$A$12/1000 -> 10.15242705 | AS12: =AE12*O12+($A$4-80)*AL12*$A$12/1000 -> 10
B13: 67 | C13: 19 | D13: 13.2 | E13: 18.6 | F13: 13.05281087 | G13: 18.2 | H13: 12.9 | I13: 17.8 | J13: 12.75306934 | K13: 17.4 | L13: 12.6 | M13: 16.95 | N13: 12.45479624 | O13: 16.5 | P13: 12.3 | R13: 1.043956044 | S13: 1.021978022 | T13: 1 | U13: 0.978021978 | V13: 0.956043956 | W13: 0.9313186813 | X13: 0.9065934066 | Y13: 0.6947368421 | Z13: 0.7017640254 | AA13: 0.7087912088 | AB13: 0.7164645699 | AC13: 0.724137931 | AD13: 0.7347962382 | AE13: 0.7454545455 | AF13: 0.9166666667 | AG13: 0.9166666667 | AH13: 0.9166666667 | AI13: 0.9166666667 | AJ13: 0.9166666667 | AK13: 0.9270833333 | AL13: 0.9375 | AM13: =Y13*C13+($A$4-80)*AF13*$A$12/1000 -> 13.2 | AN13: =Z13*E13+($A$4-80)*AG13*$A$12/1000 -> 13.05281087 | AO13: =AA13*G13+($A$4-80)*AH13*$A$12/1000 -> 12.9 | AP13: =AB13*I13+($A$4-80)*AI13*$A$12/1000 -> 12.75306934 | AQ13: =AC13*K13+($A$4-80)*AJ13*$A$12/1000 -> 12.6 | AR13: =AD13*M13+($A$4-80)*AK13*$A$12/1000 -> 12.45479624 | AS13: =AE13*O13+($A$4-80)*AL13*$A$12/1000 -> 12.3
B14: 63 | C14: 17.8 | D14: 15.6 | E14: 17.4 | F14: 15.4547191 | G14: 17 | H14: 15.3 | I14: 16.6 | J14: 15.15518519 | K14: 16.2 | L14: 15 | M14: 15.85 | N14: 14.8539307 | O14: 15.5 | P14: 14.7 | R14: 0.978021978 | S14: 0.956043956 | T14: 0.9340659341 | U14: 0.9120879121 | V14: 0.8901098901 | W14: 0.8708791209 | X14: 0.8516483516 | Y14: 0.8764044944 | Z14: 0.8882022472 | AA14: 0.9 | AB14: 0.912962963 | AC14: 0.9259259259 | AD14: 0.9371565114 | AE14: 0.9483870968 | AF14: 0.9166666667 | AG14: 0.9270833333 | AH14: 0.9375 | AI14: 0.9375 | AJ14: 0.9375 | AK14: 0.9375 | AL14: 0.9375 | AM14: 15.6 | AN14: =Z14*E14+($A$4-80)*AG14*$A$12/1000 -> 15.4547191 | AO14: =AA14*G14+($A$4-80)*AH14*$A$12/1000 -> 15.3 | AP14: 15.15518519 | AQ14: 15 | AR14: 14.8539307 | AS14: 14.7
B15: 59 | C15: 17 | D15: 17 | E15: 16.6 | F15: 16.6 | G15: 16.2 | H15: 16.2 | I15: 15.85 | J15: 15.85 | K15: 15.5 | L15: 15.5 | M15: 15.1 | N15: 15.1 | O15: 14.7 | P15: 14.7 | R15: 0.9340659341 | S15: 0.9120879121 | T15: 0.8901098901 | U15: 0.8708791209 | V15: 0.8516483516 | W15: 0.8296703297 | X15: 0.8076923077 | Y15: 1 | Z15: 1 | AA15: 1 | AB15: 1 | AC15: 1 | AD15: 1 | AE15: 1 | AF15: 0.6875 | AG15: 0.6458333333 | AH15: 0.6041666667 | AI15: 0.5625 | AJ15: 0.5208333333 | AK15: 0.46875 | AL15: 0.4166666667 | AM15: 17 | AN15: =Z15*E15+($A$4-80)*AG15*$A$12/1000 -> 16.6 | AO15: =AA15*G15+($A$4-80)*AH15*$A$12/1000 -> 16.2 | AP15: 15.85 | AQ15: 15.5 | AR15: 15.1 | AS15: 14.7
A16: 675 | B16: 71 | C16: 21.114 | D16: 11.22 | E16: 20.604 | F16: 11.01770088 | G16: 20.094 | H16: 10.812 | I16: 19.635 | J16: 10.66124939 | K16: 19.176 | L16: 10.506 | M16: 18.717 | N16: 10.35547559 | O16: 18.258 | P16: 10.2 | R16: 1.16010989 | S16: 1.132087912 | T16: 1.104065934 | U16: 1.078846154 | V16: 1.053626374 | W16: 1.028406593 | X16: 1.003186813 | Y16: 0.5314009662 | Z16: 0.5347360161 | AA16: 0.538071066 | AB16: 0.5429717032 | AC16: 0.5478723404 | AD16: 0.5532657792 | AE16: 0.5586592179 | AF16: 0.9375 | AG16: 0.9375 | AH16: 0.9375 | AI16: 0.9375 | AJ16: 0.9375 | AK16: 0.9375 | AL16: 0.9375 | AM16: =Y16*C16+($A$4-80)*AF16*$A$16/1000 -> 11.22 | AN16: =Z16*E16+($A$4-80)*AG16*$A$16/1000 -> 11.01770088 | AO16: =AA16*G16+($A$4-80)*AH16*$A$16/1000 -> 10.812 | AP16: =AB16*I16+($A$4-80)*AI16*$A$16/1000 -> 10.66124939 | AQ16: =AC16*K16+($A$4-80)*AJ16*$A$16/1000 -> 10.506 | AR16: =AD16*M16+($A$4-80)*AK16*$A$16/1000 -> 10.35547559 | AS16: =AE16*O16+($A$4-80)*AL16*$A$16/1000 -> 10.2
B17: 67 | C17: 19.38 | D17: 13.464 | E17: 18.972 | F17: 13.31386709 | G17: 18.564 | H17: 13.158 | I17: 18.156 | J17: 13.00813073 | K17: 17.748 | L17: 12.852 | M17: 17.289 | N17: 12.70389216 | O17: 16.83 | P17: 12.546 | R17: 1.064835165 | S17: 1.042417582 | T17: 1.02 | U17: 0.9975824176 | V17: 0.9751648352 | W17: 0.9499450549 | X17: 0.9247252747 | Y17: 0.6947368421 | Z17: 0.7017640254 | AA17: 0.7087912088 | AB17: 0.7164645699 | AC17: 0.724137931 | AD17: 0.7347962382 | AE17: 0.7454545455 | AF17: 0.9166666667 | AG17: 0.9166666667 | AH17: 0.9166666667 | AI17: 0.9166666667 | AJ17: 0.9166666667 | AK17: 0.9270833333 | AL17: 0.9375 | AM17: =Y17*C17+($A$4-80)*AF17*$A$16/1000 -> 13.464 | AN17: =Z17*E17+($A$4-80)*AG17*$A$16/1000 -> 13.31386709 | AO17: =AA17*G17+($A$4-80)*AH17*$A$16/1000 -> 13.158 | AP17: =AB17*I17+($A$4-80)*AI17*$A$16/1000 -> 13.00813073 | AQ17: =AC17*K17+($A$4-80)*AJ17*$A$16/1000 -> 12.852 | AR17: =AD17*M17+($A$4-80)*AK17*$A$16/1000 -> 12.70389216 | AS17: =AE17*O17+($A$4-80)*AL17*$A$16/1000 -> 12.546
B18: 63 | C18: 18.156 | D18: 15.912 | E18: 17.748 | F18: 15.76381348 | G18: 17.34 | H18: 15.606 | I18: 16.932 | J18: 15.45828889 | K18: 16.524 | L18: 15.3 | M18: 16.167 | N18: 15.15100932 | O18: 15.81 | P18: 14.994 | R18: 0.9975824176 | S18: 0.9751648352 | T18: 0.9527472527 | U18: 0.9303296703 | V18: 0.9079120879 | W18: 0.8882967033 | X18: 0.8686813187 | Y18: 0.8764044944 | Z18: 0.8882022472 | AA18: 0.9 | AB18: 0.912962963 | AC18: 0.9259259259 | AD18: 0.9371565114 | AE18: 0.9483870968 | AF18: 0.9166666667 | AG18: 0.9270833333 | AH18: 0.9375 | AI18: 0.9375 | AJ18: 0.9375 | AK18: 0.9375 | AL18: 0.9375 | AM18: 15.912 | AN18: =Z18*E18+($A$4-80)*AG18*$A$16/1000 -> 15.76381348 | AO18: =AA18*G18+($A$4-80)*AH18*$A$16/1000 -> 15.606 | AP18: 15.45828889 | AQ18: 15.3 | AR18: 15.15100932 | AS18: 14.994
B19: 59 | C19: 17.34 | D19: 17.34 | E19: 16.932 | F19: 16.932 | G19: 16.524 | H19: 16.524 | I19: 16.167 | J19: 16.167 | K19: 15.81 | L19: 15.81 | M19: 15.402 | N19: 15.402 | O19: 14.994 | P19: 14.994 | R19: 0.9527472527 | S19: 0.9303296703 | T19: 0.9079120879 | U19: 0.8882967033 | V19: 0.8686813187 | W19: 0.8462637363 | X19: 0.8238461538 | Y19: 1 | Z19: 1 | AA19: 1 | AB19: 1 | AC19: 1 | AD19: 1 | AE19: 1 | AF19: 0.6875 | AG19: 0.6458333333 | AH19: 0.6041666667 | AI19: 0.5625 | AJ19: 0.5208333333 | AK19: 0.46875 | AL19: 0.4166666667 | AM19: 17.34 | AN19: =Z19*E19+($A$4-80)*AG19*$A$16/1000 -> 16.932 | AO19: =AA19*G19+($A$4-80)*AH19*$A$16/1000 -> 16.524 | AP19: 16.167 | AQ19: 15.81 | AR19: 15.402 | AS19: 14.994

Sheet 4A7A40_24 (hidden)
A2: 4A7A40_24 | B2: 18.2
A3: Evaporator Air | C3: Condenser Entering Air Temperature ˚F
A4: 80 | B4: °F DB | C4: 85 | E4: 90 | G4: 95 | I4: 100 | K4: 105 | M4: 110 | O4: 115
A5: CFM | B5: EWB† ˚F | C5: Capacity Mbtuh | E5: Capacity Mbtuh | G5: Capacity Mbtuh | I5: Capacity Mbtuh | K5: Capacity Mbtuh | M5: Capacity Mbtuh | O5: Capacity Mbtuh
C6: Total | D6: Sens. | E6: Total | F6: Sens. | G6: Total | H6: Sens. | I6: Total | J6: Sens. | K6: Total | L6: Sens. | M6: Total | N6: Sens. | O6: Total | P6: Sens.
R7: Total Factors | Y7: Sens. % | AF7: IDB Adj | AM7: Sens Calc
A8: 700 | B8: 71 | C8: =R8*$B$2 -> 20.22408368 | D8: =IF(AM8>C8,C8,AM8) -> 10.52249372 | E8: =S8*$B$2 -> 19.77631799 | F8: =IF(AN8>E8,E8,AN8) -> 10.37517784 | G8: =T8*$B$2 -> 19.3285523 | H8: =IF(AO8>G8,G8,AO8) -> 10.22398326 | I8: =U8*$B$2 -> 18.88078661 | J8: =IF(AP8>I8,I8,AP8) -> 10.07685582 | K8: =V8*$B$2 -> 18.43302092 | L8: =IF(AQ8>K8,K8,AQ8) -> 9.925472803 | M8: =W8*$B$2 -> 18.02256904 | N8: =IF(AR8>M8,M8,AR8) -> 9.777889884 | O8: =X8*$B$2 -> 17.61211715 | P8: =IF(AS8>O8,O8,AS8) -> 9.626962343 | R8: 1.111213389 | S8: 1.086610879 | T8: 1.062008368 | U8: 1.037405858 | V8: 1.012803347 | W8: 0.990251046 | X8: 0.9676987448 | Y8: 0.520295203 | Z8: 0.524626366 | AA8: 0.528957529 | AB8: 0.5337095337 | AC8: 0.5384615385 | AD8: 0.542535854 | AE8: 0.5466101695 | AF8: 0.890625 | AG8: 0.890625 | AH8: 0.890625 | AI8: 0.890625 | AJ8: 0.890625 | AK8: 0.8828125 | AL8: 0.875 | AM8: =Y8*C8+($A$4-80)*AF8*$A$8/1000 -> 10.52249372 | AN8: =Z8*E8+($A$4-80)*AG8*$A$8/1000 -> 10.37517784 | AO8: =AA8*G8+($A$4-80)*AH8*$A$8/1000 -> 10.22398326 | AP8: =AB8*I8+($A$4-80)*AI8*$A$8/1000 -> 10.07685582 | AQ8: =AC8*K8+($A$4-80)*AJ8*$A$8/1000 -> 9.925472803 | AR8: =AD8*M8+($A$4-80)*AK8*$A$8/1000 -> 9.777889884 | AS8: =AE8*O8+($A$4-80)*AL8*$A$8/1000 -> 9.626962343
B9: 67 | C9: =R9*$B$2 -> 18.65690377 | D9: 12.68669456 | E9: 18.24645188 | F9: =IF(AN9>E9,E9,AN9) -> 12.54042756 | G9: 17.836 | H9: =IF(AO9>G9,G9,AO9) -> 12.3881841 | I9: 17.42554812 | J9: =IF(AP9>I9,I9,AP9) -> 12.24220544 | K9: 17.01509623 | L9: =IF(AQ9>K9,K9,AQ9) -> 12.08967364 | M9: 16.60464435 | N9: =IF(AR9>M9,M9,AR9) -> 11.94402716 | O9: 16.19419247 | P9: =IF(AS9>O9,O9,AS9) -> 11.79116318 | R9: 1.025104603 | S9: 1.002552301 | T9: 0.98 | U9: 0.9574476987 | V9: 0.9348953975 | W9: 0.9123430962 | X9: 0.889790795 | Y9: 0.68 | Z9: 0.6872803347 | AA9: 0.6945606695 | AB9: 0.7025434926 | AC9: 0.7105263158 | AD9: 0.7193184574 | AE9: 0.7281105991 | AF9: 0.875 | AG9: 0.875 | AH9: 0.875 | AI9: 0.8828125 | AJ9: 0.890625 | AK9: 0.890625 | AL9: 0.890625 | AM9: =Y9*C9+($A$4-80)*AF9*$A$8/1000 -> 12.68669456 | AN9: =Z9*E9+($A$4-80)*AG9*$A$8/1000 -> 12.54042756 | AO9: =AA9*G9+($A$4-80)*AH9*$A$8/1000 -> 12.3881841 | AP9: =AB9*I9+($A$4-80)*AI9*$A$8/1000 -> 12.24220544 | AQ9: =AC9*K9+($A$4-80)*AJ9*$A$8/1000 -> 12.08967364 | AR9: =AD9*M9+($A$4-80)*AK9*$A$8/1000 -> 11.94402716 | AS9: =AE9*O9+($A$4-80)*AL9*$A$8/1000 -> 11.79116318
B10: 63 | C10: 17.46286192 | D10: 14.92552301 | E10: 17.08972385 | F10: 14.78005497 | G10: 16.71658577 | H10: 14.62701255 | I10: 16.30613389 | J10: 14.48317702 | K10: 15.89568201 | L10: 14.32850209 | M10: 15.52254393 | N10: 14.1838551 | O10: 15.14940586 | P10: 14.02999163 | R10: 0.9594979079 | S10: 0.9389958159 | T10: 0.9184937238 | U10: 0.8959414226 | V10: 0.8733891213 | W10: 0.8528870293 | X10: 0.8323849372 | Y10: 0.8547008547 | Z10: 0.8648504274 | AA10: 0.875 | AB10: 0.8882042254 | AC10: 0.9014084507 | AD10: 0.9137584125 | AE10: 0.9261083744 | AF10: 0.875 | AG10: 0.875 | AH10: 0.875 | AI10: 0.8828125 | AJ10: 0.890625 | AK10: 0.890625 | AL10: 0.890625 | AM10: 14.92552301 | AN10: =Z10*E10+($A$4-80)*AG10*$A$8/1000 -> 14.78005497 | AO10: =AA10*G10+($A$4-80)*AH10*$A$8/1000 -> 14.62701255 | AP10: 14.48317702 | AQ10: 14.32850209 | AR10: 14.1838551 | AS10: 14.02999163
B11: 59 | C11: 16.64195816 | D11: 16.64195816 | E11: 16.26882008 | F11: 16.26882008 | G11: 15.89568201 | H11: 15.89568201 | I11: 15.55985774 | J11: 15.55985774 | K11: 15.22403347 | L11: 15.22403347 | M11: 14.8508954 | N11: 14.8508954 | O11: 14.47775732 | P11: 14.47775732 | R11: 0.9143933054 | S11: 0.8938912134 | T11: 0.8733891213 | U11: 0.8549372385 | V11: 0.8364853556 | W11: 0.8159832636 | X11: 0.7954811715 | Y11: 1 | Z11: 1 | AA11: 1 | AB11: 1 | AC11: 1 | AD11: 1 | AE11: 1 | AF11: 0.734375 | AG11: 0.6953125 | AH11: 0.65625 | AI11: 0.6171875 | AJ11: 0.578125 | AK11: 0.53125 | AL11: 0.484375 | AM11: 16.64195816 | AN11: =Z11*E11+($A$4-80)*AG11*$A$8/1000 -> 16.26882008 | AO11: =AA11*G11+($A$4-80)*AH11*$A$8/1000 -> 15.89568201 | AP11: =AB11*I11+($A$4-80)*AI11*$A$8/1000 -> 15.55985774 | AQ11: 15.22403347 | AR11: 14.8508954 | AS11: 14.47775732
A12: 800 | B12: 71 | C12: 20.63682008 | D12: 10.73723849 | E12: 20.17991632 | F12: 10.58691616 | G12: 19.72301255 | H12: 10.43263598 | I12: 19.26610879 | J12: 10.28250594 | K12: 18.80920502 | L12: 10.12803347 | M12: 18.39037657 | N12: 9.977438657 | O12: 17.97154812 | P12: 9.823430962 | R12: 1.133891213 | S12: 1.108786611 | T12: 1.083682008 | U12: 1.058577406 | V12: 1.033472803 | W12: 1.010460251 | X12: 0.9874476987 | Y12: 0.520295203 | Z12: 0.524626366 | AA12: 0.528957529 | AB12: 0.5337095337 | AC12: 0.5384615385 | AD12: 0.542535854 | AE12: 0.5466101695 | AF12: 0.890625 | AG12: 0.890625 | AH12: 0.890625 | AI12: 0.890625 | AJ12: 0.890625 | AK12: 0.8828125 | AL12: 0.875 | AM12: =Y12*C12+($A$4-80)*AF12*$A$12/1000 -> 10.73723849 | AN12: =Z12*E12+($A$4-80)*AG12*$A$12/1000 -> 10.58691616 | AO12: =AA12*G12+($A$4-80)*AH12*$A$12/1000 -> 10.43263598 | AP12: =AB12*I12+($A$4-80)*AI12*$A$12/1000 -> 10.28250594 | AQ12: =AC12*K12+($A$4-80)*AJ12*$A$12/1000 -> 10.12803347 | AR12: =AD12*M12+($A$4-80)*AK12*$A$12/1000 -> 9.977438657 | AS12: =AE12*O12+($A$4-80)*AL12*$A$12/1000 -> 9.823430962
B13: 67 | C13: 19.0376569 | D13: 12.94560669 | E13: 18.61882845 | F13: 12.79635465 | G13: 18.2 | H13: 12.64100418 | I13: 17.78117155 | J13: 12.49204636 | K13: 17.3623431 | L13: 12.33640167 | M13: 16.94351464 | N13: 12.18778282 | O13: 16.52468619 | P13: 12.03179916 | R13: 1.046025105 | S13: 1.023012552 | T13: 1 | U13: 0.9769874477 | V13: 0.9539748954 | W13: 0.9309623431 | X13: 0.9079497908 | Y13: 0.68 | Z13: 0.6872803347 | AA13: 0.6945606695 | AB13: 0.7025434926 | AC13: 0.7105263158 | AD13: 0.7193184574 | AE13: 0.7281105991 | AF13: 0.875 | AG13: 0.875 | AH13: 0.875 | AI13: 0.8828125 | AJ13: 0.890625 | AK13: 0.890625 | AL13: 0.890625 | AM13: =Y13*C13+($A$4-80)*AF13*$A$12/1000 -> 12.94560669 | AN13: =Z13*E13+($A$4-80)*AG13*$A$12/1000 -> 12.79635465 | AO13: =AA13*G13+($A$4-80)*AH13*$A$12/1000 -> 12.64100418 | AP13: =AB13*I13+($A$4-80)*AI13*$A$12/1000 -> 12.49204636 | AQ13: =AC13*K13+($A$4-80)*AJ13*$A$12/1000 -> 12.33640167 | AR13: =AD13*M13+($A$4-80)*AK13*$A$12/1000 -> 12.18778282 | AS13: =AE13*O13+($A$4-80)*AL13*$A$12/1000 -> 12.03179916
B14: 63 | C14: 17.81924686 | D14: 15.23012552 | E14: 17.43849372 | F14: 15.08168875 | G14: 17.05774059 | H14: 14.92552301 | I14: 16.63891213 | J14: 14.77875206 | K14: 16.22008368 | L14: 14.6209205 | M14: 15.83933054 | N14: 14.47332153 | O14: 15.45857741 | P14: 14.31631799 | R14: 0.9790794979 | S14: 0.9581589958 | T14: 0.9372384937 | U14: 0.9142259414 | V14: 0.8912133891 | W14: 0.870292887 | X14: 0.8493723849 | Y14: 0.8547008547 | Z14: 0.8648504274 | AA14: 0.875 | AB14: 0.8882042254 | AC14: 0.9014084507 | AD14: 0.9137584125 | AE14: 0.9261083744 | AF14: 0.875 | AG14: 0.875 | AH14: 0.875 | AI14: 0.8828125 | AJ14: 0.890625 | AK14: 0.890625 | AL14: 0.890625 | AM14: 15.23012552 | AN14: =Z14*E14+($A$4-80)*AG14*$A$12/1000 -> 15.08168875 | AO14: =AA14*G14+($A$4-80)*AH14*$A$12/1000 -> 14.92552301 | AP14: 14.77875206 | AQ14: 14.6209205 | AR14: 14.47332153 | AS14: 14.31631799
B15: 59 | C15: 16.98158996 | D15: 16.98158996 | E15: 16.60083682 | F15: 16.60083682 | G15: 16.22008368 | H15: 16.22008368 | I15: 15.87740586 | J15: 15.87740586 | K15: 15.53472803 | L15: 15.53472803 | M15: 15.1539749 | N15: 15.1539749 | O15: 14.77322176 | P15: 14.77322176 | R15: 0.9330543933 | S15: 0.9121338912 | T15: 0.8912133891 | U15: 0.8723849372 | V15: 0.8535564854 | W15: 0.8326359833 | X15: 0.8117154812 | Y15: 1 | Z15: 1 | AA15: 1 | AB15: 1 | AC15: 1 | AD15: 1 | AE15: 1 | AF15: 0.734375 | AG15: 0.6953125 | AH15: 0.65625 | AI15: 0.6171875 | AJ15: 0.578125 | AK15: 0.53125 | AL15: 0.484375 | AM15: 16.98158996 | AN15: =Z15*E15+($A$4-80)*AG15*$A$12/1000 -> 16.60083682 | AO15: =AA15*G15+($A$4-80)*AH15*$A$12/1000 -> 16.22008368 | AP15: 15.87740586 | AQ15: 15.53472803 | AR15: 15.1539749 | AS15: 14.77322176
A16: 900 | B16: 71 | C16: 21.04955649 | D16: 10.95198326 | E16: 20.58351464 | F16: 10.79865449 | G16: 20.1174728 | H16: 10.6412887 | I16: 19.65143096 | J16: 10.48815606 | K16: 19.18538912 | L16: 10.33059414 | M16: 18.7581841 | N16: 10.17698743 | O16: 18.33097908 | P16: 10.01989958 | R16: 1.156569038 | S16: 1.130962343 | T16: 1.105355649 | U16: 1.079748954 | V16: 1.054142259 | W16: 1.030669456 | X16: 1.007196653 | Y16: 0.520295203 | Z16: 0.524626366 | AA16: 0.528957529 | AB16: 0.5337095337 | AC16: 0.5384615385 | AD16: 0.542535854 | AE16: 0.5466101695 | AF16: 0.890625 | AG16: 0.890625 | AH16: 0.890625 | AI16: 0.890625 | AJ16: 0.890625 | AK16: 0.8828125 | AL16: 0.875 | AM16: =Y16*C16+($A$4-80)*AF16*$A$16/1000 -> 10.95198326 | AN16: =Z16*E16+($A$4-80)*AG16*$A$16/1000 -> 10.79865449 | AO16: =AA16*G16+($A$4-80)*AH16*$A$16/1000 -> 10.6412887 | AP16: =AB16*I16+($A$4-80)*AI16*$A$16/1000 -> 10.48815606 | AQ16: =AC16*K16+($A$4-80)*AJ16*$A$16/1000 -> 10.33059414 | AR16: =AD16*M16+($A$4-80)*AK16*$A$16/1000 -> 10.17698743 | AS16: =AE16*O16+($A$4-80)*AL16*$A$16/1000 -> 10.01989958
B17: 67 | C17: 19.41841004 | D17: 13.20451883 | E17: 18.99120502 | F17: 13.05228174 | G17: 18.564 | H17: 12.89382427 | I17: 18.13679498 | J17: 12.74188729 | K17: 17.70958996 | L17: 12.58312971 | M17: 17.28238494 | N17: 12.43153847 | O17: 16.85517992 | P17: 12.27243515 | R17: 1.066945607 | S17: 1.043472803 | T17: 1.02 | U17: 0.9965271967 | V17: 0.9730543933 | W17: 0.94958159 | X17: 0.9261087866 | Y17: 0.68 | Z17: 0.6872803347 | AA17: 0.6945606695 | AB17: 0.7025434926 | AC17: 0.7105263158 | AD17: 0.7193184574 | AE17: 0.7281105991 | AF17: 0.875 | AG17: 0.875 | AH17: 0.875 | AI17: 0.8828125 | AJ17: 0.890625 | AK17: 0.890625 | AL17: 0.890625 | AM17: =Y17*C17+($A$4-80)*AF17*$A$16/1000 -> 13.20451883 | AN17: =Z17*E17+($A$4-80)*AG17*$A$16/1000 -> 13.05228174 | AO17: =AA17*G17+($A$4-80)*AH17*$A$16/1000 -> 12.89382427 | AP17: =AB17*I17+($A$4-80)*AI17*$A$16/1000 -> 12.74188729 | AQ17: =AC17*K17+($A$4-80)*AJ17*$A$16/1000 -> 12.58312971 | AR17: =AD17*M17+($A$4-80)*AK17*$A$16/1000 -> 12.43153847 | AS17: =AE17*O17+($A$4-80)*AL17*$A$16/1000 -> 12.27243515
B18: 63 | C18: 18.1756318 | D18: 15.53472803 | E18: 17.7872636 | F18: 15.38332252 | G18: 17.3988954 | H18: 15.22403347 | I18: 16.97169038 | J18: 15.0743271 | K18: 16.54448536 | L18: 14.91333891 | M18: 16.15611715 | N18: 14.76278796 | O18: 15.76774895 | P18: 14.60264435 | R18: 0.9986610879 | S18: 0.9773221757 | T18: 0.9559832636 | U18: 0.9325104603 | V18: 0.9090376569 | W18: 0.8876987448 | X18: 0.8663598326 | Y18: 0.8547008547 | Z18: 0.8648504274 | AA18: 0.875 | AB18: 0.8882042254 | AC18: 0.9014084507 | AD18: 0.9137584125 | AE18: 0.9261083744 | AF18: 0.875 | AG18: 0.875 | AH18: 0.875 | AI18: 0.8828125 | AJ18: 0.890625 | AK18: 0.890625 | AL18: 0.890625 | AM18: 15.53472803 | AN18: =Z18*E18+($A$4-80)*AG18*$A$16/1000 -> 15.38332252 | AO18: =AA18*G18+($A$4-80)*AH18*$A$16/1000 -> 15.22403347 | AP18: 15.0743271 | AQ18: 14.91333891 | AR18: 14.76278796 | AS18: 14.60264435
B19: 59 | C19: 17.32122176 | D19: 17.32122176 | E19: 16.93285356 | F19: 16.93285356 | G19: 16.54448536 | H19: 16.54448536 | I19: 16.19495397 | J19: 16.19495397 | K19: 15.84542259 | L19: 15.84542259 | M19: 15.45705439 | N19: 15.45705439 | O19: 15.06868619 | P19: 15.06868619 | R19: 0.9517154812 | S19: 0.930376569 | T19: 0.9090376569 | U19: 0.889832636 | V19: 0.8706276151 | W19: 0.8492887029 | X19: 0.8279497908 | Y19: 1 | Z19: 1 | AA19: 1 | AB19: 1 | AC19: 1 | AD19: 1 | AE19: 1 | AF19: 0.734375 | AG19: 0.6953125 | AH19: 0.65625 | AI19: 0.6171875 | AJ19: 0.578125 | AK19: 0.53125 | AL19: 0.484375 | AM19: 17.32122176 | AN19: =Z19*E19+($A$4-80)*AG19*$A$16/1000 -> 16.93285356 | AO19: =AA19*G19+($A$4-80)*AH19*$A$16/1000 -> 16.54448536 | AP19: 16.19495397 | AQ19: 15.84542259 | AR19: 15.45705439 | AS19: 15.06868619

Sheet 4A7A40_25 (hidden)
A2: 4A7A40_25 | B2: 18.2
A3: Evaporator Air | C3: Condenser Entering Air Temperature ˚F
A4: 80 | B4: °F DB | C4: 85 | E4: 90 | G4: 95 | I4: 100 | K4: 105 | M4: 110 | O4: 115
A5: CFM | B5: EWB† ˚F | C5: Capacity Mbtuh | E5: Capacity Mbtuh | G5: Capacity Mbtuh | I5: Capacity Mbtuh | K5: Capacity Mbtuh | M5: Capacity Mbtuh | O5: Capacity Mbtuh
C6: Total | D6: Sens. | E6: Total | F6: Sens. | G6: Total | H6: Sens. | I6: Total | J6: Sens. | K6: Total | L6: Sens. | M6: Total | N6: Sens. | O6: Total | P6: Sens.
R7: Total Factors | Y7: Sens. % | AF7: IDB Adj | AM7: Sens Calc
A8: 700 | B8: 71 | C8: =R8*$B$2 -> 20.47837037 | D8: =IF(AM8>C8,C8,AM8) -> 11.1566749 | E8: =S8*$B$2 -> 19.92787654 | F8: =IF(AN8>E8,E8,AN8) -> 10.97648413 | G8: =T8*$B$2 -> 19.37738272 | H8: =IF(AO8>G8,G8,AO8) -> 10.78967901 | I8: =U8*$B$2 -> 18.7901893 | J8: =IF(AP8>I8,I8,AP8) -> 10.57292543 | K8: =V8*$B$2 -> 18.20299588 | L8: =IF(AQ8>K8,K8,AQ8) -> 10.34928395 | M8: =W8*$B$2 -> 17.65250206 | N8: =IF(AR8>M8,M8,AR8) -> 10.16995396 | O8: =X8*$B$2 -> 17.10200823 | P8: =IF(AS8>O8,O8,AS8) -> 9.982288066 | R8: 1.125185185 | S8: 1.094938272 | T8: 1.064691358 | U8: 1.032427984 | V8: 1.000164609 | W8: 0.9699176955 | X8: 0.9396707819 | Y8: 0.5448028674 | Z8: 0.5508105246 | AA8: 0.5568181818 | AB8: 0.5626832845 | AC8: 0.5685483871 | AD8: 0.5761196871 | AE8: 0.5836909871 | AF8: 1 | AG8: 1 | AH8: 1 | AI8: 1 | AJ8: 1 | AK8: 1 | AL8: 1 | AM8: =Y8*C8+($A$4-80)*AF8*$A$8/1000 -> 11.1566749 | AN8: =Z8*E8+($A$4-80)*AG8*$A$8/1000 -> 10.97648413 | AO8: =AA8*G8+($A$4-80)*AH8*$A$8/1000 -> 10.78967901 | AP8: =AB8*I8+($A$4-80)*AI8*$A$8/1000 -> 10.57292543 | AQ8: =AC8*K8+($A$4-80)*AJ8*$A$8/1000 -> 10.34928395 | AR8: =AD8*M8+($A$4-80)*AK8*$A$8/1000 -> 10.16995396 | AS8: =AE8*O8+($A$4-80)*AL8*$A$8/1000 -> 9.982288066
B9: 67 | C9: =R9*$B$2 -> 18.86358848 | D9: 13.57884774 | E9: 18.34979424 | F9: =IF(AN9>E9,E9,AN9) -> 13.36296124 | G9: 17.836 | H9: =IF(AO9>G9,G9,AO9) -> 13.13845267 | I9: 17.32220576 | J9: =IF(AP9>I9,I9,AP9) -> 12.9609147 | K9: 16.80841152 | L9: =IF(AQ9>K9,K9,AQ9) -> 12.77145679 | M9: 16.29461728 | N9: =IF(AR9>M9,M9,AR9) -> 12.59469499 | O9: 15.78082305 | P9: =IF(AS9>O9,O9,AS9) -> 12.40446091 | R9: 1.036460905 | S9: 1.008230453 | T9: 0.98 | U9: 0.9517695473 | V9: 0.9235390947 | W9: 0.895308642 | X9: 0.8670781893 | Y9: 0.719844358 | Z9: 0.7282349362 | AA9: 0.7366255144 | AB9: 0.748225421 | AC9: 0.7598253275 | AD9: 0.7729359196 | AE9: 0.7860465116 | AF9: 1 | AG9: 0.9921875 | AH9: 0.984375 | AI9: 0.9921875 | AJ9: 1 | AK9: 1 | AL9: 1 | AM9: =Y9*C9+($A$4-80)*AF9*$A$8/1000 -> 13.57884774 | AN9: =Z9*E9+($A$4-80)*AG9*$A$8/1000 -> 13.36296124 | AO9: =AA9*G9+($A$4-80)*AH9*$A$8/1000 -> 13.13845267 | AP9: =AB9*I9+($A$4-80)*AI9*$A$8/1000 -> 12.9609147 | AQ9: =AC9*K9+($A$4-80)*AJ9*$A$8/1000 -> 12.77145679 | AR9: =AD9*M9+($A$4-80)*AK9*$A$8/1000 -> 12.59469499 | AS9: =AE9*O9+($A$4-80)*AL9*$A$8/1000 -> 12.40446091
B10: 63 | C10: 17.61580247 | D10: 16.00102058 | E10: 17.13870782 | F10: 15.8246773 | G10: 16.66161317 | H10: 15.63402469 | I10: 16.18451852 | J10: 15.45855068 | K10: 15.70742387 | L10: 15.26702881 | M10: 15.23032922 | N10: 15.01681993 | O10: 14.75323457 | P10: 14.75323457 | R10: 0.9679012346 | S10: 0.9416872428 | T10: 0.915473251 | U10: 0.8892592593 | V10: 0.8630452675 | W10: 0.8368312757 | X10: 0.810617284 | Y10: 0.9083333333 | Z10: 0.9233296623 | AA10: 0.9383259912 | AB10: 0.955144304 | AC10: 0.9719626168 | AD10: 0.9859813084 | AE10: 1 | AF10: 0.984375 | AG10: 0.9921875 | AH10: 1 | AI10: 1 | AJ10: 1 | AK10: 0.984375 | AL10: 0.96875 | AM10: 16.00102058 | AN10: =Z10*E10+($A$4-80)*AG10*$A$8/1000 -> 15.8246773 | AO10: =AA10*G10+($A$4-80)*AH10*$A$8/1000 -> 15.63402469 | AP10: 15.45855068 | AQ10: 15.26702881 | AR10: 15.01681993 | AS10: 14.75323457
B11: 59 | C11: 16.80841152 | D11: 16.80841152 | E11: 16.36801646 | F11: 16.36801646 | G11: 15.9276214 | H11: 15.9276214 | I11: 15.45052675 | J11: 15.45052675 | K11: 14.9734321 | L11: 14.9734321 | M11: 14.53303704 | N11: 14.53303704 | O11: 14.09264198 | P11: 14.09264198 | R11: 0.9235390947 | S11: 0.8993415638 | T11: 0.8751440329 | U11: 0.8489300412 | V11: 0.8227160494 | W11: 0.7985185185 | X11: 0.7743209877 | Y11: 1 | Z11: 1 | AA11: 1 | AB11: 1 | AC11: 1 | AD11: 1 | AE11: 1 | AF11: 0.609375 | AG11: 0.5546875 | AH11: 0.5 | AI11: 0.4453125 | AJ11: 0.390625 | AK11: 0.3359375 | AL11: 0.28125 | AM11: 16.80841152 | AN11: =Z11*E11+($A$4-80)*AG11*$A$8/1000 -> 16.36801646 | AO11: =AA11*G11+($A$4-80)*AH11*$A$8/1000 -> 15.9276214 | AP11: =AB11*I11+($A$4-80)*AI11*$A$8/1000 -> 15.45052675 | AQ11: 14.9734321 | AR11: 14.53303704 | AS11: 14.09264198
A12: 800 | B12: 71 | C12: 20.8962963 | D12: 11.38436214 | E12: 20.3345679 | F12: 11.20049401 | G12: 19.77283951 | H12: 11.00987654 | I12: 19.17366255 | J12: 10.78869942 | K12: 18.5744856 | L12: 10.56049383 | M12: 18.0127572 | N12: 10.37750404 | O12: 17.45102881 | P12: 10.18600823 | R12: 1.148148148 | S12: 1.117283951 | T12: 1.086419753 | U12: 1.053497942 | V12: 1.020576132 | W12: 0.9897119342 | X12: 0.9588477366 | Y12: 0.5448028674 | Z12: 0.5508105246 | AA12: 0.5568181818 | AB12: 0.5626832845 | AC12: 0.5685483871 | AD12: 0.5761196871 | AE12: 0.5836909871 | AF12: 1 | AG12: 1 | AH12: 1 | AI12: 1 | AJ12: 1 | AK12: 1 | AL12: 1 | AM12: =Y12*C12+($A$4-80)*AF12*$A$12/1000 -> 11.38436214 | AN12: =Z12*E12+($A$4-80)*AG12*$A$12/1000 -> 11.20049401 | AO12: =AA12*G12+($A$4-80)*AH12*$A$12/1000 -> 11.00987654 | AP12: =AB12*I12+($A$4-80)*AI12*$A$12/1000 -> 10.78869942 | AQ12: =AC12*K12+($A$4-80)*AJ12*$A$12/1000 -> 10.56049383 | AR12: =AD12*M12+($A$4-80)*AK12*$A$12/1000 -> 10.37750404 | AS12: =AE12*O12+($A$4-80)*AL12*$A$12/1000 -> 10.18600823
B13: 67 | C13: 19.24855967 | D13: 13.85596708 | E13: 18.72427984 | F13: 13.63567473 | G13: 18.2 | H13: 13.40658436 | I13: 17.67572016 | J13: 13.22542316 | K13: 17.15144033 | L13: 13.03209877 | M13: 16.62716049 | N13: 12.85172959 | O13: 16.10288066 | P13: 12.65761317 | R13: 1.057613169 | S13: 1.028806584 | T13: 1 | U13: 0.9711934156 | V13: 0.9423868313 | W13: 0.9135802469 | X13: 0.8847736626 | Y13: 0.719844358 | Z13: 0.7282349362 | AA13: 0.7366255144 | AB13: 0.748225421 | AC13: 0.7598253275 | AD13: 0.7729359196 | AE13: 0.7860465116 | AF13: 1 | AG13: 0.9921875 | AH13: 0.984375 | AI13: 0.9921875 | AJ13: 1 | AK13: 1 | AL13: 1 | AM13: =Y13*C13+($A$4-80)*AF13*$A$12/1000 -> 13.85596708 | AN13: =Z13*E13+($A$4-80)*AG13*$A$12/1000 -> 13.63567473 | AO13: =AA13*G13+($A$4-80)*AH13*$A$12/1000 -> 13.40658436 | AP13: =AB13*I13+($A$4-80)*AI13*$A$12/1000 -> 13.22542316 | AQ13: =AC13*K13+($A$4-80)*AJ13*$A$12/1000 -> 13.03209877 | AR13: =AD13*M13+($A$4-80)*AK13*$A$12/1000 -> 12.85172959 | AS13: =AE13*O13+($A$4-80)*AL13*$A$12/1000 -> 12.65761317
B14: 63 | C14: 17.97530864 | D14: 16.32757202 | E14: 17.48847737 | F14: 16.1476299 | G14: 17.00164609 | H14: 15.95308642 | I14: 16.51481481 | J14: 15.7740313 | K14: 16.02798354 | L14: 15.57860082 | M14: 15.54115226 | N14: 15.32328564 | O14: 15.05432099 | P14: 15.05432099 | R14: 0.987654321 | S14: 0.9609053498 | T14: 0.9341563786 | U14: 0.9074074074 | V14: 0.8806584362 | W14: 0.853909465 | X14: 0.8271604938 | Y14: 0.9083333333 | Z14: 0.9233296623 | AA14: 0.9383259912 | AB14: 0.955144304 | AC14: 0.9719626168 | AD14: 0.9859813084 | AE14: 1 | AF14: 0.984375 | AG14: 0.9921875 | AH14: 1 | AI14: 1 | AJ14: 1 | AK14: 0.984375 | AL14: 0.96875 | AM14: 16.32757202 | AN14: =Z14*E14+($A$4-80)*AG14*$A$12/1000 -> 16.1476299 | AO14: =AA14*G14+($A$4-80)*AH14*$A$12/1000 -> 15.95308642 | AP14: 15.7740313 | AQ14: 15.57860082 | AR14: 15.32328564 | AS14: 15.05432099
B15: 59 | C15: 17.15144033 | D15: 17.15144033 | E15: 16.70205761 | F15: 16.70205761 | G15: 16.2526749 | H15: 16.2526749 | I15: 15.76584362 | J15: 15.76584362 | K15: 15.27901235 | L15: 15.27901235 | M15: 14.82962963 | N15: 14.82962963 | O15: 14.38024691 | P15: 14.38024691 | R15: 0.9423868313 | S15: 0.9176954733 | T15: 0.8930041152 | U15: 0.866255144 | V15: 0.8395061728 | W15: 0.8148148148 | X15: 0.7901234568 | Y15: 1 | Z15: 1 | AA15: 1 | AB15: 1 | AC15: 1 | AD15: 1 | AE15: 1 | AF15: 0.609375 | AG15: 0.5546875 | AH15: 0.5 | AI15: 0.4453125 | AJ15: 0.390625 | AK15: 0.3359375 | AL15: 0.28125 | AM15: 17.15144033 | AN15: =Z15*E15+($A$4-80)*AG15*$A$12/1000 -> 16.70205761 | AO15: =AA15*G15+($A$4-80)*AH15*$A$12/1000 -> 16.2526749 | AP15: 15.76584362 | AQ15: 15.27901235 | AR15: 14.82962963 | AS15: 14.38024691
A16: 900 | B16: 71 | C16: 21.31422222 | D16: 11.61204938 | E16: 20.74125926 | F16: 11.42450389 | G16: 20.1682963 | H16: 11.23007407 | I16: 19.5571358 | J16: 11.00447341 | K16: 18.94597531 | L16: 10.7717037 | M16: 18.37301235 | N16: 10.58505412 | O16: 17.80004938 | P16: 10.3897284 | R16: 1.171111111 | S16: 1.13962963 | T16: 1.108148148 | U16: 1.074567901 | V16: 1.040987654 | W16: 1.009506173 | X16: 0.9780246914 | Y16: 0.5448028674 | Z16: 0.5508105246 | AA16: 0.5568181818 | AB16: 0.5626832845 | AC16: 0.5685483871 | AD16: 0.5761196871 | AE16: 0.5836909871 | AF16: 1 | AG16: 1 | AH16: 1 | AI16: 1 | AJ16: 1 | AK16: 1 | AL16: 1 | AM16: =Y16*C16+($A$4-80)*AF16*$A$16/1000 -> 11.61204938 | AN16: =Z16*E16+($A$4-80)*AG16*$A$16/1000 -> 11.42450389 | AO16: =AA16*G16+($A$4-80)*AH16*$A$16/1000 -> 11.23007407 | AP16: =AB16*I16+($A$4-80)*AI16*$A$16/1000 -> 11.00447341 | AQ16: =AC16*K16+($A$4-80)*AJ16*$A$16/1000 -> 10.7717037 | AR16: =AD16*M16+($A$4-80)*AK16*$A$16/1000 -> 10.58505412 | AS16: =AE16*O16+($A$4-80)*AL16*$A$16/1000 -> 10.3897284
B17: 67 | C17: 19.63353086 | D17: 14.13308642 | E17: 19.09876543 | F17: 13.90838823 | G17: 18.564 | H17: 13.67471605 | I17: 18.02923457 | J17: 13.48993162 | K17: 17.49446914 | L17: 13.29274074 | M17: 16.9597037 | N17: 13.10876418 | O17: 16.42493827 | P17: 12.91076543 | R17: 1.078765432 | S17: 1.049382716 | T17: 1.02 | U17: 0.990617284 | V17: 0.9612345679 | W17: 0.9318518519 | X17: 0.9024691358 | Y17: 0.719844358 | Z17: 0.7282349362 | AA17: 0.7366255144 | AB17: 0.748225421 | AC17: 0.7598253275 | AD17: 0.7729359196 | AE17: 0.7860465116 | AF17: 1 | AG17: 0.9921875 | AH17: 0.984375 | AI17: 0.9921875 | AJ17: 1 | AK17: 1 | AL17: 1 | AM17: =Y17*C17+($A$4-80)*AF17*$A$16/1000 -> 14.13308642 | AN17: =Z17*E17+($A$4-80)*AG17*$A$16/1000 -> 13.90838823 | AO17: =AA17*G17+($A$4-80)*AH17*$A$16/1000 -> 13.67471605 | AP17: =AB17*I17+($A$4-80)*AI17*$A$16/1000 -> 13.48993162 | AQ17: =AC17*K17+($A$4-80)*AJ17*$A$16/1000 -> 13.29274074 | AR17: =AD17*M17+($A$4-80)*AK17*$A$16/1000 -> 13.10876418 | AS17: =AE17*O17+($A$4-80)*AL17*$A$16/1000 -> 12.91076543
B18: 63 | C18: 18.33481481 | D18: 16.65412346 | E18: 17.83824691 | F18: 16.4705825 | G18: 17.34167901 | H18: 16.27214815 | I18: 16.84511111 | J18: 16.08951193 | K18: 16.34854321 | L18: 15.89017284 | M18: 15.85197531 | N18: 15.62975136 | O18: 15.35540741 | P18: 15.35540741 | R18: 1.007407407 | S18: 0.9801234568 | T18: 0.9528395062 | U18: 0.9255555556 | V18: 0.8982716049 | W18: 0.8709876543 | X18: 0.8437037037 | Y18: 0.9083333333 | Z18: 0.9233296623 | AA18: 0.9383259912 | AB18: 0.955144304 | AC18: 0.9719626168 | AD18: 0.9859813084 | AE18: 1 | AF18: 0.984375 | AG18: 0.9921875 | AH18: 1 | AI18: 1 | AJ18: 1 | AK18: 0.984375 | AL18: 0.96875 | AM18: 16.65412346 | AN18: =Z18*E18+($A$4-80)*AG18*$A$16/1000 -> 16.4705825 | AO18: =AA18*G18+($A$4-80)*AH18*$A$16/1000 -> 16.27214815 | AP18: 16.08951193 | AQ18: 15.89017284 | AR18: 15.62975136 | AS18: 15.35540741
B19: 59 | C19: 17.49446914 | D19: 17.49446914 | E19: 17.03609877 | F19: 17.03609877 | G19: 16.5777284 | H19: 16.5777284 | I19: 16.08116049 | J19: 16.08116049 | K19: 15.58459259 | L19: 15.58459259 | M19: 15.12622222 | N19: 15.12622222 | O19: 14.66785185 | P19: 14.66785185 | R19: 0.9612345679 | S19: 0.9360493827 | T19: 0.9108641975 | U19: 0.8835802469 | V19: 0.8562962963 | W19: 0.8311111111 | X19: 0.8059259259 | Y19: 1 | Z19: 1 | AA19: 1 | AB19: 1 | AC19: 1 | AD19: 1 | AE19: 1 | AF19: 0.609375 | AG19: 0.5546875 | AH19: 0.5 | AI19: 0.4453125 | AJ19: 0.390625 | AK19: 0.3359375 | AL19: 0.28125 | AM19: 17.49446914 | AN19: =Z19*E19+($A$4-80)*AG19*$A$16/1000 -> 17.03609877 | AO19: =AA19*G19+($A$4-80)*AH19*$A$16/1000 -> 16.5777284 | AP19: 16.08116049 | AQ19: 15.58459259 | AR19: 15.12622222 | AS19: 14.66785185

Sheet 4A7A40_30 (hidden)
A2: 4A7A40_30 | B2: 18.2
A3: Evaporator Air | C3: Condenser Entering Air Temperature ˚F
A4: 80 | B4: °F DB | C4: 85 | E4: 90 | G4: 95 | I4: 100 | K4: 105 | M4: 110 | O4: 115
A5: CFM | B5: EWB† ˚F | C5: Capacity Mbtuh | E5: Capacity Mbtuh | G5: Capacity Mbtuh | I5: Capacity Mbtuh | K5: Capacity Mbtuh | M5: Capacity Mbtuh | O5: Capacity Mbtuh
C6: Total | D6: Sens. | E6: Total | F6: Sens. | G6: Total | H6: Sens. | I6: Total | J6: Sens. | K6: Total | L6: Sens. | M6: Total | N6: Sens. | O6: Total | P6: Sens.
R7: Total Factors | Y7: Sens. % | AF7: IDB Adj | AM7: Sens Calc
A8: 875 | B8: 71 | C8: =R8*$B$2 -> 20.35764138 | D8: =IF(AM8>C8,C8,AM8) -> 11.25513103 | E8: =S8*$B$2 -> 19.83486207 | F8: =IF(AN8>E8,E8,AN8) -> 11.07345002 | G8: =T8*$B$2 -> 19.31208276 | H8: =IF(AO8>G8,G8,AO8) -> 10.88611034 | I8: =U8*$B$2 -> 18.82005517 | J8: =IF(AP8>I8,I8,AP8) -> 10.70409242 | K8: =V8*$B$2 -> 18.32802759 | L8: =IF(AQ8>K8,K8,AQ8) -> 10.51708966 | M8: =W8*$B$2 -> 17.80524828 | N8: =IF(AR8>M8,M8,AR8) -> 10.36775423 | O8: =X8*$B$2 -> 17.28246897 | P8: =IF(AS8>O8,O8,AS8) -> 10.20957241 | R8: 1.118551724 | S8: 1.089827586 | T8: 1.061103448 | U8: 1.034068966 | V8: 1.007034483 | W8: 0.9783103448 | X8: 0.9495862069 | Y8: 0.5528700906 | Z8: 0.5582821791 | AA8: 0.5636942675 | AB8: 0.5687598854 | AC8: 0.5738255034 | AD8: 0.5822864172 | AE8: 0.590747331 | AF8: 0.9875 | AG8: 0.9875 | AH8: 0.9875 | AI8: 0.98125 | AJ8: 0.975 | AK8: 0.98125 | AL8: 0.9875 | AM8: =Y8*C8+($A$4-80)*AF8*$A$8/1000 -> 11.25513103 | AN8: =Z8*E8+($A$4-80)*AG8*$A$8/1000 -> 11.07345002 | AO8: =AA8*G8+($A$4-80)*AH8*$A$8/1000 -> 10.88611034 | AP8: =AB8*I8+($A$4-80)*AI8*$A$8/1000 -> 10.70409242 | AQ8: =AC8*K8+($A$4-80)*AJ8*$A$8/1000 -> 10.51708966 | AR8: =AD8*M8+($A$4-80)*AK8*$A$8/1000 -> 10.36775423 | AS8: =AE8*O8+($A$4-80)*AL8*$A$8/1000 -> 10.20957241
B9: 67 | C9: =R9*$B$2 -> 18.75855172 | D9: 13.71526897 | E9: 18.29727586 | F9: =IF(AN9>E9,E9,AN9) -> 13.53470906 | G9: 17.836 | H9: =IF(AO9>G9,G9,AO9) -> 13.34624828 | I9: 17.34397241 | J9: =IF(AP9>I9,I9,AP9) -> 13.16710033 | K9: 16.85194483 | L9: =IF(AQ9>K9,K9,AQ9) -> 12.97722759 | M9: 16.39066897 | N9: =IF(AR9>M9,M9,AR9) -> 12.82930268 | O9: 15.9293931 | P9: =IF(AS9>O9,O9,AS9) -> 12.66971034 | R9: 1.030689655 | S9: 1.005344828 | T9: 0.98 | U9: 0.9529655172 | V9: 0.9259310345 | W9: 0.9005862069 | X9: 0.8752413793 | Y9: 0.731147541 | Z9: 0.7397117015 | AA9: 0.7482758621 | AB9: 0.7591744274 | AC9: 0.7700729927 | AD9: 0.782719894 | AE9: 0.7953667954 | AF9: 0.9875 | AG9: 0.98125 | AH9: 0.975 | AI9: 0.975 | AJ9: 0.975 | AK9: 0.98125 | AL9: 0.9875 | AM9: =Y9*C9+($A$4-80)*AF9*$A$8/1000 -> 13.71526897 | AN9: =Z9*E9+($A$4-80)*AG9*$A$8/1000 -> 13.53470906 | AO9: =AA9*G9+($A$4-80)*AH9*$A$8/1000 -> 13.34624828 | AP9: =AB9*I9+($A$4-80)*AI9*$A$8/1000 -> 13.16710033 | AQ9: =AC9*K9+($A$4-80)*AJ9*$A$8/1000 -> 12.97722759 | AR9: =AD9*M9+($A$4-80)*AK9*$A$8/1000 -> 12.82930268 | AS9: =AE9*O9+($A$4-80)*AL9*$A$8/1000 -> 12.66971034
B10: 63 | C10: 17.58998621 | D10: 16.29841379 | E10: 17.12871034 | F10: 16.12062565 | G10: 16.66743448 | H10: 15.9293931 | I10: 16.23691034 | J10: 15.75106428 | K10: 15.80638621 | L10: 15.56037241 | M10: 15.34511034 | N10: 15.22569314 | O10: 14.88383448 | P10: 14.88383448 | R10: 0.9664827586 | S10: 0.941137931 | T10: 0.9157931034 | U10: 0.892137931 | V10: 0.8684827586 | W10: 0.843137931 | X10: 0.8177931034 | Y10: 0.9265734266 | Z10: 0.9411464919 | AA10: 0.9557195572 | AB10: 0.9700776774 | AC10: 0.9844357977 | AD10: 0.9922178988 | AE10: 1 | AF10: 0.9875 | AG10: 0.9875 | AH10: 0.9875 | AI10: 0.98125 | AJ10: 0.975 | AK10: 0.94375 | AL10: 0.9125 | AM10: 16.29841379 | AN10: =Z10*E10+($A$4-80)*AG10*$A$8/1000 -> 16.12062565 | AO10: =AA10*G10+($A$4-80)*AH10*$A$8/1000 -> 15.9293931 | AP10: 15.75106428 | AQ10: 15.56037241 | AR10: 15.22569314 | AS10: 14.88383448
B11: 59 | C11: 16.72893793 | D11: 16.72893793 | E11: 16.32916552 | F11: 16.32916552 | G11: 15.9293931 | H11: 15.9293931 | I11: 15.49886897 | J11: 15.49886897 | K11: 15.06834483 | L11: 15.06834483 | M11: 14.63782069 | N11: 14.63782069 | O11: 14.20729655 | P11: 14.20729655 | R11: 0.9191724138 | S11: 0.8972068966 | T11: 0.8752413793 | U11: 0.8515862069 | V11: 0.8279310345 | W11: 0.8042758621 | X11: 0.7806206897 | Y11: 1 | Z11: 1 | AA11: 1 | AB11: 1 | AC11: 1 | AD11: 1 | AE11: 1 | AF11: 0.525 | AG11: 0.48125 | AH11: 0.4375 | AI11: 0.3875 | AJ11: 0.3375 | AK11: 0.2875 | AL11: 0.2375 | AM11: 16.72893793 | AN11: =Z11*E11+($A$4-80)*AG11*$A$8/1000 -> 16.32916552 | AO11: =AA11*G11+($A$4-80)*AH11*$A$8/1000 -> 15.9293931 | AP11: =AB11*I11+($A$4-80)*AI11*$A$8/1000 -> 15.49886897 | AQ11: 15.06834483 | AR11: 14.63782069 | AS11: 14.20729655
A12: 1000 | B12: 71 | C12: 20.77310345 | D12: 11.48482759 | E12: 20.23965517 | F12: 11.29943879 | G12: 19.7062069 | H12: 11.10827586 | I12: 19.20413793 | J12: 10.92254329 | K12: 18.70206897 | L12: 10.73172414 | M12: 18.16862069 | N12: 10.57934105 | O12: 17.63517241 | P12: 10.41793103 | R12: 1.14137931 | S12: 1.112068966 | T12: 1.082758621 | U12: 1.055172414 | V12: 1.027586207 | W12: 0.9982758621 | X12: 0.9689655172 | Y12: 0.5528700906 | Z12: 0.5582821791 | AA12: 0.5636942675 | AB12: 0.5687598854 | AC12: 0.5738255034 | AD12: 0.5822864172 | AE12: 0.590747331 | AF12: 0.9875 | AG12: 0.9875 | AH12: 0.9875 | AI12: 0.98125 | AJ12: 0.975 | AK12: 0.98125 | AL12: 0.9875 | AM12: =Y12*C12+($A$4-80)*AF12*$A$12/1000 -> 11.48482759 | AN12: =Z12*E12+($A$4-80)*AG12*$A$12/1000 -> 11.29943879 | AO12: =AA12*G12+($A$4-80)*AH12*$A$12/1000 -> 11.10827586 | AP12: =AB12*I12+($A$4-80)*AI12*$A$12/1000 -> 10.92254329 | AQ12: =AC12*K12+($A$4-80)*AJ12*$A$12/1000 -> 10.73172414 | AR12: =AD12*M12+($A$4-80)*AK12*$A$12/1000 -> 10.57934105 | AS12: =AE12*O12+($A$4-80)*AL12*$A$12/1000 -> 10.41793103
B13: 67 | C13: 19.14137931 | D13: 13.99517241 | E13: 18.67068966 | F13: 13.81092761 | G13: 18.2 | H13: 13.61862069 | I13: 17.69793103 | J13: 13.43581666 | K13: 17.19586207 | L13: 13.24206897 | M13: 16.72517241 | N13: 13.09112518 | O13: 16.25448276 | P13: 12.92827586 | R13: 1.051724138 | S13: 1.025862069 | T13: 1 | U13: 0.9724137931 | V13: 0.9448275862 | W13: 0.9189655172 | X13: 0.8931034483 | Y13: 0.731147541 | Z13: 0.7397117015 | AA13: 0.7482758621 | AB13: 0.7591744274 | AC13: 0.7700729927 | AD13: 0.782719894 | AE13: 0.7953667954 | AF13: 0.9875 | AG13: 0.98125 | AH13: 0.975 | AI13: 0.975 | AJ13: 0.975 | AK13: 0.98125 | AL13: 0.9875 | AM13: =Y13*C13+($A$4-80)*AF13*$A$12/1000 -> 13.99517241 | AN13: =Z13*E13+($A$4-80)*AG13*$A$12/1000 -> 13.81092761 | AO13: =AA13*G13+($A$4-80)*AH13*$A$12/1000 -> 13.61862069 | AP13: =AB13*I13+($A$4-80)*AI13*$A$12/1000 -> 13.43581666 | AQ13: =AC13*K13+($A$4-80)*AJ13*$A$12/1000 -> 13.24206897 | AR13: =AD13*M13+($A$4-80)*AK13*$A$12/1000 -> 13.09112518 | AS13: =AE13*O13+($A$4-80)*AL13*$A$12/1000 -> 12.92827586
B14: 63 | C14: 17.94896552 | D14: 16.63103448 | E14: 17.47827586 | F14: 16.44961801 | G14: 17.00758621 | H14: 16.25448276 | I14: 16.56827586 | J14: 16.07251457 | K14: 16.12896552 | L14: 15.87793103 | M14: 15.65827586 | N14: 15.53642158 | O14: 15.18758621 | P14: 15.18758621 | R14: 0.9862068966 | S14: 0.9603448276 | T14: 0.9344827586 | U14: 0.9103448276 | V14: 0.8862068966 | W14: 0.8603448276 | X14: 0.8344827586 | Y14: 0.9265734266 | Z14: 0.9411464919 | AA14: 0.9557195572 | AB14: 0.9700776774 | AC14: 0.9844357977 | AD14: 0.9922178988 | AE14: 1 | AF14: 0.9875 | AG14: 0.9875 | AH14: 0.9875 | AI14: 0.98125 | AJ14: 0.975 | AK14: 0.94375 | AL14: 0.9125 | AM14: 16.63103448 | AN14: =Z14*E14+($A$4-80)*AG14*$A$12/1000 -> 16.44961801 | AO14: =AA14*G14+($A$4-80)*AH14*$A$12/1000 -> 16.25448276 | AP14: 16.07251457 | AQ14: 15.87793103 | AR14: 15.53642158 | AS14: 15.18758621
B15: 59 | C15: 17.07034483 | D15: 17.07034483 | E15: 16.66241379 | F15: 16.66241379 | G15: 16.25448276 | H15: 16.25448276 | I15: 15.81517241 | J15: 15.81517241 | K15: 15.37586207 | L15: 15.37586207 | M15: 14.93655172 | N15: 14.93655172 | O15: 14.49724138 | P15: 14.49724138 | R15: 0.9379310345 | S15: 0.9155172414 | T15: 0.8931034483 | U15: 0.8689655172 | V15: 0.8448275862 | W15: 0.8206896552 | X15: 0.7965517241 | Y15: 1 | Z15: 1 | AA15: 1 | AB15: 1 | AC15: 1 | AD15: 1 | AE15: 1 | AF15: 0.525 | AG15: 0.48125 | AH15: 0.4375 | AI15: 0.3875 | AJ15: 0.3375 | AK15: 0.2875 | AL15: 0.2375 | AM15: 17.07034483 | AN15: =Z15*E15+($A$4-80)*AG15*$A$12/1000 -> 16.66241379 | AO15: =AA15*G15+($A$4-80)*AH15*$A$12/1000 -> 16.25448276 | AP15: 15.81517241 | AQ15: 15.37586207 | AR15: 14.93655172 | AS15: 14.49724138
A16: 1125 | B16: 71 | C16: 21.18856552 | D16: 11.71452414 | E16: 20.64444828 | F16: 11.52542757 | G16: 20.10033103 | H16: 11.33044138 | I16: 19.58822069 | J16: 11.14099416 | K16: 19.07611034 | L16: 10.94635862 | M16: 18.5319931 | N16: 10.79092787 | O16: 17.98787586 | P16: 10.62628966 | R16: 1.164206897 | S16: 1.134310345 | T16: 1.104413793 | U16: 1.076275862 | V16: 1.048137931 | W16: 1.018241379 | X16: 0.9883448276 | Y16: 0.5528700906 | Z16: 0.5582821791 | AA16: 0.5636942675 | AB16: 0.5687598854 | AC16: 0.5738255034 | AD16: 0.5822864172 | AE16: 0.590747331 | AF16: 0.9875 | AG16: 0.9875 | AH16: 0.9875 | AI16: 0.98125 | AJ16: 0.975 | AK16: 0.98125 | AL16: 0.9875 | AM16: =Y16*C16+($A$4-80)*AF16*$A$16/1000 -> 11.71452414 | AN16: =Z16*E16+($A$4-80)*AG16*$A$16/1000 -> 11.52542757 | AO16: =AA16*G16+($A$4-80)*AH16*$A$16/1000 -> 11.33044138 | AP16: =AB16*I16+($A$4-80)*AI16*$A$16/1000 -> 11.14099416 | AQ16: =AC16*K16+($A$4-80)*AJ16*$A$16/1000 -> 10.94635862 | AR16: =AD16*M16+($A$4-80)*AK16*$A$16/1000 -> 10.79092787 | AS16: =AE16*O16+($A$4-80)*AL16*$A$16/1000 -> 10.62628966
B17: 67 | C17: 19.5242069 | D17: 14.27507586 | E17: 19.04410345 | F17: 14.08714617 | G17: 18.564 | H17: 13.8909931 | I17: 18.05188966 | J17: 13.70453299 | K17: 17.53977931 | L17: 13.50691034 | M17: 17.05967586 | N17: 13.35294768 | O17: 16.57957241 | P17: 13.18684138 | R17: 1.072758621 | S17: 1.04637931 | T17: 1.02 | U17: 0.991862069 | V17: 0.9637241379 | W17: 0.9373448276 | X17: 0.9109655172 | Y17: 0.731147541 | Z17: 0.7397117015 | AA17: 0.7482758621 | AB17: 0.7591744274 | AC17: 0.7700729927 | AD17: 0.782719894 | AE17: 0.7953667954 | AF17: 0.9875 | AG17: 0.98125 | AH17: 0.975 | AI17: 0.975 | AJ17: 0.975 | AK17: 0.98125 | AL17: 0.9875 | AM17: =Y17*C17+($A$4-80)*AF17*$A$16/1000 -> 14.27507586 | AN17: =Z17*E17+($A$4-80)*AG17*$A$16/1000 -> 14.08714617 | AO17: =AA17*G17+($A$4-80)*AH17*$A$16/1000 -> 13.8909931 | AP17: =AB17*I17+($A$4-80)*AI17*$A$16/1000 -> 13.70453299 | AQ17: =AC17*K17+($A$4-80)*AJ17*$A$16/1000 -> 13.50691034 | AR17: =AD17*M17+($A$4-80)*AK17*$A$16/1000 -> 13.35294768 | AS17: =AE17*O17+($A$4-80)*AL17*$A$16/1000 -> 13.18684138
B18: 63 | C18: 18.30794483 | D18: 16.96365517 | E18: 17.82784138 | F18: 16.77861037 | G18: 17.34773793 | H18: 16.57957241 | I18: 16.89964138 | J18: 16.39396486 | K18: 16.45154483 | L18: 16.19548966 | M18: 15.97144138 | N18: 15.84715001 | O18: 15.49133793 | P18: 15.49133793 | R18: 1.005931034 | S18: 0.9795517241 | T18: 0.9531724138 | U18: 0.9285517241 | V18: 0.9039310345 | W18: 0.8775517241 | X18: 0.8511724138 | Y18: 0.9265734266 | Z18: 0.9411464919 | AA18: 0.9557195572 | AB18: 0.9700776774 | AC18: 0.9844357977 | AD18: 0.9922178988 | AE18: 1 | AF18: 0.9875 | AG18: 0.9875 | AH18: 0.9875 | AI18: 0.98125 | AJ18: 0.975 | AK18: 0.94375 | AL18: 0.9125 | AM18: 16.96365517 | AN18: =Z18*E18+($A$4-80)*AG18*$A$16/1000 -> 16.77861037 | AO18: =AA18*G18+($A$4-80)*AH18*$A$16/1000 -> 16.57957241 | AP18: 16.39396486 | AQ18: 16.19548966 | AR18: 15.84715001 | AS18: 15.49133793
B19: 59 | C19: 17.41175172 | D19: 17.41175172 | E19: 16.99566207 | F19: 16.99566207 | G19: 16.57957241 | H19: 16.57957241 | I19: 16.13147586 | J19: 16.13147586 | K19: 15.68337931 | L19: 15.68337931 | M19: 15.23528276 | N19: 15.23528276 | O19: 14.78718621 | P19: 14.78718621 | R19: 0.9566896552 | S19: 0.9338275862 | T19: 0.9109655172 | U19: 0.8863448276 | V19: 0.8617241379 | W19: 0.8371034483 | X19: 0.8124827586 | Y19: 1 | Z19: 1 | AA19: 1 | AB19: 1 | AC19: 1 | AD19: 1 | AE19: 1 | AF19: 0.525 | AG19: 0.48125 | AH19: 0.4375 | AI19: 0.3875 | AJ19: 0.3375 | AK19: 0.2875 | AL19: 0.2375 | AM19: 17.41175172 | AN19: =Z19*E19+($A$4-80)*AG19*$A$16/1000 -> 16.99566207 | AO19: =AA19*G19+($A$4-80)*AH19*$A$16/1000 -> 16.57957241 | AP19: 16.13147586 | AQ19: 15.68337931 | AR19: 15.23528276 | AS19: 14.78718621

Sheet 4A7A40_31 (hidden)
A2: 4A7A40_31 | B2: 18.2
A3: Evaporator Air | C3: Condenser Entering Air Temperature ˚F
A4: 80 | B4: °F DB | C4: 85 | E4: 90 | G4: 95 | I4: 100 | K4: 105 | M4: 110 | O4: 115
A5: CFM | B5: EWB† ˚F | C5: Capacity Mbtuh | E5: Capacity Mbtuh | G5: Capacity Mbtuh | I5: Capacity Mbtuh | K5: Capacity Mbtuh | M5: Capacity Mbtuh | O5: Capacity Mbtuh
C6: Total | D6: Sens. | E6: Total | F6: Sens. | G6: Total | H6: Sens. | I6: Total | J6: Sens. | K6: Total | L6: Sens. | M6: Total | N6: Sens. | O6: Total | P6: Sens.
R7: Total Factors | Y7: Sens. % | AF7: IDB Adj | AM7: Sens Calc
A8: 875 | B8: 71 | C8: =R8*$B$2 -> 20.35764138 | D8: =IF(AM8>C8,C8,AM8) -> 11.25513103 | E8: =S8*$B$2 -> 19.83486207 | F8: =IF(AN8>E8,E8,AN8) -> 11.07345002 | G8: =T8*$B$2 -> 19.31208276 | H8: =IF(AO8>G8,G8,AO8) -> 10.88611034 | I8: =U8*$B$2 -> 18.82005517 | J8: =IF(AP8>I8,I8,AP8) -> 10.70409242 | K8: =V8*$B$2 -> 18.32802759 | L8: =IF(AQ8>K8,K8,AQ8) -> 10.51708966 | M8: =W8*$B$2 -> 17.80524828 | N8: =IF(AR8>M8,M8,AR8) -> 10.36775423 | O8: =X8*$B$2 -> 17.28246897 | P8: =IF(AS8>O8,O8,AS8) -> 10.20957241 | R8: 1.118551724 | S8: 1.089827586 | T8: 1.061103448 | U8: 1.034068966 | V8: 1.007034483 | W8: 0.9783103448 | X8: 0.9495862069 | Y8: 0.5528700906 | Z8: 0.5582821791 | AA8: 0.5636942675 | AB8: 0.5687598854 | AC8: 0.5738255034 | AD8: 0.5822864172 | AE8: 0.590747331 | AF8: 0.9875 | AG8: 0.9875 | AH8: 0.9875 | AI8: 0.98125 | AJ8: 0.975 | AK8: 0.98125 | AL8: 0.9875 | AM8: =Y8*C8+($A$4-80)*AF8*$A$8/1000 -> 11.25513103 | AN8: =Z8*E8+($A$4-80)*AG8*$A$8/1000 -> 11.07345002 | AO8: =AA8*G8+($A$4-80)*AH8*$A$8/1000 -> 10.88611034 | AP8: =AB8*I8+($A$4-80)*AI8*$A$8/1000 -> 10.70409242 | AQ8: =AC8*K8+($A$4-80)*AJ8*$A$8/1000 -> 10.51708966 | AR8: =AD8*M8+($A$4-80)*AK8*$A$8/1000 -> 10.36775423 | AS8: =AE8*O8+($A$4-80)*AL8*$A$8/1000 -> 10.20957241
B9: 67 | C9: =R9*$B$2 -> 18.75855172 | D9: 13.71526897 | E9: 18.29727586 | F9: =IF(AN9>E9,E9,AN9) -> 13.53470906 | G9: 17.836 | H9: =IF(AO9>G9,G9,AO9) -> 13.34624828 | I9: 17.34397241 | J9: =IF(AP9>I9,I9,AP9) -> 13.16710033 | K9: 16.85194483 | L9: =IF(AQ9>K9,K9,AQ9) -> 12.97722759 | M9: 16.39066897 | N9: =IF(AR9>M9,M9,AR9) -> 12.82930268 | O9: 15.9293931 | P9: =IF(AS9>O9,O9,AS9) -> 12.66971034 | R9: 1.030689655 | S9: 1.005344828 | T9: 0.98 | U9: 0.9529655172 | V9: 0.9259310345 | W9: 0.9005862069 | X9: 0.8752413793 | Y9: 0.731147541 | Z9: 0.7397117015 | AA9: 0.7482758621 | AB9: 0.7591744274 | AC9: 0.7700729927 | AD9: 0.782719894 | AE9: 0.7953667954 | AF9: 0.9875 | AG9: 0.98125 | AH9: 0.975 | AI9: 0.975 | AJ9: 0.975 | AK9: 0.98125 | AL9: 0.9875 | AM9: =Y9*C9+($A$4-80)*AF9*$A$8/1000 -> 13.71526897 | AN9: =Z9*E9+($A$4-80)*AG9*$A$8/1000 -> 13.53470906 | AO9: =AA9*G9+($A$4-80)*AH9*$A$8/1000 -> 13.34624828 | AP9: =AB9*I9+($A$4-80)*AI9*$A$8/1000 -> 13.16710033 | AQ9: =AC9*K9+($A$4-80)*AJ9*$A$8/1000 -> 12.97722759 | AR9: =AD9*M9+($A$4-80)*AK9*$A$8/1000 -> 12.82930268 | AS9: =AE9*O9+($A$4-80)*AL9*$A$8/1000 -> 12.66971034
B10: 63 | C10: 17.58998621 | D10: 16.29841379 | E10: 17.12871034 | F10: 16.12062565 | G10: 16.66743448 | H10: 15.9293931 | I10: 16.23691034 | J10: 15.75106428 | K10: 15.80638621 | L10: 15.56037241 | M10: 15.34511034 | N10: 15.22569314 | O10: 14.88383448 | P10: 14.88383448 | R10: 0.9664827586 | S10: 0.941137931 | T10: 0.9157931034 | U10: 0.892137931 | V10: 0.8684827586 | W10: 0.843137931 | X10: 0.8177931034 | Y10: 0.9265734266 | Z10: 0.9411464919 | AA10: 0.9557195572 | AB10: 0.9700776774 | AC10: 0.9844357977 | AD10: 0.9922178988 | AE10: 1 | AF10: 0.9875 | AG10: 0.9875 | AH10: 0.9875 | AI10: 0.98125 | AJ10: 0.975 | AK10: 0.94375 | AL10: 0.9125 | AM10: 16.29841379 | AN10: =Z10*E10+($A$4-80)*AG10*$A$8/1000 -> 16.12062565 | AO10: =AA10*G10+($A$4-80)*AH10*$A$8/1000 -> 15.9293931 | AP10: 15.75106428 | AQ10: 15.56037241 | AR10: 15.22569314 | AS10: 14.88383448
B11: 59 | C11: 16.72893793 | D11: 16.72893793 | E11: 16.32916552 | F11: 16.32916552 | G11: 15.9293931 | H11: 15.9293931 | I11: 15.49886897 | J11: 15.49886897 | K11: 15.06834483 | L11: 15.06834483 | M11: 14.63782069 | N11: 14.63782069 | O11: 14.20729655 | P11: 14.20729655 | R11: 0.9191724138 | S11: 0.8972068966 | T11: 0.8752413793 | U11: 0.8515862069 | V11: 0.8279310345 | W11: 0.8042758621 | X11: 0.7806206897 | Y11: 1 | Z11: 1 | AA11: 1 | AB11: 1 | AC11: 1 | AD11: 1 | AE11: 1 | AF11: 0.525 | AG11: 0.48125 | AH11: 0.4375 | AI11: 0.3875 | AJ11: 0.3375 | AK11: 0.2875 | AL11: 0.2375 | AM11: 16.72893793 | AN11: =Z11*E11+($A$4-80)*AG11*$A$8/1000 -> 16.32916552 | AO11: =AA11*G11+($A$4-80)*AH11*$A$8/1000 -> 15.9293931 | AP11: =AB11*I11+($A$4-80)*AI11*$A$8/1000 -> 15.49886897 | AQ11: 15.06834483 | AR11: 14.63782069 | AS11: 14.20729655
A12: 1000 | B12: 71 | C12: 20.77310345 | D12: 11.48482759 | E12: 20.23965517 | F12: 11.29943879 | G12: 19.7062069 | H12: 11.10827586 | I12: 19.20413793 | J12: 10.92254329 | K12: 18.70206897 | L12: 10.73172414 | M12: 18.16862069 | N12: 10.57934105 | O12: 17.63517241 | P12: 10.41793103 | R12: 1.14137931 | S12: 1.112068966 | T12: 1.082758621 | U12: 1.055172414 | V12: 1.027586207 | W12: 0.9982758621 | X12: 0.9689655172 | Y12: 0.5528700906 | Z12: 0.5582821791 | AA12: 0.5636942675 | AB12: 0.5687598854 | AC12: 0.5738255034 | AD12: 0.5822864172 | AE12: 0.590747331 | AF12: 0.9875 | AG12: 0.9875 | AH12: 0.9875 | AI12: 0.98125 | AJ12: 0.975 | AK12: 0.98125 | AL12: 0.9875 | AM12: =Y12*C12+($A$4-80)*AF12*$A$12/1000 -> 11.48482759 | AN12: =Z12*E12+($A$4-80)*AG12*$A$12/1000 -> 11.29943879 | AO12: =AA12*G12+($A$4-80)*AH12*$A$12/1000 -> 11.10827586 | AP12: =AB12*I12+($A$4-80)*AI12*$A$12/1000 -> 10.92254329 | AQ12: =AC12*K12+($A$4-80)*AJ12*$A$12/1000 -> 10.73172414 | AR12: =AD12*M12+($A$4-80)*AK12*$A$12/1000 -> 10.57934105 | AS12: =AE12*O12+($A$4-80)*AL12*$A$12/1000 -> 10.41793103
B13: 67 | C13: 19.14137931 | D13: 13.99517241 | E13: 18.67068966 | F13: 13.81092761 | G13: 18.2 | H13: 13.61862069 | I13: 17.69793103 | J13: 13.43581666 | K13: 17.19586207 | L13: 13.24206897 | M13: 16.72517241 | N13: 13.09112518 | O13: 16.25448276 | P13: 12.92827586 | R13: 1.051724138 | S13: 1.025862069 | T13: 1 | U13: 0.9724137931 | V13: 0.9448275862 | W13: 0.9189655172 | X13: 0.8931034483 | Y13: 0.731147541 | Z13: 0.7397117015 | AA13: 0.7482758621 | AB13: 0.7591744274 | AC13: 0.7700729927 | AD13: 0.782719894 | AE13: 0.7953667954 | AF13: 0.9875 | AG13: 0.98125 | AH13: 0.975 | AI13: 0.975 | AJ13: 0.975 | AK13: 0.98125 | AL13: 0.9875 | AM13: =Y13*C13+($A$4-80)*AF13*$A$12/1000 -> 13.99517241 | AN13: =Z13*E13+($A$4-80)*AG13*$A$12/1000 -> 13.81092761 | AO13: =AA13*G13+($A$4-80)*AH13*$A$12/1000 -> 13.61862069 | AP13: =AB13*I13+($A$4-80)*AI13*$A$12/1000 -> 13.43581666 | AQ13: =AC13*K13+($A$4-80)*AJ13*$A$12/1000 -> 13.24206897 | AR13: =AD13*M13+($A$4-80)*AK13*$A$12/1000 -> 13.09112518 | AS13: =AE13*O13+($A$4-80)*AL13*$A$12/1000 -> 12.92827586
B14: 63 | C14: 17.94896552 | D14: 16.63103448 | E14: 17.47827586 | F14: 16.44961801 | G14: 17.00758621 | H14: 16.25448276 | I14: 16.56827586 | J14: 16.07251457 | K14: 16.12896552 | L14: 15.87793103 | M14: 15.65827586 | N14: 15.53642158 | O14: 15.18758621 | P14: 15.18758621 | R14: 0.9862068966 | S14: 0.9603448276 | T14: 0.9344827586 | U14: 0.9103448276 | V14: 0.8862068966 | W14: 0.8603448276 | X14: 0.8344827586 | Y14: 0.9265734266 | Z14: 0.9411464919 | AA14: 0.9557195572 | AB14: 0.9700776774 | AC14: 0.9844357977 | AD14: 0.9922178988 | AE14: 1 | AF14: 0.9875 | AG14: 0.9875 | AH14: 0.9875 | AI14: 0.98125 | AJ14: 0.975 | AK14: 0.94375 | AL14: 0.9125 | AM14: 16.63103448 | AN14: =Z14*E14+($A$4-80)*AG14*$A$12/1000 -> 16.44961801 | AO14: =AA14*G14+($A$4-80)*AH14*$A$12/1000 -> 16.25448276 | AP14: 16.07251457 | AQ14: 15.87793103 | AR14: 15.53642158 | AS14: 15.18758621
B15: 59 | C15: 17.07034483 | D15: 17.07034483 | E15: 16.66241379 | F15: 16.66241379 | G15: 16.25448276 | H15: 16.25448276 | I15: 15.81517241 | J15: 15.81517241 | K15: 15.37586207 | L15: 15.37586207 | M15: 14.93655172 | N15: 14.93655172 | O15: 14.49724138 | P15: 14.49724138 | R15: 0.9379310345 | S15: 0.9155172414 | T15: 0.8931034483 | U15: 0.8689655172 | V15: 0.8448275862 | W15: 0.8206896552 | X15: 0.7965517241 | Y15: 1 | Z15: 1 | AA15: 1 | AB15: 1 | AC15: 1 | AD15: 1 | AE15: 1 | AF15: 0.525 | AG15: 0.48125 | AH15: 0.4375 | AI15: 0.3875 | AJ15: 0.3375 | AK15: 0.2875 | AL15: 0.2375 | AM15: 17.07034483 | AN15: =Z15*E15+($A$4-80)*AG15*$A$12/1000 -> 16.66241379 | AO15: =AA15*G15+($A$4-80)*AH15*$A$12/1000 -> 16.25448276 | AP15: 15.81517241 | AQ15: 15.37586207 | AR15: 14.93655172 | AS15: 14.49724138
A16: 1125 | B16: 71 | C16: 21.18856552 | D16: 11.71452414 | E16: 20.64444828 | F16: 11.52542757 | G16: 20.10033103 | H16: 11.33044138 | I16: 19.58822069 | J16: 11.14099416 | K16: 19.07611034 | L16: 10.94635862 | M16: 18.5319931 | N16: 10.79092787 | O16: 17.98787586 | P16: 10.62628966 | R16: 1.164206897 | S16: 1.134310345 | T16: 1.104413793 | U16: 1.076275862 | V16: 1.048137931 | W16: 1.018241379 | X16: 0.9883448276 | Y16: 0.5528700906 | Z16: 0.5582821791 | AA16: 0.5636942675 | AB16: 0.5687598854 | AC16: 0.5738255034 | AD16: 0.5822864172 | AE16: 0.590747331 | AF16: 0.9875 | AG16: 0.9875 | AH16: 0.9875 | AI16: 0.98125 | AJ16: 0.975 | AK16: 0.98125 | AL16: 0.9875 | AM16: =Y16*C16+($A$4-80)*AF16*$A$16/1000 -> 11.71452414 | AN16: =Z16*E16+($A$4-80)*AG16*$A$16/1000 -> 11.52542757 | AO16: =AA16*G16+($A$4-80)*AH16*$A$16/1000 -> 11.33044138 | AP16: =AB16*I16+($A$4-80)*AI16*$A$16/1000 -> 11.14099416 | AQ16: =AC16*K16+($A$4-80)*AJ16*$A$16/1000 -> 10.94635862 | AR16: =AD16*M16+($A$4-80)*AK16*$A$16/1000 -> 10.79092787 | AS16: =AE16*O16+($A$4-80)*AL16*$A$16/1000 -> 10.62628966
B17: 67 | C17: 19.5242069 | D17: 14.27507586 | E17: 19.04410345 | F17: 14.08714617 | G17: 18.564 | H17: 13.8909931 | I17: 18.05188966 | J17: 13.70453299 | K17: 17.53977931 | L17: 13.50691034 | M17: 17.05967586 | N17: 13.35294768 | O17: 16.57957241 | P17: 13.18684138 | R17: 1.072758621 | S17: 1.04637931 | T17: 1.02 | U17: 0.991862069 | V17: 0.9637241379 | W17: 0.9373448276 | X17: 0.9109655172 | Y17: 0.731147541 | Z17: 0.7397117015 | AA17: 0.7482758621 | AB17: 0.7591744274 | AC17: 0.7700729927 | AD17: 0.782719894 | AE17: 0.7953667954 | AF17: 0.9875 | AG17: 0.98125 | AH17: 0.975 | AI17: 0.975 | AJ17: 0.975 | AK17: 0.98125 | AL17: 0.9875 | AM17: =Y17*C17+($A$4-80)*AF17*$A$16/1000 -> 14.27507586 | AN17: =Z17*E17+($A$4-80)*AG17*$A$16/1000 -> 14.08714617 | AO17: =AA17*G17+($A$4-80)*AH17*$A$16/1000 -> 13.8909931 | AP17: =AB17*I17+($A$4-80)*AI17*$A$16/1000 -> 13.70453299 | AQ17: =AC17*K17+($A$4-80)*AJ17*$A$16/1000 -> 13.50691034 | AR17: =AD17*M17+($A$4-80)*AK17*$A$16/1000 -> 13.35294768 | AS17: =AE17*O17+($A$4-80)*AL17*$A$16/1000 -> 13.18684138
B18: 63 | C18: 18.30794483 | D18: 16.96365517 | E18: 17.82784138 | F18: 16.77861037 | G18: 17.34773793 | H18: 16.57957241 | I18: 16.89964138 | J18: 16.39396486 | K18: 16.45154483 | L18: 16.19548966 | M18: 15.97144138 | N18: 15.84715001 | O18: 15.49133793 | P18: 15.49133793 | R18: 1.005931034 | S18: 0.9795517241 | T18: 0.9531724138 | U18: 0.9285517241 | V18: 0.9039310345 | W18: 0.8775517241 | X18: 0.8511724138 | Y18: 0.9265734266 | Z18: 0.9411464919 | AA18: 0.9557195572 | AB18: 0.9700776774 | AC18: 0.9844357977 | AD18: 0.9922178988 | AE18: 1 | AF18: 0.9875 | AG18: 0.9875 | AH18: 0.9875 | AI18: 0.98125 | AJ18: 0.975 | AK18: 0.94375 | AL18: 0.9125 | AM18: 16.96365517 | AN18: =Z18*E18+($A$4-80)*AG18*$A$16/1000 -> 16.77861037 | AO18: =AA18*G18+($A$4-80)*AH18*$A$16/1000 -> 16.57957241 | AP18: 16.39396486 | AQ18: 16.19548966 | AR18: 15.84715001 | AS18: 15.49133793
B19: 59 | C19: 17.41175172 | D19: 17.41175172 | E19: 16.99566207 | F19: 16.99566207 | G19: 16.57957241 | H19: 16.57957241 | I19: 16.13147586 | J19: 16.13147586 | K19: 15.68337931 | L19: 15.68337931 | M19: 15.23528276 | N19: 15.23528276 | O19: 14.78718621 | P19: 14.78718621 | R19: 0.9566896552 | S19: 0.9338275862 | T19: 0.9109655172 | U19: 0.8863448276 | V19: 0.8617241379 | W19: 0.8371034483 | X19: 0.8124827586 | Y19: 1 | Z19: 1 | AA19: 1 | AB19: 1 | AC19: 1 | AD19: 1 | AE19: 1 | AF19: 0.525 | AG19: 0.48125 | AH19: 0.4375 | AI19: 0.3875 | AJ19: 0.3375 | AK19: 0.2875 | AL19: 0.2375 | AM19: 17.41175172 | AN19: =Z19*E19+($A$4-80)*AG19*$A$16/1000 -> 16.99566207 | AO19: =AA19*G19+($A$4-80)*AH19*$A$16/1000 -> 16.57957241 | AP19: 16.13147586 | AQ19: 15.68337931 | AR19: 15.23528276 | AS19: 14.78718621

Sheet 4A7A40_36 (hidden)
A2: 4A7A40_36 | B2: 18.2
A3: Evaporator Air | C3: Condenser Entering Air Temperature ˚F
A4: 80 | B4: °F DB | C4: 85 | E4: 90 | G4: 95 | I4: 100 | K4: 105 | M4: 110 | O4: 115
A5: CFM | B5: EWB† ˚F | C5: Capacity Mbtuh | E5: Capacity Mbtuh | G5: Capacity Mbtuh | I5: Capacity Mbtuh | K5: Capacity Mbtuh | M5: Capacity Mbtuh | O5: Capacity Mbtuh
C6: Total | D6: Sens. | E6: Total | F6: Sens. | G6: Total | H6: Sens. | I6: Total | J6: Sens. | K6: Total | L6: Sens. | M6: Total | N6: Sens. | O6: Total | P6: Sens.
R7: Total Factors | Y7: Sens. % | AF7: IDB Adj | AM7: Sens Calc
A8: 1050 | B8: 71 | C8: =R8*$B$2 -> 20.34019484 | D8: =IF(AM8>C8,C8,AM8) -> 11.19221777 | E8: =S8*$B$2 -> 19.82913467 | F8: =IF(AN8>E8,E8,AN8) -> 11.01605412 | G8: =T8*$B$2 -> 19.3180745 | H8: =IF(AO8>G8,G8,AO8) -> 10.83447564 | I8: =U8*$B$2 -> 18.80701433 | J8: =IF(AP8>I8,I8,AP8) -> 10.65861451 | K8: =V8*$B$2 -> 18.29595415 | L8: =IF(AQ8>K8,K8,AQ8) -> 10.47673352 | M8: =W8*$B$2 -> 17.78489398 | N8: =IF(AR8>M8,M8,AR8) -> 10.32753761 | O8: =X8*$B$2 -> 17.27383381 | P8: =IF(AS8>O8,O8,AS8) -> 10.17009742 | R8: 1.117593123 | S8: 1.089512894 | T8: 1.061432665 | U8: 1.033352436 | V8: 1.005272206 | W8: 0.9771919771 | X8: 0.9491117479 | Y8: 0.5502512563 | Z8: 0.5555489086 | AA8: 0.5608465608 | AB8: 0.5667361296 | AC8: 0.5726256983 | AD8: 0.5806915474 | AE8: 0.5887573964 | AF8: 0.96875 | AG8: 0.96875 | AH8: 0.96875 | AI8: 0.96875 | AJ8: 0.96875 | AK8: 0.9739583333 | AL8: 0.9791666667 | AM8: =Y8*C8+($A$4-80)*AF8*$A$8/1000 -> 11.19221777 | AN8: =Z8*E8+($A$4-80)*AG8*$A$8/1000 -> 11.01605412 | AO8: =AA8*G8+($A$4-80)*AH8*$A$8/1000 -> 10.83447564 | AP8: =AB8*I8+($A$4-80)*AI8*$A$8/1000 -> 10.65861451 | AQ8: =AC8*K8+($A$4-80)*AJ8*$A$8/1000 -> 10.47673352 | AR8: =AD8*M8+($A$4-80)*AK8*$A$8/1000 -> 10.32753761 | AS8: =AE8*O8+($A$4-80)*AL8*$A$8/1000 -> 10.17009742
B9: 67 | C9: =R9*$B$2 -> 18.75590831 | D9: 13.64530659 | E9: 18.29595415 | F9: =IF(AN9>E9,E9,AN9) -> 13.47045213 | G9: 17.836 | H9: =IF(AO9>G9,G9,AO9) -> 13.28756447 | I9: 17.35049284 | J9: =IF(AP9>I9,I9,AP9) -> 13.11395655 | K9: 16.86498567 | L9: =IF(AQ9>K9,K9,AQ9) -> 12.92982235 | M9: 16.40503152 | N9: =IF(AR9>M9,M9,AR9) -> 12.78225372 | O9: 15.94507736 | P9: =IF(AS9>O9,O9,AS9) -> 12.62318625 | R9: 1.030544413 | S9: 1.005272206 | T9: 0.98 | U9: 0.9533237822 | V9: 0.9266475645 | W9: 0.9013753582 | X9: 0.8761031519 | Y9: 0.727520436 | Z9: 0.7362530547 | AA9: 0.7449856734 | AB9: 0.75582617 | AC9: 0.7666666667 | AD9: 0.7791666667 | AE9: 0.7916666667 | AF9: 0.96875 | AG9: 0.96875 | AH9: 0.96875 | AI9: 0.96875 | AJ9: 0.96875 | AK9: 0.9739583333 | AL9: 0.9791666667 | AM9: =Y9*C9+($A$4-80)*AF9*$A$8/1000 -> 13.64530659 | AN9: =Z9*E9+($A$4-80)*AG9*$A$8/1000 -> 13.47045213 | AO9: =AA9*G9+($A$4-80)*AH9*$A$8/1000 -> 13.28756447 | AP9: =AB9*I9+($A$4-80)*AI9*$A$8/1000 -> 13.11395655 | AQ9: =AC9*K9+($A$4-80)*AJ9*$A$8/1000 -> 12.92982235 | AR9: =AD9*M9+($A$4-80)*AK9*$A$8/1000 -> 12.78225372 | AS9: =AE9*O9+($A$4-80)*AL9*$A$8/1000 -> 12.62318625
B10: 63 | C10: 17.58046991 | D10: 16.20060745 | E10: 17.12051576 | F10: 16.0284997 | G10: 16.6605616 | H10: 15.84286533 | I10: 16.22616046 | J10: 15.67043693 | K10: 15.79175931 | L10: 15.48512321 | M10: 15.35735817 | N10: 15.2082576 | O10: 14.92295702 | P10: 14.92295702 | R10: 0.9659598854 | S10: 0.9406876791 | T10: 0.9154154728 | U10: 0.8915472779 | V10: 0.8676790831 | W10: 0.8438108883 | X10: 0.8199426934 | Y10: 0.9215116279 | Z10: 0.9362159367 | AA10: 0.9509202454 | AB10: 0.9657513848 | AC10: 0.9805825243 | AD10: 0.9902912621 | AE10: 1 | AF10: 0.96875 | AG10: 0.9739583333 | AH10: 0.9791666667 | AI10: 0.9791666667 | AJ10: 0.9791666667 | AK10: 0.953125 | AL10: 0.9270833333 | AM10: 16.20060745 | AN10: =Z10*E10+($A$4-80)*AG10*$A$8/1000 -> 16.0284997 | AO10: =AA10*G10+($A$4-80)*AH10*$A$8/1000 -> 15.84286533 | AP10: 15.67043693 | AQ10: 15.48512321 | AR10: 15.2082576 | AS10: 14.92295702
B11: 59 | C11: 16.76277364 | D11: 16.76277364 | E11: 16.32837249 | F11: 16.32837249 | G11: 15.89397135 | H11: 15.89397135 | I11: 15.48512321 | J11: 15.48512321 | K11: 15.07627507 | L11: 15.07627507 | M11: 14.64187393 | N11: 14.64187393 | O11: 14.20747278 | P11: 14.20747278 | R11: 0.9210315186 | S11: 0.8971633238 | T11: 0.8732951289 | U11: 0.8508309456 | V11: 0.8283667622 | W11: 0.8044985673 | X11: 0.7806303725 | Y11: 1 | Z11: 1 | AA11: 1 | AB11: 1 | AC11: 1 | AD11: 1 | AE11: 1 | AF11: 0.5416666667 | AG11: 0.4947916667 | AH11: 0.4479166667 | AI11: 0.4010416667 | AJ11: 0.3541666667 | AK11: 0.3020833333 | AL11: 0.25 | AM11: 16.76277364 | AN11: =Z11*E11+($A$4-80)*AG11*$A$8/1000 -> 16.32837249 | AO11: =AA11*G11+($A$4-80)*AH11*$A$8/1000 -> 15.89397135 | AP11: =AB11*I11+($A$4-80)*AI11*$A$8/1000 -> 15.48512321 | AQ11: 15.07627507 | AR11: 14.64187393 | AS11: 14.20747278
A12: 1200 | B12: 71 | C12: 20.75530086 | D12: 11.42063037 | E12: 20.23381089 | F12: 11.24087156 | G12: 19.71232092 | H12: 11.05558739 | I12: 19.19083095 | J12: 10.87613725 | K12: 18.66934097 | L12: 10.69054441 | M12: 18.147851 | N12: 10.53830368 | O12: 17.62636103 | P12: 10.37765043 | R12: 1.140401146 | S12: 1.111747851 | T12: 1.083094556 | U12: 1.054441261 | V12: 1.025787966 | W12: 0.9971346705 | X12: 0.9684813754 | Y12: 0.5502512563 | Z12: 0.5555489086 | AA12: 0.5608465608 | AB12: 0.5667361296 | AC12: 0.5726256983 | AD12: 0.5806915474 | AE12: 0.5887573964 | AF12: 0.96875 | AG12: 0.96875 | AH12: 0.96875 | AI12: 0.96875 | AJ12: 0.96875 | AK12: 0.9739583333 | AL12: 0.9791666667 | AM12: =Y12*C12+($A$4-80)*AF12*$A$12/1000 -> 11.42063037 | AN12: =Z12*E12+($A$4-80)*AG12*$A$12/1000 -> 11.24087156 | AO12: =AA12*G12+($A$4-80)*AH12*$A$12/1000 -> 11.05558739 | AP12: =AB12*I12+($A$4-80)*AI12*$A$12/1000 -> 10.87613725 | AQ12: =AC12*K12+($A$4-80)*AJ12*$A$12/1000 -> 10.69054441 | AR12: =AD12*M12+($A$4-80)*AK12*$A$12/1000 -> 10.53830368 | AS12: =AE12*O12+($A$4-80)*AL12*$A$12/1000 -> 10.37765043
B13: 67 | C13: 19.13868195 | D13: 13.92378223 | E13: 18.66934097 | F13: 13.74535932 | G13: 18.2 | H13: 13.55873926 | I13: 17.70458453 | J13: 13.38158831 | K13: 17.20916905 | L13: 13.19369628 | M13: 16.73982808 | N13: 13.04311605 | O13: 16.27048711 | P13: 12.88080229 | R13: 1.051575931 | S13: 1.025787966 | T13: 1 | U13: 0.9727793696 | V13: 0.9455587393 | W13: 0.9197707736 | X13: 0.893982808 | Y13: 0.727520436 | Z13: 0.7362530547 | AA13: 0.7449856734 | AB13: 0.75582617 | AC13: 0.7666666667 | AD13: 0.7791666667 | AE13: 0.7916666667 | AF13: 0.96875 | AG13: 0.96875 | AH13: 0.96875 | AI13: 0.96875 | AJ13: 0.96875 | AK13: 0.9739583333 | AL13: 0.9791666667 | AM13: =Y13*C13+($A$4-80)*AF13*$A$12/1000 -> 13.92378223 | AN13: =Z13*E13+($A$4-80)*AG13*$A$12/1000 -> 13.74535932 | AO13: =AA13*G13+($A$4-80)*AH13*$A$12/1000 -> 13.55873926 | AP13: =AB13*I13+($A$4-80)*AI13*$A$12/1000 -> 13.38158831 | AQ13: =AC13*K13+($A$4-80)*AJ13*$A$12/1000 -> 13.19369628 | AR13: =AD13*M13+($A$4-80)*AK13*$A$12/1000 -> 13.04311605 | AS13: =AE13*O13+($A$4-80)*AL13*$A$12/1000 -> 12.88080229
B14: 63 | C14: 17.93925501 | D14: 16.53123209 | E14: 17.46991404 | F14: 16.35561194 | G14: 17.00057307 | H14: 16.16618911 | I14: 16.55730659 | J14: 15.99024177 | K14: 16.11404011 | L14: 15.80114613 | M14: 15.67077364 | N14: 15.51863021 | O14: 15.22750716 | P14: 15.22750716 | R14: 0.9856733524 | S14: 0.9598853868 | T14: 0.9340974212 | U14: 0.9097421203 | V14: 0.8853868195 | W14: 0.8610315186 | X14: 0.8366762178 | Y14: 0.9215116279 | Z14: 0.9362159367 | AA14: 0.9509202454 | AB14: 0.9657513848 | AC14: 0.9805825243 | AD14: 0.9902912621 | AE14: 1 | AF14: 0.96875 | AG14: 0.9739583333 | AH14: 0.9791666667 | AI14: 0.9791666667 | AJ14: 0.9791666667 | AK14: 0.953125 | AL14: 0.9270833333 | AM14: 16.53123209 | AN14: =Z14*E14+($A$4-80)*AG14*$A$12/1000 -> 16.35561194 | AO14: =AA14*G14+($A$4-80)*AH14*$A$12/1000 -> 16.16618911 | AP14: 15.99024177 | AQ14: 15.80114613 | AR14: 15.51863021 | AS14: 15.22750716
B15: 59 | C15: 17.10487106 | D15: 17.10487106 | E15: 16.66160458 | F15: 16.66160458 | G15: 16.21833811 | H15: 16.21833811 | I15: 15.80114613 | J15: 15.80114613 | K15: 15.38395415 | L15: 15.38395415 | M15: 14.94068768 | N15: 14.94068768 | O15: 14.4974212 | P15: 14.4974212 | R15: 0.9398280802 | S15: 0.9154727794 | T15: 0.8911174785 | U15: 0.8681948424 | V15: 0.8452722063 | W15: 0.8209169054 | X15: 0.7965616046 | Y15: 1 | Z15: 1 | AA15: 1 | AB15: 1 | AC15: 1 | AD15: 1 | AE15: 1 | AF15: 0.5416666667 | AG15: 0.4947916667 | AH15: 0.4479166667 | AI15: 0.4010416667 | AJ15: 0.3541666667 | AK15: 0.3020833333 | AL15: 0.25 | AM15: 17.10487106 | AN15: =Z15*E15+($A$4-80)*AG15*$A$12/1000 -> 16.66160458 | AO15: =AA15*G15+($A$4-80)*AH15*$A$12/1000 -> 16.21833811 | AP15: 15.80114613 | AQ15: 15.38395415 | AR15: 14.94068768 | AS15: 14.4974212
A16: 1350 | B16: 71 | C16: 21.17040688 | D16: 11.64904298 | E16: 20.63848711 | F16: 11.46568899 | G16: 20.10656734 | H16: 11.27669914 | I16: 19.57464756 | J16: 11.09366 | K16: 19.04272779 | L16: 10.9043553 | M16: 18.51080802 | N16: 10.74906975 | O16: 17.97888825 | P16: 10.58520344 | R16: 1.163209169 | S16: 1.133982808 | T16: 1.104756447 | U16: 1.075530086 | V16: 1.046303725 | W16: 1.017077364 | X16: 0.9878510029 | Y16: 0.5502512563 | Z16: 0.5555489086 | AA16: 0.5608465608 | AB16: 0.5667361296 | AC16: 0.5726256983 | AD16: 0.5806915474 | AE16: 0.5887573964 | AF16: 0.96875 | AG16: 0.96875 | AH16: 0.96875 | AI16: 0.96875 | AJ16: 0.96875 | AK16: 0.9739583333 | AL16: 0.9791666667 | AM16: =Y16*C16+($A$4-80)*AF16*$A$16/1000 -> 11.64904298 | AN16: =Z16*E16+($A$4-80)*AG16*$A$16/1000 -> 11.46568899 | AO16: =AA16*G16+($A$4-80)*AH16*$A$16/1000 -> 11.27669914 | AP16: =AB16*I16+($A$4-80)*AI16*$A$16/1000 -> 11.09366 | AQ16: =AC16*K16+($A$4-80)*AJ16*$A$16/1000 -> 10.9043553 | AR16: =AD16*M16+($A$4-80)*AK16*$A$16/1000 -> 10.74906975 | AS16: =AE16*O16+($A$4-80)*AL16*$A$16/1000 -> 10.58520344
B17: 67 | C17: 19.52145559 | D17: 14.20225788 | E17: 19.04272779 | F17: 14.02026651 | G17: 18.564 | H17: 13.82991404 | I17: 18.05867622 | J17: 13.64922008 | K17: 17.55335244 | L17: 13.4575702 | M17: 17.07462464 | N17: 13.30397837 | O17: 16.59589685 | P17: 13.13841834 | R17: 1.07260745 | S17: 1.046303725 | T17: 1.02 | U17: 0.992234957 | V17: 0.964469914 | W17: 0.9381661891 | X17: 0.9118624642 | Y17: 0.727520436 | Z17: 0.7362530547 | AA17: 0.7449856734 | AB17: 0.75582617 | AC17: 0.7666666667 | AD17: 0.7791666667 | AE17: 0.7916666667 | AF17: 0.96875 | AG17: 0.96875 | AH17: 0.96875 | AI17: 0.96875 | AJ17: 0.96875 | AK17: 0.9739583333 | AL17: 0.9791666667 | AM17: =Y17*C17+($A$4-80)*AF17*$A$16/1000 -> 14.20225788 | AN17: =Z17*E17+($A$4-80)*AG17*$A$16/1000 -> 14.02026651 | AO17: =AA17*G17+($A$4-80)*AH17*$A$16/1000 -> 13.82991404 | AP17: =AB17*I17+($A$4-80)*AI17*$A$16/1000 -> 13.64922008 | AQ17: =AC17*K17+($A$4-80)*AJ17*$A$16/1000 -> 13.4575702 | AR17: =AD17*M17+($A$4-80)*AK17*$A$16/1000 -> 13.30397837 | AS17: =AE17*O17+($A$4-80)*AL17*$A$16/1000 -> 13.13841834
B18: 63 | C18: 18.29804011 | D18: 16.86185673 | E18: 17.81931232 | F18: 16.68272418 | G18: 17.34058453 | H18: 16.48951289 | I18: 16.88845272 | J18: 16.3100466 | K18: 16.43632092 | L18: 16.11716905 | M18: 15.98418911 | N18: 15.82900281 | O18: 15.53205731 | P18: 15.53205731 | R18: 1.005386819 | S18: 0.9790830946 | T18: 0.9527793696 | U18: 0.9279369628 | V18: 0.9030945559 | W18: 0.878252149 | X18: 0.8534097421 | Y18: 0.9215116279 | Z18: 0.9362159367 | AA18: 0.9509202454 | AB18: 0.9657513848 | AC18: 0.9805825243 | AD18: 0.9902912621 | AE18: 1 | AF18: 0.96875 | AG18: 0.9739583333 | AH18: 0.9791666667 | AI18: 0.9791666667 | AJ18: 0.9791666667 | AK18: 0.953125 | AL18: 0.9270833333 | AM18: 16.86185673 | AN18: =Z18*E18+($A$4-80)*AG18*$A$16/1000 -> 16.68272418 | AO18: =AA18*G18+($A$4-80)*AH18*$A$16/1000 -> 16.48951289 | AP18: 16.3100466 | AQ18: 16.11716905 | AR18: 15.82900281 | AS18: 15.53205731
B19: 59 | C19: 17.44696848 | D19: 17.44696848 | E19: 16.99483668 | F19: 16.99483668 | G19: 16.54270487 | H19: 16.54270487 | I19: 16.11716905 | J19: 16.11716905 | K19: 15.69163324 | L19: 15.69163324 | M19: 15.23950143 | N19: 15.23950143 | O19: 14.78736963 | P19: 14.78736963 | R19: 0.9586246418 | S19: 0.933782235 | T19: 0.9089398281 | U19: 0.8855587393 | V19: 0.8621776504 | W19: 0.8373352436 | X19: 0.8124928367 | Y19: 1 | Z19: 1 | AA19: 1 | AB19: 1 | AC19: 1 | AD19: 1 | AE19: 1 | AF19: 0.5416666667 | AG19: 0.4947916667 | AH19: 0.4479166667 | AI19: 0.4010416667 | AJ19: 0.3541666667 | AK19: 0.3020833333 | AL19: 0.25 | AM19: 17.44696848 | AN19: =Z19*E19+($A$4-80)*AG19*$A$16/1000 -> 16.99483668 | AO19: =AA19*G19+($A$4-80)*AH19*$A$16/1000 -> 16.54270487 | AP19: 16.11716905 | AQ19: 15.69163324 | AR19: 15.23950143 | AS19: 14.78736963

Sheet 4A7A40_37 (hidden)
A2: 4A7A40_37 | B2: 18.2
A3: Evaporator Air | C3: Condenser Entering Air Temperature ˚F
A4: 80 | B4: °F DB | C4: 85 | E4: 90 | G4: 95 | I4: 100 | K4: 105 | M4: 110 | O4: 115
A5: CFM | B5: EWB† ˚F | C5: Capacity Mbtuh | E5: Capacity Mbtuh | G5: Capacity Mbtuh | I5: Capacity Mbtuh | K5: Capacity Mbtuh | M5: Capacity Mbtuh | O5: Capacity Mbtuh
C6: Total | D6: Sens. | E6: Total | F6: Sens. | G6: Total | H6: Sens. | I6: Total | J6: Sens. | K6: Total | L6: Sens. | M6: Total | N6: Sens. | O6: Total | P6: Sens.
R7: Total Factors | Y7: Sens. % | AF7: IDB Adj | AM7: Sens Calc
A8: 1050 | B8: 71 | C8: =R8*$B$2 -> 20.63081481 | D8: =IF(AM8>C8,C8,AM8) -> 11.43333333 | E8: =S8*$B$2 -> 19.99562963 | F8: =IF(AN8>E8,E8,AN8) -> 11.2349544 | G8: =T8*$B$2 -> 19.36044444 | H8: =IF(AO8>G8,G8,AO8) -> 11.02681481 | I8: =U8*$B$2 -> 18.72525926 | J8: =IF(AP8>I8,I8,AP8) -> 10.8028218 | K8: =V8*$B$2 -> 18.09007407 | L8: =IF(AQ8>K8,K8,AQ8) -> 10.56948148 | M8: =W8*$B$2 -> 17.45488889 | N8: =IF(AR8>M8,M8,AR8) -> 10.37256135 | O8: =X8*$B$2 -> 16.8197037 | P8: =IF(AS8>O8,O8,AS8) -> 10.16296296 | R8: 1.133561254 | S8: 1.098660969 | T8: 1.063760684 | U8: 1.028860399 | V8: 0.993960114 | W8: 0.9590598291 | X8: 0.9241595442 | Y8: 0.5541871921 | Z8: 0.5618704989 | AA8: 0.5695538058 | AB8: 0.5769117343 | AC8: 0.5842696629 | AD8: 0.5942496351 | AE8: 0.6042296073 | AF8: 1 | AG8: 1.005208333 | AH8: 1.010416667 | AI8: 1.005208333 | AJ8: 1 | AK8: 1.005208333 | AL8: 1.010416667 | AM8: =Y8*C8+($A$4-80)*AF8*$A$8/1000 -> 11.43333333 | AN8: =Z8*E8+($A$4-80)*AG8*$A$8/1000 -> 11.2349544 | AO8: =AA8*G8+($A$4-80)*AH8*$A$8/1000 -> 11.02681481 | AP8: =AB8*I8+($A$4-80)*AI8*$A$8/1000 -> 10.8028218 | AQ8: =AC8*K8+($A$4-80)*AJ8*$A$8/1000 -> 10.56948148 | AR8: =AD8*M8+($A$4-80)*AK8*$A$8/1000 -> 10.37256135 | AS8: =AE8*O8+($A$4-80)*AL8*$A$8/1000 -> 10.16296296
B9: 67 | C9: =R9*$B$2 -> 19.00474074 | D9: 13.97407407 | E9: 18.42037037 | F9: =IF(AN9>E9,E9,AN9) -> 13.75199345 | G9: 17.836 | H9: =IF(AO9>G9,G9,AO9) -> 13.51674074 | I9: 17.25162963 | J9: =IF(AP9>I9,I9,AP9) -> 13.29558377 | K9: 16.66725926 | L9: =IF(AQ9>K9,K9,AQ9) -> 13.05940741 | M9: 16.08288889 | N9: =IF(AR9>M9,M9,AR9) -> 12.86574844 | O9: 15.49851852 | P9: =IF(AS9>O9,O9,AS9) -> 12.65288889 | R9: 1.044216524 | S9: 1.012108262 | T9: 0.98 | U9: 0.9478917379 | V9: 0.9157834758 | W9: 0.8836752137 | X9: 0.8515669516 | Y9: 0.7352941176 | Z9: 0.7465644377 | AA9: 0.7578347578 | AB9: 0.7706856716 | AC9: 0.7835365854 | AD9: 0.799965014 | AE9: 0.8163934426 | AF9: 1.010416667 | AG9: 1.005208333 | AH9: 1 | AI9: 1 | AJ9: 1 | AK9: 1 | AL9: 1 | AM9: =Y9*C9+($A$4-80)*AF9*$A$8/1000 -> 13.97407407 | AN9: =Z9*E9+($A$4-80)*AG9*$A$8/1000 -> 13.75199345 | AO9: =AA9*G9+($A$4-80)*AH9*$A$8/1000 -> 13.51674074 | AP9: =AB9*I9+($A$4-80)*AI9*$A$8/1000 -> 13.29558377 | AQ9: =AC9*K9+($A$4-80)*AJ9*$A$8/1000 -> 13.05940741 | AR9: =AD9*M9+($A$4-80)*AK9*$A$8/1000 -> 12.86574844 | AS9: =AE9*O9+($A$4-80)*AL9*$A$8/1000 -> 12.65288889
B10: 63 | C10: 17.78518519 | D10: 16.56562963 | E10: 17.22622222 | F10: 16.34675455 | G10: 16.66725926 | H10: 16.1082963 | I10: 16.1337037 | J10: 15.86316904 | K10: 15.60014815 | L10: 15.60014815 | M10: 15.04118519 | N10: 15.04118519 | O10: 14.48222222 | P10: 14.48222222 | R10: 0.9772079772 | S10: 0.9464957265 | T10: 0.9157834758 | U10: 0.8864672365 | V10: 0.8571509972 | W10: 0.8264387464 | X10: 0.7957264957 | Y10: 0.9314285714 | Z10: 0.948945993 | AA10: 0.9664634146 | AB10: 0.9832317073 | AC10: 1 | AD10: 1 | AE10: 1 | AF10: 1 | AG10: 1 | AH10: 1 | AI10: 0.9947916667 | AJ10: 0.9895833333 | AK10: 0.921875 | AL10: 0.8541666667 | AM10: 16.56562963 | AN10: =Z10*E10+($A$4-80)*AG10*$A$8/1000 -> 16.34675455 | AO10: =AA10*G10+($A$4-80)*AH10*$A$8/1000 -> 16.1082963 | AP10: 15.86316904 | AQ10: 15.60014815 | AR10: 15.04118519 | AS10: 14.48222222
B11: 59 | C11: 16.97214815 | D11: 16.97214815 | E11: 16.43859259 | F11: 16.43859259 | G11: 15.90503704 | H11: 15.90503704 | I11: 15.39688889 | J11: 15.39688889 | K11: 14.88874074 | L11: 14.88874074 | M11: 14.35518519 | N11: 14.35518519 | O11: 13.82162963 | P11: 13.82162963 | R11: 0.9325356125 | S11: 0.9032193732 | T11: 0.8739031339 | U11: 0.845982906 | V11: 0.8180626781 | W11: 0.7887464387 | X11: 0.7594301994 | Y11: 1 | Z11: 1 | AA11: 1 | AB11: 1 | AC11: 1 | AD11: 1 | AE11: 1 | AF11: 0.53125 | AG11: 0.46875 | AH11: 0.40625 | AI11: 0.3489583333 | AJ11: 0.2916666667 | AK11: 0.2291666667 | AL11: 0.1666666667 | AM11: 16.97214815 | AN11: =Z11*E11+($A$4-80)*AG11*$A$8/1000 -> 16.43859259 | AO11: =AA11*G11+($A$4-80)*AH11*$A$8/1000 -> 15.90503704 | AP11: =AB11*I11+($A$4-80)*AI11*$A$8/1000 -> 15.39688889 | AQ11: 14.88874074 | AR11: 14.35518519 | AS11: 13.82162963
A12: 1200 | B12: 71 | C12: 21.05185185 | D12: 11.66666667 | E12: 20.4037037 | F12: 11.46423918 | G12: 19.75555556 | H12: 11.25185185 | I12: 19.10740741 | J12: 11.02328755 | K12: 18.45925926 | L12: 10.78518519 | M12: 17.81111111 | N12: 10.58424628 | O12: 17.16296296 | P12: 10.37037037 | R12: 1.156695157 | S12: 1.121082621 | T12: 1.085470085 | U12: 1.04985755 | V12: 1.014245014 | W12: 0.9786324786 | X12: 0.943019943 | Y12: 0.5541871921 | Z12: 0.5618704989 | AA12: 0.5695538058 | AB12: 0.5769117343 | AC12: 0.5842696629 | AD12: 0.5942496351 | AE12: 0.6042296073 | AF12: 1 | AG12: 1.005208333 | AH12: 1.010416667 | AI12: 1.005208333 | AJ12: 1 | AK12: 1.005208333 | AL12: 1.010416667 | AM12: =Y12*C12+($A$4-80)*AF12*$A$12/1000 -> 11.66666667 | AN12: =Z12*E12+($A$4-80)*AG12*$A$12/1000 -> 11.46423918 | AO12: =AA12*G12+($A$4-80)*AH12*$A$12/1000 -> 11.25185185 | AP12: =AB12*I12+($A$4-80)*AI12*$A$12/1000 -> 11.02328755 | AQ12: =AC12*K12+($A$4-80)*AJ12*$A$12/1000 -> 10.78518519 | AR12: =AD12*M12+($A$4-80)*AK12*$A$12/1000 -> 10.58424628 | AS12: =AE12*O12+($A$4-80)*AL12*$A$12/1000 -> 10.37037037
B13: 67 | C13: 19.39259259 | D13: 14.25925926 | E13: 18.7962963 | F13: 14.03264638 | G13: 18.2 | H13: 13.79259259 | I13: 17.6037037 | J13: 13.56692221 | K13: 17.00740741 | L13: 13.32592593 | M13: 16.41111111 | N13: 13.12831473 | O13: 15.81481481 | P13: 12.91111111 | R13: 1.065527066 | S13: 1.032763533 | T13: 1 | U13: 0.9672364672 | V13: 0.9344729345 | W13: 0.9017094017 | X13: 0.8689458689 | Y13: 0.7352941176 | Z13: 0.7465644377 | AA13: 0.7578347578 | AB13: 0.7706856716 | AC13: 0.7835365854 | AD13: 0.799965014 | AE13: 0.8163934426 | AF13: 1.010416667 | AG13: 1.005208333 | AH13: 1 | AI13: 1 | AJ13: 1 | AK13: 1 | AL13: 1 | AM13: =Y13*C13+($A$4-80)*AF13*$A$12/1000 -> 14.25925926 | AN13: =Z13*E13+($A$4-80)*AG13*$A$12/1000 -> 14.03264638 | AO13: =AA13*G13+($A$4-80)*AH13*$A$12/1000 -> 13.79259259 | AP13: =AB13*I13+($A$4-80)*AI13*$A$12/1000 -> 13.56692221 | AQ13: =AC13*K13+($A$4-80)*AJ13*$A$12/1000 -> 13.32592593 | AR13: =AD13*M13+($A$4-80)*AK13*$A$12/1000 -> 13.12831473 | AS13: =AE13*O13+($A$4-80)*AL13*$A$12/1000 -> 12.91111111
B14: 63 | C14: 18.14814815 | D14: 16.9037037 | E14: 17.57777778 | F14: 16.68036179 | G14: 17.00740741 | H14: 16.43703704 | I14: 16.46296296 | J14: 16.18690718 | K14: 15.91851852 | L14: 15.91851852 | M14: 15.34814815 | N14: 15.34814815 | O14: 14.77777778 | P14: 14.77777778 | R14: 0.9971509972 | S14: 0.9658119658 | T14: 0.9344729345 | U14: 0.9045584046 | V14: 0.8746438746 | W14: 0.8433048433 | X14: 0.811965812 | Y14: 0.9314285714 | Z14: 0.948945993 | AA14: 0.9664634146 | AB14: 0.9832317073 | AC14: 1 | AD14: 1 | AE14: 1 | AF14: 1 | AG14: 1 | AH14: 1 | AI14: 0.9947916667 | AJ14: 0.9895833333 | AK14: 0.921875 | AL14: 0.8541666667 | AM14: 16.9037037 | AN14: =Z14*E14+($A$4-80)*AG14*$A$12/1000 -> 16.68036179 | AO14: =AA14*G14+($A$4-80)*AH14*$A$12/1000 -> 16.43703704 | AP14: 16.18690718 | AQ14: 15.91851852 | AR14: 15.34814815 | AS14: 14.77777778
B15: 59 | C15: 17.31851852 | D15: 17.31851852 | E15: 16.77407407 | F15: 16.77407407 | G15: 16.22962963 | H15: 16.22962963 | I15: 15.71111111 | J15: 15.71111111 | K15: 15.19259259 | L15: 15.19259259 | M15: 14.64814815 | N15: 14.64814815 | O15: 14.1037037 | P15: 14.1037037 | R15: 0.9515669516 | S15: 0.9216524217 | T15: 0.8917378917 | U15: 0.8632478632 | V15: 0.8347578348 | W15: 0.8048433048 | X15: 0.7749287749 | Y15: 1 | Z15: 1 | AA15: 1 | AB15: 1 | AC15: 1 | AD15: 1 | AE15: 1 | AF15: 0.53125 | AG15: 0.46875 | AH15: 0.40625 | AI15: 0.3489583333 | AJ15: 0.2916666667 | AK15: 0.2291666667 | AL15: 0.1666666667 | AM15: 17.31851852 | AN15: =Z15*E15+($A$4-80)*AG15*$A$12/1000 -> 16.77407407 | AO15: =AA15*G15+($A$4-80)*AH15*$A$12/1000 -> 16.22962963 | AP15: 15.71111111 | AQ15: 15.19259259 | AR15: 14.64814815 | AS15: 14.1037037
A16: 1350 | B16: 71 | C16: 21.47288889 | D16: 11.9 | E16: 20.81177778 | F16: 11.69352396 | G16: 20.15066667 | H16: 11.47688889 | I16: 19.48955556 | J16: 11.2437533 | K16: 18.82844444 | L16: 11.00088889 | M16: 18.16733333 | N16: 10.7959312 | O16: 17.50622222 | P16: 10.57777778 | R16: 1.17982906 | S16: 1.143504274 | T16: 1.107179487 | U16: 1.070854701 | V16: 1.034529915 | W16: 0.9982051282 | X16: 0.9618803419 | Y16: 0.5541871921 | Z16: 0.5618704989 | AA16: 0.5695538058 | AB16: 0.5769117343 | AC16: 0.5842696629 | AD16: 0.5942496351 | AE16: 0.6042296073 | AF16: 1 | AG16: 1.005208333 | AH16: 1.010416667 | AI16: 1.005208333 | AJ16: 1 | AK16: 1.005208333 | AL16: 1.010416667 | AM16: =Y16*C16+($A$4-80)*AF16*$A$16/1000 -> 11.9 | AN16: =Z16*E16+($A$4-80)*AG16*$A$16/1000 -> 11.69352396 | AO16: =AA16*G16+($A$4-80)*AH16*$A$16/1000 -> 11.47688889 | AP16: =AB16*I16+($A$4-80)*AI16*$A$16/1000 -> 11.2437533 | AQ16: =AC16*K16+($A$4-80)*AJ16*$A$16/1000 -> 11.00088889 | AR16: =AD16*M16+($A$4-80)*AK16*$A$16/1000 -> 10.7959312 | AS16: =AE16*O16+($A$4-80)*AL16*$A$16/1000 -> 10.57777778
B17: 67 | C17: 19.78044444 | D17: 14.54444444 | E17: 19.17222222 | F17: 14.3132993 | G17: 18.564 | H17: 14.06844444 | I17: 17.95577778 | J17: 13.83826066 | K17: 17.34755556 | L17: 13.59244444 | M17: 16.73933333 | N17: 13.39088102 | O17: 16.13111111 | P17: 13.16933333 | R17: 1.086837607 | S17: 1.053418803 | T17: 1.02 | U17: 0.9865811966 | V17: 0.9531623932 | W17: 0.9197435897 | X17: 0.8863247863 | Y17: 0.7352941176 | Z17: 0.7465644377 | AA17: 0.7578347578 | AB17: 0.7706856716 | AC17: 0.7835365854 | AD17: 0.799965014 | AE17: 0.8163934426 | AF17: 1.010416667 | AG17: 1.005208333 | AH17: 1 | AI17: 1 | AJ17: 1 | AK17: 1 | AL17: 1 | AM17: =Y17*C17+($A$4-80)*AF17*$A$16/1000 -> 14.54444444 | AN17: =Z17*E17+($A$4-80)*AG17*$A$16/1000 -> 14.3132993 | AO17: =AA17*G17+($A$4-80)*AH17*$A$16/1000 -> 14.06844444 | AP17: =AB17*I17+($A$4-80)*AI17*$A$16/1000 -> 13.83826066 | AQ17: =AC17*K17+($A$4-80)*AJ17*$A$16/1000 -> 13.59244444 | AR17: =AD17*M17+($A$4-80)*AK17*$A$16/1000 -> 13.39088102 | AS17: =AE17*O17+($A$4-80)*AL17*$A$16/1000 -> 13.16933333
B18: 63 | C18: 18.51111111 | D18: 17.24177778 | E18: 17.92933333 | F18: 17.01396902 | G18: 17.34755556 | H18: 16.76577778 | I18: 16.79222222 | J18: 16.51064533 | K18: 16.23688889 | L18: 16.23688889 | M18: 15.65511111 | N18: 15.65511111 | O18: 15.07333333 | P18: 15.07333333 | R18: 1.017094017 | S18: 0.9851282051 | T18: 0.9531623932 | U18: 0.9226495726 | V18: 0.8921367521 | W18: 0.8601709402 | X18: 0.8282051282 | Y18: 0.9314285714 | Z18: 0.948945993 | AA18: 0.9664634146 | AB18: 0.9832317073 | AC18: 1 | AD18: 1 | AE18: 1 | AF18: 1 | AG18: 1 | AH18: 1 | AI18: 0.9947916667 | AJ18: 0.9895833333 | AK18: 0.921875 | AL18: 0.8541666667 | AM18: 17.24177778 | AN18: =Z18*E18+($A$4-80)*AG18*$A$16/1000 -> 17.01396902 | AO18: =AA18*G18+($A$4-80)*AH18*$A$16/1000 -> 16.76577778 | AP18: 16.51064533 | AQ18: 16.23688889 | AR18: 15.65511111 | AS18: 15.07333333
B19: 59 | C19: 17.66488889 | D19: 17.66488889 | E19: 17.10955556 | F19: 17.10955556 | G19: 16.55422222 | H19: 16.55422222 | I19: 16.02533333 | J19: 16.02533333 | K19: 15.49644444 | L19: 15.49644444 | M19: 14.94111111 | N19: 14.94111111 | O19: 14.38577778 | P19: 14.38577778 | R19: 0.9705982906 | S19: 0.9400854701 | T19: 0.9095726496 | U19: 0.8805128205 | V19: 0.8514529915 | W19: 0.8209401709 | X19: 0.7904273504 | Y19: 1 | Z19: 1 | AA19: 1 | AB19: 1 | AC19: 1 | AD19: 1 | AE19: 1 | AF19: 0.53125 | AG19: 0.46875 | AH19: 0.40625 | AI19: 0.3489583333 | AJ19: 0.2916666667 | AK19: 0.2291666667 | AL19: 0.1666666667 | AM19: 17.66488889 | AN19: =Z19*E19+($A$4-80)*AG19*$A$16/1000 -> 17.10955556 | AO19: =AA19*G19+($A$4-80)*AH19*$A$16/1000 -> 16.55422222 | AP19: 16.02533333 | AQ19: 15.49644444 | AR19: 14.94111111 | AS19: 14.38577778

Sheet 4A7A40_42 (hidden)
A2: 4A7A40_42 | B2: 18.2
A3: Evaporator Air | C3: Condenser Entering Air Temperature ˚F
A4: 80 | B4: °F DB | C4: 85 | E4: 90 | G4: 95 | I4: 100 | K4: 105 | M4: 110 | O4: 115
A5: CFM | B5: EWB† ˚F | C5: Capacity Mbtuh | E5: Capacity Mbtuh | G5: Capacity Mbtuh | I5: Capacity Mbtuh | K5: Capacity Mbtuh | M5: Capacity Mbtuh | O5: Capacity Mbtuh
C6: Total | D6: Sens. | E6: Total | F6: Sens. | G6: Total | H6: Sens. | I6: Total | J6: Sens. | K6: Total | L6: Sens. | M6: Total | N6: Sens. | O6: Total | P6: Sens.
R7: Total Factors | Y7: Sens. % | AF7: IDB Adj | AM7: Sens Calc
A8: 1225 | B8: 71 | C8: =R8*$B$2 -> 20.63380392 | D8: =IF(AM8>C8,C8,AM8) -> 11.32236275 | E8: =S8*$B$2 -> 19.97806863 | F8: =IF(AN8>E8,E8,AN8) -> 11.10857761 | G8: =T8*$B$2 -> 19.32233333 | H8: =IF(AO8>G8,G8,AO8) -> 10.88520588 | I8: =U8*$B$2 -> 18.68845588 | J8: =IF(AP8>I8,I8,AP8) -> 10.67149058 | K8: =V8*$B$2 -> 18.05457843 | L8: =IF(AQ8>K8,K8,AQ8) -> 10.44804902 | M8: =W8*$B$2 -> 17.42070098 | N8: =IF(AR8>M8,M8,AR8) -> 10.23506826 | O8: =X8*$B$2 -> 16.78682353 | P8: =IF(AS8>O8,O8,AS8) -> 10.01089216 | R8: 1.13372549 | S8: 1.097696078 | T8: 1.061666667 | U8: 1.026838235 | V8: 0.9920098039 | W8: 0.9571813725 | X8: 0.9223529412 | Y8: 0.5487288136 | Z8: 0.5560386149 | AA8: 0.5633484163 | AB8: 0.5710204551 | AC8: 0.5786924939 | AD8: 0.5875233303 | AE8: 0.5963541667 | AF8: 0.9910714286 | AG8: 0.9910714286 | AH8: 0.9910714286 | AI8: 0.9910714286 | AJ8: 0.9910714286 | AK8: 0.9910714286 | AL8: 0.9910714286 | AM8: =Y8*C8+($A$4-80)*AF8*$A$8/1000 -> 11.32236275 | AN8: =Z8*E8+($A$4-80)*AG8*$A$8/1000 -> 11.10857761 | AO8: =AA8*G8+($A$4-80)*AH8*$A$8/1000 -> 10.88520588 | AP8: =AB8*I8+($A$4-80)*AI8*$A$8/1000 -> 10.67149058 | AQ8: =AC8*K8+($A$4-80)*AJ8*$A$8/1000 -> 10.44804902 | AR8: =AD8*M8+($A$4-80)*AK8*$A$8/1000 -> 10.23506826 | AS8: =AE8*O8+($A$4-80)*AL8*$A$8/1000 -> 10.01089216
B9: 67 | C9: =R9*$B$2 -> 19.01632353 | D9: 13.81415686 | E9: 18.42616176 | F9: =IF(AN9>E9,E9,AN9) -> 13.60253149 | G9: 17.836 | H9: =IF(AO9>G9,G9,AO9) -> 13.377 | I9: 17.24583824 | J9: =IF(AP9>I9,I9,AP9) -> 13.1663601 | K9: 16.65567647 | L9: =IF(AQ9>K9,K9,AQ9) -> 12.93984314 | M9: 16.06551471 | N9: =IF(AR9>M9,M9,AR9) -> 12.7304142 | O9: 15.47535294 | P9: =IF(AS9>O9,O9,AS9) -> 12.50268627 | R9: 1.044852941 | S9: 1.012426471 | T9: 0.98 | U9: 0.9475735294 | V9: 0.9151470588 | W9: 0.8827205882 | X9: 0.8502941176 | Y9: 0.7264367816 | Z9: 0.7382183908 | AA9: 0.75 | AB9: 0.7634514436 | AC9: 0.7769028871 | AD9: 0.7924062458 | AE9: 0.8079096045 | AF9: 0.9910714286 | AG9: 0.9910714286 | AH9: 0.9910714286 | AI9: 0.9910714286 | AJ9: 0.9910714286 | AK9: 0.9910714286 | AL9: 0.9910714286 | AM9: =Y9*C9+($A$4-80)*AF9*$A$8/1000 -> 13.81415686 | AN9: =Z9*E9+($A$4-80)*AG9*$A$8/1000 -> 13.60253149 | AO9: =AA9*G9+($A$4-80)*AH9*$A$8/1000 -> 13.377 | AP9: =AB9*I9+($A$4-80)*AI9*$A$8/1000 -> 13.1663601 | AQ9: =AC9*K9+($A$4-80)*AJ9*$A$8/1000 -> 12.93984314 | AR9: =AD9*M9+($A$4-80)*AK9*$A$8/1000 -> 12.7304142 | AS9: =AE9*O9+($A$4-80)*AL9*$A$8/1000 -> 12.50268627
B10: 63 | C10: 17.79228431 | D10: 16.43709804 | E10: 17.24583824 | F10: 16.20531322 | G10: 16.69939216 | H10: 15.95622549 | I10: 16.13108824 | J10: 15.74949439 | K10: 15.56278431 | L10: 15.51906863 | M10: 15.01633824 | N10: 14.99524787 | O10: 14.46989216 | P10: 14.46989216 | R10: 0.9775980392 | S10: 0.9475735294 | T10: 0.9175490196 | U10: 0.8863235294 | V10: 0.8550980392 | W10: 0.8250735294 | X10: 0.7950490196 | Y10: 0.9238329238 | Z10: 0.939665153 | AA10: 0.9554973822 | AB10: 0.9763441967 | AC10: 0.9971910112 | AD10: 0.9985955056 | AE10: 1 | AF10: 0.9910714286 | AG10: 0.9910714286 | AH10: 0.9910714286 | AI10: 0.9910714286 | AJ10: 0.9910714286 | AK10: 0.9285714286 | AL10: 0.8660714286 | AM10: 16.43709804 | AN10: =Z10*E10+($A$4-80)*AG10*$A$8/1000 -> 16.20531322 | AO10: =AA10*G10+($A$4-80)*AH10*$A$8/1000 -> 15.95622549 | AP10: 15.74949439 | AQ10: 15.51906863 | AR10: 14.99524787 | AS10: 14.46989216
B11: 59 | C11: 16.96168627 | D11: 16.96168627 | E11: 16.43709804 | F11: 16.43709804 | G11: 15.9125098 | H11: 15.9125098 | I11: 15.38792157 | J11: 15.38792157 | K11: 14.86333333 | L11: 14.86333333 | M11: 14.3387451 | N11: 14.3387451 | O11: 13.81415686 | P11: 13.81415686 | R11: 0.9319607843 | S11: 0.9031372549 | T11: 0.8743137255 | U11: 0.8454901961 | V11: 0.8166666667 | W11: 0.7878431373 | X11: 0.7590196078 | Y11: 1 | Z11: 1 | AA11: 1 | AB11: 1 | AC11: 1 | AD11: 1 | AE11: 1 | AF11: 0.5535714286 | AG11: 0.4910714286 | AH11: 0.4285714286 | AI11: 0.3705357143 | AJ11: 0.3125 | AK11: 0.25 | AL11: 0.1875 | AM11: 16.96168627 | AN11: =Z11*E11+($A$4-80)*AG11*$A$8/1000 -> 16.43709804 | AO11: =AA11*G11+($A$4-80)*AH11*$A$8/1000 -> 15.9125098 | AP11: =AB11*I11+($A$4-80)*AI11*$A$8/1000 -> 15.38792157 | AQ11: 14.86333333 | AR11: 14.3387451 | AS11: 13.81415686
A12: 1400 | B12: 71 | C12: 21.05490196 | D12: 11.55343137 | E12: 20.38578431 | F12: 11.33528327 | G12: 19.71666667 | H12: 11.10735294 | I12: 19.06985294 | J12: 10.88927611 | K12: 18.42303922 | L12: 10.66127451 | M12: 17.77622549 | N12: 10.4439472 | O12: 17.12941176 | P12: 10.21519608 | R12: 1.156862745 | S12: 1.120098039 | T12: 1.083333333 | U12: 1.047794118 | V12: 1.012254902 | W12: 0.9767156863 | X12: 0.9411764706 | Y12: 0.5487288136 | Z12: 0.5560386149 | AA12: 0.5633484163 | AB12: 0.5710204551 | AC12: 0.5786924939 | AD12: 0.5875233303 | AE12: 0.5963541667 | AF12: 0.9910714286 | AG12: 0.9910714286 | AH12: 0.9910714286 | AI12: 0.9910714286 | AJ12: 0.9910714286 | AK12: 0.9910714286 | AL12: 0.9910714286 | AM12: =Y12*C12+($A$4-80)*AF12*$A$12/1000 -> 11.55343137 | AN12: =Z12*E12+($A$4-80)*AG12*$A$12/1000 -> 11.33528327 | AO12: =AA12*G12+($A$4-80)*AH12*$A$12/1000 -> 11.10735294 | AP12: =AB12*I12+($A$4-80)*AI12*$A$12/1000 -> 10.88927611 | AQ12: =AC12*K12+($A$4-80)*AJ12*$A$12/1000 -> 10.66127451 | AR12: =AD12*M12+($A$4-80)*AK12*$A$12/1000 -> 10.4439472 | AS12: =AE12*O12+($A$4-80)*AL12*$A$12/1000 -> 10.21519608
B13: 67 | C13: 19.40441176 | D13: 14.09607843 | E13: 18.80220588 | F13: 13.88013417 | G13: 18.2 | H13: 13.65 | I13: 17.59779412 | J13: 13.43506132 | K13: 16.99558824 | L13: 13.20392157 | M13: 16.39338235 | N13: 12.99021857 | O13: 15.79117647 | P13: 12.75784314 | R13: 1.066176471 | S13: 1.033088235 | T13: 1 | U13: 0.9669117647 | V13: 0.9338235294 | W13: 0.9007352941 | X13: 0.8676470588 | Y13: 0.7264367816 | Z13: 0.7382183908 | AA13: 0.75 | AB13: 0.7634514436 | AC13: 0.7769028871 | AD13: 0.7924062458 | AE13: 0.8079096045 | AF13: 0.9910714286 | AG13: 0.9910714286 | AH13: 0.9910714286 | AI13: 0.9910714286 | AJ13: 0.9910714286 | AK13: 0.9910714286 | AL13: 0.9910714286 | AM13: =Y13*C13+($A$4-80)*AF13*$A$12/1000 -> 14.09607843 | AN13: =Z13*E13+($A$4-80)*AG13*$A$12/1000 -> 13.88013417 | AO13: =AA13*G13+($A$4-80)*AH13*$A$12/1000 -> 13.65 | AP13: =AB13*I13+($A$4-80)*AI13*$A$12/1000 -> 13.43506132 | AQ13: =AC13*K13+($A$4-80)*AJ13*$A$12/1000 -> 13.20392157 | AR13: =AD13*M13+($A$4-80)*AK13*$A$12/1000 -> 12.99021857 | AS13: =AE13*O13+($A$4-80)*AL13*$A$12/1000 -> 12.75784314
B14: 63 | C14: 18.15539216 | D14: 16.77254902 | E14: 17.59779412 | F14: 16.5360339 | G14: 17.04019608 | H14: 16.28186275 | I14: 16.46029412 | J14: 16.07091264 | K14: 15.88039216 | L14: 15.83578431 | M14: 15.32279412 | N14: 15.30127334 | O14: 14.76519608 | P14: 14.76519608 | R14: 0.9975490196 | S14: 0.9669117647 | T14: 0.9362745098 | U14: 0.9044117647 | V14: 0.8725490196 | W14: 0.8419117647 | X14: 0.8112745098 | Y14: 0.9238329238 | Z14: 0.939665153 | AA14: 0.9554973822 | AB14: 0.9763441967 | AC14: 0.9971910112 | AD14: 0.9985955056 | AE14: 1 | AF14: 0.9910714286 | AG14: 0.9910714286 | AH14: 0.9910714286 | AI14: 0.9910714286 | AJ14: 0.9910714286 | AK14: 0.9285714286 | AL14: 0.8660714286 | AM14: 16.77254902 | AN14: =Z14*E14+($A$4-80)*AG14*$A$12/1000 -> 16.5360339 | AO14: =AA14*G14+($A$4-80)*AH14*$A$12/1000 -> 16.28186275 | AP14: 16.07091264 | AQ14: 15.83578431 | AR14: 15.30127334 | AS14: 14.76519608
B15: 59 | C15: 17.30784314 | D15: 17.30784314 | E15: 16.77254902 | F15: 16.77254902 | G15: 16.2372549 | H15: 16.2372549 | I15: 15.70196078 | J15: 15.70196078 | K15: 15.16666667 | L15: 15.16666667 | M15: 14.63137255 | N15: 14.63137255 | O15: 14.09607843 | P15: 14.09607843 | R15: 0.9509803922 | S15: 0.9215686275 | T15: 0.8921568627 | U15: 0.862745098 | V15: 0.8333333333 | W15: 0.8039215686 | X15: 0.7745098039 | Y15: 1 | Z15: 1 | AA15: 1 | AB15: 1 | AC15: 1 | AD15: 1 | AE15: 1 | AF15: 0.5535714286 | AG15: 0.4910714286 | AH15: 0.4285714286 | AI15: 0.3705357143 | AJ15: 0.3125 | AK15: 0.25 | AL15: 0.1875 | AM15: 17.30784314 | AN15: =Z15*E15+($A$4-80)*AG15*$A$12/1000 -> 16.77254902 | AO15: =AA15*G15+($A$4-80)*AH15*$A$12/1000 -> 16.2372549 | AP15: 15.70196078 | AQ15: 15.16666667 | AR15: 14.63137255 | AS15: 14.09607843
A16: 1575 | B16: 71 | C16: 21.476 | D16: 11.7845 | E16: 20.7935 | F16: 11.56198894 | G16: 20.111 | H16: 11.3295 | I16: 19.45125 | J16: 11.10706163 | K16: 18.7915 | L16: 10.8745 | M16: 18.13175 | N16: 10.65282614 | O16: 17.472 | P16: 10.4195 | R16: 1.18 | S16: 1.1425 | T16: 1.105 | U16: 1.06875 | V16: 1.0325 | W16: 0.99625 | X16: 0.96 | Y16: 0.5487288136 | Z16: 0.5560386149 | AA16: 0.5633484163 | AB16: 0.5710204551 | AC16: 0.5786924939 | AD16: 0.5875233303 | AE16: 0.5963541667 | AF16: 0.9910714286 | AG16: 0.9910714286 | AH16: 0.9910714286 | AI16: 0.9910714286 | AJ16: 0.9910714286 | AK16: 0.9910714286 | AL16: 0.9910714286 | AM16: =Y16*C16+($A$4-80)*AF16*$A$16/1000 -> 11.7845 | AN16: =Z16*E16+($A$4-80)*AG16*$A$16/1000 -> 11.56198894 | AO16: =AA16*G16+($A$4-80)*AH16*$A$16/1000 -> 11.3295 | AP16: =AB16*I16+($A$4-80)*AI16*$A$16/1000 -> 11.10706163 | AQ16: =AC16*K16+($A$4-80)*AJ16*$A$16/1000 -> 10.8745 | AR16: =AD16*M16+($A$4-80)*AK16*$A$16/1000 -> 10.65282614 | AS16: =AE16*O16+($A$4-80)*AL16*$A$16/1000 -> 10.4195
B17: 67 | C17: 19.7925 | D17: 14.378 | E17: 19.17825 | F17: 14.15773685 | G17: 18.564 | H17: 13.923 | I17: 17.94975 | J17: 13.70376255 | K17: 17.3355 | L17: 13.468 | M17: 16.72125 | N17: 13.25002294 | O17: 16.107 | P17: 13.013 | R17: 1.0875 | S17: 1.05375 | T17: 1.02 | U17: 0.98625 | V17: 0.9525 | W17: 0.91875 | X17: 0.885 | Y17: 0.7264367816 | Z17: 0.7382183908 | AA17: 0.75 | AB17: 0.7634514436 | AC17: 0.7769028871 | AD17: 0.7924062458 | AE17: 0.8079096045 | AF17: 0.9910714286 | AG17: 0.9910714286 | AH17: 0.9910714286 | AI17: 0.9910714286 | AJ17: 0.9910714286 | AK17: 0.9910714286 | AL17: 0.9910714286 | AM17: =Y17*C17+($A$4-80)*AF17*$A$16/1000 -> 14.378 | AN17: =Z17*E17+($A$4-80)*AG17*$A$16/1000 -> 14.15773685 | AO17: =AA17*G17+($A$4-80)*AH17*$A$16/1000 -> 13.923 | AP17: =AB17*I17+($A$4-80)*AI17*$A$16/1000 -> 13.70376255 | AQ17: =AC17*K17+($A$4-80)*AJ17*$A$16/1000 -> 13.468 | AR17: =AD17*M17+($A$4-80)*AK17*$A$16/1000 -> 13.25002294 | AS17: =AE17*O17+($A$4-80)*AL17*$A$16/1000 -> 13.013
B18: 63 | C18: 18.5185 | D18: 17.108 | E18: 17.94975 | F18: 16.86675458 | G18: 17.381 | H18: 16.6075 | I18: 16.7895 | J18: 16.39233089 | K18: 16.198 | L18: 16.1525 | M18: 15.62925 | N18: 15.60729881 | O18: 15.0605 | P18: 15.0605 | R18: 1.0175 | S18: 0.98625 | T18: 0.955 | U18: 0.9225 | V18: 0.89 | W18: 0.85875 | X18: 0.8275 | Y18: 0.9238329238 | Z18: 0.939665153 | AA18: 0.9554973822 | AB18: 0.9763441967 | AC18: 0.9971910112 | AD18: 0.9985955056 | AE18: 1 | AF18: 0.9910714286 | AG18: 0.9910714286 | AH18: 0.9910714286 | AI18: 0.9910714286 | AJ18: 0.9910714286 | AK18: 0.9285714286 | AL18: 0.8660714286 | AM18: 17.108 | AN18: =Z18*E18+($A$4-80)*AG18*$A$16/1000 -> 16.86675458 | AO18: =AA18*G18+($A$4-80)*AH18*$A$16/1000 -> 16.6075 | AP18: 16.39233089 | AQ18: 16.1525 | AR18: 15.60729881 | AS18: 15.0605
B19: 59 | C19: 17.654 | D19: 17.654 | E19: 17.108 | F19: 17.108 | G19: 16.562 | H19: 16.562 | I19: 16.016 | J19: 16.016 | K19: 15.47 | L19: 15.47 | M19: 14.924 | N19: 14.924 | O19: 14.378 | P19: 14.378 | R19: 0.97 | S19: 0.94 | T19: 0.91 | U19: 0.88 | V19: 0.85 | W19: 0.82 | X19: 0.79 | Y19: 1 | Z19: 1 | AA19: 1 | AB19: 1 | AC19: 1 | AD19: 1 | AE19: 1 | AF19: 0.5535714286 | AG19: 0.4910714286 | AH19: 0.4285714286 | AI19: 0.3705357143 | AJ19: 0.3125 | AK19: 0.25 | AL19: 0.1875 | AM19: 17.654 | AN19: =Z19*E19+($A$4-80)*AG19*$A$16/1000 -> 17.108 | AO19: =AA19*G19+($A$4-80)*AH19*$A$16/1000 -> 16.562 | AP19: 16.016 | AQ19: 15.47 | AR19: 14.924 | AS19: 14.378

Sheet 4A7A40_43 (hidden)
A2: 4A7A40_43 | B2: 18.2
A3: Evaporator Air | C3: Condenser Entering Air Temperature ˚F
A4: 80 | B4: °F DB | C4: 85 | E4: 90 | G4: 95 | I4: 100 | K4: 105 | M4: 110 | O4: 115
A5: CFM | B5: EWB† ˚F | C5: Capacity Mbtuh | E5: Capacity Mbtuh | G5: Capacity Mbtuh | I5: Capacity Mbtuh | K5: Capacity Mbtuh | M5: Capacity Mbtuh | O5: Capacity Mbtuh
C6: Total | D6: Sens. | E6: Total | F6: Sens. | G6: Total | H6: Sens. | I6: Total | J6: Sens. | K6: Total | L6: Sens. | M6: Total | N6: Sens. | O6: Total | P6: Sens.
R7: Total Factors | Y7: Sens. % | AF7: IDB Adj | AM7: Sens Calc
A8: 1225 | B8: 71 | C8: =R8*$B$2 -> 20.59325604 | D8: =IF(AM8>C8,C8,AM8) -> 11.37368116 | E8: =S8*$B$2 -> 19.96856522 | F8: =IF(AN8>E8,E8,AN8) -> 11.16245605 | G8: =T8*$B$2 -> 19.3438744 | H8: =IF(AO8>G8,G8,AO8) -> 10.9428599 | I8: =U8*$B$2 -> 18.71918357 | J8: =IF(AP8>I8,I8,AP8) -> 10.7322128 | K8: =V8*$B$2 -> 18.09449275 | L8: =IF(AQ8>K8,K8,AQ8) -> 10.51203865 | M8: =W8*$B$2 -> 17.44826087 | N8: =IF(AR8>M8,M8,AR8) -> 10.30278261 | O8: =X8*$B$2 -> 16.80202899 | P8: =IF(AS8>O8,O8,AS8) -> 10.08121739 | R8: 1.131497585 | S8: 1.097173913 | T8: 1.062850242 | U8: 1.02852657 | V8: 0.9942028986 | W8: 0.9586956522 | X8: 0.9231884058 | Y8: 0.5523012552 | Z8: 0.5590014071 | AA8: 0.565701559 | AB8: 0.57332697 | AC8: 0.580952381 | AD8: 0.5904761905 | AE8: 0.6 | AF8: 1.008928571 | AG8: 1.008928571 | AH8: 1.008928571 | AI8: 1.004464286 | AJ8: 1 | AK8: 1.004464286 | AL8: 1.008928571 | AM8: =Y8*C8+($A$4-80)*AF8*$A$8/1000 -> 11.37368116 | AN8: =Z8*E8+($A$4-80)*AG8*$A$8/1000 -> 11.16245605 | AO8: =AA8*G8+($A$4-80)*AH8*$A$8/1000 -> 10.9428599 | AP8: =AB8*I8+($A$4-80)*AI8*$A$8/1000 -> 10.7322128 | AQ8: =AC8*K8+($A$4-80)*AJ8*$A$8/1000 -> 10.51203865 | AR8: =AD8*M8+($A$4-80)*AK8*$A$8/1000 -> 10.30278261 | AS8: =AE8*O8+($A$4-80)*AL8*$A$8/1000 -> 10.08121739
B9: 67 | C9: =R9*$B$2 -> 18.99921739 | D9: 13.82936232 | E9: 18.4176087 | F9: =IF(AN9>E9,E9,AN9) -> 13.62073225 | G9: 17.836 | H9: =IF(AO9>G9,G9,AO9) -> 13.39854106 | I9: 17.2543913 | J9: =IF(AP9>I9,I9,AP9) -> 13.19085712 | K9: 16.67278261 | L9: =IF(AQ9>K9,K9,AQ9) -> 12.96771981 | M9: 16.09117391 | N9: =IF(AR9>M9,M9,AR9) -> 12.76119487 | O9: 15.50956522 | P9: =IF(AS9>O9,O9,AS9) -> 12.53689855 | R9: 1.043913043 | S9: 1.011956522 | T9: 0.98 | U9: 0.9480434783 | V9: 0.9160869565 | W9: 0.8841304348 | X9: 0.852173913 | Y9: 0.7278911565 | Z9: 0.739549443 | AA9: 0.7512077295 | AB9: 0.7644927536 | AC9: 0.7777777778 | AD9: 0.7930555556 | AE9: 0.8083333333 | AF9: 1 | AG9: 1 | AH9: 1 | AI9: 1 | AJ9: 1 | AK9: 1 | AL9: 1 | AM9: =Y9*C9+($A$4-80)*AF9*$A$8/1000 -> 13.82936232 | AN9: =Z9*E9+($A$4-80)*AG9*$A$8/1000 -> 13.62073225 | AO9: =AA9*G9+($A$4-80)*AH9*$A$8/1000 -> 13.39854106 | AP9: =AB9*I9+($A$4-80)*AI9*$A$8/1000 -> 13.19085712 | AQ9: =AC9*K9+($A$4-80)*AJ9*$A$8/1000 -> 12.96771981 | AR9: =AD9*M9+($A$4-80)*AK9*$A$8/1000 -> 12.76119487 | AS9: =AE9*O9+($A$4-80)*AL9*$A$8/1000 -> 12.53689855
B10: 63 | C10: 17.74983575 | D10: 16.41428986 | E10: 17.21130918 | F10: 16.208007 | G10: 16.67278261 | H10: 15.9834686 | I10: 16.13425604 | J10: 15.7561616 | K10: 15.59572947 | L10: 15.50956522 | M10: 15.0572029 | N10: 15.01560842 | O10: 14.51867633 | P10: 14.51867633 | R10: 0.9752657005 | S10: 0.9456763285 | T10: 0.9160869565 | U10: 0.8864975845 | V10: 0.8569082126 | W10: 0.8273188406 | X10: 0.7977294686 | Y10: 0.9247572816 | Z10: 0.9417068062 | AA10: 0.9586563307 | AB10: 0.9765657344 | AC10: 0.9944751381 | AD10: 0.9972375691 | AE10: 1 | AF10: 1 | AG10: 1.004464286 | AH10: 1.008928571 | AI10: 1.004464286 | AJ10: 1 | AK10: 0.9419642857 | AL10: 0.8839285714 | AM10: 16.41428986 | AN10: =Z10*E10+($A$4-80)*AG10*$A$8/1000 -> 16.208007 | AO10: =AA10*G10+($A$4-80)*AH10*$A$8/1000 -> 15.9834686 | AP10: 15.7561616 | AQ10: 15.50956522 | AR10: 15.01560842 | AS10: 14.51867633
B11: 59 | C11: 16.93127536 | D11: 16.93127536 | E11: 16.41428986 | F11: 16.41428986 | G11: 15.89730435 | H11: 15.89730435 | I11: 15.38031884 | J11: 15.38031884 | K11: 14.86333333 | L11: 14.86333333 | M11: 14.34634783 | N11: 14.34634783 | O11: 13.82936232 | P11: 13.82936232 | R11: 0.9302898551 | S11: 0.901884058 | T11: 0.8734782609 | U11: 0.8450724638 | V11: 0.8166666667 | W11: 0.7882608696 | X11: 0.7598550725 | Y11: 1 | Z11: 1 | AA11: 1 | AB11: 1 | AC11: 1 | AD11: 1 | AE11: 1 | AF11: 0.5535714286 | AG11: 0.4910714286 | AH11: 0.4285714286 | AI11: 0.3705357143 | AJ11: 0.3125 | AK11: 0.25 | AL11: 0.1875 | AM11: 16.93127536 | AN11: =Z11*E11+($A$4-80)*AG11*$A$8/1000 -> 16.41428986 | AO11: =AA11*G11+($A$4-80)*AH11*$A$8/1000 -> 15.89730435 | AP11: =AB11*I11+($A$4-80)*AI11*$A$8/1000 -> 15.38031884 | AQ11: 14.86333333 | AR11: 14.34634783 | AS11: 13.82936232
A12: 1400 | B12: 71 | C12: 21.01352657 | D12: 11.6057971 | E12: 20.37608696 | F12: 11.39026128 | G12: 19.73864734 | H12: 11.16618357 | I12: 19.10120773 | J12: 10.95123755 | K12: 18.46376812 | L12: 10.72657005 | M12: 17.80434783 | N12: 10.51304348 | O12: 17.14492754 | P12: 10.28695652 | R12: 1.154589372 | S12: 1.119565217 | T12: 1.084541063 | U12: 1.049516908 | V12: 1.014492754 | W12: 0.9782608696 | X12: 0.9420289855 | Y12: 0.5523012552 | Z12: 0.5590014071 | AA12: 0.565701559 | AB12: 0.57332697 | AC12: 0.580952381 | AD12: 0.5904761905 | AE12: 0.6 | AF12: 1.008928571 | AG12: 1.008928571 | AH12: 1.008928571 | AI12: 1.004464286 | AJ12: 1 | AK12: 1.004464286 | AL12: 1.008928571 | AM12: =Y12*C12+($A$4-80)*AF12*$A$12/1000 -> 11.6057971 | AN12: =Z12*E12+($A$4-80)*AG12*$A$12/1000 -> 11.39026128 | AO12: =AA12*G12+($A$4-80)*AH12*$A$12/1000 -> 11.16618357 | AP12: =AB12*I12+($A$4-80)*AI12*$A$12/1000 -> 10.95123755 | AQ12: =AC12*K12+($A$4-80)*AJ12*$A$12/1000 -> 10.72657005 | AR12: =AD12*M12+($A$4-80)*AK12*$A$12/1000 -> 10.51304348 | AS12: =AE12*O12+($A$4-80)*AL12*$A$12/1000 -> 10.28695652
B13: 67 | C13: 19.38695652 | D13: 14.1115942 | E13: 18.79347826 | F13: 13.89870638 | G13: 18.2 | H13: 13.67198068 | I13: 17.60652174 | J13: 13.46005829 | K13: 17.01304348 | L13: 13.23236715 | M13: 16.41956522 | N13: 13.02162742 | O13: 15.82608696 | P13: 12.79275362 | R13: 1.065217391 | S13: 1.032608696 | T13: 1 | U13: 0.9673913043 | V13: 0.9347826087 | W13: 0.902173913 | X13: 0.8695652174 | Y13: 0.7278911565 | Z13: 0.739549443 | AA13: 0.7512077295 | AB13: 0.7644927536 | AC13: 0.7777777778 | AD13: 0.7930555556 | AE13: 0.8083333333 | AF13: 1 | AG13: 1 | AH13: 1 | AI13: 1 | AJ13: 1 | AK13: 1 | AL13: 1 | AM13: =Y13*C13+($A$4-80)*AF13*$A$12/1000 -> 14.1115942 | AN13: =Z13*E13+($A$4-80)*AG13*$A$12/1000 -> 13.89870638 | AO13: =AA13*G13+($A$4-80)*AH13*$A$12/1000 -> 13.67198068 | AP13: =AB13*I13+($A$4-80)*AI13*$A$12/1000 -> 13.46005829 | AQ13: =AC13*K13+($A$4-80)*AJ13*$A$12/1000 -> 13.23236715 | AR13: =AD13*M13+($A$4-80)*AK13*$A$12/1000 -> 13.02162742 | AS13: =AE13*O13+($A$4-80)*AL13*$A$12/1000 -> 12.79275362
B14: 63 | C14: 18.11207729 | D14: 16.74927536 | E14: 17.56256039 | F14: 16.53878265 | G14: 17.01304348 | H14: 16.30966184 | I14: 16.46352657 | J14: 16.07771592 | K14: 15.91400966 | L14: 15.82608696 | M14: 15.36449275 | N14: 15.3220494 | O14: 14.81497585 | P14: 14.81497585 | R14: 0.9951690821 | S14: 0.9649758454 | T14: 0.9347826087 | U14: 0.904589372 | V14: 0.8743961353 | W14: 0.8442028986 | X14: 0.8140096618 | Y14: 0.9247572816 | Z14: 0.9417068062 | AA14: 0.9586563307 | AB14: 0.9765657344 | AC14: 0.9944751381 | AD14: 0.9972375691 | AE14: 1 | AF14: 1 | AG14: 1.004464286 | AH14: 1.008928571 | AI14: 1.004464286 | AJ14: 1 | AK14: 0.9419642857 | AL14: 0.8839285714 | AM14: 16.74927536 | AN14: =Z14*E14+($A$4-80)*AG14*$A$12/1000 -> 16.53878265 | AO14: =AA14*G14+($A$4-80)*AH14*$A$12/1000 -> 16.30966184 | AP14: 16.07771592 | AQ14: 15.82608696 | AR14: 15.3220494 | AS14: 14.81497585
B15: 59 | C15: 17.27681159 | D15: 17.27681159 | E15: 16.74927536 | F15: 16.74927536 | G15: 16.22173913 | H15: 16.22173913 | I15: 15.6942029 | J15: 15.6942029 | K15: 15.16666667 | L15: 15.16666667 | M15: 14.63913043 | N15: 14.63913043 | O15: 14.1115942 | P15: 14.1115942 | R15: 0.9492753623 | S15: 0.9202898551 | T15: 0.8913043478 | U15: 0.8623188406 | V15: 0.8333333333 | W15: 0.8043478261 | X15: 0.7753623188 | Y15: 1 | Z15: 1 | AA15: 1 | AB15: 1 | AC15: 1 | AD15: 1 | AE15: 1 | AF15: 0.5535714286 | AG15: 0.4910714286 | AH15: 0.4285714286 | AI15: 0.3705357143 | AJ15: 0.3125 | AK15: 0.25 | AL15: 0.1875 | AM15: 17.27681159 | AN15: =Z15*E15+($A$4-80)*AG15*$A$12/1000 -> 16.74927536 | AO15: =AA15*G15+($A$4-80)*AH15*$A$12/1000 -> 16.22173913 | AP15: 15.6942029 | AQ15: 15.16666667 | AR15: 14.63913043 | AS15: 14.1115942
A16: 1575 | B16: 71 | C16: 21.4337971 | D16: 11.83791304 | E16: 20.7836087 | F16: 11.61806651 | G16: 20.13342029 | H16: 11.38950725 | I16: 19.48323188 | J16: 11.1702623 | K16: 18.83304348 | L16: 10.94110145 | M16: 18.16043478 | N16: 10.72330435 | O16: 17.48782609 | P16: 10.49269565 | R16: 1.177681159 | S16: 1.141956522 | T16: 1.106231884 | U16: 1.070507246 | V16: 1.034782609 | W16: 0.997826087 | X16: 0.9608695652 | Y16: 0.5523012552 | Z16: 0.5590014071 | AA16: 0.565701559 | AB16: 0.57332697 | AC16: 0.580952381 | AD16: 0.5904761905 | AE16: 0.6 | AF16: 1.008928571 | AG16: 1.008928571 | AH16: 1.008928571 | AI16: 1.004464286 | AJ16: 1 | AK16: 1.004464286 | AL16: 1.008928571 | AM16: =Y16*C16+($A$4-80)*AF16*$A$16/1000 -> 11.83791304 | AN16: =Z16*E16+($A$4-80)*AG16*$A$16/1000 -> 11.61806651 | AO16: =AA16*G16+($A$4-80)*AH16*$A$16/1000 -> 11.38950725 | AP16: =AB16*I16+($A$4-80)*AI16*$A$16/1000 -> 11.1702623 | AQ16: =AC16*K16+($A$4-80)*AJ16*$A$16/1000 -> 10.94110145 | AR16: =AD16*M16+($A$4-80)*AK16*$A$16/1000 -> 10.72330435 | AS16: =AE16*O16+($A$4-80)*AL16*$A$16/1000 -> 10.49269565
B17: 67 | C17: 19.77469565 | D17: 14.39382609 | E17: 19.16934783 | F17: 14.17668051 | G17: 18.564 | H17: 13.94542029 | I17: 17.95865217 | J17: 13.72925945 | K17: 17.35330435 | L17: 13.49701449 | M17: 16.74795652 | N17: 13.28205996 | O17: 16.1426087 | P17: 13.0486087 | R17: 1.086521739 | S17: 1.05326087 | T17: 1.02 | U17: 0.9867391304 | V17: 0.9534782609 | W17: 0.9202173913 | X17: 0.8869565217 | Y17: 0.7278911565 | Z17: 0.739549443 | AA17: 0.7512077295 | AB17: 0.7644927536 | AC17: 0.7777777778 | AD17: 0.7930555556 | AE17: 0.8083333333 | AF17: 1 | AG17: 1 | AH17: 1 | AI17: 1 | AJ17: 1 | AK17: 1 | AL17: 1 | AM17: =Y17*C17+($A$4-80)*AF17*$A$16/1000 -> 14.39382609 | AN17: =Z17*E17+($A$4-80)*AG17*$A$16/1000 -> 14.17668051 | AO17: =AA17*G17+($A$4-80)*AH17*$A$16/1000 -> 13.94542029 | AP17: =AB17*I17+($A$4-80)*AI17*$A$16/1000 -> 13.72925945 | AQ17: =AC17*K17+($A$4-80)*AJ17*$A$16/1000 -> 13.49701449 | AR17: =AD17*M17+($A$4-80)*AK17*$A$16/1000 -> 13.28205996 | AS17: =AE17*O17+($A$4-80)*AL17*$A$16/1000 -> 13.0486087
B18: 63 | C18: 18.47431884 | D18: 17.08426087 | E18: 17.91381159 | F18: 16.8695583 | G18: 17.35330435 | H18: 16.63585507 | I18: 16.7927971 | J18: 16.39927023 | K18: 16.23228986 | L18: 16.1426087 | M18: 15.67178261 | N18: 15.62849039 | O18: 15.11127536 | P18: 15.11127536 | R18: 1.015072464 | S18: 0.9842753623 | T18: 0.9534782609 | U18: 0.9226811594 | V18: 0.891884058 | W18: 0.8610869565 | X18: 0.8302898551 | Y18: 0.9247572816 | Z18: 0.9417068062 | AA18: 0.9586563307 | AB18: 0.9765657344 | AC18: 0.9944751381 | AD18: 0.9972375691 | AE18: 1 | AF18: 1 | AG18: 1.004464286 | AH18: 1.008928571 | AI18: 1.004464286 | AJ18: 1 | AK18: 0.9419642857 | AL18: 0.8839285714 | AM18: 17.08426087 | AN18: =Z18*E18+($A$4-80)*AG18*$A$16/1000 -> 16.8695583 | AO18: =AA18*G18+($A$4-80)*AH18*$A$16/1000 -> 16.63585507 | AP18: 16.39927023 | AQ18: 16.1426087 | AR18: 15.62849039 | AS18: 15.11127536
B19: 59 | C19: 17.62234783 | D19: 17.62234783 | E19: 17.08426087 | F19: 17.08426087 | G19: 16.54617391 | H19: 16.54617391 | I19: 16.00808696 | J19: 16.00808696 | K19: 15.47 | L19: 15.47 | M19: 14.93191304 | N19: 14.93191304 | O19: 14.39382609 | P19: 14.39382609 | R19: 0.9682608696 | S19: 0.9386956522 | T19: 0.9091304348 | U19: 0.8795652174 | V19: 0.85 | W19: 0.8204347826 | X19: 0.7908695652 | Y19: 1 | Z19: 1 | AA19: 1 | AB19: 1 | AC19: 1 | AD19: 1 | AE19: 1 | AF19: 0.5535714286 | AG19: 0.4910714286 | AH19: 0.4285714286 | AI19: 0.3705357143 | AJ19: 0.3125 | AK19: 0.25 | AL19: 0.1875 | AM19: 17.62234783 | AN19: =Z19*E19+($A$4-80)*AG19*$A$16/1000 -> 17.08426087 | AO19: =AA19*G19+($A$4-80)*AH19*$A$16/1000 -> 16.54617391 | AP19: 16.00808696 | AQ19: 15.47 | AR19: 14.93191304 | AS19: 14.39382609

Sheet 4A7A40_48 (hidden)
A2: 4A7A40_48 | B2: 18.2
A3: Evaporator Air | C3: Condenser Entering Air Temperature ˚F
A4: 80 | B4: °F DB | C4: 85 | E4: 90 | G4: 95 | I4: 100 | K4: 105 | M4: 110 | O4: 115
A5: CFM | B5: EWB† ˚F | C5: Capacity Mbtuh | E5: Capacity Mbtuh | G5: Capacity Mbtuh | I5: Capacity Mbtuh | K5: Capacity Mbtuh | M5: Capacity Mbtuh | O5: Capacity Mbtuh
C6: Total | D6: Sens. | E6: Total | F6: Sens. | G6: Total | H6: Sens. | I6: Total | J6: Sens. | K6: Total | L6: Sens. | M6: Total | N6: Sens. | O6: Total | P6: Sens.
R7: Total Factors | Y7: Sens. % | AF7: IDB Adj | AM7: Sens Calc
A8: 1400 | B8: 71 | C8: =R8*$B$2 -> 20.42147059 | D8: =IF(AM8>C8,C8,AM8) -> 11.50347059 | E8: =S8*$B$2 -> 19.87814706 | F8: =IF(AN8>E8,E8,AN8) -> 11.31945328 | G8: =T8*$B$2 -> 19.33482353 | H8: =IF(AO8>G8,G8,AO8) -> 11.12876471 | I8: =U8*$B$2 -> 18.7915 | J8: =IF(AP8>I8,I8,AP8) -> 10.96443779 | K8: =V8*$B$2 -> 18.24817647 | L8: =IF(AQ8>K8,K8,AQ8) -> 10.79152941 | M8: =W8*$B$2 -> 17.70485294 | N8: =IF(AR8>M8,M8,AR8) -> 10.60841742 | O8: =X8*$B$2 -> 17.16152941 | P8: =IF(AS8>O8,O8,AS8) -> 10.41682353 | R8: 1.122058824 | S8: 1.092205882 | T8: 1.062352941 | U8: 1.0325 | V8: 1.002647059 | W8: 0.9727941176 | X8: 0.9429411765 | Y8: 0.5633027523 | Z8: 0.5694420738 | AA8: 0.5755813953 | AB8: 0.5834785827 | AC8: 0.59137577 | AD8: 0.5991813348 | AE8: 0.6069868996 | AF8: 1.046875 | AG8: 1.046875 | AH8: 1.046875 | AI8: 1.05078125 | AJ8: 1.0546875 | AK8: 1.0546875 | AL8: 1.0546875 | AM8: =Y8*C8+($A$4-80)*AF8*$A$8/1000 -> 11.50347059 | AN8: =Z8*E8+($A$4-80)*AG8*$A$8/1000 -> 11.31945328 | AO8: =AA8*G8+($A$4-80)*AH8*$A$8/1000 -> 11.12876471 | AP8: =AB8*I8+($A$4-80)*AI8*$A$8/1000 -> 10.96443779 | AQ8: =AC8*K8+($A$4-80)*AJ8*$A$8/1000 -> 10.79152941 | AR8: =AD8*M8+($A$4-80)*AK8*$A$8/1000 -> 10.60841742 | AS8: =AE8*O8+($A$4-80)*AL8*$A$8/1000 -> 10.41682353
B9: 67 | C9: =R9*$B$2 -> 18.84770588 | D9: 14.12641176 | E9: 18.34185294 | F9: =IF(AN9>E9,E9,AN9) -> 13.94449811 | G9: 17.836 | H9: =IF(AO9>G9,G9,AO9) -> 13.75170588 | I9: 17.33014706 | J9: =IF(AP9>I9,I9,AP9) -> 13.5704464 | K9: 16.82429412 | L9: =IF(AQ9>K9,K9,AQ9) -> 13.377 | M9: 16.31844118 | N9: =IF(AR9>M9,M9,AR9) -> 13.19652025 | O9: 15.81258824 | P9: =IF(AS9>O9,O9,AS9) -> 13.00229412 | R9: 1.035588235 | S9: 1.007794118 | T9: 0.98 | U9: 0.9522058824 | V9: 0.9244117647 | W9: 0.8966176471 | X9: 0.8688235294 | Y9: 0.7495029821 | Z9: 0.7602556927 | AA9: 0.7710084034 | AB9: 0.783054313 | AC9: 0.7951002227 | AD9: 0.8086875521 | AE9: 0.8222748815 | AF9: 1.0546875 | AG9: 1.0546875 | AH9: 1.0546875 | AI9: 1.0546875 | AJ9: 1.0546875 | AK9: 1.0546875 | AL9: 1.0546875 | AM9: =Y9*C9+($A$4-80)*AF9*$A$8/1000 -> 14.12641176 | AN9: =Z9*E9+($A$4-80)*AG9*$A$8/1000 -> 13.94449811 | AO9: =AA9*G9+($A$4-80)*AH9*$A$8/1000 -> 13.75170588 | AP9: =AB9*I9+($A$4-80)*AI9*$A$8/1000 -> 13.5704464 | AQ9: =AC9*K9+($A$4-80)*AJ9*$A$8/1000 -> 13.377 | AR9: =AD9*M9+($A$4-80)*AK9*$A$8/1000 -> 13.19652025 | AS9: =AE9*O9+($A$4-80)*AL9*$A$8/1000 -> 13.00229412
B10: 63 | C10: 17.61117647 | D10: 16.78682353 | E10: 17.14279412 | F10: 16.60674882 | G10: 16.67441176 | H10: 16.41211765 | I10: 16.20602941 | J10: 16.07856626 | K10: 15.73764706 | L10: 15.73764706 | M10: 15.26926471 | N10: 15.26926471 | O10: 14.80088235 | P10: 14.80088235 | R10: 0.9676470588 | S10: 0.9419117647 | T10: 0.9161764706 | U10: 0.8904411765 | V10: 0.8647058824 | W10: 0.8389705882 | X10: 0.8132352941 | Y10: 0.9531914894 | Z10: 0.9687305761 | AA10: 0.9842696629 | AB10: 0.9921348315 | AC10: 1 | AD10: 1 | AE10: 1 | AF10: 1.046875 | AG10: 1.05078125 | AH10: 1.0546875 | AI10: 1.0234375 | AJ10: 0.9921875 | AK10: 0.93359375 | AL10: 0.875 | AM10: 16.78682353 | AN10: =Z10*E10+($A$4-80)*AG10*$A$8/1000 -> 16.60674882 | AO10: =AA10*G10+($A$4-80)*AH10*$A$8/1000 -> 16.41211765 | AP10: 16.07856626 | AQ10: 15.73764706 | AR10: 15.26926471 | AS10: 14.80088235
B11: 59 | C11: 16.82429412 | D11: 16.82429412 | E11: 16.37464706 | F11: 16.37464706 | G11: 15.925 | H11: 15.925 | I11: 15.47535294 | J11: 15.47535294 | K11: 15.02570588 | L11: 15.02570588 | M11: 14.57605882 | N11: 14.57605882 | O11: 14.12641176 | P11: 14.12641176 | R11: 0.9244117647 | S11: 0.8997058824 | T11: 0.875 | U11: 0.8502941176 | V11: 0.8255882353 | W11: 0.8008823529 | X11: 0.7761764706 | Y11: 1 | Z11: 1 | AA11: 1 | AB11: 1 | AC11: 1 | AD11: 1 | AE11: 1 | AF11: 0.46875 | AG11: 0.41796875 | AH11: 0.3671875 | AI11: 0.31640625 | AJ11: 0.265625 | AK11: 0.2109375 | AL11: 0.15625 | AM11: 16.82429412 | AN11: =Z11*E11+($A$4-80)*AG11*$A$8/1000 -> 16.37464706 | AO11: =AA11*G11+($A$4-80)*AH11*$A$8/1000 -> 15.925 | AP11: =AB11*I11+($A$4-80)*AI11*$A$8/1000 -> 15.47535294 | AQ11: 15.02570588 | AR11: 14.57605882 | AS11: 14.12641176
A12: 1600 | B12: 71 | C12: 20.83823529 | D12: 11.73823529 | E12: 20.28382353 | F12: 11.55046254 | G12: 19.72941176 | H12: 11.35588235 | I12: 19.175 | J12: 11.18820182 | K12: 18.62058824 | L12: 11.01176471 | M12: 18.06617647 | N12: 10.82491573 | O12: 17.51176471 | P12: 10.62941176 | R12: 1.144957983 | S12: 1.114495798 | T12: 1.084033613 | U12: 1.053571429 | V12: 1.023109244 | W12: 0.9926470588 | X12: 0.9621848739 | Y12: 0.5633027523 | Z12: 0.5694420738 | AA12: 0.5755813953 | AB12: 0.5834785827 | AC12: 0.59137577 | AD12: 0.5991813348 | AE12: 0.6069868996 | AF12: 1.046875 | AG12: 1.046875 | AH12: 1.046875 | AI12: 1.05078125 | AJ12: 1.0546875 | AK12: 1.0546875 | AL12: 1.0546875 | AM12: =Y12*C12+($A$4-80)*AF12*$A$12/1000 -> 11.73823529 | AN12: =Z12*E12+($A$4-80)*AG12*$A$12/1000 -> 11.55046254 | AO12: =AA12*G12+($A$4-80)*AH12*$A$12/1000 -> 11.35588235 | AP12: =AB12*I12+($A$4-80)*AI12*$A$12/1000 -> 11.18820182 | AQ12: =AC12*K12+($A$4-80)*AJ12*$A$12/1000 -> 11.01176471 | AR12: =AD12*M12+($A$4-80)*AK12*$A$12/1000 -> 10.82491573 | AS12: =AE12*O12+($A$4-80)*AL12*$A$12/1000 -> 10.62941176
B13: 67 | C13: 19.23235294 | D13: 14.41470588 | E13: 18.71617647 | F13: 14.22907971 | G13: 18.2 | H13: 14.03235294 | I13: 17.68382353 | J13: 13.84739429 | K13: 17.16764706 | L13: 13.65 | M13: 16.65147059 | N13: 13.46583699 | O13: 16.13529412 | P13: 13.26764706 | R13: 1.056722689 | S13: 1.028361345 | T13: 1 | U13: 0.9716386555 | V13: 0.9432773109 | W13: 0.9149159664 | X13: 0.8865546218 | Y13: 0.7495029821 | Z13: 0.7602556927 | AA13: 0.7710084034 | AB13: 0.783054313 | AC13: 0.7951002227 | AD13: 0.8086875521 | AE13: 0.8222748815 | AF13: 1.0546875 | AG13: 1.0546875 | AH13: 1.0546875 | AI13: 1.0546875 | AJ13: 1.0546875 | AK13: 1.0546875 | AL13: 1.0546875 | AM13: =Y13*C13+($A$4-80)*AF13*$A$12/1000 -> 14.41470588 | AN13: =Z13*E13+($A$4-80)*AG13*$A$12/1000 -> 14.22907971 | AO13: =AA13*G13+($A$4-80)*AH13*$A$12/1000 -> 14.03235294 | AP13: =AB13*I13+($A$4-80)*AI13*$A$12/1000 -> 13.84739429 | AQ13: =AC13*K13+($A$4-80)*AJ13*$A$12/1000 -> 13.65 | AR13: =AD13*M13+($A$4-80)*AK13*$A$12/1000 -> 13.46583699 | AS13: =AE13*O13+($A$4-80)*AL13*$A$12/1000 -> 13.26764706
B14: 63 | C14: 17.97058824 | D14: 17.12941176 | E14: 17.49264706 | F14: 16.94566206 | G14: 17.01470588 | H14: 16.74705882 | I14: 16.53676471 | J14: 16.40670026 | K14: 16.05882353 | L14: 16.05882353 | M14: 15.58088235 | N14: 15.58088235 | O14: 15.10294118 | P14: 15.10294118 | R14: 0.987394958 | S14: 0.9611344538 | T14: 0.9348739496 | U14: 0.9086134454 | V14: 0.8823529412 | W14: 0.856092437 | X14: 0.8298319328 | Y14: 0.9531914894 | Z14: 0.9687305761 | AA14: 0.9842696629 | AB14: 0.9921348315 | AC14: 1 | AD14: 1 | AE14: 1 | AF14: 1.046875 | AG14: 1.05078125 | AH14: 1.0546875 | AI14: 1.0234375 | AJ14: 0.9921875 | AK14: 0.93359375 | AL14: 0.875 | AM14: 17.12941176 | AN14: =Z14*E14+($A$4-80)*AG14*$A$12/1000 -> 16.94566206 | AO14: =AA14*G14+($A$4-80)*AH14*$A$12/1000 -> 16.74705882 | AP14: 16.40670026 | AQ14: 16.05882353 | AR14: 15.58088235 | AS14: 15.10294118
B15: 59 | C15: 17.16764706 | D15: 17.16764706 | E15: 16.70882353 | F15: 16.70882353 | G15: 16.25 | H15: 16.25 | I15: 15.79117647 | J15: 15.79117647 | K15: 15.33235294 | L15: 15.33235294 | M15: 14.87352941 | N15: 14.87352941 | O15: 14.41470588 | P15: 14.41470588 | R15: 0.9432773109 | S15: 0.9180672269 | T15: 0.8928571429 | U15: 0.8676470588 | V15: 0.8424369748 | W15: 0.8172268908 | X15: 0.7920168067 | Y15: 1 | Z15: 1 | AA15: 1 | AB15: 1 | AC15: 1 | AD15: 1 | AE15: 1 | AF15: 0.46875 | AG15: 0.41796875 | AH15: 0.3671875 | AI15: 0.31640625 | AJ15: 0.265625 | AK15: 0.2109375 | AL15: 0.15625 | AM15: 17.16764706 | AN15: =Z15*E15+($A$4-80)*AG15*$A$12/1000 -> 16.70882353 | AO15: =AA15*G15+($A$4-80)*AH15*$A$12/1000 -> 16.25 | AP15: 15.79117647 | AQ15: 15.33235294 | AR15: 14.87352941 | AS15: 14.41470588
A16: 1800 | B16: 71 | C16: 21.255 | D16: 11.973 | E16: 20.6895 | F16: 11.78147179 | G16: 20.124 | H16: 11.583 | I16: 19.5585 | J16: 11.41196586 | K16: 18.993 | L16: 11.232 | M16: 18.4275 | N16: 11.04141405 | O16: 17.862 | P16: 10.842 | R16: 1.167857143 | S16: 1.136785714 | T16: 1.105714286 | U16: 1.074642857 | V16: 1.043571429 | W16: 1.0125 | X16: 0.9814285714 | Y16: 0.5633027523 | Z16: 0.5694420738 | AA16: 0.5755813953 | AB16: 0.5834785827 | AC16: 0.59137577 | AD16: 0.5991813348 | AE16: 0.6069868996 | AF16: 1.046875 | AG16: 1.046875 | AH16: 1.046875 | AI16: 1.05078125 | AJ16: 1.0546875 | AK16: 1.0546875 | AL16: 1.0546875 | AM16: =Y16*C16+($A$4-80)*AF16*$A$16/1000 -> 11.973 | AN16: =Z16*E16+($A$4-80)*AG16*$A$16/1000 -> 11.78147179 | AO16: =AA16*G16+($A$4-80)*AH16*$A$16/1000 -> 11.583 | AP16: =AB16*I16+($A$4-80)*AI16*$A$16/1000 -> 11.41196586 | AQ16: =AC16*K16+($A$4-80)*AJ16*$A$16/1000 -> 11.232 | AR16: =AD16*M16+($A$4-80)*AK16*$A$16/1000 -> 11.04141405 | AS16: =AE16*O16+($A$4-80)*AL16*$A$16/1000 -> 10.842
B17: 67 | C17: 19.617 | D17: 14.703 | E17: 19.0905 | F17: 14.5136613 | G17: 18.564 | H17: 14.313 | I17: 18.0375 | J17: 14.12434217 | K17: 17.511 | L17: 13.923 | M17: 16.9845 | N17: 13.73515373 | O17: 16.458 | P17: 13.533 | R17: 1.077857143 | S17: 1.048928571 | T17: 1.02 | U17: 0.9910714286 | V17: 0.9621428571 | W17: 0.9332142857 | X17: 0.9042857143 | Y17: 0.7495029821 | Z17: 0.7602556927 | AA17: 0.7710084034 | AB17: 0.783054313 | AC17: 0.7951002227 | AD17: 0.8086875521 | AE17: 0.8222748815 | AF17: 1.0546875 | AG17: 1.0546875 | AH17: 1.0546875 | AI17: 1.0546875 | AJ17: 1.0546875 | AK17: 1.0546875 | AL17: 1.0546875 | AM17: =Y17*C17+($A$4-80)*AF17*$A$16/1000 -> 14.703 | AN17: =Z17*E17+($A$4-80)*AG17*$A$16/1000 -> 14.5136613 | AO17: =AA17*G17+($A$4-80)*AH17*$A$16/1000 -> 14.313 | AP17: =AB17*I17+($A$4-80)*AI17*$A$16/1000 -> 14.12434217 | AQ17: =AC17*K17+($A$4-80)*AJ17*$A$16/1000 -> 13.923 | AR17: =AD17*M17+($A$4-80)*AK17*$A$16/1000 -> 13.73515373 | AS17: =AE17*O17+($A$4-80)*AL17*$A$16/1000 -> 13.533
B18: 63 | C18: 18.33 | D18: 17.472 | E18: 17.8425 | F18: 17.2845753 | G18: 17.355 | H18: 17.082 | I18: 16.8675 | J18: 16.73483427 | K18: 16.38 | L18: 16.38 | M18: 15.8925 | N18: 15.8925 | O18: 15.405 | P18: 15.405 | R18: 1.007142857 | S18: 0.9803571429 | T18: 0.9535714286 | U18: 0.9267857143 | V18: 0.9 | W18: 0.8732142857 | X18: 0.8464285714 | Y18: 0.9531914894 | Z18: 0.9687305761 | AA18: 0.9842696629 | AB18: 0.9921348315 | AC18: 1 | AD18: 1 | AE18: 1 | AF18: 1.046875 | AG18: 1.05078125 | AH18: 1.0546875 | AI18: 1.0234375 | AJ18: 0.9921875 | AK18: 0.93359375 | AL18: 0.875 | AM18: 17.472 | AN18: =Z18*E18+($A$4-80)*AG18*$A$16/1000 -> 17.2845753 | AO18: =AA18*G18+($A$4-80)*AH18*$A$16/1000 -> 17.082 | AP18: 16.73483427 | AQ18: 16.38 | AR18: 15.8925 | AS18: 15.405
B19: 59 | C19: 17.511 | D19: 17.511 | E19: 17.043 | F19: 17.043 | G19: 16.575 | H19: 16.575 | I19: 16.107 | J19: 16.107 | K19: 15.639 | L19: 15.639 | M19: 15.171 | N19: 15.171 | O19: 14.703 | P19: 14.703 | R19: 0.9621428571 | S19: 0.9364285714 | T19: 0.9107142857 | U19: 0.885 | V19: 0.8592857143 | W19: 0.8335714286 | X19: 0.8078571429 | Y19: 1 | Z19: 1 | AA19: 1 | AB19: 1 | AC19: 1 | AD19: 1 | AE19: 1 | AF19: 0.46875 | AG19: 0.41796875 | AH19: 0.3671875 | AI19: 0.31640625 | AJ19: 0.265625 | AK19: 0.2109375 | AL19: 0.15625 | AM19: 17.511 | AN19: =Z19*E19+($A$4-80)*AG19*$A$16/1000 -> 17.043 | AO19: =AA19*G19+($A$4-80)*AH19*$A$16/1000 -> 16.575 | AP19: 16.107 | AQ19: 15.639 | AR19: 15.171 | AS19: 14.703

Sheet 4A7A40_60 (hidden)
A2: 4A7A40_60 | B2: 18.2
A3: Evaporator Air | C3: Condenser Entering Air Temperature ˚F
A4: 80 | B4: °F DB | C4: 85 | E4: 90 | G4: 95 | I4: 100 | K4: 105 | M4: 110 | O4: 115
A5: CFM | B5: EWB† ˚F | C5: Capacity Mbtuh | E5: Capacity Mbtuh | G5: Capacity Mbtuh | I5: Capacity Mbtuh | K5: Capacity Mbtuh | M5: Capacity Mbtuh | O5: Capacity Mbtuh
C6: Total | D6: Sens. | E6: Total | F6: Sens. | G6: Total | H6: Sens. | I6: Total | J6: Sens. | K6: Total | L6: Sens. | M6: Total | N6: Sens. | O6: Total | P6: Sens.
R7: Total Factors | Y7: Sens. % | AF7: IDB Adj | AM7: Sens Calc
A8: 1575 | B8: 71 | C8: =R8*$B$2 -> 20.38844677 | D8: =IF(AM8>C8,C8,AM8) -> 11.36150087 | E8: =S8*$B$2 -> 19.85928098 | F8: =IF(AN8>E8,E8,AN8) -> 11.17769612 | G8: =T8*$B$2 -> 19.33011518 | H8: =IF(AO8>G8,G8,AO8) -> 10.98797208 | I8: =U8*$B$2 -> 18.81651309 | J8: =IF(AP8>I8,I8,AP8) -> 10.82015978 | K8: =V8*$B$2 -> 18.30291099 | L8: =IF(AQ8>K8,K8,AQ8) -> 10.64557068 | M8: =W8*$B$2 -> 17.7737452 | N8: =IF(AR8>M8,M8,AR8) -> 10.46251976 | O8: =X8*$B$2 -> 17.24457941 | P8: =IF(AS8>O8,O8,AS8) -> 10.27204188 | R8: 1.120244328 | S8: 1.091169284 | T8: 1.062094241 | U8: 1.033874346 | V8: 1.00565445 | W8: 0.9765794066 | X8: 0.947504363 | Y8: 0.5572519084 | Z8: 0.5628449558 | AA8: 0.5684380032 | AB8: 0.5750353281 | AC8: 0.5816326531 | AD8: 0.5886502615 | AE8: 0.59566787 | AF8: 1.076388889 | AG8: 1.076388889 | AH8: 1.076388889 | AI8: 1.076388889 | AJ8: 1.076388889 | AK8: 1.076388889 | AL8: 1.076388889 | AM8: =Y8*C8+($A$4-80)*AF8*$A$8/1000 -> 11.36150087 | AN8: =Z8*E8+($A$4-80)*AG8*$A$8/1000 -> 11.17769612 | AO8: =AA8*G8+($A$4-80)*AH8*$A$8/1000 -> 10.98797208 | AP8: =AB8*I8+($A$4-80)*AI8*$A$8/1000 -> 10.82015978 | AQ8: =AC8*K8+($A$4-80)*AJ8*$A$8/1000 -> 10.64557068 | AR8: =AD8*M8+($A$4-80)*AK8*$A$8/1000 -> 10.46251976 | AS8: =AE8*O8+($A$4-80)*AL8*$A$8/1000 -> 10.27204188
B9: 67 | C9: =R9*$B$2 -> 18.76982199 | D9: 13.82056545 | E9: 18.30291099 | F9: =IF(AN9>E9,E9,AN9) -> 13.65388293 | G9: 17.836 | H9: =IF(AO9>G9,G9,AO9) -> 13.47816405 | I9: 17.35352531 | J9: =IF(AP9>I9,I9,AP9) -> 13.29648514 | K9: 16.87105061 | L9: =IF(AQ9>K9,K9,AQ9) -> 13.10463525 | M9: 16.38857592 | N9: =IF(AR9>M9,M9,AR9) -> 12.92357337 | O9: 15.90610122 | P9: =IF(AS9>O9,O9,AS9) -> 12.73110646 | R9: 1.031308901 | S9: 1.00565445 | T9: 0.98 | U9: 0.9534904014 | V9: 0.9269808028 | W9: 0.9004712042 | X9: 0.8739616056 | Y9: 0.736318408 | Z9: 0.7459951551 | AA9: 0.7556719023 | AB9: 0.7662123349 | AC9: 0.7767527675 | AD9: 0.7885720785 | AE9: 0.8003913894 | AF9: 1.076388889 | AG9: 1.076388889 | AH9: 1.076388889 | AI9: 1.076388889 | AJ9: 1.076388889 | AK9: 1.072916667 | AL9: 1.069444444 | AM9: =Y9*C9+($A$4-80)*AF9*$A$8/1000 -> 13.82056545 | AN9: =Z9*E9+($A$4-80)*AG9*$A$8/1000 -> 13.65388293 | AO9: =AA9*G9+($A$4-80)*AH9*$A$8/1000 -> 13.47816405 | AP9: =AB9*I9+($A$4-80)*AI9*$A$8/1000 -> 13.29648514 | AQ9: =AC9*K9+($A$4-80)*AJ9*$A$8/1000 -> 13.10463525 | AR9: =AD9*M9+($A$4-80)*AK9*$A$8/1000 -> 12.92357337 | AS9: =AE9*O9+($A$4-80)*AL9*$A$8/1000 -> 12.73110646
B10: 63 | C10: 17.5869808 | D10: 16.40413962 | E10: 17.13563351 | F10: 16.22371158 | G10: 16.68428621 | H10: 16.03061082 | I10: 16.23293892 | J10: 15.85090765 | K10: 15.78159162 | L10: 15.65708202 | M10: 15.33024433 | N10: 15.26976999 | O10: 14.87889703 | P10: 14.87889703 | R10: 0.9663176265 | S10: 0.9415183246 | T10: 0.9167190227 | U10: 0.8919197208 | V10: 0.8671204188 | W10: 0.8423211169 | X10: 0.817521815 | Y10: 0.9327433628 | Z10: 0.9467821292 | AA10: 0.9608208955 | AB10: 0.9764656746 | AC10: 0.9921104536 | AD10: 0.9960552268 | AE10: 1 | AF10: 1.076388889 | AG10: 1.076388889 | AH10: 1.076388889 | AI10: 1.076388889 | AJ10: 1.076388889 | AK10: 1.03125 | AL10: 0.9861111111 | AM10: 16.40413962 | AN10: =Z10*E10+($A$4-80)*AG10*$A$8/1000 -> 16.22371158 | AO10: =AA10*G10+($A$4-80)*AH10*$A$8/1000 -> 16.03061082 | AP10: 15.85090765 | AQ10: 15.65708202 | AR10: 15.26976999 | AS10: 14.87889703
B11: 59 | C11: 16.77766841 | D11: 16.77766841 | E11: 16.34188482 | F11: 16.34188482 | G11: 15.90610122 | H11: 15.90610122 | I11: 15.48588133 | J11: 15.48588133 | K11: 15.06566143 | L11: 15.06566143 | M11: 14.62987784 | N11: 14.62987784 | O11: 14.19409424 | P11: 14.19409424 | R11: 0.9218499127 | S11: 0.8979057592 | T11: 0.8739616056 | U11: 0.8508726003 | V11: 0.8277835951 | W11: 0.8038394415 | X11: 0.779895288 | Y11: 1 | Z11: 1 | AA11: 1 | AB11: 1 | AC11: 1 | AD11: 1 | AE11: 1 | AF11: 0.5625 | AG11: 0.5069444444 | AH11: 0.4513888889 | AI11: 0.4027777778 | AJ11: 0.3541666667 | AK11: 0.2986111111 | AL11: 0.2430555556 | AM11: 16.77766841 | AN11: =Z11*E11+($A$4-80)*AG11*$A$8/1000 -> 16.34188482 | AO11: =AA11*G11+($A$4-80)*AH11*$A$8/1000 -> 15.90610122 | AP11: =AB11*I11+($A$4-80)*AI11*$A$8/1000 -> 15.48588133 | AQ11: 15.06566143 | AR11: 14.62987784 | AS11: 14.19409424
A12: 1500 | B12: 71 | C12: 20.80453752 | D12: 11.59336824 | E12: 20.26457243 | F12: 11.40581237 | G12: 19.72460733 | H12: 11.2122164 | I12: 19.20052356 | J12: 11.04097937 | K12: 18.67643979 | L12: 10.86282723 | M12: 18.13647469 | N12: 10.67604057 | O12: 17.5965096 | P12: 10.48167539 | R12: 1.143106457 | S12: 1.113438045 | T12: 1.083769634 | U12: 1.054973822 | V12: 1.02617801 | W12: 0.9965095986 | X12: 0.9668411867 | Y12: 0.5572519084 | Z12: 0.5628449558 | AA12: 0.5684380032 | AB12: 0.5750353281 | AC12: 0.5816326531 | AD12: 0.5886502615 | AE12: 0.59566787 | AF12: 1.076388889 | AG12: 1.076388889 | AH12: 1.076388889 | AI12: 1.076388889 | AJ12: 1.076388889 | AK12: 1.076388889 | AL12: 1.076388889 | AM12: =Y12*C12+($A$4-80)*AF12*$A$12/1000 -> 11.59336824 | AN12: =Z12*E12+($A$4-80)*AG12*$A$12/1000 -> 11.40581237 | AO12: =AA12*G12+($A$4-80)*AH12*$A$12/1000 -> 11.2122164 | AP12: =AB12*I12+($A$4-80)*AI12*$A$12/1000 -> 11.04097937 | AQ12: =AC12*K12+($A$4-80)*AJ12*$A$12/1000 -> 10.86282723 | AR12: =AD12*M12+($A$4-80)*AK12*$A$12/1000 -> 10.67604057 | AS12: =AE12*O12+($A$4-80)*AL12*$A$12/1000 -> 10.48167539
B13: 67 | C13: 19.15287958 | D13: 14.1026178 | E13: 18.67643979 | F13: 13.9325336 | G13: 18.2 | H13: 13.75322862 | I13: 17.70767888 | J13: 13.56784198 | K13: 17.21535777 | L13: 13.37207679 | M13: 16.72303665 | N13: 13.18731977 | O13: 16.23071553 | P13: 12.99092496 | R13: 1.052356021 | S13: 1.02617801 | T13: 1 | U13: 0.9729493892 | V13: 0.9458987784 | W13: 0.9188481675 | X13: 0.8917975567 | Y13: 0.736318408 | Z13: 0.7459951551 | AA13: 0.7556719023 | AB13: 0.7662123349 | AC13: 0.7767527675 | AD13: 0.7885720785 | AE13: 0.8003913894 | AF13: 1.076388889 | AG13: 1.076388889 | AH13: 1.076388889 | AI13: 1.076388889 | AJ13: 1.076388889 | AK13: 1.072916667 | AL13: 1.069444444 | AM13: =Y13*C13+($A$4-80)*AF13*$A$12/1000 -> 14.1026178 | AN13: =Z13*E13+($A$4-80)*AG13*$A$12/1000 -> 13.9325336 | AO13: =AA13*G13+($A$4-80)*AH13*$A$12/1000 -> 13.75322862 | AP13: =AB13*I13+($A$4-80)*AI13*$A$12/1000 -> 13.56784198 | AQ13: =AC13*K13+($A$4-80)*AJ13*$A$12/1000 -> 13.37207679 | AR13: =AD13*M13+($A$4-80)*AK13*$A$12/1000 -> 13.18731977 | AS13: =AE13*O13+($A$4-80)*AL13*$A$12/1000 -> 12.99092496
B14: 63 | C14: 17.94589878 | D14: 16.73891798 | E14: 17.48534031 | F14: 16.55480773 | G14: 17.02478185 | H14: 16.35776614 | I14: 16.56422339 | J14: 16.17439556 | K14: 16.10366492 | L14: 15.97661431 | M14: 15.64310646 | N14: 15.58139795 | O14: 15.18254799 | P14: 15.18254799 | R14: 0.9860383944 | S14: 0.9607329843 | T14: 0.9354275742 | U14: 0.910122164 | V14: 0.8848167539 | W14: 0.8595113438 | X14: 0.8342059337 | Y14: 0.9327433628 | Z14: 0.9467821292 | AA14: 0.9608208955 | AB14: 0.9764656746 | AC14: 0.9921104536 | AD14: 0.9960552268 | AE14: 1 | AF14: 1.076388889 | AG14: 1.076388889 | AH14: 1.076388889 | AI14: 1.076388889 | AJ14: 1.076388889 | AK14: 1.03125 | AL14: 0.9861111111 | AM14: 16.73891798 | AN14: =Z14*E14+($A$4-80)*AG14*$A$12/1000 -> 16.55480773 | AO14: =AA14*G14+($A$4-80)*AH14*$A$12/1000 -> 16.35776614 | AP14: 16.17439556 | AQ14: 15.97661431 | AR14: 15.58139795 | AS14: 15.18254799
B15: 59 | C15: 17.12006981 | D15: 17.12006981 | E15: 16.67539267 | F15: 16.67539267 | G15: 16.23071553 | H15: 16.23071553 | I15: 15.80191972 | J15: 15.80191972 | K15: 15.37312391 | L15: 15.37312391 | M15: 14.92844677 | N15: 14.92844677 | O15: 14.48376963 | P15: 14.48376963 | R15: 0.9406631763 | S15: 0.9162303665 | T15: 0.8917975567 | U15: 0.8682373473 | V15: 0.8446771379 | W15: 0.8202443281 | X15: 0.7958115183 | Y15: 1 | Z15: 1 | AA15: 1 | AB15: 1 | AC15: 1 | AD15: 1 | AE15: 1 | AF15: 0.5625 | AG15: 0.5069444444 | AH15: 0.4513888889 | AI15: 0.4027777778 | AJ15: 0.3541666667 | AK15: 0.2986111111 | AL15: 0.2430555556 | AM15: 17.12006981 | AN15: =Z15*E15+($A$4-80)*AG15*$A$12/1000 -> 16.67539267 | AO15: =AA15*G15+($A$4-80)*AH15*$A$12/1000 -> 16.23071553 | AP15: 15.80191972 | AQ15: 15.37312391 | AR15: 14.92844677 | AS15: 14.48376963
A16: 2025 | B16: 71 | C16: 21.22062827 | D16: 11.8252356 | E16: 20.66986387 | F16: 11.63392862 | G16: 20.11909948 | H16: 11.43646073 | I16: 19.58453403 | J16: 11.26179895 | K16: 19.04996859 | L16: 11.08008377 | M16: 18.49920419 | N16: 10.88956138 | O16: 17.94843979 | P16: 10.6913089 | R16: 1.165968586 | S16: 1.135706806 | T16: 1.105445026 | U16: 1.076073298 | V16: 1.046701571 | W16: 1.016439791 | X16: 0.9861780105 | Y16: 0.5572519084 | Z16: 0.5628449558 | AA16: 0.5684380032 | AB16: 0.5750353281 | AC16: 0.5816326531 | AD16: 0.5886502615 | AE16: 0.59566787 | AF16: 1.076388889 | AG16: 1.076388889 | AH16: 1.076388889 | AI16: 1.076388889 | AJ16: 1.076388889 | AK16: 1.076388889 | AL16: 1.076388889 | AM16: =Y16*C16+($A$4-80)*AF16*$A$16/1000 -> 11.8252356 | AN16: =Z16*E16+($A$4-80)*AG16*$A$16/1000 -> 11.63392862 | AO16: =AA16*G16+($A$4-80)*AH16*$A$16/1000 -> 11.43646073 | AP16: =AB16*I16+($A$4-80)*AI16*$A$16/1000 -> 11.26179895 | AQ16: =AC16*K16+($A$4-80)*AJ16*$A$16/1000 -> 11.08008377 | AR16: =AD16*M16+($A$4-80)*AK16*$A$16/1000 -> 10.88956138 | AS16: =AE16*O16+($A$4-80)*AL16*$A$16/1000 -> 10.6913089
B17: 67 | C17: 19.53593717 | D17: 14.38467016 | E17: 19.04996859 | F17: 14.21118427 | G17: 18.564 | H17: 14.02829319 | I17: 18.06183246 | J17: 13.83919882 | K17: 17.55966492 | L17: 13.63951832 | M17: 17.05749738 | N17: 13.45106616 | O17: 16.55532984 | P17: 13.25074346 | R17: 1.073403141 | S17: 1.046701571 | T17: 1.02 | U17: 0.992408377 | V17: 0.9648167539 | W17: 0.9372251309 | X17: 0.9096335079 | Y17: 0.736318408 | Z17: 0.7459951551 | AA17: 0.7556719023 | AB17: 0.7662123349 | AC17: 0.7767527675 | AD17: 0.7885720785 | AE17: 0.8003913894 | AF17: 1.076388889 | AG17: 1.076388889 | AH17: 1.076388889 | AI17: 1.076388889 | AJ17: 1.076388889 | AK17: 1.072916667 | AL17: 1.069444444 | AM17: =Y17*C17+($A$4-80)*AF17*$A$16/1000 -> 14.38467016 | AN17: =Z17*E17+($A$4-80)*AG17*$A$16/1000 -> 14.21118427 | AO17: =AA17*G17+($A$4-80)*AH17*$A$16/1000 -> 14.02829319 | AP17: =AB17*I17+($A$4-80)*AI17*$A$16/1000 -> 13.83919882 | AQ17: =AC17*K17+($A$4-80)*AJ17*$A$16/1000 -> 13.63951832 | AR17: =AD17*M17+($A$4-80)*AK17*$A$16/1000 -> 13.45106616 | AS17: =AE17*O17+($A$4-80)*AL17*$A$16/1000 -> 13.25074346
B18: 63 | C18: 18.30481675 | D18: 17.07369634 | E18: 17.83504712 | F18: 16.88590389 | G18: 17.36527749 | H18: 16.68492147 | I18: 16.89550785 | J18: 16.49788347 | K18: 16.42573822 | L18: 16.2961466 | M18: 15.95596859 | N18: 15.89302591 | O18: 15.48619895 | P18: 15.48619895 | R18: 1.005759162 | S18: 0.979947644 | T18: 0.9541361257 | U18: 0.9283246073 | V18: 0.902513089 | W18: 0.8767015707 | X18: 0.8508900524 | Y18: 0.9327433628 | Z18: 0.9467821292 | AA18: 0.9608208955 | AB18: 0.9764656746 | AC18: 0.9921104536 | AD18: 0.9960552268 | AE18: 1 | AF18: 1.076388889 | AG18: 1.076388889 | AH18: 1.076388889 | AI18: 1.076388889 | AJ18: 1.076388889 | AK18: 1.03125 | AL18: 0.9861111111 | AM18: 17.07369634 | AN18: =Z18*E18+($A$4-80)*AG18*$A$16/1000 -> 16.88590389 | AO18: =AA18*G18+($A$4-80)*AH18*$A$16/1000 -> 16.68492147 | AP18: 16.49788347 | AQ18: 16.2961466 | AR18: 15.89302591 | AS18: 15.48619895
B19: 59 | C19: 17.4624712 | D19: 17.4624712 | E19: 17.00890052 | F19: 17.00890052 | G19: 16.55532984 | H19: 16.55532984 | I19: 16.11795812 | J19: 16.11795812 | K19: 15.68058639 | L19: 15.68058639 | M19: 15.22701571 | N19: 15.22701571 | O19: 14.77344503 | P19: 14.77344503 | R19: 0.9594764398 | S19: 0.9345549738 | T19: 0.9096335079 | U19: 0.8856020942 | V19: 0.8615706806 | W19: 0.8366492147 | X19: 0.8117277487 | Y19: 1 | Z19: 1 | AA19: 1 | AB19: 1 | AC19: 1 | AD19: 1 | AE19: 1 | AF19: 0.5625 | AG19: 0.5069444444 | AH19: 0.4513888889 | AI19: 0.4027777778 | AJ19: 0.3541666667 | AK19: 0.2986111111 | AL19: 0.2430555556 | AM19: 17.4624712 | AN19: =Z19*E19+($A$4-80)*AG19*$A$16/1000 -> 17.00890052 | AO19: =AA19*G19+($A$4-80)*AH19*$A$16/1000 -> 16.55532984 | AP19: 16.11795812 | AQ19: 15.68058639 | AR19: 15.22701571 | AS19: 14.77344503

Sheet 4A7A60_18 (hidden)
A2: 4A7A60_18 | B2: 18.2
A3: Evaporator Air | C3: Condenser Entering Air Temperature ˚F
A4: 80 | B4: °F DB | C4: 85 | E4: 90 | G4: 95 | I4: 100 | K4: 105 | M4: 110 | O4: 115
A5: CFM | B5: EWB† ˚F | C5: Capacity Mbtuh | E5: Capacity Mbtuh | G5: Capacity Mbtuh | I5: Capacity Mbtuh | K5: Capacity Mbtuh | M5: Capacity Mbtuh | O5: Capacity Mbtuh
C6: Total | D6: Sens. | E6: Total | F6: Sens. | G6: Total | H6: Sens. | I6: Total | J6: Sens. | K6: Total | L6: Sens. | M6: Total | N6: Sens. | O6: Total | P6: Sens.
R7: Total Factors | Y7: Sens. % | AF7: IDB Adj | AM7: Sens Calc
A8: 525 | B8: 71 | C8: =R8*$B$2 -> 20.5114 | D8: =IF(AM8>C8,C8,AM8) -> 3.666288889 | E8: =S8*$B$2 -> 19.91686667 | F8: =IF(AN8>E8,E8,AN8) -> 3.465283156 | G8: =T8*$B$2 -> 19.32233333 | H8: =IF(AO8>G8,G8,AO8) -> 3.269933333 | I8: =U8*$B$2 -> 18.77734444 | J8: =IF(AP8>I8,I8,AP8) -> 3.068588605 | K8: =V8*$B$2 -> 18.23235556 | L8: =IF(AQ8>K8,K8,AQ8) -> 2.873577778 | M8: =W8*$B$2 -> 17.63782222 | N8: =IF(AR8>M8,M8,AR8) -> 2.671755553 | O8: =X8*$B$2 -> 17.04328889 | P8: =IF(AS8>O8,O8,AS8) -> 2.477222222 | R8: 1.127 | S8: 1.094333333 | T8: 1.061666667 | U8: 1.031722222 | V8: 1.001777778 | W8: 0.9691111111 | X8: 0.9364444444 | Y8: 0.1787439614 | Z8: 0.1739873653 | AA8: 0.1692307692 | AB8: 0.1634197324 | AC8: 0.1576086957 | AD8: 0.1514787664 | AE8: 0.1453488372 | AF8: -0.4166666667 | AG8: -0.4166666667 | AH8: -0.4166666667 | AI8: -0.4166666667 | AJ8: -0.4166666667 | AK8: -0.4166666667 | AL8: -0.4166666667 | AM8: =Y8*C8+($A$4-80)*AF8*$A$8/1000 -> 3.666288889 | AN8: =Z8*E8+($A$4-80)*AG8*$A$8/1000 -> 3.465283156 | AO8: =AA8*G8+($A$4-80)*AH8*$A$8/1000 -> 3.269933333 | AP8: =AB8*I8+($A$4-80)*AI8*$A$8/1000 -> 3.068588605 | AQ8: =AC8*K8+($A$4-80)*AJ8*$A$8/1000 -> 2.873577778 | AR8: =AD8*M8+($A$4-80)*AK8*$A$8/1000 -> 2.671755553 | AS8: =AE8*O8+($A$4-80)*AL8*$A$8/1000 -> 2.477222222
B9: 67 | C9: =R9*$B$2 -> 18.92597778 | D9: 2.774488889 | E9: 18.38098889 | F9: =IF(AN9>E9,E9,AN9) -> 2.572696874 | G9: 17.836 | H9: =IF(AO9>G9,G9,AO9) -> 2.378133333 | I9: 17.29101111 | J9: =IF(AP9>I9,I9,AP9) -> 2.175870826 | K9: 16.74602222 | L9: =IF(AQ9>K9,K9,AQ9) -> 1.981777778 | M9: 16.20103333 | N9: =IF(AR9>M9,M9,AR9) -> 1.778946511 | O9: 15.65604444 | P9: =IF(AS9>O9,O9,AS9) -> 1.585422222 | R9: 1.039888889 | S9: 1.009944444 | T9: 0.98 | U9: 0.9500555556 | V9: 0.9201111111 | W9: 0.8901666667 | X9: 0.8602222222 | Y9: 0.1465968586 | Z9: 0.139965096 | AA9: 0.1333333333 | AB9: 0.1258382643 | AC9: 0.1183431953 | AD9: 0.109804509 | AE9: 0.1012658228 | AF9: -0.4166666667 | AG9: -0.4166666667 | AH9: -0.4166666667 | AI9: -0.4166666667 | AJ9: -0.4166666667 | AK9: -0.40625 | AL9: -0.3958333333 | AM9: =Y9*C9+($A$4-80)*AF9*$A$8/1000 -> 2.774488889 | AN9: =Z9*E9+($A$4-80)*AG9*$A$8/1000 -> 2.572696874 | AO9: =AA9*G9+($A$4-80)*AH9*$A$8/1000 -> 2.378133333 | AP9: =AB9*I9+($A$4-80)*AI9*$A$8/1000 -> 2.175870826 | AQ9: =AC9*K9+($A$4-80)*AJ9*$A$8/1000 -> 1.981777778 | AR9: =AD9*M9+($A$4-80)*AK9*$A$8/1000 -> 1.778946511 | AS9: =AE9*O9+($A$4-80)*AL9*$A$8/1000 -> 1.585422222
B10: 63 | C10: 17.73691111 | D10: 1.981777778 | E10: 17.19192222 | F10: 1.779105545 | G10: 16.64693333 | H10: 1.585422222 | I10: 16.15148889 | J10: 1.382466198 | K10: 15.65604444 | L10: 1.189066667 | M10: 15.1606 | N10: 0.9854649333 | O10: 14.66515556 | P10: 0.7927111111 | R10: 0.9745555556 | S10: 0.9446111111 | T10: 0.9146666667 | U10: 0.8874444444 | V10: 0.8602222222 | W10: 0.833 | X10: 0.8057777778 | Y10: 0.1117318436 | Z10: 0.1034849694 | AA10: 0.09523809524 | AB10: 0.08559373116 | AC10: 0.07594936709 | AD10: 0.06500171057 | AE10: 0.05405405405 | AF10: -0.4166666667 | AG10: -0.40625 | AH10: -0.3958333333 | AI10: -0.3958333333 | AJ10: -0.3958333333 | AK10: -0.3958333333 | AL10: -0.3958333333 | AM10: 1.981777778 | AN10: =Z10*E10+($A$4-80)*AG10*$A$8/1000 -> 1.779105545 | AO10: =AA10*G10+($A$4-80)*AH10*$A$8/1000 -> 1.585422222 | AP10: 1.382466198 | AQ10: 1.189066667 | AR10: 0.9854649333 | AS10: 0.7927111111
B11: 59 | C11: 16.84511111 | D11: 0.4954444444 | E11: 16.39921111 | F11: 0.4958110045 | G11: 15.95331111 | H11: 0.4954444444 | I11: 15.45786667 | J11: 0.4959539303 | K11: 14.96242222 | L11: 0.4954444444 | M11: 14.46697778 | N11: 0.2395194996 | O11: 13.97153333 | P11: 0 | R11: 0.9255555556 | S11: 0.9010555556 | T11: 0.8765555556 | U11: 0.8493333333 | V11: 0.8221111111 | W11: 0.7948888889 | X11: 0.7676666667 | Y11: 0.02941176471 | Z11: 0.03023383266 | AA11: 0.03105590062 | AB11: 0.0320842417 | AC11: 0.03311258278 | AD11: 0.01655629139 | AE11: 0 | AF11: -0.5833333333 | AG11: -0.5416666667 | AH11: -0.5 | AI11: -0.4479166667 | AJ11: -0.3958333333 | AK11: -0.40625 | AL11: -0.4166666667 | AM11: 0.4954444444 | AN11: =Z11*E11+($A$4-80)*AG11*$A$8/1000 -> 0.4958110045 | AO11: =AA11*G11+($A$4-80)*AH11*$A$8/1000 -> 0.4954444444 | AP11: =AB11*I11+($A$4-80)*AI11*$A$8/1000 -> 0.4959539303 | AQ11: 0.4954444444 | AR11: 0.2395194996 | AS11: 0
A12: 600 | B12: 71 | C12: 20.93 | D12: 3.741111111 | E12: 20.32333333 | F12: 3.536003221 | G12: 19.71666667 | H12: 3.336666667 | I12: 19.16055556 | J12: 3.131212862 | K12: 18.60444444 | L12: 2.932222222 | M12: 17.99777778 | N12: 2.726281176 | O12: 17.39111111 | P12: 2.527777778 | R12: 1.15 | S12: 1.116666667 | T12: 1.083333333 | U12: 1.052777778 | V12: 1.022222222 | W12: 0.9888888889 | X12: 0.9555555556 | Y12: 0.1787439614 | Z12: 0.1739873653 | AA12: 0.1692307692 | AB12: 0.1634197324 | AC12: 0.1576086957 | AD12: 0.1514787664 | AE12: 0.1453488372 | AF12: -0.4166666667 | AG12: -0.4166666667 | AH12: -0.4166666667 | AI12: -0.4166666667 | AJ12: -0.4166666667 | AK12: -0.4166666667 | AL12: -0.4166666667 | AM12: =Y12*C12+($A$4-80)*AF12*$A$12/1000 -> 3.741111111 | AN12: =Z12*E12+($A$4-80)*AG12*$A$12/1000 -> 3.536003221 | AO12: =AA12*G12+($A$4-80)*AH12*$A$12/1000 -> 3.336666667 | AP12: =AB12*I12+($A$4-80)*AI12*$A$12/1000 -> 3.131212862 | AQ12: =AC12*K12+($A$4-80)*AJ12*$A$12/1000 -> 2.932222222 | AR12: =AD12*M12+($A$4-80)*AK12*$A$12/1000 -> 2.726281176 | AS12: =AE12*O12+($A$4-80)*AL12*$A$12/1000 -> 2.527777778
B13: 67 | C13: 19.31222222 | D13: 2.831111111 | E13: 18.75611111 | F13: 2.625200892 | G13: 18.2 | H13: 2.426666667 | I13: 17.64388889 | J13: 2.220276353 | K13: 17.08777778 | L13: 2.022222222 | M13: 16.53166667 | N13: 1.815251542 | O13: 15.97555556 | P13: 1.617777778 | R13: 1.061111111 | S13: 1.030555556 | T13: 1 | U13: 0.9694444444 | V13: 0.9388888889 | W13: 0.9083333333 | X13: 0.8777777778 | Y13: 0.1465968586 | Z13: 0.139965096 | AA13: 0.1333333333 | AB13: 0.1258382643 | AC13: 0.1183431953 | AD13: 0.109804509 | AE13: 0.1012658228 | AF13: -0.4166666667 | AG13: -0.4166666667 | AH13: -0.4166666667 | AI13: -0.4166666667 | AJ13: -0.4166666667 | AK13: -0.40625 | AL13: -0.3958333333 | AM13: =Y13*C13+($A$4-80)*AF13*$A$12/1000 -> 2.831111111 | AN13: =Z13*E13+($A$4-80)*AG13*$A$12/1000 -> 2.625200892 | AO13: =AA13*G13+($A$4-80)*AH13*$A$12/1000 -> 2.426666667 | AP13: =AB13*I13+($A$4-80)*AI13*$A$12/1000 -> 2.220276353 | AQ13: =AC13*K13+($A$4-80)*AJ13*$A$12/1000 -> 2.022222222 | AR13: =AD13*M13+($A$4-80)*AK13*$A$12/1000 -> 1.815251542 | AS13: =AE13*O13+($A$4-80)*AL13*$A$12/1000 -> 1.617777778
B14: 63 | C14: 18.09888889 | D14: 2.022222222 | E14: 17.54277778 | F14: 1.815413822 | G14: 16.98666667 | H14: 1.617777778 | I14: 16.48111111 | J14: 1.410679794 | K14: 15.97555556 | L14: 1.213333333 | M14: 15.47 | N14: 1.005576463 | O14: 14.96444444 | P14: 0.8088888889 | R14: 0.9944444444 | S14: 0.9638888889 | T14: 0.9333333333 | U14: 0.9055555556 | V14: 0.8777777778 | W14: 0.85 | X14: 0.8222222222 | Y14: 0.1117318436 | Z14: 0.1034849694 | AA14: 0.09523809524 | AB14: 0.08559373116 | AC14: 0.07594936709 | AD14: 0.06500171057 | AE14: 0.05405405405 | AF14: -0.4166666667 | AG14: -0.40625 | AH14: -0.3958333333 | AI14: -0.3958333333 | AJ14: -0.3958333333 | AK14: -0.3958333333 | AL14: -0.3958333333 | AM14: 2.022222222 | AN14: =Z14*E14+($A$4-80)*AG14*$A$12/1000 -> 1.815413822 | AO14: =AA14*G14+($A$4-80)*AH14*$A$12/1000 -> 1.617777778 | AP14: 1.410679794 | AQ14: 1.213333333 | AR14: 1.005576463 | AS14: 0.8088888889
B15: 59 | C15: 17.18888889 | D15: 0.5055555556 | E15: 16.73388889 | F15: 0.5059295965 | G15: 16.27888889 | H15: 0.5055555556 | I15: 15.77333333 | J15: 0.5060754391 | K15: 15.26777778 | L15: 0.5055555556 | M15: 14.76222222 | N15: 0.2444076527 | O15: 14.25666667 | P15: 0 | R15: 0.9444444444 | S15: 0.9194444444 | T15: 0.8944444444 | U15: 0.8666666667 | V15: 0.8388888889 | W15: 0.8111111111 | X15: 0.7833333333 | Y15: 0.02941176471 | Z15: 0.03023383266 | AA15: 0.03105590062 | AB15: 0.0320842417 | AC15: 0.03311258278 | AD15: 0.01655629139 | AE15: 0 | AF15: -0.5833333333 | AG15: -0.5416666667 | AH15: -0.5 | AI15: -0.4479166667 | AJ15: -0.3958333333 | AK15: -0.40625 | AL15: -0.4166666667 | AM15: 0.5055555556 | AN15: =Z15*E15+($A$4-80)*AG15*$A$12/1000 -> 0.5059295965 | AO15: =AA15*G15+($A$4-80)*AH15*$A$12/1000 -> 0.5055555556 | AP15: 0.5060754391 | AQ15: 0.5055555556 | AR15: 0.2444076527 | AS15: 0
A16: 675 | B16: 71 | C16: 21.3486 | D16: 3.815933333 | E16: 20.7298 | F16: 3.606723285 | G16: 20.111 | H16: 3.4034 | I16: 19.54376667 | J16: 3.19383712 | K16: 18.97653333 | L16: 2.990866667 | M16: 18.35773333 | N16: 2.7808068 | O16: 17.73893333 | P16: 2.578333333 | R16: 1.173 | S16: 1.139 | T16: 1.105 | U16: 1.073833333 | V16: 1.042666667 | W16: 1.008666667 | X16: 0.9746666667 | Y16: 0.1787439614 | Z16: 0.1739873653 | AA16: 0.1692307692 | AB16: 0.1634197324 | AC16: 0.1576086957 | AD16: 0.1514787664 | AE16: 0.1453488372 | AF16: -0.4166666667 | AG16: -0.4166666667 | AH16: -0.4166666667 | AI16: -0.4166666667 | AJ16: -0.4166666667 | AK16: -0.4166666667 | AL16: -0.4166666667 | AM16: =Y16*C16+($A$4-80)*AF16*$A$16/1000 -> 3.815933333 | AN16: =Z16*E16+($A$4-80)*AG16*$A$16/1000 -> 3.606723285 | AO16: =AA16*G16+($A$4-80)*AH16*$A$16/1000 -> 3.4034 | AP16: =AB16*I16+($A$4-80)*AI16*$A$16/1000 -> 3.19383712 | AQ16: =AC16*K16+($A$4-80)*AJ16*$A$16/1000 -> 2.990866667 | AR16: =AD16*M16+($A$4-80)*AK16*$A$16/1000 -> 2.7808068 | AS16: =AE16*O16+($A$4-80)*AL16*$A$16/1000 -> 2.578333333
B17: 67 | C17: 19.69846667 | D17: 2.887733333 | E17: 19.13123333 | F17: 2.67770491 | G17: 18.564 | H17: 2.4752 | I17: 17.99676667 | J17: 2.26468188 | K17: 17.42953333 | L17: 2.062666667 | M17: 16.8623 | N17: 1.851556573 | O17: 16.29506667 | P17: 1.650133333 | R17: 1.082333333 | S17: 1.051166667 | T17: 1.02 | U17: 0.9888333333 | V17: 0.9576666667 | W17: 0.9265 | X17: 0.8953333333 | Y17: 0.1465968586 | Z17: 0.139965096 | AA17: 0.1333333333 | AB17: 0.1258382643 | AC17: 0.1183431953 | AD17: 0.109804509 | AE17: 0.1012658228 | AF17: -0.4166666667 | AG17: -0.4166666667 | AH17: -0.4166666667 | AI17: -0.4166666667 | AJ17: -0.4166666667 | AK17: -0.40625 | AL17: -0.3958333333 | AM17: =Y17*C17+($A$4-80)*AF17*$A$16/1000 -> 2.887733333 | AN17: =Z17*E17+($A$4-80)*AG17*$A$16/1000 -> 2.67770491 | AO17: =AA17*G17+($A$4-80)*AH17*$A$16/1000 -> 2.4752 | AP17: =AB17*I17+($A$4-80)*AI17*$A$16/1000 -> 2.26468188 | AQ17: =AC17*K17+($A$4-80)*AJ17*$A$16/1000 -> 2.062666667 | AR17: =AD17*M17+($A$4-80)*AK17*$A$16/1000 -> 1.851556573 | AS17: =AE17*O17+($A$4-80)*AL17*$A$16/1000 -> 1.650133333
B18: 63 | C18: 18.46086667 | D18: 2.062666667 | E18: 17.89363333 | F18: 1.851722098 | G18: 17.3264 | H18: 1.650133333 | I18: 16.81073333 | J18: 1.43889339 | K18: 16.29506667 | L18: 1.2376 | M18: 15.7794 | N18: 1.025687992 | O18: 15.26373333 | P18: 0.8250666667 | R18: 1.014333333 | S18: 0.9831666667 | T18: 0.952 | U18: 0.9236666667 | V18: 0.8953333333 | W18: 0.867 | X18: 0.8386666667 | Y18: 0.1117318436 | Z18: 0.1034849694 | AA18: 0.09523809524 | AB18: 0.08559373116 | AC18: 0.07594936709 | AD18: 0.06500171057 | AE18: 0.05405405405 | AF18: -0.4166666667 | AG18: -0.40625 | AH18: -0.3958333333 | AI18: -0.3958333333 | AJ18: -0.3958333333 | AK18: -0.3958333333 | AL18: -0.3958333333 | AM18: 2.062666667 | AN18: =Z18*E18+($A$4-80)*AG18*$A$16/1000 -> 1.851722098 | AO18: =AA18*G18+($A$4-80)*AH18*$A$16/1000 -> 1.650133333 | AP18: 1.43889339 | AQ18: 1.2376 | AR18: 1.025687992 | AS18: 0.8250666667
B19: 59 | C19: 17.53266667 | D19: 0.5156666667 | E19: 17.06856667 | F19: 0.5160481884 | G19: 16.60446667 | H19: 0.5156666667 | I19: 16.0888 | J19: 0.5161969479 | K19: 15.57313333 | L19: 0.5156666667 | M19: 15.05746667 | N19: 0.2492958057 | O19: 14.5418 | P19: 0 | R19: 0.9633333333 | S19: 0.9378333333 | T19: 0.9123333333 | U19: 0.884 | V19: 0.8556666667 | W19: 0.8273333333 | X19: 0.799 | Y19: 0.02941176471 | Z19: 0.03023383266 | AA19: 0.03105590062 | AB19: 0.0320842417 | AC19: 0.03311258278 | AD19: 0.01655629139 | AE19: 0 | AF19: -0.5833333333 | AG19: -0.5416666667 | AH19: -0.5 | AI19: -0.4479166667 | AJ19: -0.3958333333 | AK19: -0.40625 | AL19: -0.4166666667 | AM19: 0.5156666667 | AN19: =Z19*E19+($A$4-80)*AG19*$A$16/1000 -> 0.5160481884 | AO19: =AA19*G19+($A$4-80)*AH19*$A$16/1000 -> 0.5156666667 | AP19: 0.5161969479 | AQ19: 0.5156666667 | AR19: 0.2492958057 | AS19: 0

Sheet 4A7A60_24 (hidden)
A2: 4A7A60_24 | B2: 18.2
A3: Evaporator Air | C3: Condenser Entering Air Temperature ˚F
A4: 80 | B4: °F DB | C4: 85 | E4: 90 | G4: 95 | I4: 100 | K4: 105 | M4: 110 | O4: 115
A5: CFM | B5: EWB† ˚F | C5: Capacity Mbtuh | E5: Capacity Mbtuh | G5: Capacity Mbtuh | I5: Capacity Mbtuh | K5: Capacity Mbtuh | M5: Capacity Mbtuh | O5: Capacity Mbtuh
C6: Total | D6: Sens. | E6: Total | F6: Sens. | G6: Total | H6: Sens. | I6: Total | J6: Sens. | K6: Total | L6: Sens. | M6: Total | N6: Sens. | O6: Total | P6: Sens.
R7: Total Factors | Y7: Sens. % | AF7: IDB Adj | AM7: Sens Calc
A8: 700 | B8: 71 | C8: =R8*$B$2 -> 20.36276667 | D8: =IF(AM8>C8,C8,AM8) -> 3.641516667 | E8: =S8*$B$2 -> 19.84255 | F8: =IF(AN8>E8,E8,AN8) -> 3.453227609 | G8: =T8*$B$2 -> 19.32233333 | H8: =IF(AO8>G8,G8,AO8) -> 3.269933333 | I8: =U8*$B$2 -> 18.839275 | J8: =IF(AP8>I8,I8,AP8) -> 3.119539868 | K8: =V8*$B$2 -> 18.35621667 | L8: =IF(AQ8>K8,K8,AQ8) -> 2.972666667 | M8: =W8*$B$2 -> 17.87315833 | N8: =IF(AR8>M8,M8,AR8) -> 2.783887122 | O8: =X8*$B$2 -> 17.3901 | P8: =IF(AS8>O8,O8,AS8) -> 2.601083333 | R8: 1.118833333 | S8: 1.09025 | T8: 1.061666667 | U8: 1.035125 | V8: 1.008583333 | W8: 0.9820416667 | X8: 0.9555 | Y8: 0.1788321168 | Z8: 0.174031443 | AA8: 0.1692307692 | AB8: 0.1655870445 | AC8: 0.1619433198 | AD8: 0.1557579847 | AE8: 0.1495726496 | AF8: -0.40625 | AG8: -0.40625 | AH8: -0.40625 | AI8: -0.40625 | AJ8: -0.40625 | AK8: -0.40625 | AL8: -0.40625 | AM8: =Y8*C8+($A$4-80)*AF8*$A$8/1000 -> 3.641516667 | AN8: =Z8*E8+($A$4-80)*AG8*$A$8/1000 -> 3.453227609 | AO8: =AA8*G8+($A$4-80)*AH8*$A$8/1000 -> 3.269933333 | AP8: =AB8*I8+($A$4-80)*AI8*$A$8/1000 -> 3.119539868 | AQ8: =AC8*K8+($A$4-80)*AJ8*$A$8/1000 -> 2.972666667 | AR8: =AD8*M8+($A$4-80)*AK8*$A$8/1000 -> 2.783887122 | AS8: =AE8*O8+($A$4-80)*AL8*$A$8/1000 -> 2.601083333
B9: 67 | C9: =R9*$B$2 -> 18.7278 | D9: 2.749716667 | E9: 18.2819 | F9: =IF(AN9>E9,E9,AN9) -> 2.560916944 | G9: 17.836 | H9: =IF(AO9>G9,G9,AO9) -> 2.378133333 | I9: 17.3901 | J9: =IF(AP9>I9,I9,AP9) -> 2.227153158 | K9: 16.9442 | L9: =IF(AQ9>K9,K9,AQ9) -> 2.080866667 | M9: 16.46114167 | N9: =IF(AR9>M9,M9,AR9) -> 1.891251527 | O9: 15.97808333 | P9: =IF(AS9>O9,O9,AS9) -> 1.709283333 | R9: 1.029 | S9: 1.0045 | T9: 0.98 | U9: 0.9555 | V9: 0.931 | W9: 0.9044583333 | X9: 0.8779166667 | Y9: 0.1468253968 | Z9: 0.1400793651 | AA9: 0.1333333333 | AB9: 0.1280701754 | AC9: 0.1228070175 | AD9: 0.1148918809 | AE9: 0.1069767442 | AF9: -0.40625 | AG9: -0.40625 | AH9: -0.40625 | AI9: -0.40625 | AJ9: -0.40625 | AK9: -0.40625 | AL9: -0.40625 | AM9: =Y9*C9+($A$4-80)*AF9*$A$8/1000 -> 2.749716667 | AN9: =Z9*E9+($A$4-80)*AG9*$A$8/1000 -> 2.560916944 | AO9: =AA9*G9+($A$4-80)*AH9*$A$8/1000 -> 2.378133333 | AP9: =AB9*I9+($A$4-80)*AI9*$A$8/1000 -> 2.227153158 | AQ9: =AC9*K9+($A$4-80)*AJ9*$A$8/1000 -> 2.080866667 | AR9: =AD9*M9+($A$4-80)*AK9*$A$8/1000 -> 1.891251527 | AS9: =AE9*O9+($A$4-80)*AL9*$A$8/1000 -> 1.709283333
B10: 63 | C10: 17.53873333 | D10: 1.932233333 | E10: 17.12999167 | F10: 1.781067495 | G10: 16.72125 | H10: 1.634966667 | I10: 16.27535 | J10: 1.445169576 | K10: 15.82945 | L10: 1.263383333 | M10: 15.42070833 | N10: 1.073421221 | O10: 15.01196667 | P10: 0.8918 | R10: 0.9636666667 | S10: 0.9412083333 | T10: 0.91875 | U10: 0.89425 | V10: 0.86975 | W10: 0.8472916667 | X10: 0.8248333333 | Y10: 0.1101694915 | Z10: 0.1039736347 | AA10: 0.09777777778 | AB10: 0.08879499218 | AC10: 0.07981220657 | AD10: 0.06960907358 | AE10: 0.05940594059 | AF10: -0.40625 | AG10: -0.40625 | AH10: -0.40625 | AI10: -0.40625 | AJ10: -0.40625 | AK10: -0.40625 | AL10: -0.40625 | AM10: 1.932233333 | AN10: =Z10*E10+($A$4-80)*AG10*$A$8/1000 -> 1.781067495 | AO10: =AA10*G10+($A$4-80)*AH10*$A$8/1000 -> 1.634966667 | AP10: 1.445169576 | AQ10: 1.263383333 | AR10: 1.073421221 | AS10: 0.8918
B11: 59 | C11: 16.72125 | D11: 0.5202166667 | E11: 16.31250833 | F11: 0.5205434902 | G11: 15.90376667 | H11: 0.5202166667 | I11: 15.495025 | J11: 0.5205789095 | K11: 15.08628333 | L11: 0.5202166667 | M11: 14.67754167 | N11: 0.3295065927 | O11: 14.2688 | P11: 0.1486333333 | R11: 0.91875 | S11: 0.8962916667 | T11: 0.8738333333 | U11: 0.851375 | V11: 0.8289166667 | W11: 0.8064583333 | X11: 0.784 | Y11: 0.03111111111 | Z11: 0.03191069574 | AA11: 0.03271028037 | AB11: 0.0335965195 | AC11: 0.03448275862 | AD11: 0.02244971264 | AE11: 0.01041666667 | AF11: -0.5625 | AG11: -0.5234375 | AH11: -0.484375 | AI11: -0.4453125 | AJ11: -0.40625 | AK11: -0.40625 | AL11: -0.40625 | AM11: 0.5202166667 | AN11: =Z11*E11+($A$4-80)*AG11*$A$8/1000 -> 0.5205434902 | AO11: =AA11*G11+($A$4-80)*AH11*$A$8/1000 -> 0.5202166667 | AP11: =AB11*I11+($A$4-80)*AI11*$A$8/1000 -> 0.5205789095 | AQ11: 0.5202166667 | AR11: 0.3295065927 | AS11: 0.1486333333
A12: 800 | B12: 71 | C12: 20.77833333 | D12: 3.715833333 | E12: 20.2475 | F12: 3.523701642 | G12: 19.71666667 | H12: 3.336666667 | I12: 19.22375 | J12: 3.183203947 | K12: 18.73083333 | L12: 3.033333333 | M12: 18.23791667 | N12: 2.840701145 | O12: 17.745 | P12: 2.654166667 | R12: 1.141666667 | S12: 1.1125 | T12: 1.083333333 | U12: 1.05625 | V12: 1.029166667 | W12: 1.002083333 | X12: 0.975 | Y12: 0.1788321168 | Z12: 0.174031443 | AA12: 0.1692307692 | AB12: 0.1655870445 | AC12: 0.1619433198 | AD12: 0.1557579847 | AE12: 0.1495726496 | AF12: -0.40625 | AG12: -0.40625 | AH12: -0.40625 | AI12: -0.40625 | AJ12: -0.40625 | AK12: -0.40625 | AL12: -0.40625 | AM12: =Y12*C12+($A$4-80)*AF12*$A$12/1000 -> 3.715833333 | AN12: =Z12*E12+($A$4-80)*AG12*$A$12/1000 -> 3.523701642 | AO12: =AA12*G12+($A$4-80)*AH12*$A$12/1000 -> 3.336666667 | AP12: =AB12*I12+($A$4-80)*AI12*$A$12/1000 -> 3.183203947 | AQ12: =AC12*K12+($A$4-80)*AJ12*$A$12/1000 -> 3.033333333 | AR12: =AD12*M12+($A$4-80)*AK12*$A$12/1000 -> 2.840701145 | AS12: =AE12*O12+($A$4-80)*AL12*$A$12/1000 -> 2.654166667
B13: 67 | C13: 19.11 | D13: 2.805833333 | E13: 18.655 | F13: 2.613180556 | G13: 18.2 | H13: 2.426666667 | I13: 17.745 | J13: 2.272605263 | K13: 17.29 | L13: 2.123333333 | M13: 16.79708333 | N13: 1.929848497 | O13: 16.30416667 | P13: 1.744166667 | R13: 1.05 | S13: 1.025 | T13: 1 | U13: 0.975 | V13: 0.95 | W13: 0.9229166667 | X13: 0.8958333333 | Y13: 0.1468253968 | Z13: 0.1400793651 | AA13: 0.1333333333 | AB13: 0.1280701754 | AC13: 0.1228070175 | AD13: 0.1148918809 | AE13: 0.1069767442 | AF13: -0.40625 | AG13: -0.40625 | AH13: -0.40625 | AI13: -0.40625 | AJ13: -0.40625 | AK13: -0.40625 | AL13: -0.40625 | AM13: =Y13*C13+($A$4-80)*AF13*$A$12/1000 -> 2.805833333 | AN13: =Z13*E13+($A$4-80)*AG13*$A$12/1000 -> 2.613180556 | AO13: =AA13*G13+($A$4-80)*AH13*$A$12/1000 -> 2.426666667 | AP13: =AB13*I13+($A$4-80)*AI13*$A$12/1000 -> 2.272605263 | AQ13: =AC13*K13+($A$4-80)*AJ13*$A$12/1000 -> 2.123333333 | AR13: =AD13*M13+($A$4-80)*AK13*$A$12/1000 -> 1.929848497 | AS13: =AE13*O13+($A$4-80)*AL13*$A$12/1000 -> 1.744166667
B14: 63 | C14: 17.89666667 | D14: 1.971666667 | E14: 17.47958333 | F14: 1.817415811 | G14: 17.0625 | H14: 1.668333333 | I14: 16.6075 | J14: 1.474662833 | K14: 16.1525 | L14: 1.289166667 | M14: 15.73541667 | N14: 1.095327777 | O14: 15.31833333 | P14: 0.91 | R14: 0.9833333333 | S14: 0.9604166667 | T14: 0.9375 | U14: 0.9125 | V14: 0.8875 | W14: 0.8645833333 | X14: 0.8416666667 | Y14: 0.1101694915 | Z14: 0.1039736347 | AA14: 0.09777777778 | AB14: 0.08879499218 | AC14: 0.07981220657 | AD14: 0.06960907358 | AE14: 0.05940594059 | AF14: -0.40625 | AG14: -0.40625 | AH14: -0.40625 | AI14: -0.40625 | AJ14: -0.40625 | AK14: -0.40625 | AL14: -0.40625 | AM14: 1.971666667 | AN14: =Z14*E14+($A$4-80)*AG14*$A$12/1000 -> 1.817415811 | AO14: =AA14*G14+($A$4-80)*AH14*$A$12/1000 -> 1.668333333 | AP14: 1.474662833 | AQ14: 1.289166667 | AR14: 1.095327777 | AS14: 0.91
B15: 59 | C15: 17.0625 | D15: 0.5308333333 | E15: 16.64541667 | F15: 0.5311668268 | G15: 16.22833333 | H15: 0.5308333333 | I15: 15.81125 | J15: 0.5312029689 | K15: 15.39416667 | L15: 0.5308333333 | M15: 14.97708333 | N15: 0.3362312171 | O15: 14.56 | P15: 0.1516666667 | R15: 0.9375 | S15: 0.9145833333 | T15: 0.8916666667 | U15: 0.86875 | V15: 0.8458333333 | W15: 0.8229166667 | X15: 0.8 | Y15: 0.03111111111 | Z15: 0.03191069574 | AA15: 0.03271028037 | AB15: 0.0335965195 | AC15: 0.03448275862 | AD15: 0.02244971264 | AE15: 0.01041666667 | AF15: -0.5625 | AG15: -0.5234375 | AH15: -0.484375 | AI15: -0.4453125 | AJ15: -0.40625 | AK15: -0.40625 | AL15: -0.40625 | AM15: 0.5308333333 | AN15: =Z15*E15+($A$4-80)*AG15*$A$12/1000 -> 0.5311668268 | AO15: =AA15*G15+($A$4-80)*AH15*$A$12/1000 -> 0.5308333333 | AP15: 0.5312029689 | AQ15: 0.5308333333 | AR15: 0.3362312171 | AS15: 0.1516666667
A16: 900 | B16: 71 | C16: 21.1939 | D16: 3.79015 | E16: 20.65245 | F16: 3.594175675 | G16: 20.111 | H16: 3.4034 | I16: 19.608225 | J16: 3.246868026 | K16: 19.10545 | L16: 3.094 | M16: 18.602675 | N16: 2.897515168 | O16: 18.0999 | P16: 2.70725 | R16: 1.1645 | S16: 1.13475 | T16: 1.105 | U16: 1.077375 | V16: 1.04975 | W16: 1.022125 | X16: 0.9945 | Y16: 0.1788321168 | Z16: 0.174031443 | AA16: 0.1692307692 | AB16: 0.1655870445 | AC16: 0.1619433198 | AD16: 0.1557579847 | AE16: 0.1495726496 | AF16: -0.40625 | AG16: -0.40625 | AH16: -0.40625 | AI16: -0.40625 | AJ16: -0.40625 | AK16: -0.40625 | AL16: -0.40625 | AM16: =Y16*C16+($A$4-80)*AF16*$A$16/1000 -> 3.79015 | AN16: =Z16*E16+($A$4-80)*AG16*$A$16/1000 -> 3.594175675 | AO16: =AA16*G16+($A$4-80)*AH16*$A$16/1000 -> 3.4034 | AP16: =AB16*I16+($A$4-80)*AI16*$A$16/1000 -> 3.246868026 | AQ16: =AC16*K16+($A$4-80)*AJ16*$A$16/1000 -> 3.094 | AR16: =AD16*M16+($A$4-80)*AK16*$A$16/1000 -> 2.897515168 | AS16: =AE16*O16+($A$4-80)*AL16*$A$16/1000 -> 2.70725
B17: 67 | C17: 19.4922 | D17: 2.86195 | E17: 19.0281 | F17: 2.665444167 | G17: 18.564 | H17: 2.4752 | I17: 18.0999 | J17: 2.318057368 | K17: 17.6358 | L17: 2.1658 | M17: 17.133025 | N17: 1.968445467 | O17: 16.63025 | P17: 1.77905 | R17: 1.071 | S17: 1.0455 | T17: 1.02 | U17: 0.9945 | V17: 0.969 | W17: 0.941375 | X17: 0.91375 | Y17: 0.1468253968 | Z17: 0.1400793651 | AA17: 0.1333333333 | AB17: 0.1280701754 | AC17: 0.1228070175 | AD17: 0.1148918809 | AE17: 0.1069767442 | AF17: -0.40625 | AG17: -0.40625 | AH17: -0.40625 | AI17: -0.40625 | AJ17: -0.40625 | AK17: -0.40625 | AL17: -0.40625 | AM17: =Y17*C17+($A$4-80)*AF17*$A$16/1000 -> 2.86195 | AN17: =Z17*E17+($A$4-80)*AG17*$A$16/1000 -> 2.665444167 | AO17: =AA17*G17+($A$4-80)*AH17*$A$16/1000 -> 2.4752 | AP17: =AB17*I17+($A$4-80)*AI17*$A$16/1000 -> 2.318057368 | AQ17: =AC17*K17+($A$4-80)*AJ17*$A$16/1000 -> 2.1658 | AR17: =AD17*M17+($A$4-80)*AK17*$A$16/1000 -> 1.968445467 | AS17: =AE17*O17+($A$4-80)*AL17*$A$16/1000 -> 1.77905
B18: 63 | C18: 18.2546 | D18: 2.0111 | E18: 17.829175 | F18: 1.853764128 | G18: 17.40375 | H18: 1.7017 | I18: 16.93965 | J18: 1.504156089 | K18: 16.47555 | L18: 1.31495 | M18: 16.050125 | N18: 1.117234332 | O18: 15.6247 | P18: 0.9282 | R18: 1.003 | S18: 0.979625 | T18: 0.95625 | U18: 0.93075 | V18: 0.90525 | W18: 0.881875 | X18: 0.8585 | Y18: 0.1101694915 | Z18: 0.1039736347 | AA18: 0.09777777778 | AB18: 0.08879499218 | AC18: 0.07981220657 | AD18: 0.06960907358 | AE18: 0.05940594059 | AF18: -0.40625 | AG18: -0.40625 | AH18: -0.40625 | AI18: -0.40625 | AJ18: -0.40625 | AK18: -0.40625 | AL18: -0.40625 | AM18: 2.0111 | AN18: =Z18*E18+($A$4-80)*AG18*$A$16/1000 -> 1.853764128 | AO18: =AA18*G18+($A$4-80)*AH18*$A$16/1000 -> 1.7017 | AP18: 1.504156089 | AQ18: 1.31495 | AR18: 1.117234332 | AS18: 0.9282
B19: 59 | C19: 17.40375 | D19: 0.54145 | E19: 16.978325 | F19: 0.5417901633 | G19: 16.5529 | H19: 0.54145 | I19: 16.127475 | J19: 0.5418270283 | K19: 15.70205 | L19: 0.54145 | M19: 15.276625 | N19: 0.3429558414 | O19: 14.8512 | P19: 0.1547 | R19: 0.95625 | S19: 0.932875 | T19: 0.9095 | U19: 0.886125 | V19: 0.86275 | W19: 0.839375 | X19: 0.816 | Y19: 0.03111111111 | Z19: 0.03191069574 | AA19: 0.03271028037 | AB19: 0.0335965195 | AC19: 0.03448275862 | AD19: 0.02244971264 | AE19: 0.01041666667 | AF19: -0.5625 | AG19: -0.5234375 | AH19: -0.484375 | AI19: -0.4453125 | AJ19: -0.40625 | AK19: -0.40625 | AL19: -0.40625 | AM19: 0.54145 | AN19: =Z19*E19+($A$4-80)*AG19*$A$16/1000 -> 0.5417901633 | AO19: =AA19*G19+($A$4-80)*AH19*$A$16/1000 -> 0.54145 | AP19: 0.5418270283 | AQ19: 0.54145 | AR19: 0.3429558414 | AS19: 0.1547

Sheet 4A7A60_30 (hidden)
A2: 4A7A60_30 | B2: 18.2
A3: Evaporator Air | C3: Condenser Entering Air Temperature ˚F
A4: 80 | B4: °F DB | C4: 85 | E4: 90 | G4: 95 | I4: 100 | K4: 105 | M4: 110 | O4: 115
A5: CFM | B5: EWB† ˚F | C5: Capacity Mbtuh | E5: Capacity Mbtuh | G5: Capacity Mbtuh | I5: Capacity Mbtuh | K5: Capacity Mbtuh | M5: Capacity Mbtuh | O5: Capacity Mbtuh
C6: Total | D6: Sens. | E6: Total | F6: Sens. | G6: Total | H6: Sens. | I6: Total | J6: Sens. | K6: Total | L6: Sens. | M6: Total | N6: Sens. | O6: Total | P6: Sens.
R7: Total Factors | Y7: Sens. % | AF7: IDB Adj | AM7: Sens Calc
A8: 875 | B8: 71 | C8: =R8*$B$2 -> 20.14920137 | D8: =IF(AM8>C8,C8,AM8) -> 4.017665529 | E8: =S8*$B$2 -> 19.75352218 | F8: =IF(AN8>E8,E8,AN8) -> 3.89504221 | G8: =T8*$B$2 -> 19.357843 | H8: =IF(AO8>G8,G8,AO8) -> 3.774170648 | I8: =U8*$B$2 -> 18.93172696 | J8: =IF(AP8>I8,I8,AP8) -> 3.620395113 | K8: =V8*$B$2 -> 18.50561092 | L8: =IF(AQ8>K8,K8,AQ8) -> 3.469802048 | M8: =W8*$B$2 -> 18.10993174 | N8: =IF(AR8>M8,M8,AR8) -> 3.346992324 | O8: =X8*$B$2 -> 17.71425256 | P8: =IF(AS8>O8,O8,AS8) -> 3.226307167 | R8: 1.107098976 | S8: 1.085358362 | T8: 1.063617747 | U8: 1.040204778 | V8: 1.016791809 | W8: 0.9950511945 | X8: 0.9733105802 | Y8: 0.1993957704 | Z8: 0.1971821619 | AA8: 0.1949685535 | AB8: 0.1912342767 | AC8: 0.1875 | AD8: 0.1848152921 | AE8: 0.1821305842 | AF8: -0.3125 | AG8: -0.30625 | AH8: -0.3 | AI8: -0.30625 | AJ8: -0.3125 | AK8: -0.30625 | AL8: -0.3 | AM8: =Y8*C8+($A$4-80)*AF8*$A$8/1000 -> 4.017665529 | AN8: =Z8*E8+($A$4-80)*AG8*$A$8/1000 -> 3.89504221 | AO8: =AA8*G8+($A$4-80)*AH8*$A$8/1000 -> 3.774170648 | AP8: =AB8*I8+($A$4-80)*AI8*$A$8/1000 -> 3.620395113 | AQ8: =AC8*K8+($A$4-80)*AJ8*$A$8/1000 -> 3.469802048 | AR8: =AD8*M8+($A$4-80)*AK8*$A$8/1000 -> 3.346992324 | AS8: =AE8*O8+($A$4-80)*AL8*$A$8/1000 -> 3.226307167
B9: 67 | C9: =R9*$B$2 -> 18.56648464 | D9: 3.348054608 | E9: 18.20124232 | F9: =IF(AN9>E9,E9,AN9) -> 3.225162784 | G9: 17.836 | H9: =IF(AO9>G9,G9,AO9) -> 3.104559727 | I9: 17.44032082 | J9: =IF(AP9>I9,I9,AP9) -> 2.950441402 | K9: 17.04464164 | L9: =IF(AQ9>K9,K9,AQ9) -> 2.800191126 | M9: 16.67939932 | N9: =IF(AR9>M9,M9,AR9) -> 2.64594309 | O9: 16.314157 | P9: =IF(AS9>O9,O9,AS9) -> 2.495822526 | R9: 1.020136519 | S9: 1.000068259 | T9: 0.98 | U9: 0.9582593857 | V9: 0.9365187713 | W9: 0.9164505119 | X9: 0.8963822526 | Y9: 0.1803278689 | Z9: 0.1771946511 | AA9: 0.1740614334 | AB9: 0.1691735739 | AC9: 0.1642857143 | AD9: 0.1586353945 | AE9: 0.1529850746 | AF9: -0.3125 | AG9: -0.30625 | AH9: -0.3 | AI9: -0.3 | AJ9: -0.3 | AK9: -0.30625 | AL9: -0.3125 | AM9: =Y9*C9+($A$4-80)*AF9*$A$8/1000 -> 3.348054608 | AN9: =Z9*E9+($A$4-80)*AG9*$A$8/1000 -> 3.225162784 | AO9: =AA9*G9+($A$4-80)*AH9*$A$8/1000 -> 3.104559727 | AP9: =AB9*I9+($A$4-80)*AI9*$A$8/1000 -> 2.950441402 | AQ9: =AC9*K9+($A$4-80)*AJ9*$A$8/1000 -> 2.800191126 | AR9: =AD9*M9+($A$4-80)*AK9*$A$8/1000 -> 2.64594309 | AS9: =AE9*O9+($A$4-80)*AL9*$A$8/1000 -> 2.495822526
B10: 63 | C10: 17.40988396 | D10: 2.800191126 | E10: 17.04464164 | F10: 2.645960716 | G10: 16.67939932 | H10: 2.495822526 | I10: 16.314157 | J10: 2.341404685 | K10: 15.94891468 | L10: 2.191453925 | M10: 15.61410922 | N10: 2.03694296 | O10: 15.27930375 | P10: 1.887085324 | R10: 0.9565870307 | S10: 0.9365187713 | T10: 0.9164505119 | U10: 0.8963822526 | V10: 0.8763139932 | W10: 0.8579180887 | X10: 0.8395221843 | Y10: 0.1608391608 | Z10: 0.1552370987 | AA10: 0.1496350365 | AB10: 0.1435198083 | AC10: 0.1374045802 | AD10: 0.1304552781 | AE10: 0.1235059761 | AF10: -0.3 | AG10: -0.3 | AH10: -0.3 | AI10: -0.30625 | AJ10: -0.3125 | AK10: -0.3125 | AL10: -0.3125 | AM10: 2.800191126 | AN10: =Z10*E10+($A$4-80)*AG10*$A$8/1000 -> 2.645960716 | AO10: =AA10*G10+($A$4-80)*AH10*$A$8/1000 -> 2.495822526 | AP10: 2.341404685 | AQ10: 2.191453925 | AR10: 2.03694296 | AS10: 1.887085324
B11: 59 | C11: 16.55765188 | D11: 1.765337884 | E11: 16.22284642 | F11: 1.766090102 | G11: 15.88804096 | H11: 1.765337884 | I11: 15.55323549 | J11: 1.735049826 | K11: 15.21843003 | L11: 1.704464164 | M11: 14.88362457 | N11: 1.549640644 | O11: 14.54881911 | P11: 1.400095563 | R11: 0.9097610922 | S11: 0.8913651877 | T11: 0.8729692833 | U11: 0.8545733788 | V11: 0.8361774744 | W11: 0.81778157 | X11: 0.7993856655 | Y11: 0.1066176471 | Z11: 0.1088643791 | AA11: 0.1111111111 | AB11: 0.1115555556 | AC11: 0.112 | AD11: 0.1041171548 | AE11: 0.09623430962 | AF11: -0.4125 | AG11: -0.38125 | AH11: -0.35 | AI11: -0.325 | AJ11: -0.3 | AK11: -0.30625 | AL11: -0.3125 | AM11: 1.765337884 | AN11: =Z11*E11+($A$4-80)*AG11*$A$8/1000 -> 1.766090102 | AO11: =AA11*G11+($A$4-80)*AH11*$A$8/1000 -> 1.765337884 | AP11: =AB11*I11+($A$4-80)*AI11*$A$8/1000 -> 1.735049826 | AQ11: 1.704464164 | AR11: 1.549640644 | AS11: 1.400095563
A12: 1000 | B12: 71 | C12: 20.56040956 | D12: 4.099658703 | E12: 20.15665529 | F12: 3.974532867 | G12: 19.75290102 | H12: 3.851194539 | I12: 19.31808874 | J12: 3.694280727 | K12: 18.88327645 | L12: 3.540614334 | M12: 18.47952218 | N12: 3.41529829 | O12: 18.07576792 | P12: 3.292150171 | R12: 1.129692833 | S12: 1.107508532 | T12: 1.085324232 | U12: 1.061433447 | V12: 1.037542662 | W12: 1.015358362 | X12: 0.9931740614 | Y12: 0.1993957704 | Z12: 0.1971821619 | AA12: 0.1949685535 | AB12: 0.1912342767 | AC12: 0.1875 | AD12: 0.1848152921 | AE12: 0.1821305842 | AF12: -0.3125 | AG12: -0.30625 | AH12: -0.3 | AI12: -0.30625 | AJ12: -0.3125 | AK12: -0.30625 | AL12: -0.3 | AM12: =Y12*C12+($A$4-80)*AF12*$A$12/1000 -> 4.099658703 | AN12: =Z12*E12+($A$4-80)*AG12*$A$12/1000 -> 3.974532867 | AO12: =AA12*G12+($A$4-80)*AH12*$A$12/1000 -> 3.851194539 | AP12: =AB12*I12+($A$4-80)*AI12*$A$12/1000 -> 3.694280727 | AQ12: =AC12*K12+($A$4-80)*AJ12*$A$12/1000 -> 3.540614334 | AR12: =AD12*M12+($A$4-80)*AK12*$A$12/1000 -> 3.41529829 | AS12: =AE12*O12+($A$4-80)*AL12*$A$12/1000 -> 3.292150171
B13: 67 | C13: 18.94539249 | D13: 3.416382253 | E13: 18.57269625 | F13: 3.290982432 | G13: 18.2 | H13: 3.167918089 | I13: 17.79624573 | J13: 3.010654492 | K13: 17.39249147 | L13: 2.857337884 | M13: 17.01979522 | N13: 2.699941929 | O13: 16.64709898 | P13: 2.546757679 | R13: 1.040955631 | S13: 1.020477816 | T13: 1 | U13: 0.9778156997 | V13: 0.9556313993 | W13: 0.9351535836 | X13: 0.9146757679 | Y13: 0.1803278689 | Z13: 0.1771946511 | AA13: 0.1740614334 | AB13: 0.1691735739 | AC13: 0.1642857143 | AD13: 0.1586353945 | AE13: 0.1529850746 | AF13: -0.3125 | AG13: -0.30625 | AH13: -0.3 | AI13: -0.3 | AJ13: -0.3 | AK13: -0.30625 | AL13: -0.3125 | AM13: =Y13*C13+($A$4-80)*AF13*$A$12/1000 -> 3.416382253 | AN13: =Z13*E13+($A$4-80)*AG13*$A$12/1000 -> 3.290982432 | AO13: =AA13*G13+($A$4-80)*AH13*$A$12/1000 -> 3.167918089 | AP13: =AB13*I13+($A$4-80)*AI13*$A$12/1000 -> 3.010654492 | AQ13: =AC13*K13+($A$4-80)*AJ13*$A$12/1000 -> 2.857337884 | AR13: =AD13*M13+($A$4-80)*AK13*$A$12/1000 -> 2.699941929 | AS13: =AE13*O13+($A$4-80)*AL13*$A$12/1000 -> 2.546757679
B14: 63 | C14: 17.76518771 | D14: 2.857337884 | E14: 17.39249147 | F14: 2.699959914 | G14: 17.01979522 | H14: 2.546757679 | I14: 16.64709898 | J14: 2.389188454 | K14: 16.27440273 | L14: 2.236177474 | M14: 15.93276451 | N14: 2.078513225 | O14: 15.59112628 | P14: 1.92559727 | R14: 0.976109215 | S14: 0.9556313993 | T14: 0.9351535836 | U14: 0.9146757679 | V14: 0.8941979522 | W14: 0.8754266212 | X14: 0.8566552901 | Y14: 0.1608391608 | Z14: 0.1552370987 | AA14: 0.1496350365 | AB14: 0.1435198083 | AC14: 0.1374045802 | AD14: 0.1304552781 | AE14: 0.1235059761 | AF14: -0.3 | AG14: -0.3 | AH14: -0.3 | AI14: -0.30625 | AJ14: -0.3125 | AK14: -0.3125 | AL14: -0.3125 | AM14: 2.857337884 | AN14: =Z14*E14+($A$4-80)*AG14*$A$12/1000 -> 2.699959914 | AO14: =AA14*G14+($A$4-80)*AH14*$A$12/1000 -> 2.546757679 | AP14: 2.389188454 | AQ14: 2.236177474 | AR14: 2.078513225 | AS14: 1.92559727
B15: 59 | C15: 16.89556314 | D15: 1.801365188 | E15: 16.55392491 | F15: 1.802132757 | G15: 16.21228669 | H15: 1.801365188 | I15: 15.87064846 | J15: 1.770459006 | K15: 15.52901024 | L15: 1.739249147 | M15: 15.18737201 | N15: 1.581265963 | O15: 14.84573379 | P15: 1.428668942 | R15: 0.9283276451 | S15: 0.909556314 | T15: 0.8907849829 | U15: 0.8720136519 | V15: 0.8532423208 | W15: 0.8344709898 | X15: 0.8156996587 | Y15: 0.1066176471 | Z15: 0.1088643791 | AA15: 0.1111111111 | AB15: 0.1115555556 | AC15: 0.112 | AD15: 0.1041171548 | AE15: 0.09623430962 | AF15: -0.4125 | AG15: -0.38125 | AH15: -0.35 | AI15: -0.325 | AJ15: -0.3 | AK15: -0.30625 | AL15: -0.3125 | AM15: 1.801365188 | AN15: =Z15*E15+($A$4-80)*AG15*$A$12/1000 -> 1.802132757 | AO15: =AA15*G15+($A$4-80)*AH15*$A$12/1000 -> 1.801365188 | AP15: 1.770459006 | AQ15: 1.739249147 | AR15: 1.581265963 | AS15: 1.428668942
A16: 1125 | B16: 71 | C16: 20.97161775 | D16: 4.181651877 | E16: 20.5597884 | F16: 4.054023525 | G16: 20.14795904 | H16: 3.92821843 | I16: 19.70445051 | J16: 3.768166342 | K16: 19.26094198 | L16: 3.611426621 | M16: 18.84911263 | N16: 3.483604256 | O16: 18.43728328 | P16: 3.357993174 | R16: 1.152286689 | S16: 1.129658703 | T16: 1.107030717 | U16: 1.082662116 | V16: 1.058293515 | W16: 1.035665529 | X16: 1.013037543 | Y16: 0.1993957704 | Z16: 0.1971821619 | AA16: 0.1949685535 | AB16: 0.1912342767 | AC16: 0.1875 | AD16: 0.1848152921 | AE16: 0.1821305842 | AF16: -0.3125 | AG16: -0.30625 | AH16: -0.3 | AI16: -0.30625 | AJ16: -0.3125 | AK16: -0.30625 | AL16: -0.3 | AM16: =Y16*C16+($A$4-80)*AF16*$A$16/1000 -> 4.181651877 | AN16: =Z16*E16+($A$4-80)*AG16*$A$16/1000 -> 4.054023525 | AO16: =AA16*G16+($A$4-80)*AH16*$A$16/1000 -> 3.92821843 | AP16: =AB16*I16+($A$4-80)*AI16*$A$16/1000 -> 3.768166342 | AQ16: =AC16*K16+($A$4-80)*AJ16*$A$16/1000 -> 3.611426621 | AR16: =AD16*M16+($A$4-80)*AK16*$A$16/1000 -> 3.483604256 | AS16: =AE16*O16+($A$4-80)*AL16*$A$16/1000 -> 3.357993174
B17: 67 | C17: 19.32430034 | D17: 3.484709898 | E17: 18.94415017 | F17: 3.356802081 | G17: 18.564 | H17: 3.231276451 | I17: 18.15217065 | J17: 3.070867582 | K17: 17.7403413 | L17: 2.914484642 | M17: 17.36019113 | N17: 2.753940767 | O17: 16.98004096 | P17: 2.597692833 | R17: 1.061774744 | S17: 1.040887372 | T17: 1.02 | U17: 0.9973720137 | V17: 0.9747440273 | W17: 0.9538566553 | X17: 0.9329692833 | Y17: 0.1803278689 | Z17: 0.1771946511 | AA17: 0.1740614334 | AB17: 0.1691735739 | AC17: 0.1642857143 | AD17: 0.1586353945 | AE17: 0.1529850746 | AF17: -0.3125 | AG17: -0.30625 | AH17: -0.3 | AI17: -0.3 | AJ17: -0.3 | AK17: -0.30625 | AL17: -0.3125 | AM17: =Y17*C17+($A$4-80)*AF17*$A$16/1000 -> 3.484709898 | AN17: =Z17*E17+($A$4-80)*AG17*$A$16/1000 -> 3.356802081 | AO17: =AA17*G17+($A$4-80)*AH17*$A$16/1000 -> 3.231276451 | AP17: =AB17*I17+($A$4-80)*AI17*$A$16/1000 -> 3.070867582 | AQ17: =AC17*K17+($A$4-80)*AJ17*$A$16/1000 -> 2.914484642 | AR17: =AD17*M17+($A$4-80)*AK17*$A$16/1000 -> 2.753940767 | AS17: =AE17*O17+($A$4-80)*AL17*$A$16/1000 -> 2.597692833
B18: 63 | C18: 18.12049147 | D18: 2.914484642 | E18: 17.7403413 | F18: 2.753959112 | G18: 17.36019113 | H18: 2.597692833 | I18: 16.98004096 | J18: 2.436972223 | K18: 16.59989078 | L18: 2.280901024 | M18: 16.2514198 | N18: 2.120083489 | O18: 15.90294881 | P18: 1.964109215 | R18: 0.9956313993 | S18: 0.9747440273 | T18: 0.9538566553 | U18: 0.9329692833 | V18: 0.9120819113 | W18: 0.8929351536 | X18: 0.8737883959 | Y18: 0.1608391608 | Z18: 0.1552370987 | AA18: 0.1496350365 | AB18: 0.1435198083 | AC18: 0.1374045802 | AD18: 0.1304552781 | AE18: 0.1235059761 | AF18: -0.3 | AG18: -0.3 | AH18: -0.3 | AI18: -0.30625 | AJ18: -0.3125 | AK18: -0.3125 | AL18: -0.3125 | AM18: 2.914484642 | AN18: =Z18*E18+($A$4-80)*AG18*$A$16/1000 -> 2.753959112 | AO18: =AA18*G18+($A$4-80)*AH18*$A$16/1000 -> 2.597692833 | AP18: 2.436972223 | AQ18: 2.280901024 | AR18: 2.120083489 | AS18: 1.964109215
B19: 59 | C19: 17.2334744 | D19: 1.837392491 | E19: 16.88500341 | F19: 1.838175412 | G19: 16.53653242 | H19: 1.837392491 | I19: 16.18806143 | J19: 1.805868187 | K19: 15.83959044 | L19: 1.77403413 | M19: 15.49111945 | N19: 1.612891282 | O19: 15.14264846 | P19: 1.457242321 | R19: 0.946894198 | S19: 0.9277474403 | T19: 0.9086006826 | U19: 0.8894539249 | V19: 0.8703071672 | W19: 0.8511604096 | X19: 0.8320136519 | Y19: 0.1066176471 | Z19: 0.1088643791 | AA19: 0.1111111111 | AB19: 0.1115555556 | AC19: 0.112 | AD19: 0.1041171548 | AE19: 0.09623430962 | AF19: -0.4125 | AG19: -0.38125 | AH19: -0.35 | AI19: -0.325 | AJ19: -0.3 | AK19: -0.30625 | AL19: -0.3125 | AM19: 1.837392491 | AN19: =Z19*E19+($A$4-80)*AG19*$A$16/1000 -> 1.838175412 | AO19: =AA19*G19+($A$4-80)*AH19*$A$16/1000 -> 1.837392491 | AP19: 1.805868187 | AQ19: 1.77403413 | AR19: 1.612891282 | AS19: 1.457242321

Sheet 4A7A60_36 (hidden)
A2: 4A7A60_36 | B2: 18.2
A3: Evaporator Air | C3: Condenser Entering Air Temperature ˚F
A4: 80 | B4: °F DB | C4: 85 | E4: 90 | G4: 95 | I4: 100 | K4: 105 | M4: 110 | O4: 115
A5: CFM | B5: EWB† ˚F | C5: Capacity Mbtuh | E5: Capacity Mbtuh | G5: Capacity Mbtuh | I5: Capacity Mbtuh | K5: Capacity Mbtuh | M5: Capacity Mbtuh | O5: Capacity Mbtuh
C6: Total | D6: Sens. | E6: Total | F6: Sens. | G6: Total | H6: Sens. | I6: Total | J6: Sens. | K6: Total | L6: Sens. | M6: Total | N6: Sens. | O6: Total | P6: Sens.
R7: Total Factors | Y7: Sens. % | AF7: IDB Adj | AM7: Sens Calc
A8: 1050 | B8: 71 | C8: =R8*$B$2 -> 20.19447934 | D8: =IF(AM8>C8,C8,AM8) -> 4.81522865 | E8: =S8*$B$2 -> 19.77683196 | F8: =IF(AN8>E8,E8,AN8) -> 4.666792043 | G8: =T8*$B$2 -> 19.35918457 | H8: =IF(AO8>G8,G8,AO8) -> 4.520418733 | I8: =U8*$B$2 -> 18.94153719 | J8: =IF(AP8>I8,I8,AP8) -> 4.397010488 | K8: =V8*$B$2 -> 18.52388981 | L8: =IF(AQ8>K8,K8,AQ8) -> 4.274743802 | M8: =W8*$B$2 -> 18.13080992 | N8: =IF(AR8>M8,M8,AR8) -> 4.126082461 | O8: =X8*$B$2 -> 17.73773003 | P8: =IF(AS8>O8,O8,AS8) -> 3.979933884 | R8: 1.109586777 | S8: 1.086639118 | T8: 1.06369146 | U8: 1.040743802 | V8: 1.017796143 | W8: 0.9961983471 | X8: 0.974600551 | Y8: 0.2384428224 | Z8: 0.2359726802 | AA8: 0.2335025381 | AB8: 0.2321358844 | AC8: 0.2307692308 | AD8: 0.227572981 | AE8: 0.2243767313 | AF8: -0.1875 | AG8: -0.1875 | AH8: -0.1875 | AI8: -0.1822916667 | AJ8: -0.1770833333 | AK8: -0.1822916667 | AL8: -0.1875 | AM8: =Y8*C8+($A$4-80)*AF8*$A$8/1000 -> 4.81522865 | AN8: =Z8*E8+($A$4-80)*AG8*$A$8/1000 -> 4.666792043 | AO8: =AA8*G8+($A$4-80)*AH8*$A$8/1000 -> 4.520418733 | AP8: =AB8*I8+($A$4-80)*AI8*$A$8/1000 -> 4.397010488 | AQ8: =AC8*K8+($A$4-80)*AJ8*$A$8/1000 -> 4.274743802 | AR8: =AD8*M8+($A$4-80)*AK8*$A$8/1000 -> 4.126082461 | AS8: =AE8*O8+($A$4-80)*AL8*$A$8/1000 -> 3.979933884
B9: 67 | C9: =R9*$B$2 -> 18.57302479 | D9: 4.471283747 | E9: 18.2045124 | F9: =IF(AN9>E9,E9,AN9) -> 4.322666205 | G9: 17.836 | H9: =IF(AO9>G9,G9,AO9) -> 4.176473829 | I9: 17.4674876 | J9: =IF(AP9>I9,I9,AP9) -> 4.027751755 | K9: 17.09897521 | L9: =IF(AQ9>K9,K9,AQ9) -> 3.881663912 | M9: 16.70589532 | N9: =IF(AR9>M9,M9,AR9) -> 3.732857235 | O9: 16.31281543 | P9: =IF(AS9>O9,O9,AS9) -> 3.586853994 | R9: 1.020495868 | S9: 1.000247934 | T9: 0.98 | U9: 0.9597520661 | V9: 0.9395041322 | W9: 0.9179063361 | X9: 0.8963085399 | Y9: 0.2407407407 | Z9: 0.2374502602 | AA9: 0.2341597796 | AB9: 0.2305856369 | AC9: 0.2270114943 | AD9: 0.2234455062 | AE9: 0.2198795181 | AF9: -0.1770833333 | AG9: -0.1822916667 | AH9: -0.1875 | AI9: -0.1875 | AJ9: -0.1875 | AK9: -0.1875 | AL9: -0.1875 | AM9: =Y9*C9+($A$4-80)*AF9*$A$8/1000 -> 4.471283747 | AN9: =Z9*E9+($A$4-80)*AG9*$A$8/1000 -> 4.322666205 | AO9: =AA9*G9+($A$4-80)*AH9*$A$8/1000 -> 4.176473829 | AP9: =AB9*I9+($A$4-80)*AI9*$A$8/1000 -> 4.027751755 | AQ9: =AC9*K9+($A$4-80)*AJ9*$A$8/1000 -> 3.881663912 | AR9: =AD9*M9+($A$4-80)*AK9*$A$8/1000 -> 3.732857235 | AS9: =AE9*O9+($A$4-80)*AL9*$A$8/1000 -> 3.586853994
B10: 63 | C10: 17.39378512 | D10: 4.176473829 | E10: 17.04984022 | F10: 4.027734355 | G10: 16.70589532 | H10: 3.881663912 | I10: 16.33738292 | J10: 3.73283326 | K10: 15.96887052 | L10: 3.586853994 | M10: 15.62492562 | N10: 3.437870105 | O10: 15.28098072 | P10: 3.292044077 | R10: 0.9557024793 | S10: 0.9368044077 | T10: 0.9179063361 | U10: 0.8976584022 | V10: 0.8774104683 | W10: 0.8585123967 | X10: 0.8396143251 | Y10: 0.2401129944 | Z10: 0.2362329678 | AA10: 0.2323529412 | AB10: 0.2284841629 | AC10: 0.2246153846 | AD10: 0.2200247341 | AE10: 0.2154340836 | AF10: -0.1875 | AG10: -0.1875 | AH10: -0.1875 | AI10: -0.1875 | AJ10: -0.1875 | AK10: -0.1875 | AL10: -0.1875 | AM10: 4.176473829 | AN10: =Z10*E10+($A$4-80)*AG10*$A$8/1000 -> 4.027734355 | AO10: =AA10*G10+($A$4-80)*AH10*$A$8/1000 -> 3.881663912 | AP10: 3.73283326 | AQ10: 3.586853994 | AR10: 3.437870105 | AS10: 3.292044077
B11: 59 | C11: 16.60762534 | D11: 3.292044077 | E11: 16.26368044 | F11: 3.293517068 | G11: 15.91973554 | H11: 3.292044077 | I11: 15.57579063 | J11: 3.293650112 | K11: 15.23184573 | L11: 3.292044077 | M11: 14.91246832 | N11: 3.193134101 | O11: 14.59309091 | P11: 3.095504132 | R11: 0.9125068871 | S11: 0.8936088154 | T11: 0.8747107438 | U11: 0.8558126722 | V11: 0.8369146006 | W11: 0.8193663912 | X11: 0.8018181818 | Y11: 0.1982248521 | Z11: 0.2025074878 | AA11: 0.2067901235 | AB11: 0.2114595779 | AC11: 0.2161290323 | AD11: 0.2141251222 | AE11: 0.2121212121 | AF11: -0.34375 | AG11: -0.3072916667 | AH11: -0.2708333333 | AI11: -0.2395833333 | AJ11: -0.2083333333 | AK11: -0.1979166667 | AL11: -0.1875 | AM11: 3.292044077 | AN11: =Z11*E11+($A$4-80)*AG11*$A$8/1000 -> 3.293517068 | AO11: =AA11*G11+($A$4-80)*AH11*$A$8/1000 -> 3.292044077 | AP11: =AB11*I11+($A$4-80)*AI11*$A$8/1000 -> 3.293650112 | AQ11: 3.292044077 | AR11: 3.193134101 | AS11: 3.095504132
A12: 1200 | B12: 71 | C12: 20.60661157 | D12: 4.913498623 | E12: 20.18044077 | F12: 4.762032697 | G12: 19.75426997 | H12: 4.612672176 | I12: 19.32809917 | J12: 4.486745396 | K12: 18.90192837 | L12: 4.361983471 | M12: 18.50082645 | N12: 4.210288226 | O12: 18.09972452 | P12: 4.061157025 | R12: 1.132231405 | S12: 1.108815427 | T12: 1.085399449 | U12: 1.061983471 | V12: 1.038567493 | W12: 1.016528926 | X12: 0.9944903581 | Y12: 0.2384428224 | Z12: 0.2359726802 | AA12: 0.2335025381 | AB12: 0.2321358844 | AC12: 0.2307692308 | AD12: 0.227572981 | AE12: 0.2243767313 | AF12: -0.1875 | AG12: -0.1875 | AH12: -0.1875 | AI12: -0.1822916667 | AJ12: -0.1770833333 | AK12: -0.1822916667 | AL12: -0.1875 | AM12: =Y12*C12+($A$4-80)*AF12*$A$12/1000 -> 4.913498623 | AN12: =Z12*E12+($A$4-80)*AG12*$A$12/1000 -> 4.762032697 | AO12: =AA12*G12+($A$4-80)*AH12*$A$12/1000 -> 4.612672176 | AP12: =AB12*I12+($A$4-80)*AI12*$A$12/1000 -> 4.486745396 | AQ12: =AC12*K12+($A$4-80)*AJ12*$A$12/1000 -> 4.361983471 | AR12: =AD12*M12+($A$4-80)*AK12*$A$12/1000 -> 4.210288226 | AS12: =AE12*O12+($A$4-80)*AL12*$A$12/1000 -> 4.061157025
B13: 67 | C13: 18.95206612 | D13: 4.562534435 | E13: 18.57603306 | F13: 4.410883883 | G13: 18.2 | H13: 4.261707989 | I13: 17.82396694 | J13: 4.10995077 | K13: 17.44793388 | L13: 3.960881543 | M13: 17.04683196 | N13: 3.809037995 | O13: 16.64573003 | P13: 3.660055096 | R13: 1.041322314 | S13: 1.020661157 | T13: 1 | U13: 0.979338843 | V13: 0.958677686 | W13: 0.9366391185 | X13: 0.914600551 | Y13: 0.2407407407 | Z13: 0.2374502602 | AA13: 0.2341597796 | AB13: 0.2305856369 | AC13: 0.2270114943 | AD13: 0.2234455062 | AE13: 0.2198795181 | AF13: -0.1770833333 | AG13: -0.1822916667 | AH13: -0.1875 | AI13: -0.1875 | AJ13: -0.1875 | AK13: -0.1875 | AL13: -0.1875 | AM13: =Y13*C13+($A$4-80)*AF13*$A$12/1000 -> 4.562534435 | AN13: =Z13*E13+($A$4-80)*AG13*$A$12/1000 -> 4.410883883 | AO13: =AA13*G13+($A$4-80)*AH13*$A$12/1000 -> 4.261707989 | AP13: =AB13*I13+($A$4-80)*AI13*$A$12/1000 -> 4.10995077 | AQ13: =AC13*K13+($A$4-80)*AJ13*$A$12/1000 -> 3.960881543 | AR13: =AD13*M13+($A$4-80)*AK13*$A$12/1000 -> 3.809037995 | AS13: =AE13*O13+($A$4-80)*AL13*$A$12/1000 -> 3.660055096
B14: 63 | C14: 17.74876033 | D14: 4.261707989 | E14: 17.39779614 | F14: 4.109933015 | G14: 17.04683196 | H14: 3.960881543 | I14: 16.6707989 | J14: 3.809013531 | K14: 16.29476584 | L14: 3.660055096 | M14: 15.94380165 | N14: 3.508030719 | O14: 15.59283747 | P14: 3.35922865 | R14: 0.9752066116 | S14: 0.955922865 | T14: 0.9366391185 | U14: 0.9159779614 | V14: 0.8953168044 | W14: 0.8760330579 | X14: 0.8567493113 | Y14: 0.2401129944 | Z14: 0.2362329678 | AA14: 0.2323529412 | AB14: 0.2284841629 | AC14: 0.2246153846 | AD14: 0.2200247341 | AE14: 0.2154340836 | AF14: -0.1875 | AG14: -0.1875 | AH14: -0.1875 | AI14: -0.1875 | AJ14: -0.1875 | AK14: -0.1875 | AL14: -0.1875 | AM14: 4.261707989 | AN14: =Z14*E14+($A$4-80)*AG14*$A$12/1000 -> 4.109933015 | AO14: =AA14*G14+($A$4-80)*AH14*$A$12/1000 -> 3.960881543 | AP14: 3.809013531 | AQ14: 3.660055096 | AR14: 3.508030719 | AS14: 3.35922865
B15: 59 | C15: 16.94655647 | D15: 3.35922865 | E15: 16.59559229 | F15: 3.360731702 | G15: 16.2446281 | H15: 3.35922865 | I15: 15.89366391 | J15: 3.360867461 | K15: 15.54269972 | L15: 3.35922865 | M15: 15.21680441 | N15: 3.258300103 | O15: 14.89090909 | P15: 3.158677686 | R15: 0.9311294766 | S15: 0.91184573 | T15: 0.8925619835 | U15: 0.8732782369 | V15: 0.8539944904 | W15: 0.8360881543 | X15: 0.8181818182 | Y15: 0.1982248521 | Z15: 0.2025074878 | AA15: 0.2067901235 | AB15: 0.2114595779 | AC15: 0.2161290323 | AD15: 0.2141251222 | AE15: 0.2121212121 | AF15: -0.34375 | AG15: -0.3072916667 | AH15: -0.2708333333 | AI15: -0.2395833333 | AJ15: -0.2083333333 | AK15: -0.1979166667 | AL15: -0.1875 | AM15: 3.35922865 | AN15: =Z15*E15+($A$4-80)*AG15*$A$12/1000 -> 3.360731702 | AO15: =AA15*G15+($A$4-80)*AH15*$A$12/1000 -> 3.35922865 | AP15: 3.360867461 | AQ15: 3.35922865 | AR15: 3.258300103 | AS15: 3.158677686
A16: 1350 | B16: 71 | C16: 21.0187438 | D16: 5.011768595 | E16: 20.58404959 | F16: 4.857273351 | G16: 20.14935537 | H16: 4.70492562 | I16: 19.71466116 | J16: 4.576480304 | K16: 19.27996694 | L16: 4.44922314 | M16: 18.87084298 | N16: 4.294493991 | O16: 18.46171901 | P16: 4.142380165 | R16: 1.154876033 | S16: 1.130991736 | T16: 1.107107438 | U16: 1.08322314 | V16: 1.059338843 | W16: 1.036859504 | X16: 1.014380165 | Y16: 0.2384428224 | Z16: 0.2359726802 | AA16: 0.2335025381 | AB16: 0.2321358844 | AC16: 0.2307692308 | AD16: 0.227572981 | AE16: 0.2243767313 | AF16: -0.1875 | AG16: -0.1875 | AH16: -0.1875 | AI16: -0.1822916667 | AJ16: -0.1770833333 | AK16: -0.1822916667 | AL16: -0.1875 | AM16: =Y16*C16+($A$4-80)*AF16*$A$16/1000 -> 5.011768595 | AN16: =Z16*E16+($A$4-80)*AG16*$A$16/1000 -> 4.857273351 | AO16: =AA16*G16+($A$4-80)*AH16*$A$16/1000 -> 4.70492562 | AP16: =AB16*I16+($A$4-80)*AI16*$A$16/1000 -> 4.576480304 | AQ16: =AC16*K16+($A$4-80)*AJ16*$A$16/1000 -> 4.44922314 | AR16: =AD16*M16+($A$4-80)*AK16*$A$16/1000 -> 4.294493991 | AS16: =AE16*O16+($A$4-80)*AL16*$A$16/1000 -> 4.142380165
B17: 67 | C17: 19.33110744 | D17: 4.653785124 | E17: 18.94755372 | F17: 4.49910156 | G17: 18.564 | H17: 4.346942149 | I17: 18.18044628 | J17: 4.192149785 | K17: 17.79689256 | L17: 4.040099174 | M17: 17.3877686 | N17: 3.885218755 | O17: 16.97864463 | P17: 3.733256198 | R17: 1.06214876 | S17: 1.04107438 | T17: 1.02 | U17: 0.9989256198 | V17: 0.9778512397 | W17: 0.9553719008 | X17: 0.932892562 | Y17: 0.2407407407 | Z17: 0.2374502602 | AA17: 0.2341597796 | AB17: 0.2305856369 | AC17: 0.2270114943 | AD17: 0.2234455062 | AE17: 0.2198795181 | AF17: -0.1770833333 | AG17: -0.1822916667 | AH17: -0.1875 | AI17: -0.1875 | AJ17: -0.1875 | AK17: -0.1875 | AL17: -0.1875 | AM17: =Y17*C17+($A$4-80)*AF17*$A$16/1000 -> 4.653785124 | AN17: =Z17*E17+($A$4-80)*AG17*$A$16/1000 -> 4.49910156 | AO17: =AA17*G17+($A$4-80)*AH17*$A$16/1000 -> 4.346942149 | AP17: =AB17*I17+($A$4-80)*AI17*$A$16/1000 -> 4.192149785 | AQ17: =AC17*K17+($A$4-80)*AJ17*$A$16/1000 -> 4.040099174 | AR17: =AD17*M17+($A$4-80)*AK17*$A$16/1000 -> 3.885218755 | AS17: =AE17*O17+($A$4-80)*AL17*$A$16/1000 -> 3.733256198
B18: 63 | C18: 18.10373554 | D18: 4.346942149 | E18: 17.74575207 | F18: 4.192131676 | G18: 17.3877686 | H18: 4.040099174 | I18: 17.00421488 | J18: 3.885193802 | K18: 16.62066116 | L18: 3.733256198 | M18: 16.26267769 | N18: 3.578191334 | O18: 15.90469421 | P18: 3.426413223 | R18: 0.9947107438 | S18: 0.9750413223 | T18: 0.9553719008 | U18: 0.9342975207 | V18: 0.9132231405 | W18: 0.893553719 | X18: 0.8738842975 | Y18: 0.2401129944 | Z18: 0.2362329678 | AA18: 0.2323529412 | AB18: 0.2284841629 | AC18: 0.2246153846 | AD18: 0.2200247341 | AE18: 0.2154340836 | AF18: -0.1875 | AG18: -0.1875 | AH18: -0.1875 | AI18: -0.1875 | AJ18: -0.1875 | AK18: -0.1875 | AL18: -0.1875 | AM18: 4.346942149 | AN18: =Z18*E18+($A$4-80)*AG18*$A$16/1000 -> 4.192131676 | AO18: =AA18*G18+($A$4-80)*AH18*$A$16/1000 -> 4.040099174 | AP18: 3.885193802 | AQ18: 3.733256198 | AR18: 3.578191334 | AS18: 3.426413223
B19: 59 | C19: 17.2854876 | D19: 3.426413223 | E19: 16.92750413 | F19: 3.427946336 | G19: 16.56952066 | H19: 3.426413223 | I19: 16.21153719 | J19: 3.428084811 | K19: 15.85355372 | L19: 3.426413223 | M19: 15.5211405 | N19: 3.323466105 | O19: 15.18872727 | P19: 3.22185124 | R19: 0.9497520661 | S19: 0.9300826446 | T19: 0.9104132231 | U19: 0.8907438017 | V19: 0.8710743802 | W19: 0.8528099174 | X19: 0.8345454545 | Y19: 0.1982248521 | Z19: 0.2025074878 | AA19: 0.2067901235 | AB19: 0.2114595779 | AC19: 0.2161290323 | AD19: 0.2141251222 | AE19: 0.2121212121 | AF19: -0.34375 | AG19: -0.3072916667 | AH19: -0.2708333333 | AI19: -0.2395833333 | AJ19: -0.2083333333 | AK19: -0.1979166667 | AL19: -0.1875 | AM19: 3.426413223 | AN19: =Z19*E19+($A$4-80)*AG19*$A$16/1000 -> 3.427946336 | AO19: =AA19*G19+($A$4-80)*AH19*$A$16/1000 -> 3.426413223 | AP19: 3.428084811 | AQ19: 3.426413223 | AR19: 3.323466105 | AS19: 3.22185124

Sheet 4A7A60_42 (hidden)
A2: 4A7A60_42 | B2: 18.2
A3: Evaporator Air | C3: Condenser Entering Air Temperature ˚F
A4: 80 | B4: °F DB | C4: 85 | E4: 90 | G4: 95 | I4: 100 | K4: 105 | M4: 110 | O4: 115
A5: CFM | B5: EWB† ˚F | C5: Capacity Mbtuh | E5: Capacity Mbtuh | G5: Capacity Mbtuh | I5: Capacity Mbtuh | K5: Capacity Mbtuh | M5: Capacity Mbtuh | O5: Capacity Mbtuh
C6: Total | D6: Sens. | E6: Total | F6: Sens. | G6: Total | H6: Sens. | I6: Total | J6: Sens. | K6: Total | L6: Sens. | M6: Total | N6: Sens. | O6: Total | P6: Sens.
R7: Total Factors | Y7: Sens. % | AF7: IDB Adj | AM7: Sens Calc
A8: 1225 | B8: 71 | C8: =R8*$B$2 -> 20.04953699 | D8: =IF(AM8>C8,C8,AM8) -> 4.597346062 | E8: =S8*$B$2 -> 19.68770883 | F8: =IF(AN8>E8,E8,AN8) -> 4.468804416 | G8: =T8*$B$2 -> 19.32588067 | H8: =IF(AO8>G8,G8,AO8) -> 4.341937947 | I8: =U8*$B$2 -> 18.98533652 | J8: =IF(AP8>I8,I8,AP8) -> 4.234971596 | K8: =V8*$B$2 -> 18.64479236 | L8: =IF(AQ8>K8,K8,AQ8) -> 4.129097852 | M8: =W8*$B$2 -> 18.2829642 | N8: =IF(AR8>M8,M8,AR8) -> 4.000433291 | O8: =X8*$B$2 -> 17.92113604 | P8: =IF(AS8>O8,O8,AS8) -> 3.873689737 | R8: 1.101622912 | S8: 1.081742243 | T8: 1.061861575 | U8: 1.043150358 | V8: 1.024439141 | W8: 1.004558473 | X8: 0.9846778043 | Y8: 0.2292993631 | Z8: 0.2269844833 | AA8: 0.2246696035 | AB8: 0.2230653954 | AC8: 0.2214611872 | AD8: 0.2188066031 | AE8: 0.216152019 | AF8: -0.2142857143 | AG8: -0.2142857143 | AH8: -0.2142857143 | AI8: -0.2142857143 | AJ8: -0.2142857143 | AK8: -0.2142857143 | AL8: -0.2142857143 | AM8: =Y8*C8+($A$4-80)*AF8*$A$8/1000 -> 4.597346062 | AN8: =Z8*E8+($A$4-80)*AG8*$A$8/1000 -> 4.468804416 | AO8: =AA8*G8+($A$4-80)*AH8*$A$8/1000 -> 4.341937947 | AP8: =AB8*I8+($A$4-80)*AI8*$A$8/1000 -> 4.234971596 | AQ8: =AC8*K8+($A$4-80)*AJ8*$A$8/1000 -> 4.129097852 | AR8: =AD8*M8+($A$4-80)*AK8*$A$8/1000 -> 4.000433291 | AS8: =AE8*O8+($A$4-80)*AL8*$A$8/1000 -> 3.873689737
B9: 67 | C9: =R9*$B$2 -> 18.47452029 | D9: 4.171665871 | E9: 18.15526014 | F9: =IF(AN9>E9,E9,AN9) -> 4.042966353 | G9: 17.836 | H9: =IF(AO9>G9,G9,AO9) -> 3.916257757 | I9: 17.49545585 | J9: =IF(AP9>I9,I9,AP9) -> 3.787502967 | K9: 17.15491169 | L9: =IF(AQ9>K9,K9,AQ9) -> 3.660849642 | M9: 16.83565155 | N9: =IF(AR9>M9,M9,AR9) -> 3.553689451 | O9: 16.51639141 | P9: =IF(AS9>O9,O9,AS9) -> 3.448009547 | R9: 1.015083532 | S9: 0.9975417661 | T9: 0.98 | U9: 0.9612887828 | V9: 0.9425775656 | W9: 0.9250357995 | X9: 0.9074940334 | Y9: 0.2258064516 | Z9: 0.2226884287 | AA9: 0.2195704057 | AB9: 0.2164849547 | AC9: 0.2133995037 | AD9: 0.2110811952 | AE9: 0.2087628866 | AF9: -0.2142857143 | AG9: -0.2142857143 | AH9: -0.2142857143 | AI9: -0.2142857143 | AJ9: -0.2142857143 | AK9: -0.2098214286 | AL9: -0.2053571429 | AM9: =Y9*C9+($A$4-80)*AF9*$A$8/1000 -> 4.171665871 | AN9: =Z9*E9+($A$4-80)*AG9*$A$8/1000 -> 4.042966353 | AO9: =AA9*G9+($A$4-80)*AH9*$A$8/1000 -> 3.916257757 | AP9: =AB9*I9+($A$4-80)*AI9*$A$8/1000 -> 3.787502967 | AQ9: =AC9*K9+($A$4-80)*AJ9*$A$8/1000 -> 3.660849642 | AR9: =AD9*M9+($A$4-80)*AK9*$A$8/1000 -> 3.553689451 | AS9: =AE9*O9+($A$4-80)*AL9*$A$8/1000 -> 3.448009547
B10: 63 | C10: 17.28261575 | D10: 3.788553699 | E10: 16.98463962 | F10: 3.68139972 | G10: 16.68666348 | H10: 3.575713604 | I10: 16.38868735 | J10: 3.446827102 | K10: 16.09071122 | L10: 3.320305489 | M10: 15.77145107 | N10: 3.191324056 | O10: 15.45219093 | P10: 3.064897375 | R10: 0.9495942721 | S10: 0.933221957 | T10: 0.916849642 | U10: 0.900477327 | V10: 0.8841050119 | W10: 0.8665632458 | X10: 0.8490214797 | Y10: 0.2192118227 | Z10: 0.2167487685 | AA10: 0.2142857143 | AB10: 0.2103174603 | AC10: 0.2063492063 | AD10: 0.2023481569 | AE10: 0.1983471074 | AF10: -0.2142857143 | AG10: -0.2142857143 | AH10: -0.2142857143 | AI10: -0.2142857143 | AJ10: -0.2142857143 | AK10: -0.2142857143 | AL10: -0.2142857143 | AM10: 3.788553699 | AN10: =Z10*E10+($A$4-80)*AG10*$A$8/1000 -> 3.68139972 | AO10: =AA10*G10+($A$4-80)*AH10*$A$8/1000 -> 3.575713604 | AP10: 3.446827102 | AQ10: 3.320305489 | AR10: 3.191324056 | AS10: 3.064897375
B11: 59 | C11: 16.51639141 | D11: 2.979761337 | E11: 16.21841527 | F11: 2.980767513 | G11: 15.92043914 | H11: 2.979761337 | I11: 15.62246301 | J11: 2.980845771 | K11: 15.32448687 | L11: 2.979761337 | M11: 15.02651074 | N11: 2.894075085 | O11: 14.72853461 | P11: 2.80948926 | R11: 0.9074940334 | S11: 0.8911217184 | T11: 0.8747494033 | U11: 0.8583770883 | V11: 0.8420047733 | W11: 0.8256324582 | X11: 0.8092601432 | Y11: 0.1804123711 | Z11: 0.1837890733 | AA11: 0.1871657754 | AB11: 0.1908051099 | AC11: 0.1944444444 | AD11: 0.1925979448 | AE11: 0.1907514451 | AF11: -0.3392857143 | AG11: -0.3125 | AH11: -0.2857142857 | AI11: -0.2589285714 | AJ11: -0.2321428571 | AK11: -0.21875 | AL11: -0.2053571429 | AM11: 2.979761337 | AN11: =Z11*E11+($A$4-80)*AG11*$A$8/1000 -> 2.980767513 | AO11: =AA11*G11+($A$4-80)*AH11*$A$8/1000 -> 2.979761337 | AP11: =AB11*I11+($A$4-80)*AI11*$A$8/1000 -> 2.980845771 | AQ11: 2.979761337 | AR11: 2.894075085 | AS11: 2.80948926
A12: 1400 | B12: 71 | C12: 20.45871122 | D12: 4.691169451 | E12: 20.08949881 | F12: 4.560004506 | G12: 19.7202864 | H12: 4.430548926 | I12: 19.37279236 | J12: 4.321399588 | K12: 19.02529833 | L12: 4.213365155 | M12: 18.65608592 | N12: 4.082074787 | O12: 18.28687351 | P12: 3.95274463 | R12: 1.124105012 | S12: 1.103818616 | T12: 1.08353222 | U12: 1.064439141 | V12: 1.045346062 | W12: 1.025059666 | X12: 1.00477327 | Y12: 0.2292993631 | Z12: 0.2269844833 | AA12: 0.2246696035 | AB12: 0.2230653954 | AC12: 0.2214611872 | AD12: 0.2188066031 | AE12: 0.216152019 | AF12: -0.2142857143 | AG12: -0.2142857143 | AH12: -0.2142857143 | AI12: -0.2142857143 | AJ12: -0.2142857143 | AK12: -0.2142857143 | AL12: -0.2142857143 | AM12: =Y12*C12+($A$4-80)*AF12*$A$12/1000 -> 4.691169451 | AN12: =Z12*E12+($A$4-80)*AG12*$A$12/1000 -> 4.560004506 | AO12: =AA12*G12+($A$4-80)*AH12*$A$12/1000 -> 4.430548926 | AP12: =AB12*I12+($A$4-80)*AI12*$A$12/1000 -> 4.321399588 | AQ12: =AC12*K12+($A$4-80)*AJ12*$A$12/1000 -> 4.213365155 | AR12: =AD12*M12+($A$4-80)*AK12*$A$12/1000 -> 4.082074787 | AS12: =AE12*O12+($A$4-80)*AL12*$A$12/1000 -> 3.95274463
B13: 67 | C13: 18.85155131 | D13: 4.256801909 | E13: 18.52577566 | F13: 4.125475871 | G13: 18.2 | H13: 3.996181384 | I13: 17.85250597 | J13: 3.864798946 | K13: 17.50501193 | L13: 3.735560859 | M13: 17.17923628 | N13: 3.626213725 | O13: 16.85346062 | P13: 3.518377088 | R13: 1.035799523 | S13: 1.017899761 | T13: 1 | U13: 0.9809069212 | V13: 0.9618138425 | W13: 0.9439140811 | X13: 0.9260143198 | Y13: 0.2258064516 | Z13: 0.2226884287 | AA13: 0.2195704057 | AB13: 0.2164849547 | AC13: 0.2133995037 | AD13: 0.2110811952 | AE13: 0.2087628866 | AF13: -0.2142857143 | AG13: -0.2142857143 | AH13: -0.2142857143 | AI13: -0.2142857143 | AJ13: -0.2142857143 | AK13: -0.2098214286 | AL13: -0.2053571429 | AM13: =Y13*C13+($A$4-80)*AF13*$A$12/1000 -> 4.256801909 | AN13: =Z13*E13+($A$4-80)*AG13*$A$12/1000 -> 4.125475871 | AO13: =AA13*G13+($A$4-80)*AH13*$A$12/1000 -> 3.996181384 | AP13: =AB13*I13+($A$4-80)*AI13*$A$12/1000 -> 3.864798946 | AQ13: =AC13*K13+($A$4-80)*AJ13*$A$12/1000 -> 3.735560859 | AR13: =AD13*M13+($A$4-80)*AK13*$A$12/1000 -> 3.626213725 | AS13: =AE13*O13+($A$4-80)*AL13*$A$12/1000 -> 3.518377088
B14: 63 | C14: 17.6353222 | D14: 3.865871122 | E14: 17.33126492 | F14: 3.756530327 | G14: 17.02720764 | H14: 3.648687351 | I14: 16.72315036 | J14: 3.517170512 | K14: 16.41909308 | L14: 3.388066826 | M14: 16.09331742 | N14: 3.256453119 | O14: 15.76754177 | P14: 3.127446301 | R14: 0.968973747 | S14: 0.9522673031 | T14: 0.9355608592 | U14: 0.9188544153 | V14: 0.9021479714 | W14: 0.88424821 | X14: 0.8663484487 | Y14: 0.2192118227 | Z14: 0.2167487685 | AA14: 0.2142857143 | AB14: 0.2103174603 | AC14: 0.2063492063 | AD14: 0.2023481569 | AE14: 0.1983471074 | AF14: -0.2142857143 | AG14: -0.2142857143 | AH14: -0.2142857143 | AI14: -0.2142857143 | AJ14: -0.2142857143 | AK14: -0.2142857143 | AL14: -0.2142857143 | AM14: 3.865871122 | AN14: =Z14*E14+($A$4-80)*AG14*$A$12/1000 -> 3.756530327 | AO14: =AA14*G14+($A$4-80)*AH14*$A$12/1000 -> 3.648687351 | AP14: 3.517170512 | AQ14: 3.388066826 | AR14: 3.256453119 | AS14: 3.127446301
B15: 59 | C15: 16.85346062 | D15: 3.040572792 | E15: 16.54940334 | F15: 3.041599503 | G15: 16.24534606 | H15: 3.040572792 | I15: 15.94128878 | J15: 3.041679359 | K15: 15.6372315 | L15: 3.040572792 | M15: 15.33317422 | N15: 2.953137842 | O15: 15.02911695 | P15: 2.866825776 | R15: 0.9260143198 | S15: 0.9093078759 | T15: 0.892601432 | U15: 0.8758949881 | V15: 0.8591885442 | W15: 0.8424821002 | X15: 0.8257756563 | Y15: 0.1804123711 | Z15: 0.1837890733 | AA15: 0.1871657754 | AB15: 0.1908051099 | AC15: 0.1944444444 | AD15: 0.1925979448 | AE15: 0.1907514451 | AF15: -0.3392857143 | AG15: -0.3125 | AH15: -0.2857142857 | AI15: -0.2589285714 | AJ15: -0.2321428571 | AK15: -0.21875 | AL15: -0.2053571429 | AM15: 3.040572792 | AN15: =Z15*E15+($A$4-80)*AG15*$A$12/1000 -> 3.041599503 | AO15: =AA15*G15+($A$4-80)*AH15*$A$12/1000 -> 3.040572792 | AP15: 3.041679359 | AQ15: 3.040572792 | AR15: 2.953137842 | AS15: 2.866825776
A16: 1575 | B16: 71 | C16: 20.86788544 | D16: 4.78499284 | E16: 20.49128878 | F16: 4.651204596 | G16: 20.11469212 | H16: 4.519159905 | I16: 19.76024821 | J16: 4.40782758 | K16: 19.4058043 | L16: 4.297632458 | M16: 19.02920764 | N16: 4.163716283 | O16: 18.65261098 | P16: 4.031799523 | R16: 1.146587112 | S16: 1.125894988 | T16: 1.105202864 | U16: 1.085727924 | V16: 1.066252983 | W16: 1.045560859 | X16: 1.024868735 | Y16: 0.2292993631 | Z16: 0.2269844833 | AA16: 0.2246696035 | AB16: 0.2230653954 | AC16: 0.2214611872 | AD16: 0.2188066031 | AE16: 0.216152019 | AF16: -0.2142857143 | AG16: -0.2142857143 | AH16: -0.2142857143 | AI16: -0.2142857143 | AJ16: -0.2142857143 | AK16: -0.2142857143 | AL16: -0.2142857143 | AM16: =Y16*C16+($A$4-80)*AF16*$A$16/1000 -> 4.78499284 | AN16: =Z16*E16+($A$4-80)*AG16*$A$16/1000 -> 4.651204596 | AO16: =AA16*G16+($A$4-80)*AH16*$A$16/1000 -> 4.519159905 | AP16: =AB16*I16+($A$4-80)*AI16*$A$16/1000 -> 4.40782758 | AQ16: =AC16*K16+($A$4-80)*AJ16*$A$16/1000 -> 4.297632458 | AR16: =AD16*M16+($A$4-80)*AK16*$A$16/1000 -> 4.163716283 | AS16: =AE16*O16+($A$4-80)*AL16*$A$16/1000 -> 4.031799523
B17: 67 | C17: 19.22858234 | D17: 4.341937947 | E17: 18.89629117 | F17: 4.207985388 | G17: 18.564 | H17: 4.076105012 | I17: 18.20955609 | J17: 3.942094925 | K17: 17.85511217 | L17: 3.810272076 | M17: 17.522821 | N17: 3.698738 | O17: 17.19052983 | P17: 3.58874463 | R17: 1.056515513 | S17: 1.038257757 | T17: 1.02 | U17: 1.00052506 | V17: 0.9810501193 | W17: 0.9627923628 | X17: 0.9445346062 | Y17: 0.2258064516 | Z17: 0.2226884287 | AA17: 0.2195704057 | AB17: 0.2164849547 | AC17: 0.2133995037 | AD17: 0.2110811952 | AE17: 0.2087628866 | AF17: -0.2142857143 | AG17: -0.2142857143 | AH17: -0.2142857143 | AI17: -0.2142857143 | AJ17: -0.2142857143 | AK17: -0.2098214286 | AL17: -0.2053571429 | AM17: =Y17*C17+($A$4-80)*AF17*$A$16/1000 -> 4.341937947 | AN17: =Z17*E17+($A$4-80)*AG17*$A$16/1000 -> 4.207985388 | AO17: =AA17*G17+($A$4-80)*AH17*$A$16/1000 -> 4.076105012 | AP17: =AB17*I17+($A$4-80)*AI17*$A$16/1000 -> 3.942094925 | AQ17: =AC17*K17+($A$4-80)*AJ17*$A$16/1000 -> 3.810272076 | AR17: =AD17*M17+($A$4-80)*AK17*$A$16/1000 -> 3.698738 | AS17: =AE17*O17+($A$4-80)*AL17*$A$16/1000 -> 3.58874463
B18: 63 | C18: 17.98802864 | D18: 3.943188544 | E18: 17.67789021 | F18: 3.831660933 | G18: 17.36775179 | H18: 3.721661098 | I18: 17.05761337 | J18: 3.587513922 | K18: 16.74747494 | L18: 3.455828162 | M18: 16.41518377 | N18: 3.321582181 | O18: 16.0828926 | P18: 3.189995227 | R18: 0.988353222 | S18: 0.9713126492 | T18: 0.9542720764 | U18: 0.9372315036 | V18: 0.9201909308 | W18: 0.9019331742 | X18: 0.8836754177 | Y18: 0.2192118227 | Z18: 0.2167487685 | AA18: 0.2142857143 | AB18: 0.2103174603 | AC18: 0.2063492063 | AD18: 0.2023481569 | AE18: 0.1983471074 | AF18: -0.2142857143 | AG18: -0.2142857143 | AH18: -0.2142857143 | AI18: -0.2142857143 | AJ18: -0.2142857143 | AK18: -0.2142857143 | AL18: -0.2142857143 | AM18: 3.943188544 | AN18: =Z18*E18+($A$4-80)*AG18*$A$16/1000 -> 3.831660933 | AO18: =AA18*G18+($A$4-80)*AH18*$A$16/1000 -> 3.721661098 | AP18: 3.587513922 | AQ18: 3.455828162 | AR18: 3.321582181 | AS18: 3.189995227
B19: 59 | C19: 17.19052983 | D19: 3.101384248 | E19: 16.88039141 | F19: 3.102431493 | G19: 16.57025298 | H19: 3.101384248 | I19: 16.26011456 | J19: 3.102512946 | K19: 15.94997613 | L19: 3.101384248 | M19: 15.63983771 | N19: 3.012200599 | O19: 15.32969928 | P19: 2.924162291 | R19: 0.9445346062 | S19: 0.9274940334 | T19: 0.9104534606 | U19: 0.8934128878 | V19: 0.876372315 | W19: 0.8593317422 | X19: 0.8422911695 | Y19: 0.1804123711 | Z19: 0.1837890733 | AA19: 0.1871657754 | AB19: 0.1908051099 | AC19: 0.1944444444 | AD19: 0.1925979448 | AE19: 0.1907514451 | AF19: -0.3392857143 | AG19: -0.3125 | AH19: -0.2857142857 | AI19: -0.2589285714 | AJ19: -0.2321428571 | AK19: -0.21875 | AL19: -0.2053571429 | AM19: 3.101384248 | AN19: =Z19*E19+($A$4-80)*AG19*$A$16/1000 -> 3.102431493 | AO19: =AA19*G19+($A$4-80)*AH19*$A$16/1000 -> 3.101384248 | AP19: 3.102512946 | AQ19: 3.101384248 | AR19: 3.012200599 | AS19: 2.924162291

Sheet 4A7A60_48 (hidden)
A2: 4A7A60_48 | B2: 18.2
A3: Evaporator Air | C3: Condenser Entering Air Temperature ˚F
A4: 80 | B4: °F DB | C4: 85 | E4: 90 | G4: 95 | I4: 100 | K4: 105 | M4: 110 | O4: 115
A5: CFM | B5: EWB† ˚F | C5: Capacity Mbtuh | E5: Capacity Mbtuh | G5: Capacity Mbtuh | I5: Capacity Mbtuh | K5: Capacity Mbtuh | M5: Capacity Mbtuh | O5: Capacity Mbtuh
C6: Total | D6: Sens. | E6: Total | F6: Sens. | G6: Total | H6: Sens. | I6: Total | J6: Sens. | K6: Total | L6: Sens. | M6: Total | N6: Sens. | O6: Total | P6: Sens.
R7: Total Factors | Y7: Sens. % | AF7: IDB Adj | AM7: Sens Calc
